Workbook

Sheet Coversheet
A1: SCP Calculator (Version 5.1)
B2: This tool has been developed to support consultants developing Stormwater Control Plans for RIDOT Consent Decree Compliance. The tool has been developed for knowledgeable professionals with little additional controls. Altering cells outside of those indicated as input may render the calculation results invalid.
A4: General Notes: | B4: Templates are set up assuming one workbook will be used per subwatershed. | E4: SCP Subwatershed: | F4: Bailey Brook and Tribs
B5: Users have the option to only show relevant tabs by selecting from the pull down menu below. | E5: WBID: | F5: RI-0007035R-01
B6: Cells of this color designate an input is required. Cells denoted with * indicate input must be one of a controlled list (see pull down) | E6: Version Date: | F6: 2018-11-27
B7: Cells of this color contain formulas and should not be altered. | E7: Last Saved: | F7: =MODDATE() -> 12/17/18 3:18 PM
A9: Sheet Summary | B9: Sheet | C9: Description | D9: Show Tab* | E9: Additional Resources
A10: Version Notes | B10: Version Notes | C10: Information on updates between SCP calculator versions. | D10: No
A11: Input Tabs | B11: RIDOT_Catchment | C11: User input from GIS layer RIDOT_Catchment. | D11: -- | E11: SCP database and metadata
B12: Non-RIDOT_Catchment | C12: User input from GIS layer Non-RIDOT_Catchment. | D12: -- | E12: SCP database and metadata
B13: Existing STU | C13: User input for existing STUs. | D13: -- | E13: Vueworks
B14: Potential_STU | C14: User input from GIS layer Potential_STU. | D14: -- | E14: SCP database and metadata
A15: Reduction Targets | B15: Reduction Targets | C15: Calculates RIDOT IC or pollutant reduction targets using the TMDL and/or IC Method. | D15: -- | E15: Water Quality Methodology Report
A16: STU Volume Calculations | B16: STU Storage Volume | C16: Provides supporting documentation for STU Storage Volume assumptions and calculations. | D16: -- | E16: STU Definitions
A17: Structural Treatment Credits | B17: Structural Water Quality Calcs | C17: Runs water quality calculations for STU treatment credits. | D17: -- | E17: Water Quality Methodology Report
B18: Porous Pavement (underdrained) | C18: Calculates treatment credit for porous pavement (with underdain). | D18: No | E18: Water Quality Methodology Report
B19: Floodplain Reconnection | C19: Calculates treatment credit for floodplain reconnection. | D19: No | E19: Water Quality Methodology Report
B20: Urban Tree Canopy | C20: Calculates treatment credit for urban tree canopy. | D20: No | E20: Water Quality Methodology Report
B21: Agriculture Buffers | C21: Calculates treatment credit for agriculture buffers. | D21: No | E21: Water Quality Methodology Report
B22: Pervious Land Enhancement | C22: Calculates treatment credit for pervious land enhancement. | D22: No | E22: Water Quality Methodology Report
B23: Proprietary Technologies | C23: Calculates treatment credit for proprietary technologies. | D23: No | E23: Water Quality Methodology Report
A24: Non-structural Treatment Credits | B24: Street Sweeping and CB Cleaning | C24: Calculates non-structural treatment credit for enhanced street sweeping and/or catch basin cleaning. | D24: Yes | E24: Water Quality Methodology Report
B25: Leaf Litter Removal | C25: Calculates non-structural treatment credit for leaf litter removal. | D25: No | E25: Water Quality Methodology Report
B26: Animal Waste Reduction | C26: Calculates non-structural treatment credit for animal waste reduction (dog, bird etc.) or manure removal. | D26: No | E26: Water Quality Methodology Report
B27: Dredging | C27: Calculates non-structural treatment credit for dredging projects. | D27: No | E27: Water Quality Methodology Report
B28: Illicit Discharge Elimination | C28: Calculates non-structural treatment credit for illicit discharge elimination. | D28: No | E28: Water Quality Methodology Report
B29: Streambank Restoration | C29: Calculates non-structural treatment credit for streambank restoration. | D29: No | E29: Water Quality Methodology Report
A30: SCP Report Templates | B30: Table 1-A | C30: Subwatershed Summary | D30: Yes | E30: SCP Report Template
B31: Table 2-A | C31: Stormwater Controls Summary | D31: Yes | E31: SCP Report Template
B32: Table 4-A-1 | C32: TMDL Method: Pollutant Reduction Target Summary | D32: Yes | E32: SCP Report Template
B33: Table 4-A-2 | C33: Impervious Cover Method: IC Reduction Target Summary | D33: Yes | E33: SCP Report Template
A34: Summary Tables | B34: STU_Cost | C34: Estimate of Probable Cost and Retrofit Priority | D34: Yes | E34: SCP Report Template
B35: STU_WaterQuality | C35: Summarizes inputs for STU_WaterQuality related table in SCP database | D35: Yes | E35: SCP database and metadata
B36: SCP_Watersheds | C36: Summarizes inputs related to water quality tracking for SCP_Watersheds layer in SCP database | D36: Yes | E36: SCP database and metadata
A37: Reference Tabs | B37: STU Definitions | C37: STU definitions, treatment categories, and storage volume definitions. | D37: No | E37: Water Quality Methodology Report
B38: STU Cost Estimates | C38: STU design/construction and maintenance costs. | D38: No | E38: EPA Memo: Methodology for Developing Cost Estiates for Opti-Tool
B39: STU Treatment Values | C39: STU pollutant treatment values used in water quality calculations to calculate treatment credit for structural controls. | D39: Yes | E39: Water Quality Methodology Report
B40: Pollutant Loading Rates | C40: Pollutant loading rates by land use category. | D40: Yes | E40: Water Quality Methodology Report
B41: Pollutant Removal Curves | C41: STU pollutant removal curves by treatment depth and pollutant. | D41: No | E41: Water Quality Methodology Report
B42: IC Removal Curves | C42: STU IC factors by treatment depth. | D42: No | E42: Water Quality Methodology Report
B43: Soil Types | C43: HSG group, soil texture class, and infiltration rates. | D43: No

Sheet Version Notes (hidden)
A1: This tab summarizes key updates and additions between SCP calculator versions.
A2: SCP Calculator Version | B2: Release Date | C2: Updates and Additions
A3: 1 | B3: 2017-07-13
A4: 2 | B4: 2017-12-14 | C4: crediting for TIP STUs
C5: STU Type Domain updated for consistency with SCP database
A6: 3 | B6: 2018-03-29 | C6: use of both TSS and TP (versus just TP) to calculate effective IC reduction
A7: 4 | B7: 2018-04-19 | C7: addition of input tabs for GIS layer exports, calculator pulls input for calculations from these tabs
C8: addition of Pollutant loading rate tab with addition of NonRIDOT catchment area loading rates by land use
C9: addition of NonRIDOT catchments included in calculating STU load reduction
C10: placeholder tabs created for additional structural STUs including porous pavement (underdrained), floodplain reconnection, urban tree canopy, agriculture buffers, pervious land enhancement, and proprietary technologies for consistency with latest WQ Methodology report
C11: placeholder tabs created for additional nonstructural STUs including street sweeping and catch basin cleaning (updated), leaf litter removal, animal waste reduction, dredging, illict discharge elimination, streambank restoration for consistency with latest WQ Methodology report
C12: addition of template tabs for STU_WaterQuality related table and SCP_Watersheds attributes
C13: addition of IC removal curves tab (for reference only)
C14: STU Type Domain updated for consistency with SCP database
C15: correction of TIP pollutant removal credits so final effective IC credit = 50%
C16: addition of pollutant and IC curves/credit for STU type: sand filter
C17: addition of pollutant and IC credit for STU type: hydrodynamic separator
C18: addition of TP, TSS, and Pervious Cover Factors in STU Treatment Values tab for reference, also inclusion of runoff reduction percent reductions
A19: 4.1 | B19: 2018-06-19 | C19: 10% treatment assumption calculated for Limited ROW STUs
C20: STU Treatment category Created Wetland renamed Wet Pond to match latest WQ methodology report
C21: STU treatment category for Created Wetlands changed from Wet Pond to Gravel Wetland
C22: Nitrogen loading rate separated into separate loading values for RIDOT and NonRIDOT pervious areas
C23: updating of terminology to be consistent with latest WQ Methodology report (Flow Factor, Runoff Factor etc.)
C24: correction of RIDOT reduction targets to only apply to pollutant loads from RIDOT IC areas
C25: updating of STU definitions tab to include information for all STUs in SCP database domain
C26: Cost per lb phosphorus added to STU_Cost table for reference
C27: minor formatting updates
A28: 4.2 | B28: 2018-08-01 | C28: addition of version notes
C29: addition of STU Volume calculation tab
C30: addition of table templates for 2018 SCP Report Template for Tables 1-A, 2-A, 4-A-1, and 4-A-2
C31: unnecessary external links broken
A32: 5 | B32: 2018-09-19 | C32: treatment assigned to STU type Limited ROW (bioretention curve, 0.25" treatment depth for 10% of catchment area)
C33: calculations added for TMDL Method: nitrogen
C34: updated IC flow factor values (calculated using 8 water quality storm depths)
C35: formula for Non-RIDOT catchment N, TSS, Zn loading corrected
C36: formula for structural water quality calcs tab rows 35 and higher corrected
A37: 5.1 | B37: 2018-11-27 | C37: updated table templates and reduction target terms for consistency with WQ Accounting and Methodology Report
C38: added cost estimates for STU type sand filter
C39: rounded subwatershed areas in Tables 4-1-A and 4-2-A
C40: updated RIDOT treatment credit (columns K, P, U, Z, AB) to correctly sum Limited ROW STUs in STU_WaterQuality tab
C41: added additional rows for input tabs, updated formulas to sum for more than 25 STUs and 48 catchments
C42: updated SCP_Watersheds tab to include STUs with only nonRIDOT catchments
C43: corrected Table 1-A for IC method for evaluation method/target reduction columns B and C
C44: updated Table 2-A columns G, H, and I to autopopulate. Irrelevant columns may be removed from table.
C45: updated EPA curve for TSS deep infiltration in sandy soils
C46: updated EPA curve for sand filters for TP and TN
C47: updated maintenance costs for infiltration basin/swales, wet ponds/swales, and WVTS
C48: addition of SCP tracking info on coversheet

Sheet RIDOT_Catchment
A1: Segment Name: | B1: Bailey's Brook (RI0007035R-01), Group 1A
A2: Date: | B2: 2018-12-31
N3: Catchment Pollutant Load, lb/yr
A4: Catchment ID | B4: WBID | C4: Discharge ID | D4: STU ID (if applicable) | E4: Treatment Status* | F4: Impervious Area (sq ft) | G4: IDDE Exemption Status* | H4: TIP Project ID | I4: TIP Year | J4: Notes | K4: Shape_Length (ft) | L4: Total Area (sq ft) | N4: P | O4: TSS | P4: N | Q4: Zn
A5: EX-BLB-001 | B5: RI0007035R-01 | C5: OF-900061 | D5: SCP-BLB-043 | E5: Existing | F5: 38140 | G5: Not Exempt | J5: RIDOT Outfall to existing wet pond or WVTS. Assumed 100% WQv sizing | K5: 1349.368461 | L5: 41363.80859 | N5: =IF($A5="","",ROUND(($F5/43560*'Pollutant Loading Rates'!$C$9)+(($L5-$F5)/43560*'Pollutant Loading Rates'!$C$15),2)) -> 1.18 | O5: =IF($A5="","",ROUND(($F5/43560*'Pollutant Loading Rates'!$D$9)+(($L5-$F5)/43560*'Pollutant Loading Rates'!$D$15),0)) -> 539 | P5: =IF($A5="","",ROUND(($F5/43560*'Pollutant Loading Rates'!$E$9)+(($L5-$F5)/43560*'Pollutant Loading Rates'!$E$15),2)) -> 7.42 | Q5: =IF($A5="","",ROUND(($F5/43560*'Pollutant Loading Rates'!$F$9)+(($L5-$F5)/43560*'Pollutant Loading Rates'!$F$15),2)) -> 1.08
A6: EX-BLB-013 | B6: RI0007035R-01 | C6: OF-STU-923 | D6: SCP-BLB-044 | E6: Existing | F6: 142960 | G6: Not Exempt | J6: RIDOT outgoing interconnection on Commercial Blvd to existing WVTS. Intended to be accepted by Town, but not yet accepted. | K6: 4920.066534 | L6: 152910.8857 | N6: =IF($A6="","",ROUND(($F6/43560*'Pollutant Loading Rates'!$C$9)+(($L6-$F6)/43560*'Pollutant Loading Rates'!$C$15),2)) -> 4.41 | O6: =IF($A6="","",ROUND(($F6/43560*'Pollutant Loading Rates'!$D$9)+(($L6-$F6)/43560*'Pollutant Loading Rates'!$D$15),0)) -> 2019 | P6: =IF($A6="","",ROUND(($F6/43560*'Pollutant Loading Rates'!$E$9)+(($L6-$F6)/43560*'Pollutant Loading Rates'!$E$15),2)) -> 27.77 | Q6: =IF($A6="","",ROUND(($F6/43560*'Pollutant Loading Rates'!$F$9)+(($L6-$F6)/43560*'Pollutant Loading Rates'!$F$15),2)) -> 4.04
A7: NF-BLB-002 | B7: RI0007035R-01 | C7: OF-CB-49404 | E7: Not Feasible | F7: 133772 | G7: Not Exempt | J7: Inferred an unmapped outgoing interconnection to Forest Ave, discharging to Bailey Brook. | K7: 4397.379329 | L7: 136594.3543 | N7: =IF($A7="","",ROUND(($F7/43560*'Pollutant Loading Rates'!$C$9)+(($L7-$F7)/43560*'Pollutant Loading Rates'!$C$15),2)) -> 4.11 | O7: =IF($A7="","",ROUND(($F7/43560*'Pollutant Loading Rates'!$D$9)+(($L7-$F7)/43560*'Pollutant Loading Rates'!$D$15),0)) -> 1884 | P7: =IF($A7="","",ROUND(($F7/43560*'Pollutant Loading Rates'!$E$9)+(($L7-$F7)/43560*'Pollutant Loading Rates'!$E$15),2)) -> 25.85 | Q7: =IF($A7="","",ROUND(($F7/43560*'Pollutant Loading Rates'!$F$9)+(($L7-$F7)/43560*'Pollutant Loading Rates'!$F$15),2)) -> 3.78
A8: NF-BLB-006 | B8: RI0007035R-01 | C8: OF-17333 | E8: Not Feasible | F8: 158940 | G8: Not Exempt | J8: Assumed us to them interconnection is an error. It would represent a non-standard configuration and is less likely given topography. Insufficient ROW space for STUs | K8: 4949.319186 | L8: 178547.7484 | N8: =IF($A8="","",ROUND(($F8/43560*'Pollutant Loading Rates'!$C$9)+(($L8-$F8)/43560*'Pollutant Loading Rates'!$C$15),2)) -> 4.92 | O8: =IF($A8="","",ROUND(($F8/43560*'Pollutant Loading Rates'!$D$9)+(($L8-$F8)/43560*'Pollutant Loading Rates'!$D$15),0)) -> 2250 | P8: =IF($A8="","",ROUND(($F8/43560*'Pollutant Loading Rates'!$E$9)+(($L8-$F8)/43560*'Pollutant Loading Rates'!$E$15),2)) -> 31.05 | Q8: =IF($A8="","",ROUND(($F8/43560*'Pollutant Loading Rates'!$F$9)+(($L8-$F8)/43560*'Pollutant Loading Rates'!$F$15),2)) -> 4.49
A9: NF-BLB-007 | B9: RI0007035R-01 | C9: OF-MH-47514 | E9: Not Feasible | F9: 84236 | G9: Not Exempt | J9: RIDOT plan Reconstruction of Two-Mile corner, drainage and utility plan no. 3 indicates outgoing interconnection along Maplewood Rd through Manhole, Unknown MH-47514 | K9: 3412.258504 | L9: 87654.43423 | N9: =IF($A9="","",ROUND(($F9/43560*'Pollutant Loading Rates'!$C$9)+(($L9-$F9)/43560*'Pollutant Loading Rates'!$C$15),2)) -> 2.59 | O9: =IF($A9="","",ROUND(($F9/43560*'Pollutant Loading Rates'!$D$9)+(($L9-$F9)/43560*'Pollutant Loading Rates'!$D$15),0)) -> 1188 | P9: =IF($A9="","",ROUND(($F9/43560*'Pollutant Loading Rates'!$E$9)+(($L9-$F9)/43560*'Pollutant Loading Rates'!$E$15),2)) -> 16.31 | Q9: =IF($A9="","",ROUND(($F9/43560*'Pollutant Loading Rates'!$F$9)+(($L9-$F9)/43560*'Pollutant Loading Rates'!$F$15),2)) -> 2.38
A10: EXF-BLB-015 | B10: RI0007035R-01 | C10: OF-NARR426 | D10: SCP-BLB-045 | E10: Existing | F10: 144712 | G10: Not Exempt | J10: Structure ID 35 Hydrodynamic separator, Vortechs 1421C, 2004-CH-006 | K10: 4362.340249 | L10: 155164.1069 | N10: =IF($A10="","",ROUND(($F10/43560*'Pollutant Loading Rates'!$C$9)+(($L10-$F10)/43560*'Pollutant Loading Rates'!$C$15),2)) -> 4.46 | O10: =IF($A10="","",ROUND(($F10/43560*'Pollutant Loading Rates'!$D$9)+(($L10-$F10)/43560*'Pollutant Loading Rates'!$D$15),0)) -> 2044 | P10: =IF($A10="","",ROUND(($F10/43560*'Pollutant Loading Rates'!$E$9)+(($L10-$F10)/43560*'Pollutant Loading Rates'!$E$15),2)) -> 28.12 | Q10: =IF($A10="","",ROUND(($F10/43560*'Pollutant Loading Rates'!$F$9)+(($L10-$F10)/43560*'Pollutant Loading Rates'!$F$15),2)) -> 4.09
A11: NF-BLB-016 | B11: RI0007035R-01 | C11: OF-NARR167 | E11: Not Feasible | F11: 37284 | G11: Not Exempt | K11: 1760.98871 | L11: 81019.41213 | N11: =IF($A11="","",ROUND(($F11/43560*'Pollutant Loading Rates'!$C$9)+(($L11-$F11)/43560*'Pollutant Loading Rates'!$C$15),2)) -> 1.26 | O11: =IF($A11="","",ROUND(($F11/43560*'Pollutant Loading Rates'!$D$9)+(($L11-$F11)/43560*'Pollutant Loading Rates'!$D$15),0)) -> 554 | P11: =IF($A11="","",ROUND(($F11/43560*'Pollutant Loading Rates'!$E$9)+(($L11-$F11)/43560*'Pollutant Loading Rates'!$E$15),2)) -> 8.07 | Q11: =IF($A11="","",ROUND(($F11/43560*'Pollutant Loading Rates'!$F$9)+(($L11-$F11)/43560*'Pollutant Loading Rates'!$F$15),2)) -> 1.07
A12: PT-BLB-003 | B12: RI0007035R-01 | C12: OF-17333 | D12: SCP-BLB-001 | E12: Potential | F12: 22104 | G12: Not Exempt | J12: Super elevated road at northern end. Follows watershed boundary by General Dynamics | K12: 1341.733005 | L12: 25151.17698 | N12: =IF($A12="","",ROUND(($F12/43560*'Pollutant Loading Rates'!$C$9)+(($L12-$F12)/43560*'Pollutant Loading Rates'!$C$15),2)) -> 0.69 | O12: =IF($A12="","",ROUND(($F12/43560*'Pollutant Loading Rates'!$D$9)+(($L12-$F12)/43560*'Pollutant Loading Rates'!$D$15),0)) -> 313 | P12: =IF($A12="","",ROUND(($F12/43560*'Pollutant Loading Rates'!$E$9)+(($L12-$F12)/43560*'Pollutant Loading Rates'!$E$15),2)) -> 4.32 | Q12: =IF($A12="","",ROUND(($F12/43560*'Pollutant Loading Rates'!$F$9)+(($L12-$F12)/43560*'Pollutant Loading Rates'!$F$15),2)) -> 0.63
A13: PT-BLB-004 | B13: RI0007035R-01 | C13: OF-17333 | D13: SCP-BLB-002 | E13: Potential | F13: 23824 | G13: Not Exempt | K13: 1290.208519 | L13: 24423.00636 | N13: =IF($A13="","",ROUND(($F13/43560*'Pollutant Loading Rates'!$C$9)+(($L13-$F13)/43560*'Pollutant Loading Rates'!$C$15),2)) -> 0.73 | O13: =IF($A13="","",ROUND(($F13/43560*'Pollutant Loading Rates'!$D$9)+(($L13-$F13)/43560*'Pollutant Loading Rates'!$D$15),0)) -> 336 | P13: =IF($A13="","",ROUND(($F13/43560*'Pollutant Loading Rates'!$E$9)+(($L13-$F13)/43560*'Pollutant Loading Rates'!$E$15),2)) -> 4.61 | Q13: =IF($A13="","",ROUND(($F13/43560*'Pollutant Loading Rates'!$F$9)+(($L13-$F13)/43560*'Pollutant Loading Rates'!$F$15),2)) -> 0.67
A14: PT-BLB-005 | B14: RI0007035R-01 | C14: OF-17333 | D14: SCP-BLB-003 | E14: Potential | F14: 43404 | G14: Not Exempt | J14: Western end follows watershed boundary. | K14: 1756.332546 | L14: 54006.38252 | N14: =IF($A14="","",ROUND(($F14/43560*'Pollutant Loading Rates'!$C$9)+(($L14-$F14)/43560*'Pollutant Loading Rates'!$C$15),2)) -> 1.36 | O14: =IF($A14="","",ROUND(($F14/43560*'Pollutant Loading Rates'!$D$9)+(($L14-$F14)/43560*'Pollutant Loading Rates'!$D$15),0)) -> 618 | P14: =IF($A14="","",ROUND(($F14/43560*'Pollutant Loading Rates'!$E$9)+(($L14-$F14)/43560*'Pollutant Loading Rates'!$E$15),2)) -> 8.58 | Q14: =IF($A14="","",ROUND(($F14/43560*'Pollutant Loading Rates'!$F$9)+(($L14-$F14)/43560*'Pollutant Loading Rates'!$F$15),2)) -> 1.23
A15: PT-BLB-008 | B15: RI0007035R-01 | C15: OF-MH-47514 | D15: SCP-BLB-004 | E15: Potential | F15: 5708 | G15: Not Exempt | J15: RIDOT plan Reconstruction of Two-Mile corner, drainage and utility plan no. 3 indicates outgoing interconnection along Maplewood Rd through Manhole, Unknown MH-47514 | K15: 442.6877708 | L15: 6524.472478 | N15: =IF($A15="","",ROUND(($F15/43560*'Pollutant Loading Rates'!$C$9)+(($L15-$F15)/43560*'Pollutant Loading Rates'!$C$15),2)) -> 0.18 | O15: =IF($A15="","",ROUND(($F15/43560*'Pollutant Loading Rates'!$D$9)+(($L15-$F15)/43560*'Pollutant Loading Rates'!$D$15),0)) -> 81 | P15: =IF($A15="","",ROUND(($F15/43560*'Pollutant Loading Rates'!$E$9)+(($L15-$F15)/43560*'Pollutant Loading Rates'!$E$15),2)) -> 1.12 | Q15: =IF($A15="","",ROUND(($F15/43560*'Pollutant Loading Rates'!$F$9)+(($L15-$F15)/43560*'Pollutant Loading Rates'!$F$15),2)) -> 0.16
A16: PT-BLB-009 | B16: RI0007035R-01 | C16: OF-MH-47514 | D16: SCP-BLB-005 | E16: Potential | F16: 8436 | G16: Not Exempt | J16: RIDOT plan Reconstruction of Two-Mile corner, drainage and utility plan no. 3 indicates outgoing interconnection along Maplewood Rd through Manhole, Unknown MH-47514 | K16: 607.0990802 | L16: 9931.485048 | N16: =IF($A16="","",ROUND(($F16/43560*'Pollutant Loading Rates'!$C$9)+(($L16-$F16)/43560*'Pollutant Loading Rates'!$C$15),2)) -> 0.26 | O16: =IF($A16="","",ROUND(($F16/43560*'Pollutant Loading Rates'!$D$9)+(($L16-$F16)/43560*'Pollutant Loading Rates'!$D$15),0)) -> 120 | P16: =IF($A16="","",ROUND(($F16/43560*'Pollutant Loading Rates'!$E$9)+(($L16-$F16)/43560*'Pollutant Loading Rates'!$E$15),2)) -> 1.66 | Q16: =IF($A16="","",ROUND(($F16/43560*'Pollutant Loading Rates'!$F$9)+(($L16-$F16)/43560*'Pollutant Loading Rates'!$F$15),2)) -> 0.24
A17: PT-BLB-010 | B17: RI0007035R-01 | C17: OF-MH-47514 | D17: SCP-BLB-006 | E17: Potential | F17: 7368 | G17: Not Exempt | J17: RIDOT plan Reconstruction of Two-Mile corner, drainage and utility plan no. 3 indicates outgoing interconnection along Maplewood Rd through Manhole, Unknown MH-47514 | K17: 537.9718574 | L17: 8586.934779 | N17: =IF($A17="","",ROUND(($F17/43560*'Pollutant Loading Rates'!$C$9)+(($L17-$F17)/43560*'Pollutant Loading Rates'!$C$15),2)) -> 0.23 | O17: =IF($A17="","",ROUND(($F17/43560*'Pollutant Loading Rates'!$D$9)+(($L17-$F17)/43560*'Pollutant Loading Rates'!$D$15),0)) -> 105 | P17: =IF($A17="","",ROUND(($F17/43560*'Pollutant Loading Rates'!$E$9)+(($L17-$F17)/43560*'Pollutant Loading Rates'!$E$15),2)) -> 1.45 | Q17: =IF($A17="","",ROUND(($F17/43560*'Pollutant Loading Rates'!$F$9)+(($L17-$F17)/43560*'Pollutant Loading Rates'!$F$15),2)) -> 0.21
A18: PT-BLB-017 | B18: RI0007035R-01 | C18: OF-NARR167 | D18: SCP-BLB-009 | E18: Potential | F18: 27436 | G18: Not Exempt | K18: 1187.733103 | L18: 38709.6308 | N18: =IF($A18="","",ROUND(($F18/43560*'Pollutant Loading Rates'!$C$9)+(($L18-$F18)/43560*'Pollutant Loading Rates'!$C$15),2)) -> 0.87 | O18: =IF($A18="","",ROUND(($F18/43560*'Pollutant Loading Rates'!$D$9)+(($L18-$F18)/43560*'Pollutant Loading Rates'!$D$15),0)) -> 394 | P18: =IF($A18="","",ROUND(($F18/43560*'Pollutant Loading Rates'!$E$9)+(($L18-$F18)/43560*'Pollutant Loading Rates'!$E$15),2)) -> 5.52 | Q18: =IF($A18="","",ROUND(($F18/43560*'Pollutant Loading Rates'!$F$9)+(($L18-$F18)/43560*'Pollutant Loading Rates'!$F$15),2)) -> 0.78
A19: PT-BLB-019 | B19: RI0007035R-01 | C19: OF-CB-6853 | D19: SCP-BLB-011 | E19: Potential | F19: 16824 | G19: Not Exempt | H19: 1359 | I19: 2024 | J19: Super elevated road at northern end. | K19: 1221.531921 | L19: 23594.81838 | N19: =IF($A19="","",ROUND(($F19/43560*'Pollutant Loading Rates'!$C$9)+(($L19-$F19)/43560*'Pollutant Loading Rates'!$C$15),2)) -> 0.53 | O19: =IF($A19="","",ROUND(($F19/43560*'Pollutant Loading Rates'!$D$9)+(($L19-$F19)/43560*'Pollutant Loading Rates'!$D$15),0)) -> 241 | P19: =IF($A19="","",ROUND(($F19/43560*'Pollutant Loading Rates'!$E$9)+(($L19-$F19)/43560*'Pollutant Loading Rates'!$E$15),2)) -> 3.38 | Q19: =IF($A19="","",ROUND(($F19/43560*'Pollutant Loading Rates'!$F$9)+(($L19-$F19)/43560*'Pollutant Loading Rates'!$F$15),2)) -> 0.48
A20: PT-BLB-020 | B20: RI0007035R-01 | C20: OF-CB-6853 | D20: SCP-BLB-015a | E20: Potential | F20: 61508 | G20: Not Exempt | H20: 1359 | I20: 2024 | K20: 4047.260767 | L20: 79610.03985 | N20: =IF($A20="","",ROUND(($F20/43560*'Pollutant Loading Rates'!$C$9)+(($L20-$F20)/43560*'Pollutant Loading Rates'!$C$15),2)) -> 1.93 | O20: =IF($A20="","",ROUND(($F20/43560*'Pollutant Loading Rates'!$D$9)+(($L20-$F20)/43560*'Pollutant Loading Rates'!$D$15),0)) -> 878 | P20: =IF($A20="","",ROUND(($F20/43560*'Pollutant Loading Rates'!$E$9)+(($L20-$F20)/43560*'Pollutant Loading Rates'!$E$15),2)) -> 12.23 | Q20: =IF($A20="","",ROUND(($F20/43560*'Pollutant Loading Rates'!$F$9)+(($L20-$F20)/43560*'Pollutant Loading Rates'!$F$15),2)) -> 1.74
A21: PT-BLB-021 | B21: RI0007035R-01 | C21: OF-CB-6853 | D21: SCP-BLB-010 | E21: Potential | F21: 6676 | G21: Not Exempt | H21: 1359 | I21: 2024 | K21: 571.481852 | L21: 8689.782652 | N21: =IF($A21="","",ROUND(($F21/43560*'Pollutant Loading Rates'!$C$9)+(($L21-$F21)/43560*'Pollutant Loading Rates'!$C$15),2)) -> 0.21 | O21: =IF($A21="","",ROUND(($F21/43560*'Pollutant Loading Rates'!$D$9)+(($L21-$F21)/43560*'Pollutant Loading Rates'!$D$15),0)) -> 95 | P21: =IF($A21="","",ROUND(($F21/43560*'Pollutant Loading Rates'!$E$9)+(($L21-$F21)/43560*'Pollutant Loading Rates'!$E$15),2)) -> 1.33 | Q21: =IF($A21="","",ROUND(($F21/43560*'Pollutant Loading Rates'!$F$9)+(($L21-$F21)/43560*'Pollutant Loading Rates'!$F$15),2)) -> 0.19
A22: PT-BLB-022 | B22: RI0007035R-01 | C22: OF-CB-6853 | D22: SCP-BLB-013 | E22: Potential | F22: 8696 | G22: Not Exempt | H22: 1359 | I22: 2024 | K22: 643.5845108 | L22: 10897.57565 | N22: =IF($A22="","",ROUND(($F22/43560*'Pollutant Loading Rates'!$C$9)+(($L22-$F22)/43560*'Pollutant Loading Rates'!$C$15),2)) -> 0.27 | O22: =IF($A22="","",ROUND(($F22/43560*'Pollutant Loading Rates'!$D$9)+(($L22-$F22)/43560*'Pollutant Loading Rates'!$D$15),0)) -> 124 | P22: =IF($A22="","",ROUND(($F22/43560*'Pollutant Loading Rates'!$E$9)+(($L22-$F22)/43560*'Pollutant Loading Rates'!$E$15),2)) -> 1.72 | Q22: =IF($A22="","",ROUND(($F22/43560*'Pollutant Loading Rates'!$F$9)+(($L22-$F22)/43560*'Pollutant Loading Rates'!$F$15),2)) -> 0.25
A23: PT-BLB-023 | B23: RI0007035R-01 | C23: OF-CB-6853 | D23: SCP-BLB-014 | E23: Potential | F23: 21444 | G23: Not Exempt | H23: 1359 | I23: 2024 | K23: 1501.104959 | L23: 27049.93388 | N23: =IF($A23="","",ROUND(($F23/43560*'Pollutant Loading Rates'!$C$9)+(($L23-$F23)/43560*'Pollutant Loading Rates'!$C$15),2)) -> 0.67 | O23: =IF($A23="","",ROUND(($F23/43560*'Pollutant Loading Rates'!$D$9)+(($L23-$F23)/43560*'Pollutant Loading Rates'!$D$15),0)) -> 306 | P23: =IF($A23="","",ROUND(($F23/43560*'Pollutant Loading Rates'!$E$9)+(($L23-$F23)/43560*'Pollutant Loading Rates'!$E$15),2)) -> 4.25 | Q23: =IF($A23="","",ROUND(($F23/43560*'Pollutant Loading Rates'!$F$9)+(($L23-$F23)/43560*'Pollutant Loading Rates'!$F$15),2)) -> 0.61
A24: PT-BLB-024 | B24: RI0007035R-01 | C24: OF-CB-6853 | D24: SCP-BLB-015b | E24: Potential | F24: 23944 | G24: Not Exempt | H24: 1359 | I24: 2024 | K24: 1384.079511 | L24: 32110.57729 | N24: =IF($A24="","",ROUND(($F24/43560*'Pollutant Loading Rates'!$C$9)+(($L24-$F24)/43560*'Pollutant Loading Rates'!$C$15),2)) -> 0.76 | O24: =IF($A24="","",ROUND(($F24/43560*'Pollutant Loading Rates'!$D$9)+(($L24-$F24)/43560*'Pollutant Loading Rates'!$D$15),0)) -> 342 | P24: =IF($A24="","",ROUND(($F24/43560*'Pollutant Loading Rates'!$E$9)+(($L24-$F24)/43560*'Pollutant Loading Rates'!$E$15),2)) -> 4.78 | Q24: =IF($A24="","",ROUND(($F24/43560*'Pollutant Loading Rates'!$F$9)+(($L24-$F24)/43560*'Pollutant Loading Rates'!$F$15),2)) -> 0.68
A25: PT-BLB-025 | B25: RI0007035R-01 | C25: OF-CB-6852 | D25: SCP-BLB-017 | E25: Potential | F25: 17908 | G25: Not Exempt | H25: 1359 | I25: 2024 | K25: 1043.913114 | L25: 26737.76348 | N25: =IF($A25="","",ROUND(($F25/43560*'Pollutant Loading Rates'!$C$9)+(($L25-$F25)/43560*'Pollutant Loading Rates'!$C$15),2)) -> 0.57 | O25: =IF($A25="","",ROUND(($F25/43560*'Pollutant Loading Rates'!$D$9)+(($L25-$F25)/43560*'Pollutant Loading Rates'!$D$15),0)) -> 258 | P25: =IF($A25="","",ROUND(($F25/43560*'Pollutant Loading Rates'!$E$9)+(($L25-$F25)/43560*'Pollutant Loading Rates'!$E$15),2)) -> 3.63 | Q25: =IF($A25="","",ROUND(($F25/43560*'Pollutant Loading Rates'!$F$9)+(($L25-$F25)/43560*'Pollutant Loading Rates'!$F$15),2)) -> 0.51
A26: PT-BLB-035 | B26: RI0007035R-01 | C26: OF-NARR426 | D26: SCP-BLB-021 | E26: Potential | F26: 9104 | G26: Not Exempt | H26: 9005 | I26: 2021 | K26: 688.1988796 | L26: 15776.97891 | N26: =IF($A26="","",ROUND(($F26/43560*'Pollutant Loading Rates'!$C$9)+(($L26-$F26)/43560*'Pollutant Loading Rates'!$C$15),2)) -> 0.3 | O26: =IF($A26="","",ROUND(($F26/43560*'Pollutant Loading Rates'!$D$9)+(($L26-$F26)/43560*'Pollutant Loading Rates'!$D$15),0)) -> 133 | P26: =IF($A26="","",ROUND(($F26/43560*'Pollutant Loading Rates'!$E$9)+(($L26-$F26)/43560*'Pollutant Loading Rates'!$E$15),2)) -> 1.89 | Q26: =IF($A26="","",ROUND(($F26/43560*'Pollutant Loading Rates'!$F$9)+(($L26-$F26)/43560*'Pollutant Loading Rates'!$F$15),2)) -> 0.26
A27: PT-BLB-036 | B27: RI0007035R-01 | C27: OF-NARR426 | D27: SCP-BLB-020 | E27: Potential | F27: 6284 | G27: Not Exempt | H27: 9005 | I27: 2021 | K27: 410.0501382 | L27: 8355.349176 | N27: =IF($A27="","",ROUND(($F27/43560*'Pollutant Loading Rates'!$C$9)+(($L27-$F27)/43560*'Pollutant Loading Rates'!$C$15),2)) -> 0.2 | O27: =IF($A27="","",ROUND(($F27/43560*'Pollutant Loading Rates'!$D$9)+(($L27-$F27)/43560*'Pollutant Loading Rates'!$D$15),0)) -> 90 | P27: =IF($A27="","",ROUND(($F27/43560*'Pollutant Loading Rates'!$E$9)+(($L27-$F27)/43560*'Pollutant Loading Rates'!$E$15),2)) -> 1.25 | Q27: =IF($A27="","",ROUND(($F27/43560*'Pollutant Loading Rates'!$F$9)+(($L27-$F27)/43560*'Pollutant Loading Rates'!$F$15),2)) -> 0.18
A28: PT-BLB-037 | B28: RI0007035R-01 | C28: OF-NARR426 | D28: SCP-BLB-019 | E28: Potential | F28: 14688 | G28: Not Exempt | H28: 9005 | I28: 2021 | K28: 977.5821801 | L28: 16476.71113 | N28: =IF($A28="","",ROUND(($F28/43560*'Pollutant Loading Rates'!$C$9)+(($L28-$F28)/43560*'Pollutant Loading Rates'!$C$15),2)) -> 0.45 | O28: =IF($A28="","",ROUND(($F28/43560*'Pollutant Loading Rates'!$D$9)+(($L28-$F28)/43560*'Pollutant Loading Rates'!$D$15),0)) -> 208 | P28: =IF($A28="","",ROUND(($F28/43560*'Pollutant Loading Rates'!$E$9)+(($L28-$F28)/43560*'Pollutant Loading Rates'!$E$15),2)) -> 2.87 | Q28: =IF($A28="","",ROUND(($F28/43560*'Pollutant Loading Rates'!$F$9)+(($L28-$F28)/43560*'Pollutant Loading Rates'!$F$15),2)) -> 0.42
A29: PT-BLB-039 | B29: RI0007035R-01 | C29: OF-NARR426 | D29: SCP-BLB-022 | E29: Potential | F29: 6656 | G29: Not Exempt | H29: 1357; 9005 | I29: 2024 | K29: 758.5148405 | L29: 10323.53995 | N29: =IF($A29="","",ROUND(($F29/43560*'Pollutant Loading Rates'!$C$9)+(($L29-$F29)/43560*'Pollutant Loading Rates'!$C$15),2)) -> 0.21 | O29: =IF($A29="","",ROUND(($F29/43560*'Pollutant Loading Rates'!$D$9)+(($L29-$F29)/43560*'Pollutant Loading Rates'!$D$15),0)) -> 96 | P29: =IF($A29="","",ROUND(($F29/43560*'Pollutant Loading Rates'!$E$9)+(($L29-$F29)/43560*'Pollutant Loading Rates'!$E$15),2)) -> 1.36 | Q29: =IF($A29="","",ROUND(($F29/43560*'Pollutant Loading Rates'!$F$9)+(($L29-$F29)/43560*'Pollutant Loading Rates'!$F$15),2)) -> 0.19
A30: PT-BLB-040 | B30: RI0007035R-01 | C30: OF-NARR426 | D30: SCP-BLB-023 | E30: Potential | F30: 3360 | G30: Not Exempt | H30: 1357; 9005 | I30: 2024 | K30: 449.0526873 | L30: 5612.760561 | N30: =IF($A30="","",ROUND(($F30/43560*'Pollutant Loading Rates'!$C$9)+(($L30-$F30)/43560*'Pollutant Loading Rates'!$C$15),2)) -> 0.11 | O30: =IF($A30="","",ROUND(($F30/43560*'Pollutant Loading Rates'!$D$9)+(($L30-$F30)/43560*'Pollutant Loading Rates'!$D$15),0)) -> 49 | P30: =IF($A30="","",ROUND(($F30/43560*'Pollutant Loading Rates'!$E$9)+(($L30-$F30)/43560*'Pollutant Loading Rates'!$E$15),2)) -> 0.69 | Q30: =IF($A30="","",ROUND(($F30/43560*'Pollutant Loading Rates'!$F$9)+(($L30-$F30)/43560*'Pollutant Loading Rates'!$F$15),2)) -> 0.1
A31: PT-BLB-041 | B31: RI0007035R-01 | C31: OF-NARR426 | D31: SCP-BLB-024 | E31: Potential | F31: 3412 | G31: Not Exempt | H31: 1357; 9005 | I31: 2024 | K31: 471.4610651 | L31: 5928.439505 | N31: =IF($A31="","",ROUND(($F31/43560*'Pollutant Loading Rates'!$C$9)+(($L31-$F31)/43560*'Pollutant Loading Rates'!$C$15),2)) -> 0.11 | O31: =IF($A31="","",ROUND(($F31/43560*'Pollutant Loading Rates'!$D$9)+(($L31-$F31)/43560*'Pollutant Loading Rates'!$D$15),0)) -> 50 | P31: =IF($A31="","",ROUND(($F31/43560*'Pollutant Loading Rates'!$E$9)+(($L31-$F31)/43560*'Pollutant Loading Rates'!$E$15),2)) -> 0.71 | Q31: =IF($A31="","",ROUND(($F31/43560*'Pollutant Loading Rates'!$F$9)+(($L31-$F31)/43560*'Pollutant Loading Rates'!$F$15),2)) -> 0.1
A32: PT-BLB-042 | B32: RI0007035R-01 | C32: OF-NARR426 | D32: SCP-BLB-025 | E32: Potential | F32: 4344 | G32: Not Exempt | H32: 1357; 9005 | I32: 2024 | K32: 409.3789642 | L32: 5033.904634 | N32: =IF($A32="","",ROUND(($F32/43560*'Pollutant Loading Rates'!$C$9)+(($L32-$F32)/43560*'Pollutant Loading Rates'!$C$15),2)) -> 0.13 | O32: =IF($A32="","",ROUND(($F32/43560*'Pollutant Loading Rates'!$D$9)+(($L32-$F32)/43560*'Pollutant Loading Rates'!$D$15),0)) -> 62 | P32: =IF($A32="","",ROUND(($F32/43560*'Pollutant Loading Rates'!$E$9)+(($L32-$F32)/43560*'Pollutant Loading Rates'!$E$15),2)) -> 0.85 | Q32: =IF($A32="","",ROUND(($F32/43560*'Pollutant Loading Rates'!$F$9)+(($L32-$F32)/43560*'Pollutant Loading Rates'!$F$15),2)) -> 0.12
A33: PT-BLB-043 | B33: RI0007035R-01 | C33: OF-NARR426 | D33: SCP-BLB-026 | E33: Potential | F33: 4420 | G33: Not Exempt | H33: 1357; 9005 | I33: 2024 | K33: 542.5908645 | L33: 6862.754103 | N33: =IF($A33="","",ROUND(($F33/43560*'Pollutant Loading Rates'!$C$9)+(($L33-$F33)/43560*'Pollutant Loading Rates'!$C$15),2)) -> 0.14 | O33: =IF($A33="","",ROUND(($F33/43560*'Pollutant Loading Rates'!$D$9)+(($L33-$F33)/43560*'Pollutant Loading Rates'!$D$15),0)) -> 64 | P33: =IF($A33="","",ROUND(($F33/43560*'Pollutant Loading Rates'!$E$9)+(($L33-$F33)/43560*'Pollutant Loading Rates'!$E$15),2)) -> 0.9 | Q33: =IF($A33="","",ROUND(($F33/43560*'Pollutant Loading Rates'!$F$9)+(($L33-$F33)/43560*'Pollutant Loading Rates'!$F$15),2)) -> 0.13
A34: PT-BLB-044 | B34: RI0007035R-01 | C34: OF-NARR426 | D34: SCP-BLB-027 | E34: Potential | F34: 9980 | G34: Not Exempt | H34: 1357; 9005 | I34: 2024 | K34: 800.369534 | L34: 10255.24258 | N34: =IF($A34="","",ROUND(($F34/43560*'Pollutant Loading Rates'!$C$9)+(($L34-$F34)/43560*'Pollutant Loading Rates'!$C$15),2)) -> 0.31 | O34: =IF($A34="","",ROUND(($F34/43560*'Pollutant Loading Rates'!$D$9)+(($L34-$F34)/43560*'Pollutant Loading Rates'!$D$15),0)) -> 141 | P34: =IF($A34="","",ROUND(($F34/43560*'Pollutant Loading Rates'!$E$9)+(($L34-$F34)/43560*'Pollutant Loading Rates'!$E$15),2)) -> 1.93 | Q34: =IF($A34="","",ROUND(($F34/43560*'Pollutant Loading Rates'!$F$9)+(($L34-$F34)/43560*'Pollutant Loading Rates'!$F$15),2)) -> 0.28
A35: PT-BLB-045 | B35: RI0007035R-01 | C35: OF-NARR426 | D35: SCP-BLB-028 | E35: Potential | F35: 4644 | G35: Not Exempt | H35: 1357; 9005 | I35: 2024 | K35: 562.5944726 | L35: 7153.496917 | N35: =IF($A35="","",ROUND(($F35/43560*'Pollutant Loading Rates'!$C$9)+(($L35-$F35)/43560*'Pollutant Loading Rates'!$C$15),2)) -> 0.15 | O35: =IF($A35="","",ROUND(($F35/43560*'Pollutant Loading Rates'!$D$9)+(($L35-$F35)/43560*'Pollutant Loading Rates'!$D$15),0)) -> 67 | P35: =IF($A35="","",ROUND(($F35/43560*'Pollutant Loading Rates'!$E$9)+(($L35-$F35)/43560*'Pollutant Loading Rates'!$E$15),2)) -> 0.95 | Q35: =IF($A35="","",ROUND(($F35/43560*'Pollutant Loading Rates'!$F$9)+(($L35-$F35)/43560*'Pollutant Loading Rates'!$F$15),2)) -> 0.13
A36: PT-BLB-047 | B36: RI0007035R-01 | C36: OF-NARR426 | D36: SCP-BLB-029 | E36: Potential | F36: 6180 | G36: Not Exempt | H36: 1357; 9005 | I36: 2024 | K36: 676.5805827 | L36: 9677.481348 | N36: =IF($A36="","",ROUND(($F36/43560*'Pollutant Loading Rates'!$C$9)+(($L36-$F36)/43560*'Pollutant Loading Rates'!$C$15),2)) -> 0.2 | O36: =IF($A36="","",ROUND(($F36/43560*'Pollutant Loading Rates'!$D$9)+(($L36-$F36)/43560*'Pollutant Loading Rates'!$D$15),0)) -> 89 | P36: =IF($A36="","",ROUND(($F36/43560*'Pollutant Loading Rates'!$E$9)+(($L36-$F36)/43560*'Pollutant Loading Rates'!$E$15),2)) -> 1.26 | Q36: =IF($A36="","",ROUND(($F36/43560*'Pollutant Loading Rates'!$F$9)+(($L36-$F36)/43560*'Pollutant Loading Rates'!$F$15),2)) -> 0.18
A37: PT-BLB-048 | B37: RI0007035R-01 | C37: OF-NARR426 | D37: SCP-BLB-030 | E37: Potential | F37: 5564 | G37: Not Exempt | H37: 1357; 9005 | I37: 2024 | K37: 674.2196744 | L37: 9768.913388 | N37: =IF($A37="","",ROUND(($F37/43560*'Pollutant Loading Rates'!$C$9)+(($L37-$F37)/43560*'Pollutant Loading Rates'!$C$15),2)) -> 0.18 | O37: =IF($A37="","",ROUND(($F37/43560*'Pollutant Loading Rates'!$D$9)+(($L37-$F37)/43560*'Pollutant Loading Rates'!$D$15),0)) -> 81 | P37: =IF($A37="","",ROUND(($F37/43560*'Pollutant Loading Rates'!$E$9)+(($L37-$F37)/43560*'Pollutant Loading Rates'!$E$15),2)) -> 1.16 | Q37: =IF($A37="","",ROUND(($F37/43560*'Pollutant Loading Rates'!$F$9)+(($L37-$F37)/43560*'Pollutant Loading Rates'!$F$15),2)) -> 0.16
A38: PT-BLB-049 | B38: RI0007035R-01 | C38: OF-NARR426 | D38: SCP-BLB-031 | E38: Potential | F38: 7672 | G38: Not Exempt | H38: 1357; 9005 | I38: 2024 | K38: 685.5679121 | L38: 8778.436613 | N38: =IF($A38="","",ROUND(($F38/43560*'Pollutant Loading Rates'!$C$9)+(($L38-$F38)/43560*'Pollutant Loading Rates'!$C$15),2)) -> 0.24 | O38: =IF($A38="","",ROUND(($F38/43560*'Pollutant Loading Rates'!$D$9)+(($L38-$F38)/43560*'Pollutant Loading Rates'!$D$15),0)) -> 109 | P38: =IF($A38="","",ROUND(($F38/43560*'Pollutant Loading Rates'!$E$9)+(($L38-$F38)/43560*'Pollutant Loading Rates'!$E$15),2)) -> 1.5 | Q38: =IF($A38="","",ROUND(($F38/43560*'Pollutant Loading Rates'!$F$9)+(($L38-$F38)/43560*'Pollutant Loading Rates'!$F$15),2)) -> 0.22
A39: PT-BLB-050 | B39: RI0007035R-01 | C39: OF-NARR426 | D39: SCP-BLB-032 | E39: Potential | F39: 4068 | G39: Not Exempt | H39: 1357; 9005 | I39: 2024 | K39: 523.2203489 | L39: 7267.048523 | N39: =IF($A39="","",ROUND(($F39/43560*'Pollutant Loading Rates'!$C$9)+(($L39-$F39)/43560*'Pollutant Loading Rates'!$C$15),2)) -> 0.13 | O39: =IF($A39="","",ROUND(($F39/43560*'Pollutant Loading Rates'!$D$9)+(($L39-$F39)/43560*'Pollutant Loading Rates'!$D$15),0)) -> 59 | P39: =IF($A39="","",ROUND(($F39/43560*'Pollutant Loading Rates'!$E$9)+(($L39-$F39)/43560*'Pollutant Loading Rates'!$E$15),2)) -> 0.85 | Q39: =IF($A39="","",ROUND(($F39/43560*'Pollutant Loading Rates'!$F$9)+(($L39-$F39)/43560*'Pollutant Loading Rates'!$F$15),2)) -> 0.12
A40: PT-BLB-051 | B40: RI0007035R-01 | C40: OF-NARR426 | D40: SCP-BLB-033 | E40: Potential | F40: 4772 | G40: Not Exempt | H40: 1357; 9005 | I40: 2024 | K40: 432.8486776 | L40: 5270.129889 | N40: =IF($A40="","",ROUND(($F40/43560*'Pollutant Loading Rates'!$C$9)+(($L40-$F40)/43560*'Pollutant Loading Rates'!$C$15),2)) -> 0.15 | O40: =IF($A40="","",ROUND(($F40/43560*'Pollutant Loading Rates'!$D$9)+(($L40-$F40)/43560*'Pollutant Loading Rates'!$D$15),0)) -> 67 | P40: =IF($A40="","",ROUND(($F40/43560*'Pollutant Loading Rates'!$E$9)+(($L40-$F40)/43560*'Pollutant Loading Rates'!$E$15),2)) -> 0.93 | Q40: =IF($A40="","",ROUND(($F40/43560*'Pollutant Loading Rates'!$F$9)+(($L40-$F40)/43560*'Pollutant Loading Rates'!$F$15),2)) -> 0.13
A41: PT-BLB-052 | B41: RI0007035R-01 | C41: OF-NARR426 | D41: SCP-BLB-034 | E41: Potential | F41: 3128 | G41: Not Exempt | H41: 1357; 9005 | I41: 2024 | K41: 427.1247281 | L41: 5717.222594 | N41: =IF($A41="","",ROUND(($F41/43560*'Pollutant Loading Rates'!$C$9)+(($L41-$F41)/43560*'Pollutant Loading Rates'!$C$15),2)) -> 0.1 | O41: =IF($A41="","",ROUND(($F41/43560*'Pollutant Loading Rates'!$D$9)+(($L41-$F41)/43560*'Pollutant Loading Rates'!$D$15),0)) -> 46 | P41: =IF($A41="","",ROUND(($F41/43560*'Pollutant Loading Rates'!$E$9)+(($L41-$F41)/43560*'Pollutant Loading Rates'!$E$15),2)) -> 0.66 | Q41: =IF($A41="","",ROUND(($F41/43560*'Pollutant Loading Rates'!$F$9)+(($L41-$F41)/43560*'Pollutant Loading Rates'!$F$15),2)) -> 0.09
A42: PT-BLB-053 | B42: RI0007035R-01 | C42: OF-NARR426 | D42: SCP-BLB-035 | E42: Potential | F42: 5248 | G42: Not Exempt | H42: 1357; 9005 | I42: 2024 | K42: 473.5473985 | L42: 5857.374123 | N42: =IF($A42="","",ROUND(($F42/43560*'Pollutant Loading Rates'!$C$9)+(($L42-$F42)/43560*'Pollutant Loading Rates'!$C$15),2)) -> 0.16 | O42: =IF($A42="","",ROUND(($F42/43560*'Pollutant Loading Rates'!$D$9)+(($L42-$F42)/43560*'Pollutant Loading Rates'!$D$15),0)) -> 74 | P42: =IF($A42="","",ROUND(($F42/43560*'Pollutant Loading Rates'!$E$9)+(($L42-$F42)/43560*'Pollutant Loading Rates'!$E$15),2)) -> 1.02 | Q42: =IF($A42="","",ROUND(($F42/43560*'Pollutant Loading Rates'!$F$9)+(($L42-$F42)/43560*'Pollutant Loading Rates'!$F$15),2)) -> 0.15
A43: PT-BLB-054 | B43: RI0007035R-01 | C43: OF-NARR426 | D43: SCP-BLB-036 | E43: Potential | F43: 3396 | G43: Not Exempt | H43: 1357; 9005 | I43: 2024 | K43: 432.4038733 | L43: 5829.972831 | N43: =IF($A43="","",ROUND(($F43/43560*'Pollutant Loading Rates'!$C$9)+(($L43-$F43)/43560*'Pollutant Loading Rates'!$C$15),2)) -> 0.11 | O43: =IF($A43="","",ROUND(($F43/43560*'Pollutant Loading Rates'!$D$9)+(($L43-$F43)/43560*'Pollutant Loading Rates'!$D$15),0)) -> 49 | P43: =IF($A43="","",ROUND(($F43/43560*'Pollutant Loading Rates'!$E$9)+(($L43-$F43)/43560*'Pollutant Loading Rates'!$E$15),2)) -> 0.7 | Q43: =IF($A43="","",ROUND(($F43/43560*'Pollutant Loading Rates'!$F$9)+(($L43-$F43)/43560*'Pollutant Loading Rates'!$F$15),2)) -> 0.1
A44: PT-BLB-055 | B44: RI0007035R-01 | C44: OF-NARR426 | D44: SCP-BLB-037 | E44: Potential | F44: 4644 | G44: Not Exempt | H44: 1357; 9005 | I44: 2024 | K44: 468.4049654 | L44: 5805.166611 | N44: =IF($A44="","",ROUND(($F44/43560*'Pollutant Loading Rates'!$C$9)+(($L44-$F44)/43560*'Pollutant Loading Rates'!$C$15),2)) -> 0.15 | O44: =IF($A44="","",ROUND(($F44/43560*'Pollutant Loading Rates'!$D$9)+(($L44-$F44)/43560*'Pollutant Loading Rates'!$D$15),0)) -> 66 | P44: =IF($A44="","",ROUND(($F44/43560*'Pollutant Loading Rates'!$E$9)+(($L44-$F44)/43560*'Pollutant Loading Rates'!$E$15),2)) -> 0.92 | Q44: =IF($A44="","",ROUND(($F44/43560*'Pollutant Loading Rates'!$F$9)+(($L44-$F44)/43560*'Pollutant Loading Rates'!$F$15),2)) -> 0.13
A45: PT-BLB-056 | B45: RI0007035R-01 | C45: OF-NARR426 | D45: SCP-BLB-038 | E45: Potential | F45: 4232 | G45: Not Exempt | H45: 1357; 9005 | I45: 2024 | K45: 491.7136277 | L45: 7049.868531 | N45: =IF($A45="","",ROUND(($F45/43560*'Pollutant Loading Rates'!$C$9)+(($L45-$F45)/43560*'Pollutant Loading Rates'!$C$15),2)) -> 0.14 | O45: =IF($A45="","",ROUND(($F45/43560*'Pollutant Loading Rates'!$D$9)+(($L45-$F45)/43560*'Pollutant Loading Rates'!$D$15),0)) -> 61 | P45: =IF($A45="","",ROUND(($F45/43560*'Pollutant Loading Rates'!$E$9)+(($L45-$F45)/43560*'Pollutant Loading Rates'!$E$15),2)) -> 0.87 | Q45: =IF($A45="","",ROUND(($F45/43560*'Pollutant Loading Rates'!$F$9)+(($L45-$F45)/43560*'Pollutant Loading Rates'!$F$15),2)) -> 0.12
A46: PT-BLB-057 | B46: RI0007035R-01 | C46: OF-NARR426 | D46: SCP-BLB-039 | E46: Potential | F46: 3928 | G46: Not Exempt | H46: 1357; 9005 | I46: 2024 | K46: 459.5630564 | L46: 5412.362753 | N46: =IF($A46="","",ROUND(($F46/43560*'Pollutant Loading Rates'!$C$9)+(($L46-$F46)/43560*'Pollutant Loading Rates'!$C$15),2)) -> 0.12 | O46: =IF($A46="","",ROUND(($F46/43560*'Pollutant Loading Rates'!$D$9)+(($L46-$F46)/43560*'Pollutant Loading Rates'!$D$15),0)) -> 56 | P46: =IF($A46="","",ROUND(($F46/43560*'Pollutant Loading Rates'!$E$9)+(($L46-$F46)/43560*'Pollutant Loading Rates'!$E$15),2)) -> 0.79 | Q46: =IF($A46="","",ROUND(($F46/43560*'Pollutant Loading Rates'!$F$9)+(($L46-$F46)/43560*'Pollutant Loading Rates'!$F$15),2)) -> 0.11
A47: PT-BLB-058 | B47: RI0007035R-01 | C47: OF-NARR426 | D47: SCP-BLB-040 | E47: Potential | F47: 2688 | G47: Not Exempt | H47: 1357; 9005 | I47: 2024 | K47: 313.6500221 | L47: 4128.301754 | N47: =IF($A47="","",ROUND(($F47/43560*'Pollutant Loading Rates'!$C$9)+(($L47-$F47)/43560*'Pollutant Loading Rates'!$C$15),2)) -> 0.09 | O47: =IF($A47="","",ROUND(($F47/43560*'Pollutant Loading Rates'!$D$9)+(($L47-$F47)/43560*'Pollutant Loading Rates'!$D$15),0)) -> 39 | P47: =IF($A47="","",ROUND(($F47/43560*'Pollutant Loading Rates'!$E$9)+(($L47-$F47)/43560*'Pollutant Loading Rates'!$E$15),2)) -> 0.55 | Q47: =IF($A47="","",ROUND(($F47/43560*'Pollutant Loading Rates'!$F$9)+(($L47-$F47)/43560*'Pollutant Loading Rates'!$F$15),2)) -> 0.08
A48: PT-BLB-059 | B48: RI0007035R-01 | C48: OF-NARR426 | D48: SCP-BLB-041 | E48: Potential | F48: 3128 | G48: Not Exempt | H48: 1357; 9005 | I48: 2024 | K48: 307.6990194 | L48: 3491.281571 | N48: =IF($A48="","",ROUND(($F48/43560*'Pollutant Loading Rates'!$C$9)+(($L48-$F48)/43560*'Pollutant Loading Rates'!$C$15),2)) -> 0.1 | O48: =IF($A48="","",ROUND(($F48/43560*'Pollutant Loading Rates'!$D$9)+(($L48-$F48)/43560*'Pollutant Loading Rates'!$D$15),0)) -> 44 | P48: =IF($A48="","",ROUND(($F48/43560*'Pollutant Loading Rates'!$E$9)+(($L48-$F48)/43560*'Pollutant Loading Rates'!$E$15),2)) -> 0.61 | Q48: =IF($A48="","",ROUND(($F48/43560*'Pollutant Loading Rates'!$F$9)+(($L48-$F48)/43560*'Pollutant Loading Rates'!$F$15),2)) -> 0.09
A49: PT-BLB-062 | B49: RI0007035R-01 | C49: OF-NARR426 | D49: SCP-BLB-042 | E49: Potential | F49: 2056 | G49: Not Exempt | H49: 1357; 9005 | I49: 2024 | K49: 278.4966404 | L49: 4025.965689 | N49: =IF($A49="","",ROUND(($F49/43560*'Pollutant Loading Rates'!$C$9)+(($L49-$F49)/43560*'Pollutant Loading Rates'!$C$15),2)) -> 0.07 | O49: =IF($A49="","",ROUND(($F49/43560*'Pollutant Loading Rates'!$D$9)+(($L49-$F49)/43560*'Pollutant Loading Rates'!$D$15),0)) -> 30 | P49: =IF($A49="","",ROUND(($F49/43560*'Pollutant Loading Rates'!$E$9)+(($L49-$F49)/43560*'Pollutant Loading Rates'!$E$15),2)) -> 0.44 | Q49: =IF($A49="","",ROUND(($F49/43560*'Pollutant Loading Rates'!$F$9)+(($L49-$F49)/43560*'Pollutant Loading Rates'!$F$15),2)) -> 0.06
A50: TP-BLB-011 | B50: RI0007035R-01 | C50: OF-MH-47514 | E50: Not Feasible | F50: 58800 | G50: Not Exempt | H50: 1356 | I50: 2017 | J50: RIDOT plan Reconstruction of Two-Mile corner, drainage and utility plan no. 3 indicates outgoing interconnection along Maplewood Rd | K50: 1954.952687 | L50: 59754.26712 | N50: =IF($A50="","",ROUND(($F50/43560*'Pollutant Loading Rates'!$C$9)+(($L50-$F50)/43560*'Pollutant Loading Rates'!$C$15),2)) -> 1.8 | O50: =IF($A50="","",ROUND(($F50/43560*'Pollutant Loading Rates'!$D$9)+(($L50-$F50)/43560*'Pollutant Loading Rates'!$D$15),0)) -> 828 | P50: =IF($A50="","",ROUND(($F50/43560*'Pollutant Loading Rates'!$E$9)+(($L50-$F50)/43560*'Pollutant Loading Rates'!$E$15),2)) -> 11.36 | Q50: =IF($A50="","",ROUND(($F50/43560*'Pollutant Loading Rates'!$F$9)+(($L50-$F50)/43560*'Pollutant Loading Rates'!$F$15),2)) -> 1.66
A51: TP-BLB-014 | B51: RI0007035R-01 | C51: OF-NARR425 | E51: Not Feasible | F51: 102504 | G51: Not Exempt | H51: 1356 | I51: 2017 | K51: 3428.490875 | L51: 104375.7727 | N51: =IF($A51="","",ROUND(($F51/43560*'Pollutant Loading Rates'!$C$9)+(($L51-$F51)/43560*'Pollutant Loading Rates'!$C$15),2)) -> 3.15 | O51: =IF($A51="","",ROUND(($F51/43560*'Pollutant Loading Rates'!$D$9)+(($L51-$F51)/43560*'Pollutant Loading Rates'!$D$15),0)) -> 1444 | P51: =IF($A51="","",ROUND(($F51/43560*'Pollutant Loading Rates'!$E$9)+(($L51-$F51)/43560*'Pollutant Loading Rates'!$E$15),2)) -> 19.8 | Q51: =IF($A51="","",ROUND(($F51/43560*'Pollutant Loading Rates'!$F$9)+(($L51-$F51)/43560*'Pollutant Loading Rates'!$F$15),2)) -> 2.89
A52: TP-BLB-018 | B52: RI0007035R-01 | C52: OF-NARR426 | E52: Not Feasible | F52: 37540 | G52: Not Exempt | H52: 1359 | I52: 2024 | K52: 1211.673949 | L52: 52477.46527 | N52: =IF($A52="","",ROUND(($F52/43560*'Pollutant Loading Rates'!$C$9)+(($L52-$F52)/43560*'Pollutant Loading Rates'!$C$15),2)) -> 1.19 | O52: =IF($A52="","",ROUND(($F52/43560*'Pollutant Loading Rates'!$D$9)+(($L52-$F52)/43560*'Pollutant Loading Rates'!$D$15),0)) -> 538 | P52: =IF($A52="","",ROUND(($F52/43560*'Pollutant Loading Rates'!$E$9)+(($L52-$F52)/43560*'Pollutant Loading Rates'!$E$15),2)) -> 7.54 | Q52: =IF($A52="","",ROUND(($F52/43560*'Pollutant Loading Rates'!$F$9)+(($L52-$F52)/43560*'Pollutant Loading Rates'!$F$15),2)) -> 1.07
A53: TP-BLB-026 | B53: RI0007035R-01 | C53: Sheet Flow | D53: TP-BLB-026 | E53: TIP | F53: 21000 | G53: Not Exempt | H53: 1355 | I53: 2019 | K53: 2032.639811 | L53: 25042.95888 | N53: =IF($A53="","",ROUND(($F53/43560*'Pollutant Loading Rates'!$C$9)+(($L53-$F53)/43560*'Pollutant Loading Rates'!$C$15),2)) -> 0.65 | O53: =IF($A53="","",ROUND(($F53/43560*'Pollutant Loading Rates'!$D$9)+(($L53-$F53)/43560*'Pollutant Loading Rates'!$D$15),0)) -> 298 | P53: =IF($A53="","",ROUND(($F53/43560*'Pollutant Loading Rates'!$E$9)+(($L53-$F53)/43560*'Pollutant Loading Rates'!$E$15),2)) -> 4.13 | Q53: =IF($A53="","",ROUND(($F53/43560*'Pollutant Loading Rates'!$F$9)+(($L53-$F53)/43560*'Pollutant Loading Rates'!$F$15),2)) -> 0.59
A54: TP-BLB-027 | B54: RI0007035R-01 | C54: OF-CO-6340 | D54: TP-BLB-027 | E54: TIP | F54: 18504 | G54: Not Exempt | H54: 1355 | I54: 2019 | K54: 1834.908353 | L54: 21361.97969 | N54: =IF($A54="","",ROUND(($F54/43560*'Pollutant Loading Rates'!$C$9)+(($L54-$F54)/43560*'Pollutant Loading Rates'!$C$15),2)) -> 0.57 | O54: =IF($A54="","",ROUND(($F54/43560*'Pollutant Loading Rates'!$D$9)+(($L54-$F54)/43560*'Pollutant Loading Rates'!$D$15),0)) -> 262 | P54: =IF($A54="","",ROUND(($F54/43560*'Pollutant Loading Rates'!$E$9)+(($L54-$F54)/43560*'Pollutant Loading Rates'!$E$15),2)) -> 3.63 | Q54: =IF($A54="","",ROUND(($F54/43560*'Pollutant Loading Rates'!$F$9)+(($L54-$F54)/43560*'Pollutant Loading Rates'!$F$15),2)) -> 0.52
A55: TP-BLB-028 | B55: RI0007035R-01 | C55: OF-9008841 | D55: TP-BLB-028 | E55: TIP | F55: 26788 | G55: Not Exempt | H55: 1355 | I55: 2019 | K55: 1395.534296 | L55: 28659.22107 | N55: =IF($A55="","",ROUND(($F55/43560*'Pollutant Loading Rates'!$C$9)+(($L55-$F55)/43560*'Pollutant Loading Rates'!$C$15),2)) -> 0.83 | O55: =IF($A55="","",ROUND(($F55/43560*'Pollutant Loading Rates'!$D$9)+(($L55-$F55)/43560*'Pollutant Loading Rates'!$D$15),0)) -> 378 | P55: =IF($A55="","",ROUND(($F55/43560*'Pollutant Loading Rates'!$E$9)+(($L55-$F55)/43560*'Pollutant Loading Rates'!$E$15),2)) -> 5.2 | Q55: =IF($A55="","",ROUND(($F55/43560*'Pollutant Loading Rates'!$F$9)+(($L55-$F55)/43560*'Pollutant Loading Rates'!$F$15),2)) -> 0.76
A56: TP-BLB-029 | B56: RI0007035R-01 | C56: OF-CO-6339 | D56: TP-BLB-029 | E56: TIP | F56: 640 | G56: Not Exempt | H56: 1355 | I56: 2019 | J56: Bituminous Ditch outfall | K56: 128.6453268 | L56: 953.1444322 | N56: =IF($A56="","",ROUND(($F56/43560*'Pollutant Loading Rates'!$C$9)+(($L56-$F56)/43560*'Pollutant Loading Rates'!$C$15),2)) -> 0.02 | O56: =IF($A56="","",ROUND(($F56/43560*'Pollutant Loading Rates'!$D$9)+(($L56-$F56)/43560*'Pollutant Loading Rates'!$D$15),0)) -> 9 | P56: =IF($A56="","",ROUND(($F56/43560*'Pollutant Loading Rates'!$E$9)+(($L56-$F56)/43560*'Pollutant Loading Rates'!$E$15),2)) -> 0.13 | Q56: =IF($A56="","",ROUND(($F56/43560*'Pollutant Loading Rates'!$F$9)+(($L56-$F56)/43560*'Pollutant Loading Rates'!$F$15),2)) -> 0.02
A57: TP-BLB-030 | B57: RI0007035R-01 | C57: OF-NARR181 | D57: TP-BLB-030 | E57: TIP | F57: 62288 | G57: Not Exempt | H57: 1355 | I57: 2019 | K57: 3053.691841 | L57: 65749.84884 | N57: =IF($A57="","",ROUND(($F57/43560*'Pollutant Loading Rates'!$C$9)+(($L57-$F57)/43560*'Pollutant Loading Rates'!$C$15),2)) -> 1.92 | O57: =IF($A57="","",ROUND(($F57/43560*'Pollutant Loading Rates'!$D$9)+(($L57-$F57)/43560*'Pollutant Loading Rates'!$D$15),0)) -> 879 | P57: =IF($A57="","",ROUND(($F57/43560*'Pollutant Loading Rates'!$E$9)+(($L57-$F57)/43560*'Pollutant Loading Rates'!$E$15),2)) -> 12.08 | Q57: =IF($A57="","",ROUND(($F57/43560*'Pollutant Loading Rates'!$F$9)+(($L57-$F57)/43560*'Pollutant Loading Rates'!$F$15),2)) -> 1.76
A58: TP-BLB-031 | B58: RI0007035R-01 | C58: Sheet Flow | D58: TP-BLB-031 | E58: TIP | F58: 7100 | G58: Not Exempt | H58: 1355 | I58: 2019 | K58: 712.1711719 | L58: 7172.727436 | N58: =IF($A58="","",ROUND(($F58/43560*'Pollutant Loading Rates'!$C$9)+(($L58-$F58)/43560*'Pollutant Loading Rates'!$C$15),2)) -> 0.22 | O58: =IF($A58="","",ROUND(($F58/43560*'Pollutant Loading Rates'!$D$9)+(($L58-$F58)/43560*'Pollutant Loading Rates'!$D$15),0)) -> 100 | P58: =IF($A58="","",ROUND(($F58/43560*'Pollutant Loading Rates'!$E$9)+(($L58-$F58)/43560*'Pollutant Loading Rates'!$E$15),2)) -> 1.37 | Q58: =IF($A58="","",ROUND(($F58/43560*'Pollutant Loading Rates'!$F$9)+(($L58-$F58)/43560*'Pollutant Loading Rates'!$F$15),2)) -> 0.2
A59: TP-BLB-032 | B59: RI0007035R-01 | C59: OF-CB-21038 | D59: TP-BLB-032 | E59: TIP | F59: 10772 | G59: Not Exempt | H59: 1355 | I59: 2019 | K59: 1114.728664 | L59: 12773.90707 | N59: =IF($A59="","",ROUND(($F59/43560*'Pollutant Loading Rates'!$C$9)+(($L59-$F59)/43560*'Pollutant Loading Rates'!$C$15),2)) -> 0.34 | O59: =IF($A59="","",ROUND(($F59/43560*'Pollutant Loading Rates'!$D$9)+(($L59-$F59)/43560*'Pollutant Loading Rates'!$D$15),0)) -> 153 | P59: =IF($A59="","",ROUND(($F59/43560*'Pollutant Loading Rates'!$E$9)+(($L59-$F59)/43560*'Pollutant Loading Rates'!$E$15),2)) -> 2.12 | Q59: =IF($A59="","",ROUND(($F59/43560*'Pollutant Loading Rates'!$F$9)+(($L59-$F59)/43560*'Pollutant Loading Rates'!$F$15),2)) -> 0.3
A60: TP-BLB-033 | B60: RI0007035R-01 | C60: OF-CO-203981 | D60: TP-BLB-033 | E60: TIP | F60: 21472 | G60: Not Exempt | H60: 1355 | I60: 2019 | K60: 1515.572576 | L60: 27172.84098 | N60: =IF($A60="","",ROUND(($F60/43560*'Pollutant Loading Rates'!$C$9)+(($L60-$F60)/43560*'Pollutant Loading Rates'!$C$15),2)) -> 0.67 | O60: =IF($A60="","",ROUND(($F60/43560*'Pollutant Loading Rates'!$D$9)+(($L60-$F60)/43560*'Pollutant Loading Rates'!$D$15),0)) -> 306 | P60: =IF($A60="","",ROUND(($F60/43560*'Pollutant Loading Rates'!$E$9)+(($L60-$F60)/43560*'Pollutant Loading Rates'!$E$15),2)) -> 4.26 | Q60: =IF($A60="","",ROUND(($F60/43560*'Pollutant Loading Rates'!$F$9)+(($L60-$F60)/43560*'Pollutant Loading Rates'!$F$15),2)) -> 0.61
A61: TP-BLB-034 | B61: RI0007035R-01 | C61: OF-NARR426 | E61: Not Feasible | F61: 113704 | G61: Not Exempt | H61: 9005 | I61: 2021 | K61: 4499.813177 | L61: 171495.0009 | N61: =IF($A61="","",ROUND(($F61/43560*'Pollutant Loading Rates'!$C$9)+(($L61-$F61)/43560*'Pollutant Loading Rates'!$C$15),2)) -> 3.64 | O61: =IF($A61="","",ROUND(($F61/43560*'Pollutant Loading Rates'!$D$9)+(($L61-$F61)/43560*'Pollutant Loading Rates'!$D$15),0)) -> 1639 | P61: =IF($A61="","",ROUND(($F61/43560*'Pollutant Loading Rates'!$E$9)+(($L61-$F61)/43560*'Pollutant Loading Rates'!$E$15),2)) -> 23.09 | Q61: =IF($A61="","",ROUND(($F61/43560*'Pollutant Loading Rates'!$F$9)+(($L61-$F61)/43560*'Pollutant Loading Rates'!$F$15),2)) -> 3.24
A62: TP-BLB-038 | B62: RI0007035R-01 | C62: OF-NARR426 | E62: Not Feasible | F62: 82320 | G62: Not Exempt | H62: 9005 | I62: 2021 | K62: 4208.256679 | L62: 104189.8408 | N62: =IF($A62="","",ROUND(($F62/43560*'Pollutant Loading Rates'!$C$9)+(($L62-$F62)/43560*'Pollutant Loading Rates'!$C$15),2)) -> 2.58 | O62: =IF($A62="","",ROUND(($F62/43560*'Pollutant Loading Rates'!$D$9)+(($L62-$F62)/43560*'Pollutant Loading Rates'!$D$15),0)) -> 1173 | P62: =IF($A62="","",ROUND(($F62/43560*'Pollutant Loading Rates'!$E$9)+(($L62-$F62)/43560*'Pollutant Loading Rates'!$E$15),2)) -> 16.32 | Q62: =IF($A62="","",ROUND(($F62/43560*'Pollutant Loading Rates'!$F$9)+(($L62-$F62)/43560*'Pollutant Loading Rates'!$F$15),2)) -> 2.33
A63: TP-BLB-046 | B63: RI0007035R-01 | C63: OF-NARR426 | E63: Not Feasible | F63: 12724 | G63: Not Exempt | H63: 1357; 9005 | I63: 2024 | K63: 906.8265463 | L63: 13366.76085 | N63: =IF($A63="","",ROUND(($F63/43560*'Pollutant Loading Rates'!$C$9)+(($L63-$F63)/43560*'Pollutant Loading Rates'!$C$15),2)) -> 0.39 | O63: =IF($A63="","",ROUND(($F63/43560*'Pollutant Loading Rates'!$D$9)+(($L63-$F63)/43560*'Pollutant Loading Rates'!$D$15),0)) -> 179 | P63: =IF($A63="","",ROUND(($F63/43560*'Pollutant Loading Rates'!$E$9)+(($L63-$F63)/43560*'Pollutant Loading Rates'!$E$15),2)) -> 2.47 | Q63: =IF($A63="","",ROUND(($F63/43560*'Pollutant Loading Rates'!$F$9)+(($L63-$F63)/43560*'Pollutant Loading Rates'!$F$15),2)) -> 0.36
A64: TP-BLB-060 | B64: RI0007035R-01 | C64: OF-NARR426 | E64: Not Feasible | F64: 9436 | G64: Not Exempt | H64: 1357; 9005 | I64: 2024 | K64: 1036.816975 | L64: 11877.41749 | N64: =IF($A64="","",ROUND(($F64/43560*'Pollutant Loading Rates'!$C$9)+(($L64-$F64)/43560*'Pollutant Loading Rates'!$C$15),2)) -> 0.3 | O64: =IF($A64="","",ROUND(($F64/43560*'Pollutant Loading Rates'!$D$9)+(($L64-$F64)/43560*'Pollutant Loading Rates'!$D$15),0)) -> 134 | P64: =IF($A64="","",ROUND(($F64/43560*'Pollutant Loading Rates'!$E$9)+(($L64-$F64)/43560*'Pollutant Loading Rates'!$E$15),2)) -> 1.87 | Q64: =IF($A64="","",ROUND(($F64/43560*'Pollutant Loading Rates'!$F$9)+(($L64-$F64)/43560*'Pollutant Loading Rates'!$F$15),2)) -> 0.27
A65: TP-BLB-061 | B65: RI0007035R-01 | C65: OF-NARR426 | E65: Not Feasible | F65: 2040 | G65: Not Exempt | H65: 1357; 9005 | I65: 2024 | K65: 263.09882 | L65: 3538.486282 | N65: =IF($A65="","",ROUND(($F65/43560*'Pollutant Loading Rates'!$C$9)+(($L65-$F65)/43560*'Pollutant Loading Rates'!$C$15),2)) -> 0.07 | O65: =IF($A65="","",ROUND(($F65/43560*'Pollutant Loading Rates'!$D$9)+(($L65-$F65)/43560*'Pollutant Loading Rates'!$D$15),0)) -> 30 | P65: =IF($A65="","",ROUND(($F65/43560*'Pollutant Loading Rates'!$E$9)+(($L65-$F65)/43560*'Pollutant Loading Rates'!$E$15),2)) -> 0.42 | Q65: =IF($A65="","",ROUND(($F65/43560*'Pollutant Loading Rates'!$F$9)+(($L65-$F65)/43560*'Pollutant Loading Rates'!$F$15),2)) -> 0.06
A66: TP-BLB-063 | B66: RI0007035R-01 | C66: OF-NARR426 | E66: Not Feasible | F66: 7212 | G66: Not Exempt | H66: 1357; 9005 | I66: 2024 | K66: 667.0306162 | L66: 8493.958862 | N66: =IF($A66="","",ROUND(($F66/43560*'Pollutant Loading Rates'!$C$9)+(($L66-$F66)/43560*'Pollutant Loading Rates'!$C$15),2)) -> 0.22 | O66: =IF($A66="","",ROUND(($F66/43560*'Pollutant Loading Rates'!$D$9)+(($L66-$F66)/43560*'Pollutant Loading Rates'!$D$15),0)) -> 102 | P66: =IF($A66="","",ROUND(($F66/43560*'Pollutant Loading Rates'!$E$9)+(($L66-$F66)/43560*'Pollutant Loading Rates'!$E$15),2)) -> 1.42 | Q66: =IF($A66="","",ROUND(($F66/43560*'Pollutant Loading Rates'!$F$9)+(($L66-$F66)/43560*'Pollutant Loading Rates'!$F$15),2)) -> 0.2
N67: =IF($A67="","",ROUND(($F67/43560*'Pollutant Loading Rates'!$C$9)+(($L67-$F67)/43560*'Pollutant Loading Rates'!$C$15),2)) ->  | O67: =IF($A67="","",ROUND(($F67/43560*'Pollutant Loading Rates'!$D$9)+(($L67-$F67)/43560*'Pollutant Loading Rates'!$D$15),0)) ->  | P67: =IF($A67="","",ROUND(($F67/43560*'Pollutant Loading Rates'!$E$9)+(($L67-$F67)/43560*'Pollutant Loading Rates'!$E$15),2)) ->  | Q67: =IF($A67="","",ROUND(($F67/43560*'Pollutant Loading Rates'!$F$9)+(($L67-$F67)/43560*'Pollutant Loading Rates'!$F$15),2)) -> 
N68: =IF($A68="","",ROUND(($F68/43560*'Pollutant Loading Rates'!$C$9)+(($L68-$F68)/43560*'Pollutant Loading Rates'!$C$15),2)) ->  | O68: =IF($A68="","",ROUND(($F68/43560*'Pollutant Loading Rates'!$D$9)+(($L68-$F68)/43560*'Pollutant Loading Rates'!$D$15),0)) ->  | P68: =IF($A68="","",ROUND(($F68/43560*'Pollutant Loading Rates'!$E$9)+(($L68-$F68)/43560*'Pollutant Loading Rates'!$E$15),2)) ->  | Q68: =IF($A68="","",ROUND(($F68/43560*'Pollutant Loading Rates'!$F$9)+(($L68-$F68)/43560*'Pollutant Loading Rates'!$F$15),2)) -> 
N69: =IF($A69="","",ROUND(($F69/43560*'Pollutant Loading Rates'!$C$9)+(($L69-$F69)/43560*'Pollutant Loading Rates'!$C$15),2)) ->  | O69: =IF($A69="","",ROUND(($F69/43560*'Pollutant Loading Rates'!$D$9)+(($L69-$F69)/43560*'Pollutant Loading Rates'!$D$15),0)) ->  | P69: =IF($A69="","",ROUND(($F69/43560*'Pollutant Loading Rates'!$E$9)+(($L69-$F69)/43560*'Pollutant Loading Rates'!$E$15),2)) ->  | Q69: =IF($A69="","",ROUND(($F69/43560*'Pollutant Loading Rates'!$F$9)+(($L69-$F69)/43560*'Pollutant Loading Rates'!$F$15),2)) -> 
N70: =IF($A70="","",ROUND(($F70/43560*'Pollutant Loading Rates'!$C$9)+(($L70-$F70)/43560*'Pollutant Loading Rates'!$C$15),2)) ->  | O70: =IF($A70="","",ROUND(($F70/43560*'Pollutant Loading Rates'!$D$9)+(($L70-$F70)/43560*'Pollutant Loading Rates'!$D$15),0)) ->  | P70: =IF($A70="","",ROUND(($F70/43560*'Pollutant Loading Rates'!$E$9)+(($L70-$F70)/43560*'Pollutant Loading Rates'!$E$15),2)) ->  | Q70: =IF($A70="","",ROUND(($F70/43560*'Pollutant Loading Rates'!$F$9)+(($L70-$F70)/43560*'Pollutant Loading Rates'!$F$15),2)) -> 
N71: =IF($A71="","",ROUND(($F71/43560*'Pollutant Loading Rates'!$C$9)+(($L71-$F71)/43560*'Pollutant Loading Rates'!$C$15),2)) ->  | O71: =IF($A71="","",ROUND(($F71/43560*'Pollutant Loading Rates'!$D$9)+(($L71-$F71)/43560*'Pollutant Loading Rates'!$D$15),0)) ->  | P71: =IF($A71="","",ROUND(($F71/43560*'Pollutant Loading Rates'!$E$9)+(($L71-$F71)/43560*'Pollutant Loading Rates'!$E$15),2)) ->  | Q71: =IF($A71="","",ROUND(($F71/43560*'Pollutant Loading Rates'!$F$9)+(($L71-$F71)/43560*'Pollutant Loading Rates'!$F$15),2)) -> 
N72: =IF($A72="","",ROUND(($F72/43560*'Pollutant Loading Rates'!$C$9)+(($L72-$F72)/43560*'Pollutant Loading Rates'!$C$15),2)) ->  | O72: =IF($A72="","",ROUND(($F72/43560*'Pollutant Loading Rates'!$D$9)+(($L72-$F72)/43560*'Pollutant Loading Rates'!$D$15),0)) ->  | P72: =IF($A72="","",ROUND(($F72/43560*'Pollutant Loading Rates'!$E$9)+(($L72-$F72)/43560*'Pollutant Loading Rates'!$E$15),2)) ->  | Q72: =IF($A72="","",ROUND(($F72/43560*'Pollutant Loading Rates'!$F$9)+(($L72-$F72)/43560*'Pollutant Loading Rates'!$F$15),2)) -> 
N73: =IF($A73="","",ROUND(($F73/43560*'Pollutant Loading Rates'!$C$9)+(($L73-$F73)/43560*'Pollutant Loading Rates'!$C$15),2)) ->  | O73: =IF($A73="","",ROUND(($F73/43560*'Pollutant Loading Rates'!$D$9)+(($L73-$F73)/43560*'Pollutant Loading Rates'!$D$15),0)) ->  | P73: =IF($A73="","",ROUND(($F73/43560*'Pollutant Loading Rates'!$E$9)+(($L73-$F73)/43560*'Pollutant Loading Rates'!$E$15),2)) ->  | Q73: =IF($A73="","",ROUND(($F73/43560*'Pollutant Loading Rates'!$F$9)+(($L73-$F73)/43560*'Pollutant Loading Rates'!$F$15),2)) -> 
N74: =IF($A74="","",ROUND(($F74/43560*'Pollutant Loading Rates'!$C$9)+(($L74-$F74)/43560*'Pollutant Loading Rates'!$C$15),2)) ->  | O74: =IF($A74="","",ROUND(($F74/43560*'Pollutant Loading Rates'!$D$9)+(($L74-$F74)/43560*'Pollutant Loading Rates'!$D$15),0)) ->  | P74: =IF($A74="","",ROUND(($F74/43560*'Pollutant Loading Rates'!$E$9)+(($L74-$F74)/43560*'Pollutant Loading Rates'!$E$15),2)) ->  | Q74: =IF($A74="","",ROUND(($F74/43560*'Pollutant Loading Rates'!$F$9)+(($L74-$F74)/43560*'Pollutant Loading Rates'!$F$15),2)) -> 
N75: =IF($A75="","",ROUND(($F75/43560*'Pollutant Loading Rates'!$C$9)+(($L75-$F75)/43560*'Pollutant Loading Rates'!$C$15),2)) ->  | O75: =IF($A75="","",ROUND(($F75/43560*'Pollutant Loading Rates'!$D$9)+(($L75-$F75)/43560*'Pollutant Loading Rates'!$D$15),0)) ->  | P75: =IF($A75="","",ROUND(($F75/43560*'Pollutant Loading Rates'!$E$9)+(($L75-$F75)/43560*'Pollutant Loading Rates'!$E$15),2)) ->  | Q75: =IF($A75="","",ROUND(($F75/43560*'Pollutant Loading Rates'!$F$9)+(($L75-$F75)/43560*'Pollutant Loading Rates'!$F$15),2)) -> 
N76: =IF($A76="","",ROUND(($F76/43560*'Pollutant Loading Rates'!$C$9)+(($L76-$F76)/43560*'Pollutant Loading Rates'!$C$15),2)) ->  | O76: =IF($A76="","",ROUND(($F76/43560*'Pollutant Loading Rates'!$D$9)+(($L76-$F76)/43560*'Pollutant Loading Rates'!$D$15),0)) ->  | P76: =IF($A76="","",ROUND(($F76/43560*'Pollutant Loading Rates'!$E$9)+(($L76-$F76)/43560*'Pollutant Loading Rates'!$E$15),2)) ->  | Q76: =IF($A76="","",ROUND(($F76/43560*'Pollutant Loading Rates'!$F$9)+(($L76-$F76)/43560*'Pollutant Loading Rates'!$F$15),2)) -> 
N77: =IF($A77="","",ROUND(($F77/43560*'Pollutant Loading Rates'!$C$9)+(($L77-$F77)/43560*'Pollutant Loading Rates'!$C$15),2)) ->  | O77: =IF($A77="","",ROUND(($F77/43560*'Pollutant Loading Rates'!$D$9)+(($L77-$F77)/43560*'Pollutant Loading Rates'!$D$15),0)) ->  | P77: =IF($A77="","",ROUND(($F77/43560*'Pollutant Loading Rates'!$E$9)+(($L77-$F77)/43560*'Pollutant Loading Rates'!$E$15),2)) ->  | Q77: =IF($A77="","",ROUND(($F77/43560*'Pollutant Loading Rates'!$F$9)+(($L77-$F77)/43560*'Pollutant Loading Rates'!$F$15),2)) -> 
N78: =IF($A78="","",ROUND(($F78/43560*'Pollutant Loading Rates'!$C$9)+(($L78-$F78)/43560*'Pollutant Loading Rates'!$C$15),2)) ->  | O78: =IF($A78="","",ROUND(($F78/43560*'Pollutant Loading Rates'!$D$9)+(($L78-$F78)/43560*'Pollutant Loading Rates'!$D$15),0)) ->  | P78: =IF($A78="","",ROUND(($F78/43560*'Pollutant Loading Rates'!$E$9)+(($L78-$F78)/43560*'Pollutant Loading Rates'!$E$15),2)) ->  | Q78: =IF($A78="","",ROUND(($F78/43560*'Pollutant Loading Rates'!$F$9)+(($L78-$F78)/43560*'Pollutant Loading Rates'!$F$15),2)) -> 

Sheet Non-RIDOT_Catchment
A1: Segment Name: | B1: Bailey's Brook (RI0007035R-01), Group 1A
A2: Date: | B2: 2018-12-31
N3: Catchment Pollutant Load, lb/yr
A4: Catchment ID | B4: WBID | C4: Discharge ID | D4: STU ID | E4: Treatment Status* | F4: Impervious Area (sq ft) | G4: Ownership* | H4: Ownership Notes | I4: Land Use* | J4: Notes | K4: Shape_Length (ft) | L4: Total Area (sq ft) | N4: P | O4: TSS | P4: N | Q4: Zn
A5: EX-BLB-001 | B5: RI0007035R-01 | C5: Private OF | D5: SCP-BLB-043 | E5: Existing | F5: 236392 | G5: Private | I5: Commercial | J5: Private STU mapped as receiving water from RIDOT outfall StructureID 900061. Parking lot drains to STU to north, building and parking areas drain to STUs at rear. | K5: 2618.750341 | L5: 262789.877 | N5: =IF($A5="","",(VLOOKUP($I5,'Pollutant Loading Rates'!$A$5:$F$12,3,0)*$F5/43560)+IF($I5="Forest",'Pollutant Loading Rates'!C$13*($L5-$F5)/43560,IF($I5="Agriculture",'Pollutant Loading Rates'!C$14*($L5-$F5)/43560,($L5-$F5)/43560*'Pollutant Loading Rates'!C$16))) -> 9.729843764 | O5: =IF($A5="","",(VLOOKUP($I5,'Pollutant Loading Rates'!$A$5:$F$12,4,0)*$F5/43560)+IF($I5="Forest",'Pollutant Loading Rates'!D$13*($L5-$F5)/43560,IF($I5="Agriculture",'Pollutant Loading Rates'!D$14*($L5-$F5)/43560,($L5-$F5)/43560*'Pollutant Loading Rates'!D$16))) -> 2060.831081 | P5: =IF($A5="","",(VLOOKUP($I5,'Pollutant Loading Rates'!$A$5:$F$12,5,0)*$F5/43560)+IF($I5="Forest",'Pollutant Loading Rates'!E$13*($L5-$F5)/43560,IF($I5="Agriculture",'Pollutant Loading Rates'!E$14*($L5-$F5)/43560,($L5-$F5)/43560*'Pollutant Loading Rates'!E$16))) -> 82.32585895 | Q5: =IF($A5="","",(VLOOKUP($I5,'Pollutant Loading Rates'!$A$5:$F$12,6,0)*$F5/43560)+IF($I5="Forest",'Pollutant Loading Rates'!F$13*($L5-$F5)/43560,IF($I5="Agriculture",'Pollutant Loading Rates'!F$14*($L5-$F5)/43560,($L5-$F5)/43560*'Pollutant Loading Rates'!F$16))) -> 7.451474471
A6: EX-BLB-007 | B6: RI0007035R-01 | C6: OF-STU-923 | D6: SCP-BLB-044 | E6: Existing | F6: 1390148 | G6: Private | H6: Mostly residential, some commercial | I6: Residential | J6: Existing RIDOT-constructed STU. Currently being transferred to municipal ownership. Drainage area estimated. VHB report indicates 80.5 acres but mapping not available at time of SCP development. | K6: 11766.17954 | L6: 2308605.002 | N6: =IF($A6="","",(VLOOKUP($I6,'Pollutant Loading Rates'!$A$5:$F$12,3,0)*$F6/43560)+IF($I6="Forest",'Pollutant Loading Rates'!C$13*($L6-$F6)/43560,IF($I6="Agriculture",'Pollutant Loading Rates'!C$14*($L6-$F6)/43560,($L6-$F6)/43560*'Pollutant Loading Rates'!C$16))) -> 76.28714296 | O6: =IF($A6="","",(VLOOKUP($I6,'Pollutant Loading Rates'!$A$5:$F$12,4,0)*$F6/43560)+IF($I6="Forest",'Pollutant Loading Rates'!D$13*($L6-$F6)/43560,IF($I6="Agriculture",'Pollutant Loading Rates'!D$14*($L6-$F6)/43560,($L6-$F6)/43560*'Pollutant Loading Rates'!D$16))) -> 14593.50524 | P6: =IF($A6="","",(VLOOKUP($I6,'Pollutant Loading Rates'!$A$5:$F$12,5,0)*$F6/43560)+IF($I6="Forest",'Pollutant Loading Rates'!E$13*($L6-$F6)/43560,IF($I6="Agriculture",'Pollutant Loading Rates'!E$14*($L6-$F6)/43560,($L6-$F6)/43560*'Pollutant Loading Rates'!E$16))) -> 473.1615227 | Q6: =IF($A6="","",(VLOOKUP($I6,'Pollutant Loading Rates'!$A$5:$F$12,6,0)*$F6/43560)+IF($I6="Forest",'Pollutant Loading Rates'!F$13*($L6-$F6)/43560,IF($I6="Agriculture",'Pollutant Loading Rates'!F$14*($L6-$F6)/43560,($L6-$F6)/43560*'Pollutant Loading Rates'!F$16))) -> 22.90745471
A7: PT-BLB-002 | B7: RI0007035R-01 | C7: OF-17333 | D7: SCP-BLB-001 | E7: Potential | F7: 4508 | G7: Private | I7: Commercial | J7: Overland flow to RIDOT catch basins on West Main Rd, discharge to subsurface infiltration | K7: 744.0079001 | L7: 8101.783677 | N7: =IF($A7="","",(VLOOKUP($I7,'Pollutant Loading Rates'!$A$5:$F$12,3,0)*$F7/43560)+IF($I7="Forest",'Pollutant Loading Rates'!C$13*($L7-$F7)/43560,IF($I7="Agriculture",'Pollutant Loading Rates'!C$14*($L7-$F7)/43560,($L7-$F7)/43560*'Pollutant Loading Rates'!C$16))) -> 0.1937566752 | O7: =IF($A7="","",(VLOOKUP($I7,'Pollutant Loading Rates'!$A$5:$F$12,4,0)*$F7/43560)+IF($I7="Forest",'Pollutant Loading Rates'!D$13*($L7-$F7)/43560,IF($I7="Agriculture",'Pollutant Loading Rates'!D$14*($L7-$F7)/43560,($L7-$F7)/43560*'Pollutant Loading Rates'!D$16))) -> 41.38375084 | P7: =IF($A7="","",(VLOOKUP($I7,'Pollutant Loading Rates'!$A$5:$F$12,5,0)*$F7/43560)+IF($I7="Forest",'Pollutant Loading Rates'!E$13*($L7-$F7)/43560,IF($I7="Agriculture",'Pollutant Loading Rates'!E$14*($L7-$F7)/43560,($L7-$F7)/43560*'Pollutant Loading Rates'!E$16))) -> 1.652039387 | Q7: =IF($A7="","",(VLOOKUP($I7,'Pollutant Loading Rates'!$A$5:$F$12,6,0)*$F7/43560)+IF($I7="Forest",'Pollutant Loading Rates'!F$13*($L7-$F7)/43560,IF($I7="Agriculture",'Pollutant Loading Rates'!F$14*($L7-$F7)/43560,($L7-$F7)/43560*'Pollutant Loading Rates'!F$16))) -> 0.143678294
A8: PT-BLB-003 | B8: RI0007035R-01 | C8: OF-17333 | D8: SCP-BLB-002 | E8: Potential | F8: 84228 | G8: Private | I8: Commercial | J8: Overland flow to RIDOT catch basins on West Main Rd, discharge to subsurface infiltration | K8: 1669.541442 | L8: 88587.32177 | N8: =IF($A8="","",(VLOOKUP($I8,'Pollutant Loading Rates'!$A$5:$F$12,3,0)*$F8/43560)+IF($I8="Forest",'Pollutant Loading Rates'!C$13*($L8-$F8)/43560,IF($I8="Agriculture",'Pollutant Loading Rates'!C$14*($L8-$F8)/43560,($L8-$F8)/43560*'Pollutant Loading Rates'!C$16))) -> 3.453402514 | O8: =IF($A8="","",(VLOOKUP($I8,'Pollutant Loading Rates'!$A$5:$F$12,4,0)*$F8/43560)+IF($I8="Forest",'Pollutant Loading Rates'!D$13*($L8-$F8)/43560,IF($I8="Agriculture",'Pollutant Loading Rates'!D$14*($L8-$F8)/43560,($L8-$F8)/43560*'Pollutant Loading Rates'!D$16))) -> 730.8849504 | P8: =IF($A8="","",(VLOOKUP($I8,'Pollutant Loading Rates'!$A$5:$F$12,5,0)*$F8/43560)+IF($I8="Forest",'Pollutant Loading Rates'!E$13*($L8-$F8)/43560,IF($I8="Agriculture",'Pollutant Loading Rates'!E$14*($L8-$F8)/43560,($L8-$F8)/43560*'Pollutant Loading Rates'!E$16))) -> 29.19919842 | Q8: =IF($A8="","",(VLOOKUP($I8,'Pollutant Loading Rates'!$A$5:$F$12,6,0)*$F8/43560)+IF($I8="Forest",'Pollutant Loading Rates'!F$13*($L8-$F8)/43560,IF($I8="Agriculture",'Pollutant Loading Rates'!F$14*($L8-$F8)/43560,($L8-$F8)/43560*'Pollutant Loading Rates'!F$16))) -> 2.652430939
A9: PT-BLB-004 | B9: RI0007035R-01 | C9: OF-17333 | D9: SCP-BLB-003 | E9: Potential | F9: 40640 | G9: Private | I9: Residential | J9: Overland flow to RIDOT catch basin and discharges to STU on west side of West Main Rd | K9: 1390.988893 | L9: 91677.03789 | N9: =IF($A9="","",(VLOOKUP($I9,'Pollutant Loading Rates'!$A$5:$F$12,3,0)*$F9/43560)+IF($I9="Forest",'Pollutant Loading Rates'!C$13*($L9-$F9)/43560,IF($I9="Agriculture",'Pollutant Loading Rates'!C$14*($L9-$F9)/43560,($L9-$F9)/43560*'Pollutant Loading Rates'!C$16))) -> 2.294443188 | O9: =IF($A9="","",(VLOOKUP($I9,'Pollutant Loading Rates'!$A$5:$F$12,4,0)*$F9/43560)+IF($I9="Forest",'Pollutant Loading Rates'!D$13*($L9-$F9)/43560,IF($I9="Agriculture",'Pollutant Loading Rates'!D$14*($L9-$F9)/43560,($L9-$F9)/43560*'Pollutant Loading Rates'!D$16))) -> 442.9384987 | P9: =IF($A9="","",(VLOOKUP($I9,'Pollutant Loading Rates'!$A$5:$F$12,5,0)*$F9/43560)+IF($I9="Forest",'Pollutant Loading Rates'!E$13*($L9-$F9)/43560,IF($I9="Agriculture",'Pollutant Loading Rates'!E$14*($L9-$F9)/43560,($L9-$F9)/43560*'Pollutant Loading Rates'!E$16))) -> 14.47496632 | Q9: =IF($A9="","",(VLOOKUP($I9,'Pollutant Loading Rates'!$A$5:$F$12,6,0)*$F9/43560)+IF($I9="Forest",'Pollutant Loading Rates'!F$13*($L9-$F9)/43560,IF($I9="Agriculture",'Pollutant Loading Rates'!F$14*($L9-$F9)/43560,($L9-$F9)/43560*'Pollutant Loading Rates'!F$16))) -> 0.6820376054
A10: PT-BLB-005 | B10: RI0007035R-01 | C10: OF-MH-47514 | D10: SCP-BLB-004 | E10: Potential | F10: 34060 | G10: Municipality | H10: School | I10: Institutional | J10: STU proposed on municipal property, overland flow to RIDOT catch basins on Valley Rd | K10: 962.7287188 | L10: 46144.63673 | N10: =IF($A10="","",(VLOOKUP($I10,'Pollutant Loading Rates'!$A$5:$F$12,3,0)*$F10/43560)+IF($I10="Forest",'Pollutant Loading Rates'!C$13*($L10-$F10)/43560,IF($I10="Agriculture",'Pollutant Loading Rates'!C$14*($L10-$F10)/43560,($L10-$F10)/43560*'Pollutant Loading Rates'!C$16))) -> 1.423897899 | O10: =IF($A10="","",(VLOOKUP($I10,'Pollutant Loading Rates'!$A$5:$F$12,4,0)*$F10/43560)+IF($I10="Forest",'Pollutant Loading Rates'!D$13*($L10-$F10)/43560,IF($I10="Agriculture",'Pollutant Loading Rates'!D$14*($L10-$F10)/43560,($L10-$F10)/43560*'Pollutant Loading Rates'!D$16))) -> 302.5136359 | P10: =IF($A10="","",(VLOOKUP($I10,'Pollutant Loading Rates'!$A$5:$F$12,5,0)*$F10/43560)+IF($I10="Forest",'Pollutant Loading Rates'!E$13*($L10-$F10)/43560,IF($I10="Agriculture",'Pollutant Loading Rates'!E$14*($L10-$F10)/43560,($L10-$F10)/43560*'Pollutant Loading Rates'!E$16))) -> 12.08168927 | Q10: =IF($A10="","",(VLOOKUP($I10,'Pollutant Loading Rates'!$A$5:$F$12,6,0)*$F10/43560)+IF($I10="Forest",'Pollutant Loading Rates'!F$13*($L10-$F10)/43560,IF($I10="Agriculture",'Pollutant Loading Rates'!F$14*($L10-$F10)/43560,($L10-$F10)/43560*'Pollutant Loading Rates'!F$16))) -> 1.077858567
A11: PT-BLB-006 | B11: RI0007035R-01 | C11: Municipal OF | D11: SCP-BLB-008 | E11: Potential | F11: 71964 | G11: Private | H11: Offsite STUs on municipal streets | I11: Residential | J11: Overland flow to proposed surface bioretention. Middletown OF BB05 possible discharge point | K11: 3189.768241 | L11: 102482.8646 | N11: =IF($A11="","",(VLOOKUP($I11,'Pollutant Loading Rates'!$A$5:$F$12,3,0)*$F11/43560)+IF($I11="Forest",'Pollutant Loading Rates'!C$13*($L11-$F11)/43560,IF($I11="Agriculture",'Pollutant Loading Rates'!C$14*($L11-$F11)/43560,($L11-$F11)/43560*'Pollutant Loading Rates'!C$16))) -> 3.903942347 | O11: =IF($A11="","",(VLOOKUP($I11,'Pollutant Loading Rates'!$A$5:$F$12,4,0)*$F11/43560)+IF($I11="Forest",'Pollutant Loading Rates'!D$13*($L11-$F11)/43560,IF($I11="Agriculture",'Pollutant Loading Rates'!D$14*($L11-$F11)/43560,($L11-$F11)/43560*'Pollutant Loading Rates'!D$16))) -> 743.983824 | P11: =IF($A11="","",(VLOOKUP($I11,'Pollutant Loading Rates'!$A$5:$F$12,5,0)*$F11/43560)+IF($I11="Forest",'Pollutant Loading Rates'!E$13*($L11-$F11)/43560,IF($I11="Agriculture",'Pollutant Loading Rates'!E$14*($L11-$F11)/43560,($L11-$F11)/43560*'Pollutant Loading Rates'!E$16))) -> 24.04196727 | Q11: =IF($A11="","",(VLOOKUP($I11,'Pollutant Loading Rates'!$A$5:$F$12,6,0)*$F11/43560)+IF($I11="Forest",'Pollutant Loading Rates'!F$13*($L11-$F11)/43560,IF($I11="Agriculture",'Pollutant Loading Rates'!F$14*($L11-$F11)/43560,($L11-$F11)/43560*'Pollutant Loading Rates'!F$16))) -> 1.177156408
A12: PT-BLB-008 | B12: RI0007035R-01 | C12: OF-NARR167 | D12: SCP-BLB-009 | E12: Potential | F12: 57800 | G12: Private | I12: Commercial | J12: Downstream of existing private STU, overland flow to existing RIDOT catch basins | K12: 1723.177139 | L12: 117735.9413 | N12: =IF($A12="","",(VLOOKUP($I12,'Pollutant Loading Rates'!$A$5:$F$12,3,0)*$F12/43560)+IF($I12="Forest",'Pollutant Loading Rates'!C$13*($L12-$F12)/43560,IF($I12="Agriculture",'Pollutant Loading Rates'!C$14*($L12-$F12)/43560,($L12-$F12)/43560*'Pollutant Loading Rates'!C$16))) -> 2.521087888 | O12: =IF($A12="","",(VLOOKUP($I12,'Pollutant Loading Rates'!$A$5:$F$12,4,0)*$F12/43560)+IF($I12="Forest",'Pollutant Loading Rates'!D$13*($L12-$F12)/43560,IF($I12="Agriculture",'Pollutant Loading Rates'!D$14*($L12-$F12)/43560,($L12-$F12)/43560*'Pollutant Loading Rates'!D$16))) -> 539.951437 | P12: =IF($A12="","",(VLOOKUP($I12,'Pollutant Loading Rates'!$A$5:$F$12,5,0)*$F12/43560)+IF($I12="Forest",'Pollutant Loading Rates'!E$13*($L12-$F12)/43560,IF($I12="Agriculture",'Pollutant Loading Rates'!E$14*($L12-$F12)/43560,($L12-$F12)/43560*'Pollutant Loading Rates'!E$16))) -> 21.54994683 | Q12: =IF($A12="","",(VLOOKUP($I12,'Pollutant Loading Rates'!$A$5:$F$12,6,0)*$F12/43560)+IF($I12="Forest",'Pollutant Loading Rates'!F$13*($L12-$F12)/43560,IF($I12="Agriculture",'Pollutant Loading Rates'!F$14*($L12-$F12)/43560,($L12-$F12)/43560*'Pollutant Loading Rates'!F$16))) -> 1.849271228
A13: PT-BLB-009 | B13: RI0007035R-01 | C13: OF-CB-6853 | D13: SCP-BLB-011 | E13: Potential | F13: 519408 | G13: Municipality | H13: Public school fields, some commercial and residential | I13: Institutional | J13: Northbound lane of Valley Rd due to road crown | K13: 7618.293727 | L13: 1525985.92 | N13: =IF($A13="","",(VLOOKUP($I13,'Pollutant Loading Rates'!$A$5:$F$12,3,0)*$F13/43560)+IF($I13="Forest",'Pollutant Loading Rates'!C$13*($L13-$F13)/43560,IF($I13="Agriculture",'Pollutant Loading Rates'!C$14*($L13-$F13)/43560,($L13-$F13)/43560*'Pollutant Loading Rates'!C$16))) -> 23.89823933 | O13: =IF($A13="","",(VLOOKUP($I13,'Pollutant Loading Rates'!$A$5:$F$12,4,0)*$F13/43560)+IF($I13="Forest",'Pollutant Loading Rates'!D$13*($L13-$F13)/43560,IF($I13="Agriculture",'Pollutant Loading Rates'!D$14*($L13-$F13)/43560,($L13-$F13)/43560*'Pollutant Loading Rates'!D$16))) -> 5167.693372 | P13: =IF($A13="","",(VLOOKUP($I13,'Pollutant Loading Rates'!$A$5:$F$12,5,0)*$F13/43560)+IF($I13="Forest",'Pollutant Loading Rates'!E$13*($L13-$F13)/43560,IF($I13="Agriculture",'Pollutant Loading Rates'!E$14*($L13-$F13)/43560,($L13-$F13)/43560*'Pollutant Loading Rates'!E$16))) -> 206.0841685 | Q13: =IF($A13="","",(VLOOKUP($I13,'Pollutant Loading Rates'!$A$5:$F$12,6,0)*$F13/43560)+IF($I13="Forest",'Pollutant Loading Rates'!F$13*($L13-$F13)/43560,IF($I13="Agriculture",'Pollutant Loading Rates'!F$14*($L13-$F13)/43560,($L13-$F13)/43560*'Pollutant Loading Rates'!F$16))) -> 16.85713874
A14: PT-BLB-010 | B14: RI0007035R-01 | C14: OF-CB-6853 | D14: SCP-BLB-015b | E14: Potential | F14: 225996 | G14: Private | H14: Public school, private residential, commercial | I14: Residential | J14: Flow to municipal/private interconnections | K14: 3148.340283 | L14: 750818.8995 | N14: =IF($A14="","",(VLOOKUP($I14,'Pollutant Loading Rates'!$A$5:$F$12,3,0)*$F14/43560)+IF($I14="Forest",'Pollutant Loading Rates'!C$13*($L14-$F14)/43560,IF($I14="Agriculture",'Pollutant Loading Rates'!C$14*($L14-$F14)/43560,($L14-$F14)/43560*'Pollutant Loading Rates'!C$16))) -> 13.39937451 | O14: =IF($A14="","",(VLOOKUP($I14,'Pollutant Loading Rates'!$A$5:$F$12,4,0)*$F14/43560)+IF($I14="Forest",'Pollutant Loading Rates'!D$13*($L14-$F14)/43560,IF($I14="Agriculture",'Pollutant Loading Rates'!D$14*($L14-$F14)/43560,($L14-$F14)/43560*'Pollutant Loading Rates'!D$16))) -> 2625.646856 | P14: =IF($A14="","",(VLOOKUP($I14,'Pollutant Loading Rates'!$A$5:$F$12,5,0)*$F14/43560)+IF($I14="Forest",'Pollutant Loading Rates'!E$13*($L14-$F14)/43560,IF($I14="Agriculture",'Pollutant Loading Rates'!E$14*($L14-$F14)/43560,($L14-$F14)/43560*'Pollutant Loading Rates'!E$16))) -> 86.8956806 | Q14: =IF($A14="","",(VLOOKUP($I14,'Pollutant Loading Rates'!$A$5:$F$12,6,0)*$F14/43560)+IF($I14="Forest",'Pollutant Loading Rates'!F$13*($L14-$F14)/43560,IF($I14="Agriculture",'Pollutant Loading Rates'!F$14*($L14-$F14)/43560,($L14-$F14)/43560*'Pollutant Loading Rates'!F$16))) -> 3.915865407
A15: PT-BLB-011 | B15: RI0007035R-01 | C15: OF-CB-6853 | D15: SCP-BLB-012 | E15: Potential | F15: 299932 | G15: Municipality | H15: Mostly school. Some private residential | I15: Institutional | J15: Overland flow from Reardon Dr into school parking lot | K15: 4196.407902 | L15: 497381.4698 | N15: =IF($A15="","",(VLOOKUP($I15,'Pollutant Loading Rates'!$A$5:$F$12,3,0)*$F15/43560)+IF($I15="Forest",'Pollutant Loading Rates'!C$13*($L15-$F15)/43560,IF($I15="Agriculture",'Pollutant Loading Rates'!C$14*($L15-$F15)/43560,($L15-$F15)/43560*'Pollutant Loading Rates'!C$16))) -> 12.7806213 | O15: =IF($A15="","",(VLOOKUP($I15,'Pollutant Loading Rates'!$A$5:$F$12,4,0)*$F15/43560)+IF($I15="Forest",'Pollutant Loading Rates'!D$13*($L15-$F15)/43560,IF($I15="Agriculture",'Pollutant Loading Rates'!D$14*($L15-$F15)/43560,($L15-$F15)/43560*'Pollutant Loading Rates'!D$16))) -> 2725.30971 | P15: =IF($A15="","",(VLOOKUP($I15,'Pollutant Loading Rates'!$A$5:$F$12,5,0)*$F15/43560)+IF($I15="Forest",'Pollutant Loading Rates'!E$13*($L15-$F15)/43560,IF($I15="Agriculture",'Pollutant Loading Rates'!E$14*($L15-$F15)/43560,($L15-$F15)/43560*'Pollutant Loading Rates'!E$16))) -> 108.8091425 | Q15: =IF($A15="","",(VLOOKUP($I15,'Pollutant Loading Rates'!$A$5:$F$12,6,0)*$F15/43560)+IF($I15="Forest",'Pollutant Loading Rates'!F$13*($L15-$F15)/43560,IF($I15="Agriculture",'Pollutant Loading Rates'!F$14*($L15-$F15)/43560,($L15-$F15)/43560*'Pollutant Loading Rates'!F$16))) -> 9.538109502
A16: PT-BLB-012 | B16: RI0007035R-01 | C16: OF-CB-6853 | D16: SCP-BLB-014 | E16: Potential | F16: 22636 | G16: Private | I16: Residential | J16: Downstream of existing private STU from subdivision on Atlantic Dr, overland flow to proposed surface bioretention | K16: 1517.131059 | L16: 77659.0204 | N16: =IF($A16="","",(VLOOKUP($I16,'Pollutant Loading Rates'!$A$5:$F$12,3,0)*$F16/43560)+IF($I16="Forest",'Pollutant Loading Rates'!C$13*($L16-$F16)/43560,IF($I16="Agriculture",'Pollutant Loading Rates'!C$14*($L16-$F16)/43560,($L16-$F16)/43560*'Pollutant Loading Rates'!C$16))) -> 1.348619547 | O16: =IF($A16="","",(VLOOKUP($I16,'Pollutant Loading Rates'!$A$5:$F$12,4,0)*$F16/43560)+IF($I16="Forest",'Pollutant Loading Rates'!D$13*($L16-$F16)/43560,IF($I16="Agriculture",'Pollutant Loading Rates'!D$14*($L16-$F16)/43560,($L16-$F16)/43560*'Pollutant Loading Rates'!D$16))) -> 264.6436591 | P16: =IF($A16="","",(VLOOKUP($I16,'Pollutant Loading Rates'!$A$5:$F$12,5,0)*$F16/43560)+IF($I16="Forest",'Pollutant Loading Rates'!E$13*($L16-$F16)/43560,IF($I16="Agriculture",'Pollutant Loading Rates'!E$14*($L16-$F16)/43560,($L16-$F16)/43560*'Pollutant Loading Rates'!E$16))) -> 8.768803182 | Q16: =IF($A16="","",(VLOOKUP($I16,'Pollutant Loading Rates'!$A$5:$F$12,6,0)*$F16/43560)+IF($I16="Forest",'Pollutant Loading Rates'!F$13*($L16-$F16)/43560,IF($I16="Agriculture",'Pollutant Loading Rates'!F$14*($L16-$F16)/43560,($L16-$F16)/43560*'Pollutant Loading Rates'!F$16))) -> 0.3934718504
A17: PT-BLB-013 | B17: RI0007035R-01 | C17: OF-CB-6853 | D17: SCP-BLB-016 | E17: Potential | F17: 123788 | G17: Private | H17: Parcel for existing detention pond | I17: Commercial | J17: Overland flow to private catch basins | K17: 1955.644495 | L17: 237398.6983 | N17: =IF($A17="","",(VLOOKUP($I17,'Pollutant Loading Rates'!$A$5:$F$12,3,0)*$F17/43560)+IF($I17="Forest",'Pollutant Loading Rates'!C$13*($L17-$F17)/43560,IF($I17="Agriculture",'Pollutant Loading Rates'!C$14*($L17-$F17)/43560,($L17-$F17)/43560*'Pollutant Loading Rates'!C$16))) -> 5.360133099 | O17: =IF($A17="","",(VLOOKUP($I17,'Pollutant Loading Rates'!$A$5:$F$12,4,0)*$F17/43560)+IF($I17="Forest",'Pollutant Loading Rates'!D$13*($L17-$F17)/43560,IF($I17="Agriculture",'Pollutant Loading Rates'!D$14*($L17-$F17)/43560,($L17-$F17)/43560*'Pollutant Loading Rates'!D$16))) -> 1146.446615 | P17: =IF($A17="","",(VLOOKUP($I17,'Pollutant Loading Rates'!$A$5:$F$12,5,0)*$F17/43560)+IF($I17="Forest",'Pollutant Loading Rates'!E$13*($L17-$F17)/43560,IF($I17="Agriculture",'Pollutant Loading Rates'!E$14*($L17-$F17)/43560,($L17-$F17)/43560*'Pollutant Loading Rates'!E$16))) -> 45.76085597 | Q17: =IF($A17="","",(VLOOKUP($I17,'Pollutant Loading Rates'!$A$5:$F$12,6,0)*$F17/43560)+IF($I17="Forest",'Pollutant Loading Rates'!F$13*($L17-$F17)/43560,IF($I17="Agriculture",'Pollutant Loading Rates'!F$14*($L17-$F17)/43560,($L17-$F17)/43560*'Pollutant Loading Rates'!F$16))) -> 3.952976833
A18: PT-BLB-014 | B18: RI0007035R-01 | C18: OF-NARR426 | D18: SCP-BLB-021 | E18: Potential | F18: 33580 | G18: Private | I18: Commercial | J18: Overland flow to Forest Ave to proposed surface bioretention | K18: 1212.153697 | L18: 65873.92311 | N18: =IF($A18="","",(VLOOKUP($I18,'Pollutant Loading Rates'!$A$5:$F$12,3,0)*$F18/43560)+IF($I18="Forest",'Pollutant Loading Rates'!C$13*($L18-$F18)/43560,IF($I18="Agriculture",'Pollutant Loading Rates'!C$14*($L18-$F18)/43560,($L18-$F18)/43560*'Pollutant Loading Rates'!C$16))) -> 1.457961591 | O18: =IF($A18="","",(VLOOKUP($I18,'Pollutant Loading Rates'!$A$5:$F$12,4,0)*$F18/43560)+IF($I18="Forest",'Pollutant Loading Rates'!D$13*($L18-$F18)/43560,IF($I18="Agriculture",'Pollutant Loading Rates'!D$14*($L18-$F18)/43560,($L18-$F18)/43560*'Pollutant Loading Rates'!D$16))) -> 311.9911644 | P18: =IF($A18="","",(VLOOKUP($I18,'Pollutant Loading Rates'!$A$5:$F$12,5,0)*$F18/43560)+IF($I18="Forest",'Pollutant Loading Rates'!E$13*($L18-$F18)/43560,IF($I18="Agriculture",'Pollutant Loading Rates'!E$14*($L18-$F18)/43560,($L18-$F18)/43560*'Pollutant Loading Rates'!E$16))) -> 12.4527284 | Q18: =IF($A18="","",(VLOOKUP($I18,'Pollutant Loading Rates'!$A$5:$F$12,6,0)*$F18/43560)+IF($I18="Forest",'Pollutant Loading Rates'!F$13*($L18-$F18)/43560,IF($I18="Agriculture",'Pollutant Loading Rates'!F$14*($L18-$F18)/43560,($L18-$F18)/43560*'Pollutant Loading Rates'!F$16))) -> 1.073078232
A19: PT-BLB-015 | B19: RI0007035R-01 | C19: OF-NARR426 | D19: SCP-BLB-020 | E19: Potential | F19: 10624 | G19: Private | I19: Residential | J19: Overland flow to proposed surface bioretention in RIDOT ROW | K19: 523.886141 | L19: 15368.41221 | N19: =IF($A19="","",(VLOOKUP($I19,'Pollutant Loading Rates'!$A$5:$F$12,3,0)*$F19/43560)+IF($I19="Forest",'Pollutant Loading Rates'!C$13*($L19-$F19)/43560,IF($I19="Agriculture",'Pollutant Loading Rates'!C$14*($L19-$F19)/43560,($L19-$F19)/43560*'Pollutant Loading Rates'!C$16))) -> 0.5769711775 | O19: =IF($A19="","",(VLOOKUP($I19,'Pollutant Loading Rates'!$A$5:$F$12,4,0)*$F19/43560)+IF($I19="Forest",'Pollutant Loading Rates'!D$13*($L19-$F19)/43560,IF($I19="Agriculture",'Pollutant Loading Rates'!D$14*($L19-$F19)/43560,($L19-$F19)/43560*'Pollutant Loading Rates'!D$16))) -> 109.9949611 | P19: =IF($A19="","",(VLOOKUP($I19,'Pollutant Loading Rates'!$A$5:$F$12,5,0)*$F19/43560)+IF($I19="Forest",'Pollutant Loading Rates'!E$13*($L19-$F19)/43560,IF($I19="Agriculture",'Pollutant Loading Rates'!E$14*($L19-$F19)/43560,($L19-$F19)/43560*'Pollutant Loading Rates'!E$16))) -> 3.555646761 | Q19: =IF($A19="","",(VLOOKUP($I19,'Pollutant Loading Rates'!$A$5:$F$12,6,0)*$F19/43560)+IF($I19="Forest",'Pollutant Loading Rates'!F$13*($L19-$F19)/43560,IF($I19="Agriculture",'Pollutant Loading Rates'!F$14*($L19-$F19)/43560,($L19-$F19)/43560*'Pollutant Loading Rates'!F$16))) -> 0.1739049029
A20: PT-BLB-016 | B20: RI0007035R-01 | C20: OF-NARR426 | D20: SCP-BLB-022 | E20: Potential | F20: 2720 | G20: Private | I20: Agriculture | J20: Overland flow to proposed surface bioretention | K20: 490.4273506 | L20: 9280.90141 | N20: =IF($A20="","",(VLOOKUP($I20,'Pollutant Loading Rates'!$A$5:$F$12,3,0)*$F20/43560)+IF($I20="Forest",'Pollutant Loading Rates'!C$13*($L20-$F20)/43560,IF($I20="Agriculture",'Pollutant Loading Rates'!C$14*($L20-$F20)/43560,($L20-$F20)/43560*'Pollutant Loading Rates'!C$16))) -> 0.161500485 | O20: =IF($A20="","",(VLOOKUP($I20,'Pollutant Loading Rates'!$A$5:$F$12,4,0)*$F20/43560)+IF($I20="Forest",'Pollutant Loading Rates'!D$13*($L20-$F20)/43560,IF($I20="Agriculture",'Pollutant Loading Rates'!D$14*($L20-$F20)/43560,($L20-$F20)/43560*'Pollutant Loading Rates'!D$16))) -> 44.88145258 | P20: =IF($A20="","",(VLOOKUP($I20,'Pollutant Loading Rates'!$A$5:$F$12,5,0)*$F20/43560)+IF($I20="Forest",'Pollutant Loading Rates'!E$13*($L20-$F20)/43560,IF($I20="Agriculture",'Pollutant Loading Rates'!E$14*($L20-$F20)/43560,($L20-$F20)/43560*'Pollutant Loading Rates'!E$16))) -> 1.094532749 | Q20: =IF($A20="","",(VLOOKUP($I20,'Pollutant Loading Rates'!$A$5:$F$12,6,0)*$F20/43560)+IF($I20="Forest",'Pollutant Loading Rates'!F$13*($L20-$F20)/43560,IF($I20="Agriculture",'Pollutant Loading Rates'!F$14*($L20-$F20)/43560,($L20-$F20)/43560*'Pollutant Loading Rates'!F$16))) -> 0.04725463858
A21: PT-BLB-017 | B21: RI0007035R-01 | C21: OF-NARR426 | D21: SCP-BLB-026 | E21: Potential | F21: 1020 | G21: Private | I21: Agriculture | J21: Overland flow to proposed surface bioretention | K21: 159.6731671 | L21: 1347.492599 | N21: =IF($A21="","",(VLOOKUP($I21,'Pollutant Loading Rates'!$A$5:$F$12,3,0)*$F21/43560)+IF($I21="Forest",'Pollutant Loading Rates'!C$13*($L21-$F21)/43560,IF($I21="Agriculture",'Pollutant Loading Rates'!C$14*($L21-$F21)/43560,($L21-$F21)/43560*'Pollutant Loading Rates'!C$16))) -> 0.03877397168 | O21: =IF($A21="","",(VLOOKUP($I21,'Pollutant Loading Rates'!$A$5:$F$12,4,0)*$F21/43560)+IF($I21="Forest",'Pollutant Loading Rates'!D$13*($L21-$F21)/43560,IF($I21="Agriculture",'Pollutant Loading Rates'!D$14*($L21-$F21)/43560,($L21-$F21)/43560*'Pollutant Loading Rates'!D$16))) -> 15.39248984 | P21: =IF($A21="","",(VLOOKUP($I21,'Pollutant Loading Rates'!$A$5:$F$12,5,0)*$F21/43560)+IF($I21="Forest",'Pollutant Loading Rates'!E$13*($L21-$F21)/43560,IF($I21="Agriculture",'Pollutant Loading Rates'!E$14*($L21-$F21)/43560,($L21-$F21)/43560*'Pollutant Loading Rates'!E$16))) -> 0.2840752616 | Q21: =IF($A21="","",(VLOOKUP($I21,'Pollutant Loading Rates'!$A$5:$F$12,6,0)*$F21/43560)+IF($I21="Forest",'Pollutant Loading Rates'!F$13*($L21-$F21)/43560,IF($I21="Agriculture",'Pollutant Loading Rates'!F$14*($L21-$F21)/43560,($L21-$F21)/43560*'Pollutant Loading Rates'!F$16))) -> 0.01663105396
A22: PT-BLB-018 | B22: RI0007035R-01 | C22: OF-NARR426 | D22: SCP-BLB-027 | E22: Potential | F22: 8672 | G22: Private | I22: Commercial | J22: Overland flow to proposed surface bioretention | K22: 508.2877844 | L22: 8942.364099 | N22: =IF($A22="","",(VLOOKUP($I22,'Pollutant Loading Rates'!$A$5:$F$12,3,0)*$F22/43560)+IF($I22="Forest",'Pollutant Loading Rates'!C$13*($L22-$F22)/43560,IF($I22="Agriculture",'Pollutant Loading Rates'!C$14*($L22-$F22)/43560,($L22-$F22)/43560*'Pollutant Loading Rates'!C$16))) -> 0.3550835888 | O22: =IF($A22="","",(VLOOKUP($I22,'Pollutant Loading Rates'!$A$5:$F$12,4,0)*$F22/43560)+IF($I22="Forest",'Pollutant Loading Rates'!D$13*($L22-$F22)/43560,IF($I22="Agriculture",'Pollutant Loading Rates'!D$14*($L22-$F22)/43560,($L22-$F22)/43560*'Pollutant Loading Rates'!D$16))) -> 75.13058847 | P22: =IF($A22="","",(VLOOKUP($I22,'Pollutant Loading Rates'!$A$5:$F$12,5,0)*$F22/43560)+IF($I22="Forest",'Pollutant Loading Rates'!E$13*($L22-$F22)/43560,IF($I22="Agriculture",'Pollutant Loading Rates'!E$14*($L22-$F22)/43560,($L22-$F22)/43560*'Pollutant Loading Rates'!E$16))) -> 3.001569405 | Q22: =IF($A22="","",(VLOOKUP($I22,'Pollutant Loading Rates'!$A$5:$F$12,6,0)*$F22/43560)+IF($I22="Forest",'Pollutant Loading Rates'!F$13*($L22-$F22)/43560,IF($I22="Agriculture",'Pollutant Loading Rates'!F$14*($L22-$F22)/43560,($L22-$F22)/43560*'Pollutant Loading Rates'!F$16))) -> 0.2729995133
N23: =IF($A23="","",(VLOOKUP($I23,'Pollutant Loading Rates'!$A$5:$F$12,3,0)*$F23/43560)+IF($I23="Forest",'Pollutant Loading Rates'!C$13*($L23-$F23)/43560,IF($I23="Agriculture",'Pollutant Loading Rates'!C$14*($L23-$F23)/43560,($L23-$F23)/43560*'Pollutant Loading Rates'!C$16))) ->  | O23: =IF($A23="","",(VLOOKUP($I23,'Pollutant Loading Rates'!$A$5:$F$12,4,0)*$F23/43560)+IF($I23="Forest",'Pollutant Loading Rates'!D$13*($L23-$F23)/43560,IF($I23="Agriculture",'Pollutant Loading Rates'!D$14*($L23-$F23)/43560,($L23-$F23)/43560*'Pollutant Loading Rates'!D$16))) ->  | P23: =IF($A23="","",(VLOOKUP($I23,'Pollutant Loading Rates'!$A$5:$F$12,5,0)*$F23/43560)+IF($I23="Forest",'Pollutant Loading Rates'!E$13*($L23-$F23)/43560,IF($I23="Agriculture",'Pollutant Loading Rates'!E$14*($L23-$F23)/43560,($L23-$F23)/43560*'Pollutant Loading Rates'!E$16))) ->  | Q23: =IF($A23="","",(VLOOKUP($I23,'Pollutant Loading Rates'!$A$5:$F$12,6,0)*$F23/43560)+IF($I23="Forest",'Pollutant Loading Rates'!F$13*($L23-$F23)/43560,IF($I23="Agriculture",'Pollutant Loading Rates'!F$14*($L23-$F23)/43560,($L23-$F23)/43560*'Pollutant Loading Rates'!F$16))) -> 
N24: =IF($A24="","",(VLOOKUP($I24,'Pollutant Loading Rates'!$A$5:$F$12,3,0)*$F24/43560)+IF($I24="Forest",'Pollutant Loading Rates'!C$13*($L24-$F24)/43560,IF($I24="Agriculture",'Pollutant Loading Rates'!C$14*($L24-$F24)/43560,($L24-$F24)/43560*'Pollutant Loading Rates'!C$16))) ->  | O24: =IF($A24="","",(VLOOKUP($I24,'Pollutant Loading Rates'!$A$5:$F$12,4,0)*$F24/43560)+IF($I24="Forest",'Pollutant Loading Rates'!D$13*($L24-$F24)/43560,IF($I24="Agriculture",'Pollutant Loading Rates'!D$14*($L24-$F24)/43560,($L24-$F24)/43560*'Pollutant Loading Rates'!D$16))) ->  | P24: =IF($A24="","",(VLOOKUP($I24,'Pollutant Loading Rates'!$A$5:$F$12,5,0)*$F24/43560)+IF($I24="Forest",'Pollutant Loading Rates'!E$13*($L24-$F24)/43560,IF($I24="Agriculture",'Pollutant Loading Rates'!E$14*($L24-$F24)/43560,($L24-$F24)/43560*'Pollutant Loading Rates'!E$16))) ->  | Q24: =IF($A24="","",(VLOOKUP($I24,'Pollutant Loading Rates'!$A$5:$F$12,6,0)*$F24/43560)+IF($I24="Forest",'Pollutant Loading Rates'!F$13*($L24-$F24)/43560,IF($I24="Agriculture",'Pollutant Loading Rates'!F$14*($L24-$F24)/43560,($L24-$F24)/43560*'Pollutant Loading Rates'!F$16))) -> 
N25: =IF($A25="","",(VLOOKUP($I25,'Pollutant Loading Rates'!$A$5:$F$12,3,0)*$F25/43560)+IF($I25="Forest",'Pollutant Loading Rates'!C$13*($L25-$F25)/43560,IF($I25="Agriculture",'Pollutant Loading Rates'!C$14*($L25-$F25)/43560,($L25-$F25)/43560*'Pollutant Loading Rates'!C$16))) ->  | O25: =IF($A25="","",(VLOOKUP($I25,'Pollutant Loading Rates'!$A$5:$F$12,4,0)*$F25/43560)+IF($I25="Forest",'Pollutant Loading Rates'!D$13*($L25-$F25)/43560,IF($I25="Agriculture",'Pollutant Loading Rates'!D$14*($L25-$F25)/43560,($L25-$F25)/43560*'Pollutant Loading Rates'!D$16))) ->  | P25: =IF($A25="","",(VLOOKUP($I25,'Pollutant Loading Rates'!$A$5:$F$12,5,0)*$F25/43560)+IF($I25="Forest",'Pollutant Loading Rates'!E$13*($L25-$F25)/43560,IF($I25="Agriculture",'Pollutant Loading Rates'!E$14*($L25-$F25)/43560,($L25-$F25)/43560*'Pollutant Loading Rates'!E$16))) ->  | Q25: =IF($A25="","",(VLOOKUP($I25,'Pollutant Loading Rates'!$A$5:$F$12,6,0)*$F25/43560)+IF($I25="Forest",'Pollutant Loading Rates'!F$13*($L25-$F25)/43560,IF($I25="Agriculture",'Pollutant Loading Rates'!F$14*($L25-$F25)/43560,($L25-$F25)/43560*'Pollutant Loading Rates'!F$16))) -> 
N26: =IF($A26="","",(VLOOKUP($I26,'Pollutant Loading Rates'!$A$5:$F$12,3,0)*$F26/43560)+IF($I26="Forest",'Pollutant Loading Rates'!C$13*($L26-$F26)/43560,IF($I26="Agriculture",'Pollutant Loading Rates'!C$14*($L26-$F26)/43560,($L26-$F26)/43560*'Pollutant Loading Rates'!C$16))) ->  | O26: =IF($A26="","",(VLOOKUP($I26,'Pollutant Loading Rates'!$A$5:$F$12,4,0)*$F26/43560)+IF($I26="Forest",'Pollutant Loading Rates'!D$13*($L26-$F26)/43560,IF($I26="Agriculture",'Pollutant Loading Rates'!D$14*($L26-$F26)/43560,($L26-$F26)/43560*'Pollutant Loading Rates'!D$16))) ->  | P26: =IF($A26="","",(VLOOKUP($I26,'Pollutant Loading Rates'!$A$5:$F$12,5,0)*$F26/43560)+IF($I26="Forest",'Pollutant Loading Rates'!E$13*($L26-$F26)/43560,IF($I26="Agriculture",'Pollutant Loading Rates'!E$14*($L26-$F26)/43560,($L26-$F26)/43560*'Pollutant Loading Rates'!E$16))) ->  | Q26: =IF($A26="","",(VLOOKUP($I26,'Pollutant Loading Rates'!$A$5:$F$12,6,0)*$F26/43560)+IF($I26="Forest",'Pollutant Loading Rates'!F$13*($L26-$F26)/43560,IF($I26="Agriculture",'Pollutant Loading Rates'!F$14*($L26-$F26)/43560,($L26-$F26)/43560*'Pollutant Loading Rates'!F$16))) -> 
N27: =IF($A27="","",(VLOOKUP($I27,'Pollutant Loading Rates'!$A$5:$F$12,3,0)*$F27/43560)+IF($I27="Forest",'Pollutant Loading Rates'!C$13*($L27-$F27)/43560,IF($I27="Agriculture",'Pollutant Loading Rates'!C$14*($L27-$F27)/43560,($L27-$F27)/43560*'Pollutant Loading Rates'!C$16))) ->  | O27: =IF($A27="","",(VLOOKUP($I27,'Pollutant Loading Rates'!$A$5:$F$12,4,0)*$F27/43560)+IF($I27="Forest",'Pollutant Loading Rates'!D$13*($L27-$F27)/43560,IF($I27="Agriculture",'Pollutant Loading Rates'!D$14*($L27-$F27)/43560,($L27-$F27)/43560*'Pollutant Loading Rates'!D$16))) ->  | P27: =IF($A27="","",(VLOOKUP($I27,'Pollutant Loading Rates'!$A$5:$F$12,5,0)*$F27/43560)+IF($I27="Forest",'Pollutant Loading Rates'!E$13*($L27-$F27)/43560,IF($I27="Agriculture",'Pollutant Loading Rates'!E$14*($L27-$F27)/43560,($L27-$F27)/43560*'Pollutant Loading Rates'!E$16))) ->  | Q27: =IF($A27="","",(VLOOKUP($I27,'Pollutant Loading Rates'!$A$5:$F$12,6,0)*$F27/43560)+IF($I27="Forest",'Pollutant Loading Rates'!F$13*($L27-$F27)/43560,IF($I27="Agriculture",'Pollutant Loading Rates'!F$14*($L27-$F27)/43560,($L27-$F27)/43560*'Pollutant Loading Rates'!F$16))) -> 
N28: =IF($A28="","",(VLOOKUP($I28,'Pollutant Loading Rates'!$A$5:$F$12,3,0)*$F28/43560)+IF($I28="Forest",'Pollutant Loading Rates'!C$13*($L28-$F28)/43560,IF($I28="Agriculture",'Pollutant Loading Rates'!C$14*($L28-$F28)/43560,($L28-$F28)/43560*'Pollutant Loading Rates'!C$16))) ->  | O28: =IF($A28="","",(VLOOKUP($I28,'Pollutant Loading Rates'!$A$5:$F$12,4,0)*$F28/43560)+IF($I28="Forest",'Pollutant Loading Rates'!D$13*($L28-$F28)/43560,IF($I28="Agriculture",'Pollutant Loading Rates'!D$14*($L28-$F28)/43560,($L28-$F28)/43560*'Pollutant Loading Rates'!D$16))) ->  | P28: =IF($A28="","",(VLOOKUP($I28,'Pollutant Loading Rates'!$A$5:$F$12,5,0)*$F28/43560)+IF($I28="Forest",'Pollutant Loading Rates'!E$13*($L28-$F28)/43560,IF($I28="Agriculture",'Pollutant Loading Rates'!E$14*($L28-$F28)/43560,($L28-$F28)/43560*'Pollutant Loading Rates'!E$16))) ->  | Q28: =IF($A28="","",(VLOOKUP($I28,'Pollutant Loading Rates'!$A$5:$F$12,6,0)*$F28/43560)+IF($I28="Forest",'Pollutant Loading Rates'!F$13*($L28-$F28)/43560,IF($I28="Agriculture",'Pollutant Loading Rates'!F$14*($L28-$F28)/43560,($L28-$F28)/43560*'Pollutant Loading Rates'!F$16))) -> 
N29: =IF($A29="","",(VLOOKUP($I29,'Pollutant Loading Rates'!$A$5:$F$12,3,0)*$F29/43560)+IF($I29="Forest",'Pollutant Loading Rates'!C$13*($L29-$F29)/43560,IF($I29="Agriculture",'Pollutant Loading Rates'!C$14*($L29-$F29)/43560,($L29-$F29)/43560*'Pollutant Loading Rates'!C$16))) ->  | O29: =IF($A29="","",(VLOOKUP($I29,'Pollutant Loading Rates'!$A$5:$F$12,4,0)*$F29/43560)+IF($I29="Forest",'Pollutant Loading Rates'!D$13*($L29-$F29)/43560,IF($I29="Agriculture",'Pollutant Loading Rates'!D$14*($L29-$F29)/43560,($L29-$F29)/43560*'Pollutant Loading Rates'!D$16))) ->  | P29: =IF($A29="","",(VLOOKUP($I29,'Pollutant Loading Rates'!$A$5:$F$12,5,0)*$F29/43560)+IF($I29="Forest",'Pollutant Loading Rates'!E$13*($L29-$F29)/43560,IF($I29="Agriculture",'Pollutant Loading Rates'!E$14*($L29-$F29)/43560,($L29-$F29)/43560*'Pollutant Loading Rates'!E$16))) ->  | Q29: =IF($A29="","",(VLOOKUP($I29,'Pollutant Loading Rates'!$A$5:$F$12,6,0)*$F29/43560)+IF($I29="Forest",'Pollutant Loading Rates'!F$13*($L29-$F29)/43560,IF($I29="Agriculture",'Pollutant Loading Rates'!F$14*($L29-$F29)/43560,($L29-$F29)/43560*'Pollutant Loading Rates'!F$16))) -> 
N30: =IF($A30="","",(VLOOKUP($I30,'Pollutant Loading Rates'!$A$5:$F$12,3,0)*$F30/43560)+IF($I30="Forest",'Pollutant Loading Rates'!C$13*($L30-$F30)/43560,IF($I30="Agriculture",'Pollutant Loading Rates'!C$14*($L30-$F30)/43560,($L30-$F30)/43560*'Pollutant Loading Rates'!C$16))) ->  | O30: =IF($A30="","",(VLOOKUP($I30,'Pollutant Loading Rates'!$A$5:$F$12,4,0)*$F30/43560)+IF($I30="Forest",'Pollutant Loading Rates'!D$13*($L30-$F30)/43560,IF($I30="Agriculture",'Pollutant Loading Rates'!D$14*($L30-$F30)/43560,($L30-$F30)/43560*'Pollutant Loading Rates'!D$16))) ->  | P30: =IF($A30="","",(VLOOKUP($I30,'Pollutant Loading Rates'!$A$5:$F$12,5,0)*$F30/43560)+IF($I30="Forest",'Pollutant Loading Rates'!E$13*($L30-$F30)/43560,IF($I30="Agriculture",'Pollutant Loading Rates'!E$14*($L30-$F30)/43560,($L30-$F30)/43560*'Pollutant Loading Rates'!E$16))) ->  | Q30: =IF($A30="","",(VLOOKUP($I30,'Pollutant Loading Rates'!$A$5:$F$12,6,0)*$F30/43560)+IF($I30="Forest",'Pollutant Loading Rates'!F$13*($L30-$F30)/43560,IF($I30="Agriculture",'Pollutant Loading Rates'!F$14*($L30-$F30)/43560,($L30-$F30)/43560*'Pollutant Loading Rates'!F$16))) -> 
N31: =IF($A31="","",(VLOOKUP($I31,'Pollutant Loading Rates'!$A$5:$F$12,3,0)*$F31/43560)+IF($I31="Forest",'Pollutant Loading Rates'!C$13*($L31-$F31)/43560,IF($I31="Agriculture",'Pollutant Loading Rates'!C$14*($L31-$F31)/43560,($L31-$F31)/43560*'Pollutant Loading Rates'!C$16))) ->  | O31: =IF($A31="","",(VLOOKUP($I31,'Pollutant Loading Rates'!$A$5:$F$12,4,0)*$F31/43560)+IF($I31="Forest",'Pollutant Loading Rates'!D$13*($L31-$F31)/43560,IF($I31="Agriculture",'Pollutant Loading Rates'!D$14*($L31-$F31)/43560,($L31-$F31)/43560*'Pollutant Loading Rates'!D$16))) ->  | P31: =IF($A31="","",(VLOOKUP($I31,'Pollutant Loading Rates'!$A$5:$F$12,5,0)*$F31/43560)+IF($I31="Forest",'Pollutant Loading Rates'!E$13*($L31-$F31)/43560,IF($I31="Agriculture",'Pollutant Loading Rates'!E$14*($L31-$F31)/43560,($L31-$F31)/43560*'Pollutant Loading Rates'!E$16))) ->  | Q31: =IF($A31="","",(VLOOKUP($I31,'Pollutant Loading Rates'!$A$5:$F$12,6,0)*$F31/43560)+IF($I31="Forest",'Pollutant Loading Rates'!F$13*($L31-$F31)/43560,IF($I31="Agriculture",'Pollutant Loading Rates'!F$14*($L31-$F31)/43560,($L31-$F31)/43560*'Pollutant Loading Rates'!F$16))) -> 
N32: =IF($A32="","",(VLOOKUP($I32,'Pollutant Loading Rates'!$A$5:$F$12,3,0)*$F32/43560)+IF($I32="Forest",'Pollutant Loading Rates'!C$13*($L32-$F32)/43560,IF($I32="Agriculture",'Pollutant Loading Rates'!C$14*($L32-$F32)/43560,($L32-$F32)/43560*'Pollutant Loading Rates'!C$16))) ->  | O32: =IF($A32="","",(VLOOKUP($I32,'Pollutant Loading Rates'!$A$5:$F$12,4,0)*$F32/43560)+IF($I32="Forest",'Pollutant Loading Rates'!D$13*($L32-$F32)/43560,IF($I32="Agriculture",'Pollutant Loading Rates'!D$14*($L32-$F32)/43560,($L32-$F32)/43560*'Pollutant Loading Rates'!D$16))) ->  | P32: =IF($A32="","",(VLOOKUP($I32,'Pollutant Loading Rates'!$A$5:$F$12,5,0)*$F32/43560)+IF($I32="Forest",'Pollutant Loading Rates'!E$13*($L32-$F32)/43560,IF($I32="Agriculture",'Pollutant Loading Rates'!E$14*($L32-$F32)/43560,($L32-$F32)/43560*'Pollutant Loading Rates'!E$16))) ->  | Q32: =IF($A32="","",(VLOOKUP($I32,'Pollutant Loading Rates'!$A$5:$F$12,6,0)*$F32/43560)+IF($I32="Forest",'Pollutant Loading Rates'!F$13*($L32-$F32)/43560,IF($I32="Agriculture",'Pollutant Loading Rates'!F$14*($L32-$F32)/43560,($L32-$F32)/43560*'Pollutant Loading Rates'!F$16))) -> 
N33: =IF($A33="","",(VLOOKUP($I33,'Pollutant Loading Rates'!$A$5:$F$12,3,0)*$F33/43560)+IF($I33="Forest",'Pollutant Loading Rates'!C$13*($L33-$F33)/43560,IF($I33="Agriculture",'Pollutant Loading Rates'!C$14*($L33-$F33)/43560,($L33-$F33)/43560*'Pollutant Loading Rates'!C$16))) ->  | O33: =IF($A33="","",(VLOOKUP($I33,'Pollutant Loading Rates'!$A$5:$F$12,4,0)*$F33/43560)+IF($I33="Forest",'Pollutant Loading Rates'!D$13*($L33-$F33)/43560,IF($I33="Agriculture",'Pollutant Loading Rates'!D$14*($L33-$F33)/43560,($L33-$F33)/43560*'Pollutant Loading Rates'!D$16))) ->  | P33: =IF($A33="","",(VLOOKUP($I33,'Pollutant Loading Rates'!$A$5:$F$12,5,0)*$F33/43560)+IF($I33="Forest",'Pollutant Loading Rates'!E$13*($L33-$F33)/43560,IF($I33="Agriculture",'Pollutant Loading Rates'!E$14*($L33-$F33)/43560,($L33-$F33)/43560*'Pollutant Loading Rates'!E$16))) ->  | Q33: =IF($A33="","",(VLOOKUP($I33,'Pollutant Loading Rates'!$A$5:$F$12,6,0)*$F33/43560)+IF($I33="Forest",'Pollutant Loading Rates'!F$13*($L33-$F33)/43560,IF($I33="Agriculture",'Pollutant Loading Rates'!F$14*($L33-$F33)/43560,($L33-$F33)/43560*'Pollutant Loading Rates'!F$16))) -> 
N34: =IF($A34="","",(VLOOKUP($I34,'Pollutant Loading Rates'!$A$5:$F$12,3,0)*$F34/43560)+IF($I34="Forest",'Pollutant Loading Rates'!C$13*($L34-$F34)/43560,IF($I34="Agriculture",'Pollutant Loading Rates'!C$14*($L34-$F34)/43560,($L34-$F34)/43560*'Pollutant Loading Rates'!C$16))) ->  | O34: =IF($A34="","",(VLOOKUP($I34,'Pollutant Loading Rates'!$A$5:$F$12,4,0)*$F34/43560)+IF($I34="Forest",'Pollutant Loading Rates'!D$13*($L34-$F34)/43560,IF($I34="Agriculture",'Pollutant Loading Rates'!D$14*($L34-$F34)/43560,($L34-$F34)/43560*'Pollutant Loading Rates'!D$16))) ->  | P34: =IF($A34="","",(VLOOKUP($I34,'Pollutant Loading Rates'!$A$5:$F$12,5,0)*$F34/43560)+IF($I34="Forest",'Pollutant Loading Rates'!E$13*($L34-$F34)/43560,IF($I34="Agriculture",'Pollutant Loading Rates'!E$14*($L34-$F34)/43560,($L34-$F34)/43560*'Pollutant Loading Rates'!E$16))) ->  | Q34: =IF($A34="","",(VLOOKUP($I34,'Pollutant Loading Rates'!$A$5:$F$12,6,0)*$F34/43560)+IF($I34="Forest",'Pollutant Loading Rates'!F$13*($L34-$F34)/43560,IF($I34="Agriculture",'Pollutant Loading Rates'!F$14*($L34-$F34)/43560,($L34-$F34)/43560*'Pollutant Loading Rates'!F$16))) -> 
N35: =IF($A35="","",(VLOOKUP($I35,'Pollutant Loading Rates'!$A$5:$F$12,3,0)*$F35/43560)+IF($I35="Forest",'Pollutant Loading Rates'!C$13*($L35-$F35)/43560,IF($I35="Agriculture",'Pollutant Loading Rates'!C$14*($L35-$F35)/43560,($L35-$F35)/43560*'Pollutant Loading Rates'!C$16))) ->  | O35: =IF($A35="","",(VLOOKUP($I35,'Pollutant Loading Rates'!$A$5:$F$12,4,0)*$F35/43560)+IF($I35="Forest",'Pollutant Loading Rates'!D$13*($L35-$F35)/43560,IF($I35="Agriculture",'Pollutant Loading Rates'!D$14*($L35-$F35)/43560,($L35-$F35)/43560*'Pollutant Loading Rates'!D$16))) ->  | P35: =IF($A35="","",(VLOOKUP($I35,'Pollutant Loading Rates'!$A$5:$F$12,5,0)*$F35/43560)+IF($I35="Forest",'Pollutant Loading Rates'!E$13*($L35-$F35)/43560,IF($I35="Agriculture",'Pollutant Loading Rates'!E$14*($L35-$F35)/43560,($L35-$F35)/43560*'Pollutant Loading Rates'!E$16))) ->  | Q35: =IF($A35="","",(VLOOKUP($I35,'Pollutant Loading Rates'!$A$5:$F$12,6,0)*$F35/43560)+IF($I35="Forest",'Pollutant Loading Rates'!F$13*($L35-$F35)/43560,IF($I35="Agriculture",'Pollutant Loading Rates'!F$14*($L35-$F35)/43560,($L35-$F35)/43560*'Pollutant Loading Rates'!F$16))) -> 
N36: =IF($A36="","",(VLOOKUP($I36,'Pollutant Loading Rates'!$A$5:$F$12,3,0)*$F36/43560)+IF($I36="Forest",'Pollutant Loading Rates'!C$13*($L36-$F36)/43560,IF($I36="Agriculture",'Pollutant Loading Rates'!C$14*($L36-$F36)/43560,($L36-$F36)/43560*'Pollutant Loading Rates'!C$16))) ->  | O36: =IF($A36="","",(VLOOKUP($I36,'Pollutant Loading Rates'!$A$5:$F$12,4,0)*$F36/43560)+IF($I36="Forest",'Pollutant Loading Rates'!D$13*($L36-$F36)/43560,IF($I36="Agriculture",'Pollutant Loading Rates'!D$14*($L36-$F36)/43560,($L36-$F36)/43560*'Pollutant Loading Rates'!D$16))) ->  | P36: =IF($A36="","",(VLOOKUP($I36,'Pollutant Loading Rates'!$A$5:$F$12,5,0)*$F36/43560)+IF($I36="Forest",'Pollutant Loading Rates'!E$13*($L36-$F36)/43560,IF($I36="Agriculture",'Pollutant Loading Rates'!E$14*($L36-$F36)/43560,($L36-$F36)/43560*'Pollutant Loading Rates'!E$16))) ->  | Q36: =IF($A36="","",(VLOOKUP($I36,'Pollutant Loading Rates'!$A$5:$F$12,6,0)*$F36/43560)+IF($I36="Forest",'Pollutant Loading Rates'!F$13*($L36-$F36)/43560,IF($I36="Agriculture",'Pollutant Loading Rates'!F$14*($L36-$F36)/43560,($L36-$F36)/43560*'Pollutant Loading Rates'!F$16))) -> 
N37: =IF($A37="","",(VLOOKUP($I37,'Pollutant Loading Rates'!$A$5:$F$12,3,0)*$F37/43560)+IF($I37="Forest",'Pollutant Loading Rates'!C$13*($L37-$F37)/43560,IF($I37="Agriculture",'Pollutant Loading Rates'!C$14*($L37-$F37)/43560,($L37-$F37)/43560*'Pollutant Loading Rates'!C$16))) ->  | O37: =IF($A37="","",(VLOOKUP($I37,'Pollutant Loading Rates'!$A$5:$F$12,4,0)*$F37/43560)+IF($I37="Forest",'Pollutant Loading Rates'!D$13*($L37-$F37)/43560,IF($I37="Agriculture",'Pollutant Loading Rates'!D$14*($L37-$F37)/43560,($L37-$F37)/43560*'Pollutant Loading Rates'!D$16))) ->  | P37: =IF($A37="","",(VLOOKUP($I37,'Pollutant Loading Rates'!$A$5:$F$12,5,0)*$F37/43560)+IF($I37="Forest",'Pollutant Loading Rates'!E$13*($L37-$F37)/43560,IF($I37="Agriculture",'Pollutant Loading Rates'!E$14*($L37-$F37)/43560,($L37-$F37)/43560*'Pollutant Loading Rates'!E$16))) ->  | Q37: =IF($A37="","",(VLOOKUP($I37,'Pollutant Loading Rates'!$A$5:$F$12,6,0)*$F37/43560)+IF($I37="Forest",'Pollutant Loading Rates'!F$13*($L37-$F37)/43560,IF($I37="Agriculture",'Pollutant Loading Rates'!F$14*($L37-$F37)/43560,($L37-$F37)/43560*'Pollutant Loading Rates'!F$16))) -> 
N38: =IF($A38="","",(VLOOKUP($I38,'Pollutant Loading Rates'!$A$5:$F$12,3,0)*$F38/43560)+IF($I38="Forest",'Pollutant Loading Rates'!C$13*($L38-$F38)/43560,IF($I38="Agriculture",'Pollutant Loading Rates'!C$14*($L38-$F38)/43560,($L38-$F38)/43560*'Pollutant Loading Rates'!C$16))) ->  | O38: =IF($A38="","",(VLOOKUP($I38,'Pollutant Loading Rates'!$A$5:$F$12,4,0)*$F38/43560)+IF($I38="Forest",'Pollutant Loading Rates'!D$13*($L38-$F38)/43560,IF($I38="Agriculture",'Pollutant Loading Rates'!D$14*($L38-$F38)/43560,($L38-$F38)/43560*'Pollutant Loading Rates'!D$16))) ->  | P38: =IF($A38="","",(VLOOKUP($I38,'Pollutant Loading Rates'!$A$5:$F$12,5,0)*$F38/43560)+IF($I38="Forest",'Pollutant Loading Rates'!E$13*($L38-$F38)/43560,IF($I38="Agriculture",'Pollutant Loading Rates'!E$14*($L38-$F38)/43560,($L38-$F38)/43560*'Pollutant Loading Rates'!E$16))) ->  | Q38: =IF($A38="","",(VLOOKUP($I38,'Pollutant Loading Rates'!$A$5:$F$12,6,0)*$F38/43560)+IF($I38="Forest",'Pollutant Loading Rates'!F$13*($L38-$F38)/43560,IF($I38="Agriculture",'Pollutant Loading Rates'!F$14*($L38-$F38)/43560,($L38-$F38)/43560*'Pollutant Loading Rates'!F$16))) -> 
N39: =IF($A39="","",(VLOOKUP($I39,'Pollutant Loading Rates'!$A$5:$F$12,3,0)*$F39/43560)+IF($I39="Forest",'Pollutant Loading Rates'!C$13*($L39-$F39)/43560,IF($I39="Agriculture",'Pollutant Loading Rates'!C$14*($L39-$F39)/43560,($L39-$F39)/43560*'Pollutant Loading Rates'!C$16))) ->  | O39: =IF($A39="","",(VLOOKUP($I39,'Pollutant Loading Rates'!$A$5:$F$12,4,0)*$F39/43560)+IF($I39="Forest",'Pollutant Loading Rates'!D$13*($L39-$F39)/43560,IF($I39="Agriculture",'Pollutant Loading Rates'!D$14*($L39-$F39)/43560,($L39-$F39)/43560*'Pollutant Loading Rates'!D$16))) ->  | P39: =IF($A39="","",(VLOOKUP($I39,'Pollutant Loading Rates'!$A$5:$F$12,5,0)*$F39/43560)+IF($I39="Forest",'Pollutant Loading Rates'!E$13*($L39-$F39)/43560,IF($I39="Agriculture",'Pollutant Loading Rates'!E$14*($L39-$F39)/43560,($L39-$F39)/43560*'Pollutant Loading Rates'!E$16))) ->  | Q39: =IF($A39="","",(VLOOKUP($I39,'Pollutant Loading Rates'!$A$5:$F$12,6,0)*$F39/43560)+IF($I39="Forest",'Pollutant Loading Rates'!F$13*($L39-$F39)/43560,IF($I39="Agriculture",'Pollutant Loading Rates'!F$14*($L39-$F39)/43560,($L39-$F39)/43560*'Pollutant Loading Rates'!F$16))) -> 
N40: =IF($A40="","",(VLOOKUP($I40,'Pollutant Loading Rates'!$A$5:$F$12,3,0)*$F40/43560)+IF($I40="Forest",'Pollutant Loading Rates'!C$13*($L40-$F40)/43560,IF($I40="Agriculture",'Pollutant Loading Rates'!C$14*($L40-$F40)/43560,($L40-$F40)/43560*'Pollutant Loading Rates'!C$16))) ->  | O40: =IF($A40="","",(VLOOKUP($I40,'Pollutant Loading Rates'!$A$5:$F$12,4,0)*$F40/43560)+IF($I40="Forest",'Pollutant Loading Rates'!D$13*($L40-$F40)/43560,IF($I40="Agriculture",'Pollutant Loading Rates'!D$14*($L40-$F40)/43560,($L40-$F40)/43560*'Pollutant Loading Rates'!D$16))) ->  | P40: =IF($A40="","",(VLOOKUP($I40,'Pollutant Loading Rates'!$A$5:$F$12,5,0)*$F40/43560)+IF($I40="Forest",'Pollutant Loading Rates'!E$13*($L40-$F40)/43560,IF($I40="Agriculture",'Pollutant Loading Rates'!E$14*($L40-$F40)/43560,($L40-$F40)/43560*'Pollutant Loading Rates'!E$16))) ->  | Q40: =IF($A40="","",(VLOOKUP($I40,'Pollutant Loading Rates'!$A$5:$F$12,6,0)*$F40/43560)+IF($I40="Forest",'Pollutant Loading Rates'!F$13*($L40-$F40)/43560,IF($I40="Agriculture",'Pollutant Loading Rates'!F$14*($L40-$F40)/43560,($L40-$F40)/43560*'Pollutant Loading Rates'!F$16))) -> 
N41: =IF($A41="","",(VLOOKUP($I41,'Pollutant Loading Rates'!$A$5:$F$12,3,0)*$F41/43560)+IF($I41="Forest",'Pollutant Loading Rates'!C$13*($L41-$F41)/43560,IF($I41="Agriculture",'Pollutant Loading Rates'!C$14*($L41-$F41)/43560,($L41-$F41)/43560*'Pollutant Loading Rates'!C$16))) ->  | O41: =IF($A41="","",(VLOOKUP($I41,'Pollutant Loading Rates'!$A$5:$F$12,4,0)*$F41/43560)+IF($I41="Forest",'Pollutant Loading Rates'!D$13*($L41-$F41)/43560,IF($I41="Agriculture",'Pollutant Loading Rates'!D$14*($L41-$F41)/43560,($L41-$F41)/43560*'Pollutant Loading Rates'!D$16))) ->  | P41: =IF($A41="","",(VLOOKUP($I41,'Pollutant Loading Rates'!$A$5:$F$12,5,0)*$F41/43560)+IF($I41="Forest",'Pollutant Loading Rates'!E$13*($L41-$F41)/43560,IF($I41="Agriculture",'Pollutant Loading Rates'!E$14*($L41-$F41)/43560,($L41-$F41)/43560*'Pollutant Loading Rates'!E$16))) ->  | Q41: =IF($A41="","",(VLOOKUP($I41,'Pollutant Loading Rates'!$A$5:$F$12,6,0)*$F41/43560)+IF($I41="Forest",'Pollutant Loading Rates'!F$13*($L41-$F41)/43560,IF($I41="Agriculture",'Pollutant Loading Rates'!F$14*($L41-$F41)/43560,($L41-$F41)/43560*'Pollutant Loading Rates'!F$16))) -> 
N42: =IF($A42="","",(VLOOKUP($I42,'Pollutant Loading Rates'!$A$5:$F$12,3,0)*$F42/43560)+IF($I42="Forest",'Pollutant Loading Rates'!C$13*($L42-$F42)/43560,IF($I42="Agriculture",'Pollutant Loading Rates'!C$14*($L42-$F42)/43560,($L42-$F42)/43560*'Pollutant Loading Rates'!C$16))) ->  | O42: =IF($A42="","",(VLOOKUP($I42,'Pollutant Loading Rates'!$A$5:$F$12,4,0)*$F42/43560)+IF($I42="Forest",'Pollutant Loading Rates'!D$13*($L42-$F42)/43560,IF($I42="Agriculture",'Pollutant Loading Rates'!D$14*($L42-$F42)/43560,($L42-$F42)/43560*'Pollutant Loading Rates'!D$16))) ->  | P42: =IF($A42="","",(VLOOKUP($I42,'Pollutant Loading Rates'!$A$5:$F$12,5,0)*$F42/43560)+IF($I42="Forest",'Pollutant Loading Rates'!E$13*($L42-$F42)/43560,IF($I42="Agriculture",'Pollutant Loading Rates'!E$14*($L42-$F42)/43560,($L42-$F42)/43560*'Pollutant Loading Rates'!E$16))) ->  | Q42: =IF($A42="","",(VLOOKUP($I42,'Pollutant Loading Rates'!$A$5:$F$12,6,0)*$F42/43560)+IF($I42="Forest",'Pollutant Loading Rates'!F$13*($L42-$F42)/43560,IF($I42="Agriculture",'Pollutant Loading Rates'!F$14*($L42-$F42)/43560,($L42-$F42)/43560*'Pollutant Loading Rates'!F$16))) -> 
N43: =IF($A43="","",(VLOOKUP($I43,'Pollutant Loading Rates'!$A$5:$F$12,3,0)*$F43/43560)+IF($I43="Forest",'Pollutant Loading Rates'!C$13*($L43-$F43)/43560,IF($I43="Agriculture",'Pollutant Loading Rates'!C$14*($L43-$F43)/43560,($L43-$F43)/43560*'Pollutant Loading Rates'!C$16))) ->  | O43: =IF($A43="","",(VLOOKUP($I43,'Pollutant Loading Rates'!$A$5:$F$12,4,0)*$F43/43560)+IF($I43="Forest",'Pollutant Loading Rates'!D$13*($L43-$F43)/43560,IF($I43="Agriculture",'Pollutant Loading Rates'!D$14*($L43-$F43)/43560,($L43-$F43)/43560*'Pollutant Loading Rates'!D$16))) ->  | P43: =IF($A43="","",(VLOOKUP($I43,'Pollutant Loading Rates'!$A$5:$F$12,5,0)*$F43/43560)+IF($I43="Forest",'Pollutant Loading Rates'!E$13*($L43-$F43)/43560,IF($I43="Agriculture",'Pollutant Loading Rates'!E$14*($L43-$F43)/43560,($L43-$F43)/43560*'Pollutant Loading Rates'!E$16))) ->  | Q43: =IF($A43="","",(VLOOKUP($I43,'Pollutant Loading Rates'!$A$5:$F$12,6,0)*$F43/43560)+IF($I43="Forest",'Pollutant Loading Rates'!F$13*($L43-$F43)/43560,IF($I43="Agriculture",'Pollutant Loading Rates'!F$14*($L43-$F43)/43560,($L43-$F43)/43560*'Pollutant Loading Rates'!F$16))) -> 
N44: =IF($A44="","",(VLOOKUP($I44,'Pollutant Loading Rates'!$A$5:$F$12,3,0)*$F44/43560)+IF($I44="Forest",'Pollutant Loading Rates'!C$13*($L44-$F44)/43560,IF($I44="Agriculture",'Pollutant Loading Rates'!C$14*($L44-$F44)/43560,($L44-$F44)/43560*'Pollutant Loading Rates'!C$16))) ->  | O44: =IF($A44="","",(VLOOKUP($I44,'Pollutant Loading Rates'!$A$5:$F$12,4,0)*$F44/43560)+IF($I44="Forest",'Pollutant Loading Rates'!D$13*($L44-$F44)/43560,IF($I44="Agriculture",'Pollutant Loading Rates'!D$14*($L44-$F44)/43560,($L44-$F44)/43560*'Pollutant Loading Rates'!D$16))) ->  | P44: =IF($A44="","",(VLOOKUP($I44,'Pollutant Loading Rates'!$A$5:$F$12,5,0)*$F44/43560)+IF($I44="Forest",'Pollutant Loading Rates'!E$13*($L44-$F44)/43560,IF($I44="Agriculture",'Pollutant Loading Rates'!E$14*($L44-$F44)/43560,($L44-$F44)/43560*'Pollutant Loading Rates'!E$16))) ->  | Q44: =IF($A44="","",(VLOOKUP($I44,'Pollutant Loading Rates'!$A$5:$F$12,6,0)*$F44/43560)+IF($I44="Forest",'Pollutant Loading Rates'!F$13*($L44-$F44)/43560,IF($I44="Agriculture",'Pollutant Loading Rates'!F$14*($L44-$F44)/43560,($L44-$F44)/43560*'Pollutant Loading Rates'!F$16))) -> 
N45: =IF($A45="","",(VLOOKUP($I45,'Pollutant Loading Rates'!$A$5:$F$12,3,0)*$F45/43560)+IF($I45="Forest",'Pollutant Loading Rates'!C$13*($L45-$F45)/43560,IF($I45="Agriculture",'Pollutant Loading Rates'!C$14*($L45-$F45)/43560,($L45-$F45)/43560*'Pollutant Loading Rates'!C$16))) ->  | O45: =IF($A45="","",(VLOOKUP($I45,'Pollutant Loading Rates'!$A$5:$F$12,4,0)*$F45/43560)+IF($I45="Forest",'Pollutant Loading Rates'!D$13*($L45-$F45)/43560,IF($I45="Agriculture",'Pollutant Loading Rates'!D$14*($L45-$F45)/43560,($L45-$F45)/43560*'Pollutant Loading Rates'!D$16))) ->  | P45: =IF($A45="","",(VLOOKUP($I45,'Pollutant Loading Rates'!$A$5:$F$12,5,0)*$F45/43560)+IF($I45="Forest",'Pollutant Loading Rates'!E$13*($L45-$F45)/43560,IF($I45="Agriculture",'Pollutant Loading Rates'!E$14*($L45-$F45)/43560,($L45-$F45)/43560*'Pollutant Loading Rates'!E$16))) ->  | Q45: =IF($A45="","",(VLOOKUP($I45,'Pollutant Loading Rates'!$A$5:$F$12,6,0)*$F45/43560)+IF($I45="Forest",'Pollutant Loading Rates'!F$13*($L45-$F45)/43560,IF($I45="Agriculture",'Pollutant Loading Rates'!F$14*($L45-$F45)/43560,($L45-$F45)/43560*'Pollutant Loading Rates'!F$16))) -> 
N46: =IF($A46="","",(VLOOKUP($I46,'Pollutant Loading Rates'!$A$5:$F$12,3,0)*$F46/43560)+IF($I46="Forest",'Pollutant Loading Rates'!C$13*($L46-$F46)/43560,IF($I46="Agriculture",'Pollutant Loading Rates'!C$14*($L46-$F46)/43560,($L46-$F46)/43560*'Pollutant Loading Rates'!C$16))) ->  | O46: =IF($A46="","",(VLOOKUP($I46,'Pollutant Loading Rates'!$A$5:$F$12,4,0)*$F46/43560)+IF($I46="Forest",'Pollutant Loading Rates'!D$13*($L46-$F46)/43560,IF($I46="Agriculture",'Pollutant Loading Rates'!D$14*($L46-$F46)/43560,($L46-$F46)/43560*'Pollutant Loading Rates'!D$16))) ->  | P46: =IF($A46="","",(VLOOKUP($I46,'Pollutant Loading Rates'!$A$5:$F$12,5,0)*$F46/43560)+IF($I46="Forest",'Pollutant Loading Rates'!E$13*($L46-$F46)/43560,IF($I46="Agriculture",'Pollutant Loading Rates'!E$14*($L46-$F46)/43560,($L46-$F46)/43560*'Pollutant Loading Rates'!E$16))) ->  | Q46: =IF($A46="","",(VLOOKUP($I46,'Pollutant Loading Rates'!$A$5:$F$12,6,0)*$F46/43560)+IF($I46="Forest",'Pollutant Loading Rates'!F$13*($L46-$F46)/43560,IF($I46="Agriculture",'Pollutant Loading Rates'!F$14*($L46-$F46)/43560,($L46-$F46)/43560*'Pollutant Loading Rates'!F$16))) -> 
N47: =IF($A47="","",(VLOOKUP($I47,'Pollutant Loading Rates'!$A$5:$F$12,3,0)*$F47/43560)+IF($I47="Forest",'Pollutant Loading Rates'!C$13*($L47-$F47)/43560,IF($I47="Agriculture",'Pollutant Loading Rates'!C$14*($L47-$F47)/43560,($L47-$F47)/43560*'Pollutant Loading Rates'!C$16))) ->  | O47: =IF($A47="","",(VLOOKUP($I47,'Pollutant Loading Rates'!$A$5:$F$12,4,0)*$F47/43560)+IF($I47="Forest",'Pollutant Loading Rates'!D$13*($L47-$F47)/43560,IF($I47="Agriculture",'Pollutant Loading Rates'!D$14*($L47-$F47)/43560,($L47-$F47)/43560*'Pollutant Loading Rates'!D$16))) ->  | P47: =IF($A47="","",(VLOOKUP($I47,'Pollutant Loading Rates'!$A$5:$F$12,5,0)*$F47/43560)+IF($I47="Forest",'Pollutant Loading Rates'!E$13*($L47-$F47)/43560,IF($I47="Agriculture",'Pollutant Loading Rates'!E$14*($L47-$F47)/43560,($L47-$F47)/43560*'Pollutant Loading Rates'!E$16))) ->  | Q47: =IF($A47="","",(VLOOKUP($I47,'Pollutant Loading Rates'!$A$5:$F$12,6,0)*$F47/43560)+IF($I47="Forest",'Pollutant Loading Rates'!F$13*($L47-$F47)/43560,IF($I47="Agriculture",'Pollutant Loading Rates'!F$14*($L47-$F47)/43560,($L47-$F47)/43560*'Pollutant Loading Rates'!F$16))) -> 
N48: =IF($A48="","",(VLOOKUP($I48,'Pollutant Loading Rates'!$A$5:$F$12,3,0)*$F48/43560)+IF($I48="Forest",'Pollutant Loading Rates'!C$13*($L48-$F48)/43560,IF($I48="Agriculture",'Pollutant Loading Rates'!C$14*($L48-$F48)/43560,($L48-$F48)/43560*'Pollutant Loading Rates'!C$16))) ->  | O48: =IF($A48="","",(VLOOKUP($I48,'Pollutant Loading Rates'!$A$5:$F$12,4,0)*$F48/43560)+IF($I48="Forest",'Pollutant Loading Rates'!D$13*($L48-$F48)/43560,IF($I48="Agriculture",'Pollutant Loading Rates'!D$14*($L48-$F48)/43560,($L48-$F48)/43560*'Pollutant Loading Rates'!D$16))) ->  | P48: =IF($A48="","",(VLOOKUP($I48,'Pollutant Loading Rates'!$A$5:$F$12,5,0)*$F48/43560)+IF($I48="Forest",'Pollutant Loading Rates'!E$13*($L48-$F48)/43560,IF($I48="Agriculture",'Pollutant Loading Rates'!E$14*($L48-$F48)/43560,($L48-$F48)/43560*'Pollutant Loading Rates'!E$16))) ->  | Q48: =IF($A48="","",(VLOOKUP($I48,'Pollutant Loading Rates'!$A$5:$F$12,6,0)*$F48/43560)+IF($I48="Forest",'Pollutant Loading Rates'!F$13*($L48-$F48)/43560,IF($I48="Agriculture",'Pollutant Loading Rates'!F$14*($L48-$F48)/43560,($L48-$F48)/43560*'Pollutant Loading Rates'!F$16))) -> 
N49: =IF($A49="","",(VLOOKUP($I49,'Pollutant Loading Rates'!$A$5:$F$12,3,0)*$F49/43560)+IF($I49="Forest",'Pollutant Loading Rates'!C$13*($L49-$F49)/43560,IF($I49="Agriculture",'Pollutant Loading Rates'!C$14*($L49-$F49)/43560,($L49-$F49)/43560*'Pollutant Loading Rates'!C$16))) ->  | O49: =IF($A49="","",(VLOOKUP($I49,'Pollutant Loading Rates'!$A$5:$F$12,4,0)*$F49/43560)+IF($I49="Forest",'Pollutant Loading Rates'!D$13*($L49-$F49)/43560,IF($I49="Agriculture",'Pollutant Loading Rates'!D$14*($L49-$F49)/43560,($L49-$F49)/43560*'Pollutant Loading Rates'!D$16))) ->  | P49: =IF($A49="","",(VLOOKUP($I49,'Pollutant Loading Rates'!$A$5:$F$12,5,0)*$F49/43560)+IF($I49="Forest",'Pollutant Loading Rates'!E$13*($L49-$F49)/43560,IF($I49="Agriculture",'Pollutant Loading Rates'!E$14*($L49-$F49)/43560,($L49-$F49)/43560*'Pollutant Loading Rates'!E$16))) ->  | Q49: =IF($A49="","",(VLOOKUP($I49,'Pollutant Loading Rates'!$A$5:$F$12,6,0)*$F49/43560)+IF($I49="Forest",'Pollutant Loading Rates'!F$13*($L49-$F49)/43560,IF($I49="Agriculture",'Pollutant Loading Rates'!F$14*($L49-$F49)/43560,($L49-$F49)/43560*'Pollutant Loading Rates'!F$16))) -> 
N50: =IF($A50="","",(VLOOKUP($I50,'Pollutant Loading Rates'!$A$5:$F$12,3,0)*$F50/43560)+IF($I50="Forest",'Pollutant Loading Rates'!C$13*($L50-$F50)/43560,IF($I50="Agriculture",'Pollutant Loading Rates'!C$14*($L50-$F50)/43560,($L50-$F50)/43560*'Pollutant Loading Rates'!C$16))) ->  | O50: =IF($A50="","",(VLOOKUP($I50,'Pollutant Loading Rates'!$A$5:$F$12,4,0)*$F50/43560)+IF($I50="Forest",'Pollutant Loading Rates'!D$13*($L50-$F50)/43560,IF($I50="Agriculture",'Pollutant Loading Rates'!D$14*($L50-$F50)/43560,($L50-$F50)/43560*'Pollutant Loading Rates'!D$16))) ->  | P50: =IF($A50="","",(VLOOKUP($I50,'Pollutant Loading Rates'!$A$5:$F$12,5,0)*$F50/43560)+IF($I50="Forest",'Pollutant Loading Rates'!E$13*($L50-$F50)/43560,IF($I50="Agriculture",'Pollutant Loading Rates'!E$14*($L50-$F50)/43560,($L50-$F50)/43560*'Pollutant Loading Rates'!E$16))) ->  | Q50: =IF($A50="","",(VLOOKUP($I50,'Pollutant Loading Rates'!$A$5:$F$12,6,0)*$F50/43560)+IF($I50="Forest",'Pollutant Loading Rates'!F$13*($L50-$F50)/43560,IF($I50="Agriculture",'Pollutant Loading Rates'!F$14*($L50-$F50)/43560,($L50-$F50)/43560*'Pollutant Loading Rates'!F$16))) -> 
N51: =IF($A51="","",(VLOOKUP($I51,'Pollutant Loading Rates'!$A$5:$F$12,3,0)*$F51/43560)+IF($I51="Forest",'Pollutant Loading Rates'!C$13*($L51-$F51)/43560,IF($I51="Agriculture",'Pollutant Loading Rates'!C$14*($L51-$F51)/43560,($L51-$F51)/43560*'Pollutant Loading Rates'!C$16))) ->  | O51: =IF($A51="","",(VLOOKUP($I51,'Pollutant Loading Rates'!$A$5:$F$12,4,0)*$F51/43560)+IF($I51="Forest",'Pollutant Loading Rates'!D$13*($L51-$F51)/43560,IF($I51="Agriculture",'Pollutant Loading Rates'!D$14*($L51-$F51)/43560,($L51-$F51)/43560*'Pollutant Loading Rates'!D$16))) ->  | P51: =IF($A51="","",(VLOOKUP($I51,'Pollutant Loading Rates'!$A$5:$F$12,5,0)*$F51/43560)+IF($I51="Forest",'Pollutant Loading Rates'!E$13*($L51-$F51)/43560,IF($I51="Agriculture",'Pollutant Loading Rates'!E$14*($L51-$F51)/43560,($L51-$F51)/43560*'Pollutant Loading Rates'!E$16))) ->  | Q51: =IF($A51="","",(VLOOKUP($I51,'Pollutant Loading Rates'!$A$5:$F$12,6,0)*$F51/43560)+IF($I51="Forest",'Pollutant Loading Rates'!F$13*($L51-$F51)/43560,IF($I51="Agriculture",'Pollutant Loading Rates'!F$14*($L51-$F51)/43560,($L51-$F51)/43560*'Pollutant Loading Rates'!F$16))) -> 
N52: =IF($A52="","",(VLOOKUP($I52,'Pollutant Loading Rates'!$A$5:$F$12,3,0)*$F52/43560)+IF($I52="Forest",'Pollutant Loading Rates'!C$13*($L52-$F52)/43560,IF($I52="Agriculture",'Pollutant Loading Rates'!C$14*($L52-$F52)/43560,($L52-$F52)/43560*'Pollutant Loading Rates'!C$16))) ->  | O52: =IF($A52="","",(VLOOKUP($I52,'Pollutant Loading Rates'!$A$5:$F$12,4,0)*$F52/43560)+IF($I52="Forest",'Pollutant Loading Rates'!D$13*($L52-$F52)/43560,IF($I52="Agriculture",'Pollutant Loading Rates'!D$14*($L52-$F52)/43560,($L52-$F52)/43560*'Pollutant Loading Rates'!D$16))) ->  | P52: =IF($A52="","",(VLOOKUP($I52,'Pollutant Loading Rates'!$A$5:$F$12,5,0)*$F52/43560)+IF($I52="Forest",'Pollutant Loading Rates'!E$13*($L52-$F52)/43560,IF($I52="Agriculture",'Pollutant Loading Rates'!E$14*($L52-$F52)/43560,($L52-$F52)/43560*'Pollutant Loading Rates'!E$16))) ->  | Q52: =IF($A52="","",(VLOOKUP($I52,'Pollutant Loading Rates'!$A$5:$F$12,6,0)*$F52/43560)+IF($I52="Forest",'Pollutant Loading Rates'!F$13*($L52-$F52)/43560,IF($I52="Agriculture",'Pollutant Loading Rates'!F$14*($L52-$F52)/43560,($L52-$F52)/43560*'Pollutant Loading Rates'!F$16))) -> 

Sheet Potential_STU
A2: Segment Name: | B2: Bailey's Brook (RI0007035R-01), Group 1A
A3: Date: | B3: 2018-12-31
A5: STU ID | B5: WBID | C5: STU Category* | D5: STU Type* | E5: STU Soil Type* | F5: STU WQ Treatment Volume (ft3) | G5: STU Depth (ft) (Depth of STU. This field is optional to help calculate water quality treatment volume.) | H5: STU Status* | I5: Notes | J5: Shape_Length (ft) | K5: Total Area (sq ft)
A6: SCP-BLB-001 | B6: RI0007035R-01 | C6: Structural | D6: Underground Infiltration System | E6: Loam (0.52 in/hr) | F6: 3809 | H6: Potential | I6: Inlet from new CB, tie in to existing pipe to the north. HSG A for infiltration practice. Based on 1 row of 23 Stormceptor SC740. Overhead wires, subsurface electric | J6: 347.8349434 | K6: 1813.868495
A7: SCP-BLB-002 | B7: RI0007035R-01 | C7: Structural | D7: Underground Infiltration System | E7: Loam (0.52 in/hr) | F7: 5772 | H7: Potential | I7: Inlet from existing pipe. HSG A for infiltration practice. Based on 1 row of 35 Stormceptor SC740. Overhead wires, subsurface utilities possible | J7: 753.580378 | K7: 3627.009051
A8: SCP-BLB-003 | B8: RI0007035R-01 | C8: Structural | D8: Underground Infiltration System | E8: Loam (0.52 in/hr) | F8: 6819 | H8: Potential | I8: Inlet from corner catch basin, overflow to existing pipe. Based on 8 rows of 6 Stormceptor SC740. Overhead wires. nearby trees | J8: 188.1418106 | K8: 2170.755126
A9: SCP-BLB-004 | B9: RI0007035R-01 | C9: Structural | D9: Bioretention Basin | E9: Silt Loam (0.27 in/hr) | F9: 3120 | H9: Potential | I9: Curb cut, overflow to existing pipe. Partner with school, receive parking lot and school runoff. Pretreatment by parking lot. Poss pipe conflict (stormwater?) | J9: 288.2107706 | K9: 3320.359463
A10: SCP-BLB-005 | B10: RI0007035R-01 | C10: Structural | D10: Bioretention Swale | E10: Silt Loam (0.27 in/hr) | F10: 845 | H10: Potential | I10: Curb cut, overflow to existing pipe. Utility pole conflict, poss tree conflict | J10: 272.8919428 | K10: 660.4361174
A11: SCP-BLB-006 | B11: RI0007035R-01 | C11: Structural | D11: Bioretention Basin | E11: Silt Loam (0.27 in/hr) | F11: 819 | H11: Potential | I11: Curb cut, overflow to existing pipe. Utility pole conflict, poss tree conflict | J11: 118.5808141 | K11: 757.9903001
A12: SCP-BLB-007 | B12: RI0007035R-01 | C12: Structural | D12: Bioretention Basin | E12: Silt Loam (0.27 in/hr) | F12: 0 | H12: Potential | I12: Full depth reconstruction TIP project. Separate existing cycle lanes with curbed bioretention cells, curb cut inlet, overflow to existing storm pipes. ROW width sufficient for this STU type. Not sized in this process | J12: 501.652399 | K12: 10468.0552
A13: SCP-BLB-008 | B13: RI0007035R-01 | C13: Structural | D13: Bioretention Swale | E13: Silt Loam (0.27 in/hr) | F13: 2665 | H13: Potential | I13: Retrofit existing ditch on Ridgewood, 2 curb cuts. Install bioretention swales in ROW along Maplewood | J13: 951.5143559 | K13: 3806.116103
A14: SCP-BLB-009 | B14: RI0007035R-01 | C14: Structural | D14: Bioretention Basin | E14: Silt Loam (0.27 in/hr) | F14: 9536 | H14: Potential | I14: Replace upstream catch basin with diversion structure (eg with a weir) to send design volume to pretreatment. Overflow to existing pipe | J14: 615.0382568 | K14: 9776.450674
A15: SCP-BLB-010 | B15: RI0007035R-01 | C15: Structural | D15: Bioretention Swale | E15: Silt Loam (0.27 in/hr) | F15: 312 | H15: Potential | I15: Curb cut, overflow to existing pipe | J15: 114.5134149 | K15: 389.8310469
A16: SCP-BLB-011 | B16: RI0007035R-01 | C16: Structural | D16: Bioretention Swale | E16: Silt Loam (0.27 in/hr) | F16: 12188 | H16: Potential | I16: Curb cut, overflow to existing pipe. Conflict existing drainage pipes, overhead wires. | J16: 459.764825 | K16: 2015.411739
A17: SCP-BLB-012 | B17: RI0007035R-01 | C17: Structural | D17: Bioretention Basin | E17: Silt Loam (0.27 in/hr) | F17: 15210 | H17: Potential | I17: Narrow rectangle-curb cut to bioretention, overflow to existing CB. Wide rectangle-pipe inlet over riprap from catchbasin in parking lot, overflow to existing pipe downhill. | J17: 1156.949092 | K17: 13702.1505
A18: SCP-BLB-013 | B18: RI0007035R-01 | C18: Structural | D18: Bioretention Swale | E18: Silt Loam (0.27 in/hr) | F18: 364 | H18: Potential | I18: Curb cut, overflow to existing pipe | J18: 99.84291045 | K18: 412.244994
A19: SCP-BLB-014 | B19: RI0007035R-01 | C19: Structural | D19: Bioretention Basin | E19: Silt Loam (0.27 in/hr) | F19: 3159 | H19: Potential | I19: Curb cut, overflow to existing pipe, overhead wires, likely maintained by adjacent property owner | J19: 364.0642916 | K19: 2848.179693
A20: SCP-BLB-015a | B20: RI0007035R-01 | C20: Structural | D20: Underground Infiltration System | E20: Loam (0.52 in/hr) | F20: 4463 | H20: Potential | I20: Inlet/overflow from/to existing 30" pipe. May be sufficient depth for infiltration resulting from banked curve. Based on 1 row of 27 Stormceptor SC740. Volume in excess of treatment volume diverted to WVTS downstream (SCP-BLB-015a) | J20: 1582.984148 | K20: 73362.81222
A21: SCP-BLB-015b | B21: RI0007035R-01 | C21: Structural | D21: Wet Vegetated Treatment System | E21: Loam (0.52 in/hr) | F21: 35616 | H21: Potential | I21: Inlet from existing 30" pipe. Volume in excess of design flow bypassed to Brook. Npt water owns parcel, ALT has conservation easement | J21: 1582.984148 | K21: 73362.81222
A22: SCP-BLB-016 | B22: RI0007035R-01 | C22: Structural | D22: Wet Vegetated Treatment System | E22: Silt Loam (0.27 in/hr) | F22: 0 | H22: Potential | I22: Retrofit existing basin to WVTS (not sized) | J22: 655.6659518 | K22: 25864.86536
A23: SCP-BLB-017 | B23: RI0007035R-01 | C23: Structural | D23: Bioretention Swale | E23: Silt Loam (0.27 in/hr) | F23: 811 | H23: Potential | I23: Curb cut either side of catch basin, overflow to existing outfall | J23: 180.2333709 | K23: 807.7703899
A24: SCP-BLB-018 | B24: RI0007035R-01 | C24: Structural | D24: Bioretention Swale | E24: Silt Loam (0.27 in/hr) | F24: 0 | H24: In Design | I24: TIP 2019, suggest retrofitting bioretention swales in existing drainage ditches, not sized in this process | J24: 4096.268665 | K24: 12416.9503
A25: SCP-BLB-019 | B25: RI0007035R-01 | C25: Structural | D25: Bioretention Basin | E25: Silt Loam (0.27 in/hr) | F25: 2080 | H25: Potential | I25: Curb cut, overflow to existing pipe on East Main Rd. State-owns parcel w Npt Water | J25: 173.9220479 | K25: 1860.643056
A26: SCP-BLB-020 | B26: RI0007035R-01 | C26: Structural | D26: Bioretention Basin | E26: Silt Loam (0.27 in/hr) | F26: 2106 | H26: Potential | I26: Curb cut, overflow to existing pipe | J26: 230.8090638 | K26: 1928.492559
A27: SCP-BLB-021 | B27: RI0007035R-01 | C27: Structural | D27: Bioretention Basin | E27: Silt Loam (0.27 in/hr) | F27: 3640 | H27: Potential | I27: Curb cut, overflow to existing pipe. May require additional excavation. May have subsurface utilities near inlet due to signal | J27: 334.1127611 | K27: 3230.009549
A28: SCP-BLB-022 | B28: RI0007035R-01 | C28: Structural | D28: Bioretention Swale | E28: Silt Loam (0.27 in/hr) | F28: 878 | H28: Potential | I28: Curb cut, overflow to existing pipe | J28: 291.5091359 | K28: 868.2934047
A29: SCP-BLB-023 | B29: RI0007035R-01 | C29: Structural | D29: Bioretention Swale | E29: Silt Loam (0.27 in/hr) | F29: 364 | H29: Potential | I29: Curb cut, overflow to existing pipe | J29: 176.1399735 | K29: 508.6693083
A30: SCP-BLB-024 | B30: RI0007035R-01 | C30: Structural | D30: Bioretention Swale | E30: Silt Loam (0.27 in/hr) | F30: 364 | H30: Potential | I30: Curb cut, overflow to existing pipe, Farm access conflict, subsurf elec | J30: 176.1399735 | K30: 508.6693083
A31: SCP-BLB-025 | B31: RI0007035R-01 | C31: Structural | D31: Bioretention Swale | E31: Silt Loam (0.27 in/hr) | F31: 364 | H31: Potential | I31: Curb cut, overflow to existing pipe, Farm access conflict, overhead wires | J31: 176.1399735 | K31: 508.6693083
A32: SCP-BLB-026 | B32: RI0007035R-01 | C32: Structural | D32: Bioretention Swale | E32: Silt Loam (0.27 in/hr) | F32: 364 | H32: Potential | I32: Curb cut, overflow to existing pipe | J32: 176.1399735 | K32: 508.6693083
A33: SCP-BLB-027 | B33: RI0007035R-01 | C33: Structural | D33: Bioretention Swale | E33: Silt Loam (0.27 in/hr) | F33: 364 | H33: Potential | I33: Curb cut, overflow to existing pipe, overhead wires | J33: 176.1399735 | K33: 508.6693083
A34: SCP-BLB-028 | B34: RI0007035R-01 | C34: Structural | D34: Bioretention Swale | E34: Silt Loam (0.27 in/hr) | F34: 364 | H34: Potential | I34: Curb cut, overflow to existing pipe | J34: 176.1399735 | K34: 508.6693083
A35: SCP-BLB-029 | B35: RI0007035R-01 | C35: Structural | D35: Bioretention Swale | E35: Silt Loam (0.27 in/hr) | F35: 364 | H35: Potential | I35: Curb cut, overflow to existing pipe | J35: 168.2667234 | K35: 518.1789368
A36: SCP-BLB-030 | B36: RI0007035R-01 | C36: Structural | D36: Bioretention Swale | E36: Silt Loam (0.27 in/hr) | F36: 364 | H36: Potential | I36: Curb cut, overflow to existing pipe | J36: 163.8144259 | K36: 509.6316903
A37: SCP-BLB-031 | B37: RI0007035R-01 | C37: Structural | D37: Bioretention Swale | E37: Silt Loam (0.27 in/hr) | F37: 364 | H37: Potential | I37: Curb cut, overflow to existing pipe, overhead wires | J37: 163.8144259 | K37: 509.6316903
A38: SCP-BLB-032 | B38: RI0007035R-01 | C38: Structural | D38: Bioretention Swale | E38: Silt Loam (0.27 in/hr) | F38: 364 | H38: Potential | I38: Curb cut, overflow to existing pipe | J38: 163.8144259 | K38: 509.6316903
A39: SCP-BLB-033 | B39: RI0007035R-01 | C39: Structural | D39: Bioretention Swale | E39: Silt Loam (0.27 in/hr) | F39: 364 | H39: Potential | I39: Curb cut, overflow to existing pipe, overhead wires | J39: 163.8144259 | K39: 509.6316903
A40: SCP-BLB-034 | B40: RI0007035R-01 | C40: Structural | D40: Bioretention Swale | E40: Silt Loam (0.27 in/hr) | F40: 364 | H40: Potential | I40: Curb cut, overflow to existing pipe | J40: 163.8144259 | K40: 509.6316903
A41: SCP-BLB-035 | B41: RI0007035R-01 | C41: Structural | D41: Bioretention Swale | E41: Silt Loam (0.27 in/hr) | F41: 364 | H41: Potential | I41: Curb cut, overflow to existing pipe, overhead wires | J41: 163.8144259 | K41: 509.6316903
A42: SCP-BLB-036 | B42: RI0007035R-01 | C42: Structural | D42: Bioretention Swale | E42: Silt Loam (0.27 in/hr) | F42: 364 | H42: Potential | I42: Curb cut, overflow to existing pipe | J42: 163.8144259 | K42: 509.6316903
A43: SCP-BLB-037 | B43: RI0007035R-01 | C43: Structural | D43: Bioretention Swale | E43: Silt Loam (0.27 in/hr) | F43: 364 | H43: Potential | I43: Curb cut, overflow to existing pipe, overhead wires | J43: 163.8144259 | K43: 509.6316903
A44: SCP-BLB-038 | B44: RI0007035R-01 | C44: Structural | D44: Bioretention Swale | E44: Silt Loam (0.27 in/hr) | F44: 364 | H44: Potential | I44: Curb cut, overflow to existing pipe | J44: 163.8144259 | K44: 509.6316903
A45: SCP-BLB-039 | B45: RI0007035R-01 | C45: Structural | D45: Bioretention Swale | E45: Silt Loam (0.27 in/hr) | F45: 364 | H45: Potential | I45: Curb cut, overflow to existing pipe, overhead wires | J45: 163.8144259 | K45: 509.6316903
A46: SCP-BLB-040 | B46: RI0007035R-01 | C46: Structural | D46: Bioretention Swale | E46: Silt Loam (0.27 in/hr) | F46: 364 | H46: Potential | I46: Curb cut, overflow to existing pipe | J46: 163.8144259 | K46: 509.6316903
A47: SCP-BLB-041 | B47: RI0007035R-01 | C47: Structural | D47: Bioretention Swale | E47: Silt Loam (0.27 in/hr) | F47: 364 | H47: Potential | I47: Curb cut, overflow to existing pipe, overhead wires | J47: 163.8144259 | K47: 509.6316903
A48: SCP-BLB-042 | B48: RI0007035R-01 | C48: Structural | D48: Bioretention Swale | E48: Silt Loam (0.27 in/hr) | F48: 364 | H48: Potential | I48: Curb cut, overflow to existing pipe. Subsurface utilities may complicate overflow | J48: 163.8144259 | K48: 509.6316903
A49: SCP-BLB-043 | B49: RI0007035R-01 | C49: Structural | D49: Wet Pond | E49: Silt Loam (0.27 in/hr) | F49: 25000 | H49: Existing | I49: Existing. Private STU. Volume estimated from GIS measurements, aerial imagery, and elevation data | J49: 1230.284997 | K49: 81289.0725
A50: SCP-BLB-044 | B50: RI0007035R-01 | C50: Structural | D50: Wet Vegetated Treatment System | E50: Silt Loam (0.27 in/hr) | F50: 64338 | H50: Existing | I50: Existing. Public. Structure ID 923. RIDOT constructed, for acceptance by Town. Not yet completed or accepted by Town. Treatment Volume from Reconstruction of Two Mile Corner (Routes 138/114) Drainage Report | J50: 1314.559384 | K50: 91114.18527
A51: TP-BLB-026 | B51: RI0007035R-01 | C51: Structural | D51: TIP | E51: Silt Loam (0.27 in/hr) | F51: 3492.666667 | H51: Potential | I51: TIP 2019, suggest bioretention swale, WQv=catchment IC area/1"
A52: TP-BLB-027 | B52: RI0007035R-01 | C52: Structural | D52: TIP | E52: Silt Loam (0.27 in/hr) | F52: 3168.333333 | H52: Potential | I52: TIP 2019, suggest bioretention swale, WQv=catchment IC area/1"
A53: TP-BLB-028 | B53: RI0007035R-01 | C53: Structural | D53: TIP | E53: Silt Loam (0.27 in/hr) | F53: 2232.333333 | H53: Potential | I53: TIP 2019, suggest bioretention swale, WQv=catchment IC area/1"
A54: TP-BLB-029 | B54: RI0007035R-01 | C54: Structural | D54: TIP | E54: Silt Loam (0.27 in/hr) | F54: 53.33333333 | H54: Potential | I54: TIP 2019, suggest bioretention swale, WQv=catchment IC area/1"
A55: TP-BLB-030 | B55: RI0007035R-01 | C55: Structural | D55: TIP | E55: Silt Loam (0.27 in/hr) | F55: 5190.666667 | H55: Potential | I55: TIP 2019, suggest bioretention swale, WQv=catchment IC area/1"
A56: TP-BLB-031 | B56: RI0007035R-01 | C56: Structural | D56: TIP | E56: Silt Loam (0.27 in/hr) | F56: 591.6666667 | H56: Potential | I56: TIP 2019, suggest bioretention swale, WQv=catchment IC area/1"
A57: TP-BLB-032 | B57: RI0007035R-01 | C57: Structural | D57: TIP | E57: Silt Loam (0.27 in/hr) | F57: 897.6666667 | H57: Potential | I57: TIP 2019, suggest bioretention swale, WQv=catchment IC area/1"
A58: TP-BLB-033 | B58: RI0007035R-01 | C58: Structural | D58: TIP | E58: Silt Loam (0.27 in/hr) | F58: 1789 | H58: Potential | I58: TIP 2019, suggest bioretention swale, WQv=catchment IC area/1"

Sheet Existing_STU
A2: Segment Name: | B2: Bailey's Brook (RI0007035R-01), Group 1A
A3: Date: | B3: 2018-12-31
A5: STU ID | B5: WBID | C5: STU Category* | D5: STU Type* | E5: STU Soil Type* | F5: STU WQ Treatment Volume (ft3) | G5: STU Depth (ft) (Depth of STU. This field is optional to help calculate water quality treatment volume.) | H5: STU Status* | I5: Notes | J5: Total Area (sq ft)
A6: SCP-BLB-043 | B6: RI0007035R-01 | C6: Structural | D6: Wet Vegetated Treatment System | E6: Silt Loam (0.27 in/hr) | F6: 25000 | H6: Existing | I6: Private. RIDOT outfall at western side, potentially discharging to extended detention cell. Volume estimated from GIS measurements, aerial imagery, and elevation data.
A7: SCP-BLB-044 | B7: RI0007035R-01 | C7: Structural | D7: Wet Vegetated Treatment System | E7: Silt Loam (0.27 in/hr) | F7: 64338 | H7: Existing | I7: Public. Structure ID 923. RIDOT constructed, for acceptance by Town. Not yet completed or accepted by Town. Treatment Volume from Reconstruction of Two Mile Corner (Routes 138/114) Drainage Report. Drainage area 80.5 ac per this report, but mapping not available at time of SCP development.
A8: SCP-BLB-045 | B8: RI0007035R-01 | C8: Structural | D8: Hydrodynamic Separator | E8: Unknown | H8: Existing

Sheet Reduction Targets
A2: Segment Name: | B2: Bailey's Brook (RI0007035R-01), Group 1A
A3: Date: | B3: 2018-12-31
A5: Subwatershed ID: | B5: Total Subwatershed Area (ac) | C5: Total Subwatershed IC Area (ac) | D5: RIDOT Total Area (ac)1 | E5: RIDOT Total IC Area (ac)
A6: RI0007035R-01 | B6: 1798 | C6: 583 | D6: =(SUMIF(RIDOT_Catchment!E5:E78,"Potential",RIDOT_Catchment!L5:L78)+SUMIF(RIDOT_Catchment!E5:E78,"Existing",RIDOT_Catchment!L5:L78)+SUMIF(RIDOT_Catchment!E5:E78,"Not Feasible",RIDOT_Catchment!L5:L78)+SUMIF(RIDOT_Catchment!E5:E78,"Limited ROW",RIDOT_Catchment!L5:L78)+SUMIF(RIDOT_Catchment!E5:E78,"TIP",RIDOT_Catchment!L5:L78))/43560 -> 48.38366925 | E6: =(SUMIF(RIDOT_Catchment!E5:E78,"Potential",RIDOT_Catchment!F5:F78)+SUMIF(RIDOT_Catchment!E5:E78,"Existing",RIDOT_Catchment!F5:F78)+SUMIF(RIDOT_Catchment!E5:E78,"Not Feasible",RIDOT_Catchment!F5:F78)+SUMIF(RIDOT_Catchment!E5:E78,"Limited ROW",RIDOT_Catchment!F5:F78)+SUMIF(RIDOT_Catchment!E5:E78,"TIP",RIDOT_Catchment!F5:F78))/43560 -> 40.35270891
A7: 1 RIDOT contributing total area to waterbody is equal to total RIDOT area minus non-discharge areas (does not include non-discharge areas) and areas discharging to a CSO.
A9: IC Standard
A10: Total Subwatershed IC Area (%) | B10: Subwatershed Target IC (10%) (ac) | C10: Subwatershed IC Reduction Target (%): | D10: RIDOT IC Reduction Target (ac)
A11: =IF(C6="", "",ROUND((C6/B6)*100,0)&"%") -> 32% | B11: =IF(B6="","",B6*0.1) -> 179.8 | C11: =IF(C6="","",ROUND((A11-0.1)*100/A11,0)&"%") -> 69% | D11: =IF(C11="","",ROUND(E6*C11,1)) -> 27.8
A13: TMDL Method
A14: Pollutant of Concern2 | B14: Potential Required TMDL Pollutant Reduction Target (%)3 | C14: Current RIDOT Load (lb/yr) | D14: RIDOT Pollutant Reduction Target (lb/yr)
A15: Aluminum | B15: 0 | C15: =IF(B15="","",$E$6*'Pollutant Loading Rates'!$F$9) -> 49.59347925 | D15: =IF(B15="","",ROUND(C15*B15/100,2)) -> 0
A16: Cadmium | B16: 0 | C16: =IF(B16="","",$E$6*'Pollutant Loading Rates'!$F$9) -> 49.59347925 | D16: =IF(B16="","",ROUND(C16*B16/100,2)) -> 0
A17: Copper | B17: 0 | C17: =IF(B17="","",$E$6*'Pollutant Loading Rates'!$F$9) -> 49.59347925 | D17: =IF(B17="","",ROUND(C17*B17/100,2)) -> 0
A18: Lead | B18: 0 | C18: =IF(B18="","",$E$6*'Pollutant Loading Rates'!$F$9) -> 49.59347925 | D18: 0
A19: Zinc | B19: 80 | C19: =IF(B19="","",$E$6*'Pollutant Loading Rates'!$F$9) -> 49.59347925 | D19: =IF(B19="","",ROUND(C19*B19/100,2)) -> 39.67
A20: Phosphorus | B20: 0 | C20: =IF(B20="","",'Pollutant Loading Rates'!$C$9*E6) -> 53.87086639 | D20: =IF(B20="","",ROUND(C20*B20/100,2)) -> 0
A21: Nitrogen | B21: 0 | C21: =IF(B21="","",$E$6*'Pollutant Loading Rates'!$E$9) -> 338.9627548 | D21: =IF(B21="","",ROUND(C21*B21/100,2)) -> 0
A22: 2 Zinc used as a surrogate for all metals per consent decree.
A23: 3 Assumed pollutant load reduction (%) per TMDL in development. Not yet required.

Sheet STU Storage Volume
A2: Segment Name: | B2: Bailey's Brook (RI0007035R-01), Group 1A
A3: Date: | B3: 2018-12-31
A5: Fields from GIS | D5: Ponding (Surface) Volume | H5: Void (Subsurface) Volume | M5: Total Storage Volume (ft3)
A6: STU_ID | B6: STU Type | C6: Storage Volume (ft3) | D6: Length (ft) | E6: Width (ft) | F6: Depth (ft) | G6: Notes | H6: Length (ft) | I6: Width (ft) | J6: Depth (ft) | K6: Void Space | L6: Notes
A7: SCP-BLB-001 | B7: =IF(A7="","",IFERROR(VLOOKUP(A7,Existing_STU!$A$6:$J$9999,4,0),VLOOKUP(A7,Potential_STU!$A$6:$K$9998,4,0))) -> Underground Infiltration System | C7: =IF(A7="","",ROUND(IFERROR(VLOOKUP(A7,Existing_STU!$A$6:$J$9999,6,0),VLOOKUP(A7,Potential_STU!$A$6:$K$9998,6,0)),0)) -> 3809 | L7: Based on 1 row of 23 Stormceptor SC740 chambers | M7: 3809
A8: SCP-BLB-002 | B8: =IF(A8="","",IFERROR(VLOOKUP(A8,Existing_STU!$A$6:$J$9999,4,0),VLOOKUP(A8,Potential_STU!$A$6:$K$9998,4,0))) -> Underground Infiltration System | C8: =IF(A8="","",ROUND(IFERROR(VLOOKUP(A8,Existing_STU!$A$6:$J$9999,6,0),VLOOKUP(A8,Potential_STU!$A$6:$K$9998,6,0)),0)) -> 5772 | L8: Based on 1 row of 35 Stormceptor SC740 chambers | M8: 5772
A9: SCP-BLB-003 | B9: =IF(A9="","",IFERROR(VLOOKUP(A9,Existing_STU!$A$6:$J$9999,4,0),VLOOKUP(A9,Potential_STU!$A$6:$K$9998,4,0))) -> Underground Infiltration System | C9: =IF(A9="","",ROUND(IFERROR(VLOOKUP(A9,Existing_STU!$A$6:$J$9999,6,0),VLOOKUP(A9,Potential_STU!$A$6:$K$9998,6,0)),0)) -> 6819 | L9: Based on 8 rows of 6 Stormceptor SC740 chambers | M9: 6819
A10: SCP-BLB-004 | B10: =IF(A10="","",IFERROR(VLOOKUP(A10,Existing_STU!$A$6:$J$9999,4,0),VLOOKUP(A10,Potential_STU!$A$6:$K$9998,4,0))) -> Bioretention Basin | C10: =IF(A10="","",ROUND(IFERROR(VLOOKUP(A10,Existing_STU!$A$6:$J$9999,6,0),VLOOKUP(A10,Potential_STU!$A$6:$K$9998,6,0)),0)) -> 3120 | D10: 80 | E10: 30 | F10: 0.5 | H10: 80 | I10: 30 | J10: 2 | K10: 0.4 | M10: =IF(A10="","",ROUND((D10*E10*F10)+(H10*J10*K10*I10),0)) -> 3120
A11: SCP-BLB-005 | B11: =IF(A11="","",IFERROR(VLOOKUP(A11,Existing_STU!$A$6:$J$9999,4,0),VLOOKUP(A11,Potential_STU!$A$6:$K$9998,4,0))) -> Bioretention Swale | C11: =IF(A11="","",ROUND(IFERROR(VLOOKUP(A11,Existing_STU!$A$6:$J$9999,6,0),VLOOKUP(A11,Potential_STU!$A$6:$K$9998,6,0)),0)) -> 845 | D11: 130 | E11: 5 | F11: 0.5 | H11: 130 | I11: 5 | J11: 2 | K11: 0.4 | M11: =IF(A11="","",ROUND((D11*E11*F11)+(H11*J11*K11*I11),0)) -> 845
A12: SCP-BLB-006 | B12: =IF(A12="","",IFERROR(VLOOKUP(A12,Existing_STU!$A$6:$J$9999,4,0),VLOOKUP(A12,Potential_STU!$A$6:$K$9998,4,0))) -> Bioretention Basin | C12: =IF(A12="","",ROUND(IFERROR(VLOOKUP(A12,Existing_STU!$A$6:$J$9999,6,0),VLOOKUP(A12,Potential_STU!$A$6:$K$9998,6,0)),0)) -> 819 | D12: 35 | E12: 18 | F12: 0.5 | H12: 35 | I12: 18 | J12: 2 | K12: 0.4 | M12: =IF(A12="","",ROUND((D12*E12*F12)+(H12*J12*K12*I12),0)) -> 819
A13: SCP-BLB-008 | B13: =IF(A13="","",IFERROR(VLOOKUP(A13,Existing_STU!$A$6:$J$9999,4,0),VLOOKUP(A13,Potential_STU!$A$6:$K$9998,4,0))) -> Bioretention Swale | C13: =IF(A13="","",ROUND(IFERROR(VLOOKUP(A13,Existing_STU!$A$6:$J$9999,6,0),VLOOKUP(A13,Potential_STU!$A$6:$K$9998,6,0)),0)) -> 2665 | D13: 410 | E13: 5 | F13: 0.5 | H13: 410 | I13: 5 | J13: 2 | K13: 0.4 | L13: combines two 60x5, one 45x5, and one 245x5 bioretention swales | M13: 2665
A14: SCP-BLB-009 | B14: =IF(A14="","",IFERROR(VLOOKUP(A14,Existing_STU!$A$6:$J$9999,4,0),VLOOKUP(A14,Potential_STU!$A$6:$K$9998,4,0))) -> Bioretention Basin | C14: =IF(A14="","",ROUND(IFERROR(VLOOKUP(A14,Existing_STU!$A$6:$J$9999,6,0),VLOOKUP(A14,Potential_STU!$A$6:$K$9998,6,0)),0)) -> 9536 | D14: 163 | E14: 45 | F14: 0.5 | H14: 163 | I14: 45 | J14: 2 | K14: 0.4 | M14: 9536
A15: SCP-BLB-010 | B15: =IF(A15="","",IFERROR(VLOOKUP(A15,Existing_STU!$A$6:$J$9999,4,0),VLOOKUP(A15,Potential_STU!$A$6:$K$9998,4,0))) -> Bioretention Swale | C15: =IF(A15="","",ROUND(IFERROR(VLOOKUP(A15,Existing_STU!$A$6:$J$9999,6,0),VLOOKUP(A15,Potential_STU!$A$6:$K$9998,6,0)),0)) -> 312 | D15: 48 | E15: 5 | F15: 0.5 | H15: 48 | I15: 5 | J15: 2 | K15: 0.4 | M15: 312
A16: SCP-BLB-011 | B16: =IF(A16="","",IFERROR(VLOOKUP(A16,Existing_STU!$A$6:$J$9999,4,0),VLOOKUP(A16,Potential_STU!$A$6:$K$9998,4,0))) -> Bioretention Swale | C16: =IF(A16="","",ROUND(IFERROR(VLOOKUP(A16,Existing_STU!$A$6:$J$9999,6,0),VLOOKUP(A16,Potential_STU!$A$6:$K$9998,6,0)),0)) -> 12188 | D16: 125 | E16: 75 | F16: 0.5 | H16: 125 | I16: 75 | J16: 2 | K16: 0.4 | M16: 12188
A17: SCP-BLB-012 | B17: =IF(A17="","",IFERROR(VLOOKUP(A17,Existing_STU!$A$6:$J$9999,4,0),VLOOKUP(A17,Potential_STU!$A$6:$K$9998,4,0))) -> Bioretention Basin | C17: =IF(A17="","",ROUND(IFERROR(VLOOKUP(A17,Existing_STU!$A$6:$J$9999,6,0),VLOOKUP(A17,Potential_STU!$A$6:$K$9998,6,0)),0)) -> 15210 | D17: 615.8 | E17: 19 | F17: 0.5 | H17: 615.8 | I17: 19 | J17: 2 | K17: 0.4 | L17: combines a 90x50 biorention basin and a 400x18 bioretention swale | M17: 15210
A18: SCP-BLB-013 | B18: =IF(A18="","",IFERROR(VLOOKUP(A18,Existing_STU!$A$6:$J$9999,4,0),VLOOKUP(A18,Potential_STU!$A$6:$K$9998,4,0))) -> Bioretention Swale | C18: =IF(A18="","",ROUND(IFERROR(VLOOKUP(A18,Existing_STU!$A$6:$J$9999,6,0),VLOOKUP(A18,Potential_STU!$A$6:$K$9998,6,0)),0)) -> 364 | D18: 35 | E18: 8 | F18: 0.5 | H18: 35 | I18: 8 | J18: 2 | K18: 0.4 | M18: 364
A19: SCP-BLB-014 | B19: =IF(A19="","",IFERROR(VLOOKUP(A19,Existing_STU!$A$6:$J$9999,4,0),VLOOKUP(A19,Potential_STU!$A$6:$K$9998,4,0))) -> Bioretention Basin | C19: =IF(A19="","",ROUND(IFERROR(VLOOKUP(A19,Existing_STU!$A$6:$J$9999,6,0),VLOOKUP(A19,Potential_STU!$A$6:$K$9998,6,0)),0)) -> 3159 | D19: 162 | E19: 15 | F19: 0.5 | H19: 162 | I19: 15 | J19: 2 | K19: 0.4 | M19: 3159
A20: SCP-BLB-015a | B20: =IF(A20="","",IFERROR(VLOOKUP(A20,Existing_STU!$A$6:$J$9999,4,0),VLOOKUP(A20,Potential_STU!$A$6:$K$9998,4,0))) -> Underground Infiltration System | C20: =IF(A20="","",ROUND(IFERROR(VLOOKUP(A20,Existing_STU!$A$6:$J$9999,6,0),VLOOKUP(A20,Potential_STU!$A$6:$K$9998,6,0)),0)) -> 4463 | L20: Based on 1 row of 27 Stormceptor SC740 | M20: 4463
A21: SCP-BLB-015b | B21: =IF(A21="","",IFERROR(VLOOKUP(A21,Existing_STU!$A$6:$J$9999,4,0),VLOOKUP(A21,Potential_STU!$A$6:$K$9998,4,0))) -> Wet Vegetated Treatment System | C21: =IF(A21="","",ROUND(IFERROR(VLOOKUP(A21,Existing_STU!$A$6:$J$9999,6,0),VLOOKUP(A21,Potential_STU!$A$6:$K$9998,6,0)),0)) -> 35616 | D21: 0 | E21: 0 | F21: 0.5 | H21: 840 | I21: 53 | J21: 2 | K21: 0.4 | L21: Based on 44,520 sq ft of Gravel WVTS | M21: 35616
A22: SCP-BLB-016 | B22: =IF(A22="","",IFERROR(VLOOKUP(A22,Existing_STU!$A$6:$J$9999,4,0),VLOOKUP(A22,Potential_STU!$A$6:$K$9998,4,0))) -> Wet Vegetated Treatment System | C22: =IF(A22="","",ROUND(IFERROR(VLOOKUP(A22,Existing_STU!$A$6:$J$9999,6,0),VLOOKUP(A22,Potential_STU!$A$6:$K$9998,6,0)),0)) -> 0 | M22: 0
A23: SCP-BLB-017 | B23: =IF(A23="","",IFERROR(VLOOKUP(A23,Existing_STU!$A$6:$J$9999,4,0),VLOOKUP(A23,Potential_STU!$A$6:$K$9998,4,0))) -> Bioretention Swale | C23: =IF(A23="","",ROUND(IFERROR(VLOOKUP(A23,Existing_STU!$A$6:$J$9999,6,0),VLOOKUP(A23,Potential_STU!$A$6:$K$9998,6,0)),0)) -> 811 | D23: 78 | E23: 8 | F23: 0.5 | H23: 78 | I23: 8 | J23: 2 | K23: 0.4 | M23: 811
A24: SCP-BLB-018 | B24: =IF(A24="","",IFERROR(VLOOKUP(A24,Existing_STU!$A$6:$J$9999,4,0),VLOOKUP(A24,Potential_STU!$A$6:$K$9998,4,0))) -> Bioretention Swale | C24: =IF(A24="","",ROUND(IFERROR(VLOOKUP(A24,Existing_STU!$A$6:$J$9999,6,0),VLOOKUP(A24,Potential_STU!$A$6:$K$9998,6,0)),0)) -> 0 | L24: TIP project in 2019. Treatment credit calculated in TP-BLB-026 to -033. Treatment volume estimated as 13,598 cf or 2,615 ft by 4 ft footprint (average width) with depth and void space as elsewhere in this table for depth and void space | M24: 0
A25: SCP-BLB-019 | B25: =IF(A25="","",IFERROR(VLOOKUP(A25,Existing_STU!$A$6:$J$9999,4,0),VLOOKUP(A25,Potential_STU!$A$6:$K$9998,4,0))) -> Bioretention Basin | C25: =IF(A25="","",ROUND(IFERROR(VLOOKUP(A25,Existing_STU!$A$6:$J$9999,6,0),VLOOKUP(A25,Potential_STU!$A$6:$K$9998,6,0)),0)) -> 2080 | D25: 40 | E25: 40 | F25: 0.5 | H25: 40 | I25: 40 | J25: 2 | K25: 0.4 | M25: 2080
A26: SCP-BLB-020 | B26: =IF(A26="","",IFERROR(VLOOKUP(A26,Existing_STU!$A$6:$J$9999,4,0),VLOOKUP(A26,Potential_STU!$A$6:$K$9998,4,0))) -> Bioretention Basin | C26: =IF(A26="","",ROUND(IFERROR(VLOOKUP(A26,Existing_STU!$A$6:$J$9999,6,0),VLOOKUP(A26,Potential_STU!$A$6:$K$9998,6,0)),0)) -> 2106 | D26: 90 | E26: 18 | F26: 0.5 | H26: 90 | I26: 18 | J26: 2 | K26: 0.4 | M26: 2106
A27: SCP-BLB-021 | B27: =IF(A27="","",IFERROR(VLOOKUP(A27,Existing_STU!$A$6:$J$9999,4,0),VLOOKUP(A27,Potential_STU!$A$6:$K$9998,4,0))) -> Bioretention Basin | C27: =IF(A27="","",ROUND(IFERROR(VLOOKUP(A27,Existing_STU!$A$6:$J$9999,6,0),VLOOKUP(A27,Potential_STU!$A$6:$K$9998,6,0)),0)) -> 3640 | D27: 140 | E27: 20 | F27: 0.5 | H27: 140 | I27: 20 | J27: 2 | K27: 0.4 | M27: 3640
A28: SCP-BLB-022 | B28: =IF(A28="","",IFERROR(VLOOKUP(A28,Existing_STU!$A$6:$J$9999,4,0),VLOOKUP(A28,Potential_STU!$A$6:$K$9998,4,0))) -> Bioretention Swale | C28: =IF(A28="","",ROUND(IFERROR(VLOOKUP(A28,Existing_STU!$A$6:$J$9999,6,0),VLOOKUP(A28,Potential_STU!$A$6:$K$9998,6,0)),0)) -> 878 | D28: 135 | E28: 5 | F28: 0.5 | H28: 135 | I28: 5 | J28: 2 | K28: 0.4 | M28: 878
A29: SCP-BLB-023 | B29: =IF(A29="","",IFERROR(VLOOKUP(A29,Existing_STU!$A$6:$J$9999,4,0),VLOOKUP(A29,Potential_STU!$A$6:$K$9998,4,0))) -> Bioretention Swale | C29: =IF(A29="","",ROUND(IFERROR(VLOOKUP(A29,Existing_STU!$A$6:$J$9999,6,0),VLOOKUP(A29,Potential_STU!$A$6:$K$9998,6,0)),0)) -> 364 | D29: 70 | E29: 4 | F29: 0.5 | H29: 70 | I29: 4 | J29: 2 | K29: 0.4 | M29: 364
A30: SCP-BLB-024 | B30: =IF(A30="","",IFERROR(VLOOKUP(A30,Existing_STU!$A$6:$J$9999,4,0),VLOOKUP(A30,Potential_STU!$A$6:$K$9998,4,0))) -> Bioretention Swale | C30: =IF(A30="","",ROUND(IFERROR(VLOOKUP(A30,Existing_STU!$A$6:$J$9999,6,0),VLOOKUP(A30,Potential_STU!$A$6:$K$9998,6,0)),0)) -> 364 | D30: 70 | E30: 4 | F30: 0.5 | H30: 70 | I30: 4 | J30: 2 | K30: 0.4 | M30: 364
A31: SCP-BLB-025 | B31: =IF(A31="","",IFERROR(VLOOKUP(A31,Existing_STU!$A$6:$J$9999,4,0),VLOOKUP(A31,Potential_STU!$A$6:$K$9998,4,0))) -> Bioretention Swale | C31: =IF(A31="","",ROUND(IFERROR(VLOOKUP(A31,Existing_STU!$A$6:$J$9999,6,0),VLOOKUP(A31,Potential_STU!$A$6:$K$9998,6,0)),0)) -> 364 | D31: 70 | E31: 4 | F31: 0.5 | H31: 70 | I31: 4 | J31: 2 | K31: 0.4 | M31: 364
A32: SCP-BLB-026 | B32: =IF(A32="","",IFERROR(VLOOKUP(A32,Existing_STU!$A$6:$J$9999,4,0),VLOOKUP(A32,Potential_STU!$A$6:$K$9998,4,0))) -> Bioretention Swale | C32: =IF(A32="","",ROUND(IFERROR(VLOOKUP(A32,Existing_STU!$A$6:$J$9999,6,0),VLOOKUP(A32,Potential_STU!$A$6:$K$9998,6,0)),0)) -> 364 | D32: 70 | E32: 4 | F32: 0.5 | H32: 70 | I32: 4 | J32: 2 | K32: 0.4 | M32: 364
A33: SCP-BLB-027 | B33: =IF(A33="","",IFERROR(VLOOKUP(A33,Existing_STU!$A$6:$J$9999,4,0),VLOOKUP(A33,Potential_STU!$A$6:$K$9998,4,0))) -> Bioretention Swale | C33: =IF(A33="","",ROUND(IFERROR(VLOOKUP(A33,Existing_STU!$A$6:$J$9999,6,0),VLOOKUP(A33,Potential_STU!$A$6:$K$9998,6,0)),0)) -> 364 | D33: 70 | E33: 4 | F33: 0.5 | H33: 70 | I33: 4 | J33: 2 | K33: 0.4 | M33: 364
A34: SCP-BLB-028 | B34: =IF(A34="","",IFERROR(VLOOKUP(A34,Existing_STU!$A$6:$J$9999,4,0),VLOOKUP(A34,Potential_STU!$A$6:$K$9998,4,0))) -> Bioretention Swale | C34: =IF(A34="","",ROUND(IFERROR(VLOOKUP(A34,Existing_STU!$A$6:$J$9999,6,0),VLOOKUP(A34,Potential_STU!$A$6:$K$9998,6,0)),0)) -> 364 | D34: 70 | E34: 4 | F34: 0.5 | H34: 70 | I34: 4 | J34: 2 | K34: 0.4 | M34: 364
A35: SCP-BLB-029 | B35: =IF(A35="","",IFERROR(VLOOKUP(A35,Existing_STU!$A$6:$J$9999,4,0),VLOOKUP(A35,Potential_STU!$A$6:$K$9998,4,0))) -> Bioretention Swale | C35: =IF(A35="","",ROUND(IFERROR(VLOOKUP(A35,Existing_STU!$A$6:$J$9999,6,0),VLOOKUP(A35,Potential_STU!$A$6:$K$9998,6,0)),0)) -> 364 | D35: 70 | E35: 4 | F35: 0.5 | H35: 70 | I35: 4 | J35: 2 | K35: 0.4 | M35: 364
A36: SCP-BLB-030 | B36: =IF(A36="","",IFERROR(VLOOKUP(A36,Existing_STU!$A$6:$J$9999,4,0),VLOOKUP(A36,Potential_STU!$A$6:$K$9998,4,0))) -> Bioretention Swale | C36: =IF(A36="","",ROUND(IFERROR(VLOOKUP(A36,Existing_STU!$A$6:$J$9999,6,0),VLOOKUP(A36,Potential_STU!$A$6:$K$9998,6,0)),0)) -> 364 | D36: 70 | E36: 4 | F36: 0.5 | H36: 70 | I36: 4 | J36: 2 | K36: 0.4 | M36: 364
A37: SCP-BLB-031 | B37: =IF(A37="","",IFERROR(VLOOKUP(A37,Existing_STU!$A$6:$J$9999,4,0),VLOOKUP(A37,Potential_STU!$A$6:$K$9998,4,0))) -> Bioretention Swale | C37: =IF(A37="","",ROUND(IFERROR(VLOOKUP(A37,Existing_STU!$A$6:$J$9999,6,0),VLOOKUP(A37,Potential_STU!$A$6:$K$9998,6,0)),0)) -> 364 | D37: 70 | E37: 4 | F37: 0.5 | H37: 70 | I37: 4 | J37: 2 | K37: 0.4 | M37: 364
A38: SCP-BLB-032 | B38: =IF(A38="","",IFERROR(VLOOKUP(A38,Existing_STU!$A$6:$J$9999,4,0),VLOOKUP(A38,Potential_STU!$A$6:$K$9998,4,0))) -> Bioretention Swale | C38: =IF(A38="","",ROUND(IFERROR(VLOOKUP(A38,Existing_STU!$A$6:$J$9999,6,0),VLOOKUP(A38,Potential_STU!$A$6:$K$9998,6,0)),0)) -> 364 | D38: 70 | E38: 4 | F38: 0.5 | H38: 70 | I38: 4 | J38: 2 | K38: 0.4 | M38: 364
A39: SCP-BLB-033 | B39: =IF(A39="","",IFERROR(VLOOKUP(A39,Existing_STU!$A$6:$J$9999,4,0),VLOOKUP(A39,Potential_STU!$A$6:$K$9998,4,0))) -> Bioretention Swale | C39: =IF(A39="","",ROUND(IFERROR(VLOOKUP(A39,Existing_STU!$A$6:$J$9999,6,0),VLOOKUP(A39,Potential_STU!$A$6:$K$9998,6,0)),0)) -> 364 | D39: 70 | E39: 4 | F39: 0.5 | H39: 70 | I39: 4 | J39: 2 | K39: 0.4 | M39: 364
A40: SCP-BLB-034 | B40: =IF(A40="","",IFERROR(VLOOKUP(A40,Existing_STU!$A$6:$J$9999,4,0),VLOOKUP(A40,Potential_STU!$A$6:$K$9998,4,0))) -> Bioretention Swale | C40: =IF(A40="","",ROUND(IFERROR(VLOOKUP(A40,Existing_STU!$A$6:$J$9999,6,0),VLOOKUP(A40,Potential_STU!$A$6:$K$9998,6,0)),0)) -> 364 | D40: 70 | E40: 4 | F40: 0.5 | H40: 70 | I40: 4 | J40: 2 | K40: 0.4 | M40: 364
A41: SCP-BLB-035 | B41: =IF(A41="","",IFERROR(VLOOKUP(A41,Existing_STU!$A$6:$J$9999,4,0),VLOOKUP(A41,Potential_STU!$A$6:$K$9998,4,0))) -> Bioretention Swale | C41: =IF(A41="","",ROUND(IFERROR(VLOOKUP(A41,Existing_STU!$A$6:$J$9999,6,0),VLOOKUP(A41,Potential_STU!$A$6:$K$9998,6,0)),0)) -> 364 | D41: 70 | E41: 4 | F41: 0.5 | H41: 70 | I41: 4 | J41: 2 | K41: 0.4 | M41: 364
A42: SCP-BLB-036 | B42: =IF(A42="","",IFERROR(VLOOKUP(A42,Existing_STU!$A$6:$J$9999,4,0),VLOOKUP(A42,Potential_STU!$A$6:$K$9998,4,0))) -> Bioretention Swale | C42: =IF(A42="","",ROUND(IFERROR(VLOOKUP(A42,Existing_STU!$A$6:$J$9999,6,0),VLOOKUP(A42,Potential_STU!$A$6:$K$9998,6,0)),0)) -> 364 | D42: 70 | E42: 4 | F42: 0.5 | H42: 70 | I42: 4 | J42: 2 | K42: 0.4 | M42: 364
A43: SCP-BLB-037 | B43: =IF(A43="","",IFERROR(VLOOKUP(A43,Existing_STU!$A$6:$J$9999,4,0),VLOOKUP(A43,Potential_STU!$A$6:$K$9998,4,0))) -> Bioretention Swale | C43: =IF(A43="","",ROUND(IFERROR(VLOOKUP(A43,Existing_STU!$A$6:$J$9999,6,0),VLOOKUP(A43,Potential_STU!$A$6:$K$9998,6,0)),0)) -> 364 | D43: 70 | E43: 4 | F43: 0.5 | H43: 70 | I43: 4 | J43: 2 | K43: 0.4 | M43: 364
A44: SCP-BLB-038 | B44: =IF(A44="","",IFERROR(VLOOKUP(A44,Existing_STU!$A$6:$J$9999,4,0),VLOOKUP(A44,Potential_STU!$A$6:$K$9998,4,0))) -> Bioretention Swale | C44: =IF(A44="","",ROUND(IFERROR(VLOOKUP(A44,Existing_STU!$A$6:$J$9999,6,0),VLOOKUP(A44,Potential_STU!$A$6:$K$9998,6,0)),0)) -> 364 | D44: 70 | E44: 4 | F44: 0.5 | H44: 70 | I44: 4 | J44: 2 | K44: 0.4 | M44: 364
A45: SCP-BLB-039 | B45: =IF(A45="","",IFERROR(VLOOKUP(A45,Existing_STU!$A$6:$J$9999,4,0),VLOOKUP(A45,Potential_STU!$A$6:$K$9998,4,0))) -> Bioretention Swale | C45: =IF(A45="","",ROUND(IFERROR(VLOOKUP(A45,Existing_STU!$A$6:$J$9999,6,0),VLOOKUP(A45,Potential_STU!$A$6:$K$9998,6,0)),0)) -> 364 | D45: 70 | E45: 4 | F45: 0.5 | H45: 70 | I45: 4 | J45: 2 | K45: 0.4 | M45: 364
A46: SCP-BLB-040 | B46: =IF(A46="","",IFERROR(VLOOKUP(A46,Existing_STU!$A$6:$J$9999,4,0),VLOOKUP(A46,Potential_STU!$A$6:$K$9998,4,0))) -> Bioretention Swale | C46: =IF(A46="","",ROUND(IFERROR(VLOOKUP(A46,Existing_STU!$A$6:$J$9999,6,0),VLOOKUP(A46,Potential_STU!$A$6:$K$9998,6,0)),0)) -> 364 | D46: 70 | E46: 4 | F46: 0.5 | H46: 70 | I46: 4 | J46: 2 | K46: 0.4 | M46: 364
A47: SCP-BLB-041 | B47: =IF(A47="","",IFERROR(VLOOKUP(A47,Existing_STU!$A$6:$J$9999,4,0),VLOOKUP(A47,Potential_STU!$A$6:$K$9998,4,0))) -> Bioretention Swale | C47: =IF(A47="","",ROUND(IFERROR(VLOOKUP(A47,Existing_STU!$A$6:$J$9999,6,0),VLOOKUP(A47,Potential_STU!$A$6:$K$9998,6,0)),0)) -> 364 | D47: 70 | E47: 4 | F47: 0.5 | H47: 70 | I47: 4 | J47: 2 | K47: 0.4 | M47: 364
A48: SCP-BLB-042 | B48: =IF(A48="","",IFERROR(VLOOKUP(A48,Existing_STU!$A$6:$J$9999,4,0),VLOOKUP(A48,Potential_STU!$A$6:$K$9998,4,0))) -> Bioretention Swale | C48: =IF(A48="","",ROUND(IFERROR(VLOOKUP(A48,Existing_STU!$A$6:$J$9999,6,0),VLOOKUP(A48,Potential_STU!$A$6:$K$9998,6,0)),0)) -> 364 | D48: 70 | E48: 4 | F48: 0.5 | H48: 70 | I48: 4 | J48: 2 | K48: 0.4 | M48: 364
B49: =IF(A49="","",IFERROR(VLOOKUP(A49,Existing_STU!$A$6:$J$9999,4,0),VLOOKUP(A49,Potential_STU!$A$6:$K$9998,4,0))) ->  | C49: =IF(A49="","",ROUND(IFERROR(VLOOKUP(A49,Existing_STU!$A$6:$J$9999,6,0),VLOOKUP(A49,Potential_STU!$A$6:$K$9998,6,0)),0)) ->  | M49: =IF(A49="","",ROUND((D49*E49*F49)+(H49*J49*K49*I49),0)) -> 
B50: =IF(A50="","",IFERROR(VLOOKUP(A50,Existing_STU!$A$6:$J$9999,4,0),VLOOKUP(A50,Potential_STU!$A$6:$K$9998,4,0))) ->  | C50: =IF(A50="","",ROUND(IFERROR(VLOOKUP(A50,Existing_STU!$A$6:$J$9999,6,0),VLOOKUP(A50,Potential_STU!$A$6:$K$9998,6,0)),0)) -> 
B51: =IF(A51="","",IFERROR(VLOOKUP(A51,Existing_STU!$A$6:$J$9999,4,0),VLOOKUP(A51,Potential_STU!$A$6:$K$9998,4,0))) ->  | C51: =IF(A51="","",ROUND(IFERROR(VLOOKUP(A51,Existing_STU!$A$6:$J$9999,6,0),VLOOKUP(A51,Potential_STU!$A$6:$K$9998,6,0)),0)) -> 
B52: =IF(A52="","",IFERROR(VLOOKUP(A52,Existing_STU!$A$6:$J$9999,4,0),VLOOKUP(A52,Potential_STU!$A$6:$K$9998,4,0))) ->  | C52: =IF(A52="","",ROUND(IFERROR(VLOOKUP(A52,Existing_STU!$A$6:$J$9999,6,0),VLOOKUP(A52,Potential_STU!$A$6:$K$9998,6,0)),0)) -> 
B53: =IF(A53="","",IFERROR(VLOOKUP(A53,Existing_STU!$A$6:$J$9999,4,0),VLOOKUP(A53,Potential_STU!$A$6:$K$9998,4,0))) ->  | C53: =IF(A53="","",ROUND(IFERROR(VLOOKUP(A53,Existing_STU!$A$6:$J$9999,6,0),VLOOKUP(A53,Potential_STU!$A$6:$K$9998,6,0)),0)) -> 
B54: =IF(A54="","",IFERROR(VLOOKUP(A54,Existing_STU!$A$6:$J$9999,4,0),VLOOKUP(A54,Potential_STU!$A$6:$K$9998,4,0))) ->  | C54: =IF(A54="","",ROUND(IFERROR(VLOOKUP(A54,Existing_STU!$A$6:$J$9999,6,0),VLOOKUP(A54,Potential_STU!$A$6:$K$9998,6,0)),0)) -> 
B55: =IF(A55="","",IFERROR(VLOOKUP(A55,Existing_STU!$A$6:$J$9999,4,0),VLOOKUP(A55,Potential_STU!$A$6:$K$9998,4,0))) ->  | C55: =IF(A55="","",ROUND(IFERROR(VLOOKUP(A55,Existing_STU!$A$6:$J$9999,6,0),VLOOKUP(A55,Potential_STU!$A$6:$K$9998,6,0)),0)) -> 
B56: =IF(A56="","",IFERROR(VLOOKUP(A56,Existing_STU!$A$6:$J$9999,4,0),VLOOKUP(A56,Potential_STU!$A$6:$K$9998,4,0))) ->  | C56: =IF(A56="","",ROUND(IFERROR(VLOOKUP(A56,Existing_STU!$A$6:$J$9999,6,0),VLOOKUP(A56,Potential_STU!$A$6:$K$9998,6,0)),0)) -> 
B57: =IF(A57="","",IFERROR(VLOOKUP(A57,Existing_STU!$A$6:$J$9999,4,0),VLOOKUP(A57,Potential_STU!$A$6:$K$9998,4,0))) ->  | C57: =IF(A57="","",ROUND(IFERROR(VLOOKUP(A57,Existing_STU!$A$6:$J$9999,6,0),VLOOKUP(A57,Potential_STU!$A$6:$K$9998,6,0)),0)) -> 
B58: =IF(A58="","",IFERROR(VLOOKUP(A58,Existing_STU!$A$6:$J$9999,4,0),VLOOKUP(A58,Potential_STU!$A$6:$K$9998,4,0))) ->  | C58: =IF(A58="","",ROUND(IFERROR(VLOOKUP(A58,Existing_STU!$A$6:$J$9999,6,0),VLOOKUP(A58,Potential_STU!$A$6:$K$9998,6,0)),0)) -> 
B59: =IF(A59="","",IFERROR(VLOOKUP(A59,Existing_STU!$A$6:$J$9999,4,0),VLOOKUP(A59,Potential_STU!$A$6:$K$9998,4,0))) ->  | C59: =IF(A59="","",ROUND(IFERROR(VLOOKUP(A59,Existing_STU!$A$6:$J$9999,6,0),VLOOKUP(A59,Potential_STU!$A$6:$K$9998,6,0)),0)) -> 
B60: =IF(A60="","",IFERROR(VLOOKUP(A60,Existing_STU!$A$6:$J$9999,4,0),VLOOKUP(A60,Potential_STU!$A$6:$K$9998,4,0))) ->  | C60: =IF(A60="","",ROUND(IFERROR(VLOOKUP(A60,Existing_STU!$A$6:$J$9999,6,0),VLOOKUP(A60,Potential_STU!$A$6:$K$9998,6,0)),0)) -> 
B61: =IF(A61="","",IFERROR(VLOOKUP(A61,Existing_STU!$A$6:$J$9999,4,0),VLOOKUP(A61,Potential_STU!$A$6:$K$9998,4,0))) ->  | C61: =IF(A61="","",ROUND(IFERROR(VLOOKUP(A61,Existing_STU!$A$6:$J$9999,6,0),VLOOKUP(A61,Potential_STU!$A$6:$K$9998,6,0)),0)) -> 
B62: =IF(A62="","",IFERROR(VLOOKUP(A62,Existing_STU!$A$6:$J$9999,4,0),VLOOKUP(A62,Potential_STU!$A$6:$K$9998,4,0))) ->  | C62: =IF(A62="","",ROUND(IFERROR(VLOOKUP(A62,Existing_STU!$A$6:$J$9999,6,0),VLOOKUP(A62,Potential_STU!$A$6:$K$9998,6,0)),0)) -> 
B63: =IF(A63="","",IFERROR(VLOOKUP(A63,Existing_STU!$A$6:$J$9999,4,0),VLOOKUP(A63,Potential_STU!$A$6:$K$9998,4,0))) ->  | C63: =IF(A63="","",ROUND(IFERROR(VLOOKUP(A63,Existing_STU!$A$6:$J$9999,6,0),VLOOKUP(A63,Potential_STU!$A$6:$K$9998,6,0)),0)) -> 
B64: =IF(A64="","",IFERROR(VLOOKUP(A64,Existing_STU!$A$6:$J$9999,4,0),VLOOKUP(A64,Potential_STU!$A$6:$K$9998,4,0))) ->  | C64: =IF(A64="","",ROUND(IFERROR(VLOOKUP(A64,Existing_STU!$A$6:$J$9999,6,0),VLOOKUP(A64,Potential_STU!$A$6:$K$9998,6,0)),0)) -> 
B65: =IF(A65="","",IFERROR(VLOOKUP(A65,Existing_STU!$A$6:$J$9999,4,0),VLOOKUP(A65,Potential_STU!$A$6:$K$9998,4,0))) ->  | C65: =IF(A65="","",ROUND(IFERROR(VLOOKUP(A65,Existing_STU!$A$6:$J$9999,6,0),VLOOKUP(A65,Potential_STU!$A$6:$K$9998,6,0)),0)) -> 
B66: =IF(A66="","",IFERROR(VLOOKUP(A66,Existing_STU!$A$6:$J$9999,4,0),VLOOKUP(A66,Potential_STU!$A$6:$K$9998,4,0))) ->  | C66: =IF(A66="","",ROUND(IFERROR(VLOOKUP(A66,Existing_STU!$A$6:$J$9999,6,0),VLOOKUP(A66,Potential_STU!$A$6:$K$9998,6,0)),0)) -> 
B67: =IF(A67="","",IFERROR(VLOOKUP(A67,Existing_STU!$A$6:$J$9999,4,0),VLOOKUP(A67,Potential_STU!$A$6:$K$9998,4,0))) ->  | C67: =IF(A67="","",ROUND(IFERROR(VLOOKUP(A67,Existing_STU!$A$6:$J$9999,6,0),VLOOKUP(A67,Potential_STU!$A$6:$K$9998,6,0)),0)) -> 
B68: =IF(A68="","",IFERROR(VLOOKUP(A68,Existing_STU!$A$6:$J$9999,4,0),VLOOKUP(A68,Potential_STU!$A$6:$K$9998,4,0))) ->  | C68: =IF(A68="","",ROUND(IFERROR(VLOOKUP(A68,Existing_STU!$A$6:$J$9999,6,0),VLOOKUP(A68,Potential_STU!$A$6:$K$9998,6,0)),0)) -> 
B69: =IF(A69="","",IFERROR(VLOOKUP(A69,Existing_STU!$A$6:$J$9999,4,0),VLOOKUP(A69,Potential_STU!$A$6:$K$9998,4,0))) ->  | C69: =IF(A69="","",ROUND(IFERROR(VLOOKUP(A69,Existing_STU!$A$6:$J$9999,6,0),VLOOKUP(A69,Potential_STU!$A$6:$K$9998,6,0)),0)) -> 
B70: =IF(A70="","",IFERROR(VLOOKUP(A70,Existing_STU!$A$6:$J$9999,4,0),VLOOKUP(A70,Potential_STU!$A$6:$K$9998,4,0))) ->  | C70: =IF(A70="","",ROUND(IFERROR(VLOOKUP(A70,Existing_STU!$A$6:$J$9999,6,0),VLOOKUP(A70,Potential_STU!$A$6:$K$9998,6,0)),0)) -> 
B71: =IF(A71="","",IFERROR(VLOOKUP(A71,Existing_STU!$A$6:$J$9999,4,0),VLOOKUP(A71,Potential_STU!$A$6:$K$9998,4,0))) ->  | C71: =IF(A71="","",ROUND(IFERROR(VLOOKUP(A71,Existing_STU!$A$6:$J$9999,6,0),VLOOKUP(A71,Potential_STU!$A$6:$K$9998,6,0)),0)) -> 
B72: =IF(A72="","",IFERROR(VLOOKUP(A72,Existing_STU!$A$6:$J$9999,4,0),VLOOKUP(A72,Potential_STU!$A$6:$K$9998,4,0))) ->  | C72: =IF(A72="","",ROUND(IFERROR(VLOOKUP(A72,Existing_STU!$A$6:$J$9999,6,0),VLOOKUP(A72,Potential_STU!$A$6:$K$9998,6,0)),0)) -> 
B73: =IF(A73="","",IFERROR(VLOOKUP(A73,Existing_STU!$A$6:$J$9999,4,0),VLOOKUP(A73,Potential_STU!$A$6:$K$9998,4,0))) ->  | C73: =IF(A73="","",ROUND(IFERROR(VLOOKUP(A73,Existing_STU!$A$6:$J$9999,6,0),VLOOKUP(A73,Potential_STU!$A$6:$K$9998,6,0)),0)) -> 
B74: =IF(A74="","",IFERROR(VLOOKUP(A74,Existing_STU!$A$6:$J$9999,4,0),VLOOKUP(A74,Potential_STU!$A$6:$K$9998,4,0))) ->  | C74: =IF(A74="","",ROUND(IFERROR(VLOOKUP(A74,Existing_STU!$A$6:$J$9999,6,0),VLOOKUP(A74,Potential_STU!$A$6:$K$9998,6,0)),0)) -> 
B75: =IF(A75="","",IFERROR(VLOOKUP(A75,Existing_STU!$A$6:$J$9999,4,0),VLOOKUP(A75,Potential_STU!$A$6:$K$9998,4,0))) ->  | C75: =IF(A75="","",ROUND(IFERROR(VLOOKUP(A75,Existing_STU!$A$6:$J$9999,6,0),VLOOKUP(A75,Potential_STU!$A$6:$K$9998,6,0)),0)) -> 
B76: =IF(A76="","",IFERROR(VLOOKUP(A76,Existing_STU!$A$6:$J$9999,4,0),VLOOKUP(A76,Potential_STU!$A$6:$K$9998,4,0))) ->  | C76: =IF(A76="","",ROUND(IFERROR(VLOOKUP(A76,Existing_STU!$A$6:$J$9999,6,0),VLOOKUP(A76,Potential_STU!$A$6:$K$9998,6,0)),0)) -> 
B77: =IF(A77="","",IFERROR(VLOOKUP(A77,Existing_STU!$A$6:$J$9999,4,0),VLOOKUP(A77,Potential_STU!$A$6:$K$9998,4,0))) ->  | C77: =IF(A77="","",ROUND(IFERROR(VLOOKUP(A77,Existing_STU!$A$6:$J$9999,6,0),VLOOKUP(A77,Potential_STU!$A$6:$K$9998,6,0)),0)) -> 
B78: =IF(A78="","",IFERROR(VLOOKUP(A78,Existing_STU!$A$6:$J$9999,4,0),VLOOKUP(A78,Potential_STU!$A$6:$K$9998,4,0))) ->  | C78: =IF(A78="","",ROUND(IFERROR(VLOOKUP(A78,Existing_STU!$A$6:$J$9999,6,0),VLOOKUP(A78,Potential_STU!$A$6:$K$9998,6,0)),0)) -> 
B79: =IF(A79="","",IFERROR(VLOOKUP(A79,Existing_STU!$A$6:$J$9999,4,0),VLOOKUP(A79,Potential_STU!$A$6:$K$9998,4,0))) ->  | C79: =IF(A79="","",ROUND(IFERROR(VLOOKUP(A79,Existing_STU!$A$6:$J$9999,6,0),VLOOKUP(A79,Potential_STU!$A$6:$K$9998,6,0)),0)) -> 
B80: =IF(A80="","",IFERROR(VLOOKUP(A80,Existing_STU!$A$6:$J$9999,4,0),VLOOKUP(A80,Potential_STU!$A$6:$K$9998,4,0))) ->  | C80: =IF(A80="","",ROUND(IFERROR(VLOOKUP(A80,Existing_STU!$A$6:$J$9999,6,0),VLOOKUP(A80,Potential_STU!$A$6:$K$9998,6,0)),0)) -> 
B81: =IF(A81="","",IFERROR(VLOOKUP(A81,Existing_STU!$A$6:$J$9999,4,0),VLOOKUP(A81,Potential_STU!$A$6:$K$9998,4,0))) ->  | C81: =IF(A81="","",ROUND(IFERROR(VLOOKUP(A81,Existing_STU!$A$6:$J$9999,6,0),VLOOKUP(A81,Potential_STU!$A$6:$K$9998,6,0)),0)) -> 
B82: =IF(A82="","",IFERROR(VLOOKUP(A82,Existing_STU!$A$6:$J$9999,4,0),VLOOKUP(A82,Potential_STU!$A$6:$K$9998,4,0))) ->  | C82: =IF(A82="","",ROUND(IFERROR(VLOOKUP(A82,Existing_STU!$A$6:$J$9999,6,0),VLOOKUP(A82,Potential_STU!$A$6:$K$9998,6,0)),0)) -> 
B83: =IF(A83="","",IFERROR(VLOOKUP(A83,Existing_STU!$A$6:$J$9999,4,0),VLOOKUP(A83,Potential_STU!$A$6:$K$9998,4,0))) ->  | C83: =IF(A83="","",ROUND(IFERROR(VLOOKUP(A83,Existing_STU!$A$6:$J$9999,6,0),VLOOKUP(A83,Potential_STU!$A$6:$K$9998,6,0)),0)) -> 
B84: =IF(A84="","",IFERROR(VLOOKUP(A84,Existing_STU!$A$6:$J$9999,4,0),VLOOKUP(A84,Potential_STU!$A$6:$K$9998,4,0))) ->  | C84: =IF(A84="","",ROUND(IFERROR(VLOOKUP(A84,Existing_STU!$A$6:$J$9999,6,0),VLOOKUP(A84,Potential_STU!$A$6:$K$9998,6,0)),0)) -> 
B85: =IF(A85="","",IFERROR(VLOOKUP(A85,Existing_STU!$A$6:$J$9999,4,0),VLOOKUP(A85,Potential_STU!$A$6:$K$9998,4,0))) ->  | C85: =IF(A85="","",ROUND(IFERROR(VLOOKUP(A85,Existing_STU!$A$6:$J$9999,6,0),VLOOKUP(A85,Potential_STU!$A$6:$K$9998,6,0)),0)) -> 
B86: =IF(A86="","",IFERROR(VLOOKUP(A86,Existing_STU!$A$6:$J$9999,4,0),VLOOKUP(A86,Potential_STU!$A$6:$K$9998,4,0))) ->  | C86: =IF(A86="","",ROUND(IFERROR(VLOOKUP(A86,Existing_STU!$A$6:$J$9999,6,0),VLOOKUP(A86,Potential_STU!$A$6:$K$9998,6,0)),0)) -> 
B87: =IF(A87="","",IFERROR(VLOOKUP(A87,Existing_STU!$A$6:$J$9999,4,0),VLOOKUP(A87,Potential_STU!$A$6:$K$9998,4,0))) ->  | C87: =IF(A87="","",ROUND(IFERROR(VLOOKUP(A87,Existing_STU!$A$6:$J$9999,6,0),VLOOKUP(A87,Potential_STU!$A$6:$K$9998,6,0)),0)) -> 
B88: =IF(A88="","",IFERROR(VLOOKUP(A88,Existing_STU!$A$6:$J$9999,4,0),VLOOKUP(A88,Potential_STU!$A$6:$K$9998,4,0))) ->  | C88: =IF(A88="","",ROUND(IFERROR(VLOOKUP(A88,Existing_STU!$A$6:$J$9999,6,0),VLOOKUP(A88,Potential_STU!$A$6:$K$9998,6,0)),0)) -> 
B89: =IF(A89="","",IFERROR(VLOOKUP(A89,Existing_STU!$A$6:$J$9999,4,0),VLOOKUP(A89,Potential_STU!$A$6:$K$9998,4,0))) ->  | C89: =IF(A89="","",ROUND(IFERROR(VLOOKUP(A89,Existing_STU!$A$6:$J$9999,6,0),VLOOKUP(A89,Potential_STU!$A$6:$K$9998,6,0)),0)) -> 
B90: =IF(A90="","",IFERROR(VLOOKUP(A90,Existing_STU!$A$6:$J$9999,4,0),VLOOKUP(A90,Potential_STU!$A$6:$K$9998,4,0))) ->  | C90: =IF(A90="","",ROUND(IFERROR(VLOOKUP(A90,Existing_STU!$A$6:$J$9999,6,0),VLOOKUP(A90,Potential_STU!$A$6:$K$9998,6,0)),0)) -> 
B91: =IF(A91="","",IFERROR(VLOOKUP(A91,Existing_STU!$A$6:$J$9999,4,0),VLOOKUP(A91,Potential_STU!$A$6:$K$9998,4,0))) ->  | C91: =IF(A91="","",ROUND(IFERROR(VLOOKUP(A91,Existing_STU!$A$6:$J$9999,6,0),VLOOKUP(A91,Potential_STU!$A$6:$K$9998,6,0)),0)) -> 
B92: =IF(A92="","",IFERROR(VLOOKUP(A92,Existing_STU!$A$6:$J$9999,4,0),VLOOKUP(A92,Potential_STU!$A$6:$K$9998,4,0))) ->  | C92: =IF(A92="","",ROUND(IFERROR(VLOOKUP(A92,Existing_STU!$A$6:$J$9999,6,0),VLOOKUP(A92,Potential_STU!$A$6:$K$9998,6,0)),0)) -> 
B93: =IF(A93="","",IFERROR(VLOOKUP(A93,Existing_STU!$A$6:$J$9999,4,0),VLOOKUP(A93,Potential_STU!$A$6:$K$9998,4,0))) ->  | C93: =IF(A93="","",ROUND(IFERROR(VLOOKUP(A93,Existing_STU!$A$6:$J$9999,6,0),VLOOKUP(A93,Potential_STU!$A$6:$K$9998,6,0)),0)) -> 
B94: =IF(A94="","",IFERROR(VLOOKUP(A94,Existing_STU!$A$6:$J$9999,4,0),VLOOKUP(A94,Potential_STU!$A$6:$K$9998,4,0))) ->  | C94: =IF(A94="","",ROUND(IFERROR(VLOOKUP(A94,Existing_STU!$A$6:$J$9999,6,0),VLOOKUP(A94,Potential_STU!$A$6:$K$9998,6,0)),0)) -> 
B95: =IF(A95="","",IFERROR(VLOOKUP(A95,Existing_STU!$A$6:$J$9999,4,0),VLOOKUP(A95,Potential_STU!$A$6:$K$9998,4,0))) ->  | C95: =IF(A95="","",ROUND(IFERROR(VLOOKUP(A95,Existing_STU!$A$6:$J$9999,6,0),VLOOKUP(A95,Potential_STU!$A$6:$K$9998,6,0)),0)) -> 
B96: =IF(A96="","",IFERROR(VLOOKUP(A96,Existing_STU!$A$6:$J$9999,4,0),VLOOKUP(A96,Potential_STU!$A$6:$K$9998,4,0))) ->  | C96: =IF(A96="","",ROUND(IFERROR(VLOOKUP(A96,Existing_STU!$A$6:$J$9999,6,0),VLOOKUP(A96,Potential_STU!$A$6:$K$9998,6,0)),0)) -> 
B97: =IF(A97="","",IFERROR(VLOOKUP(A97,Existing_STU!$A$6:$J$9999,4,0),VLOOKUP(A97,Potential_STU!$A$6:$K$9998,4,0))) ->  | C97: =IF(A97="","",ROUND(IFERROR(VLOOKUP(A97,Existing_STU!$A$6:$J$9999,6,0),VLOOKUP(A97,Potential_STU!$A$6:$K$9998,6,0)),0)) -> 
B98: =IF(A98="","",IFERROR(VLOOKUP(A98,Existing_STU!$A$6:$J$9999,4,0),VLOOKUP(A98,Potential_STU!$A$6:$K$9998,4,0))) ->  | C98: =IF(A98="","",ROUND(IFERROR(VLOOKUP(A98,Existing_STU!$A$6:$J$9999,6,0),VLOOKUP(A98,Potential_STU!$A$6:$K$9998,6,0)),0)) -> 
B99: =IF(A99="","",IFERROR(VLOOKUP(A99,Existing_STU!$A$6:$J$9999,4,0),VLOOKUP(A99,Potential_STU!$A$6:$K$9998,4,0))) ->  | C99: =IF(A99="","",ROUND(IFERROR(VLOOKUP(A99,Existing_STU!$A$6:$J$9999,6,0),VLOOKUP(A99,Potential_STU!$A$6:$K$9998,6,0)),0)) -> 
B100: =IF(A100="","",IFERROR(VLOOKUP(A100,Existing_STU!$A$6:$J$9999,4,0),VLOOKUP(A100,Potential_STU!$A$6:$K$9998,4,0))) ->  | C100: =IF(A100="","",ROUND(IFERROR(VLOOKUP(A100,Existing_STU!$A$6:$J$9999,6,0),VLOOKUP(A100,Potential_STU!$A$6:$K$9998,6,0)),0)) -> 
B101: =IF(A101="","",IFERROR(VLOOKUP(A101,Existing_STU!$A$6:$J$9999,4,0),VLOOKUP(A101,Potential_STU!$A$6:$K$9998,4,0))) ->  | C101: =IF(A101="","",ROUND(IFERROR(VLOOKUP(A101,Existing_STU!$A$6:$J$9999,6,0),VLOOKUP(A101,Potential_STU!$A$6:$K$9998,6,0)),0)) -> 
B102: =IF(A102="","",IFERROR(VLOOKUP(A102,Existing_STU!$A$6:$J$9999,4,0),VLOOKUP(A102,Potential_STU!$A$6:$K$9998,4,0))) ->  | C102: =IF(A102="","",ROUND(IFERROR(VLOOKUP(A102,Existing_STU!$A$6:$J$9999,6,0),VLOOKUP(A102,Potential_STU!$A$6:$K$9998,6,0)),0)) -> 
B103: =IF(A103="","",IFERROR(VLOOKUP(A103,Existing_STU!$A$6:$J$9999,4,0),VLOOKUP(A103,Potential_STU!$A$6:$K$9998,4,0))) ->  | C103: =IF(A103="","",ROUND(IFERROR(VLOOKUP(A103,Existing_STU!$A$6:$J$9999,6,0),VLOOKUP(A103,Potential_STU!$A$6:$K$9998,6,0)),0)) -> 
B104: =IF(A104="","",IFERROR(VLOOKUP(A104,Existing_STU!$A$6:$J$9999,4,0),VLOOKUP(A104,Potential_STU!$A$6:$K$9998,4,0))) ->  | C104: =IF(A104="","",ROUND(IFERROR(VLOOKUP(A104,Existing_STU!$A$6:$J$9999,6,0),VLOOKUP(A104,Potential_STU!$A$6:$K$9998,6,0)),0)) -> 
B105: =IF(A105="","",IFERROR(VLOOKUP(A105,Existing_STU!$A$6:$J$9999,4,0),VLOOKUP(A105,Potential_STU!$A$6:$K$9998,4,0))) ->  | C105: =IF(A105="","",ROUND(IFERROR(VLOOKUP(A105,Existing_STU!$A$6:$J$9999,6,0),VLOOKUP(A105,Potential_STU!$A$6:$K$9998,6,0)),0)) -> 
B106: =IF(A106="","",IFERROR(VLOOKUP(A106,Existing_STU!$A$6:$J$9999,4,0),VLOOKUP(A106,Potential_STU!$A$6:$K$9998,4,0))) ->  | C106: =IF(A106="","",ROUND(IFERROR(VLOOKUP(A106,Existing_STU!$A$6:$J$9999,6,0),VLOOKUP(A106,Potential_STU!$A$6:$K$9998,6,0)),0)) -> 
B107: =IF(A107="","",IFERROR(VLOOKUP(A107,Existing_STU!$A$6:$J$9999,4,0),VLOOKUP(A107,Potential_STU!$A$6:$K$9998,4,0))) ->  | C107: =IF(A107="","",ROUND(IFERROR(VLOOKUP(A107,Existing_STU!$A$6:$J$9999,6,0),VLOOKUP(A107,Potential_STU!$A$6:$K$9998,6,0)),0)) -> 
B108: =IF(A108="","",IFERROR(VLOOKUP(A108,Existing_STU!$A$6:$J$9999,4,0),VLOOKUP(A108,Potential_STU!$A$6:$K$9998,4,0))) ->  | C108: =IF(A108="","",ROUND(IFERROR(VLOOKUP(A108,Existing_STU!$A$6:$J$9999,6,0),VLOOKUP(A108,Potential_STU!$A$6:$K$9998,6,0)),0)) -> 
B109: =IF(A109="","",IFERROR(VLOOKUP(A109,Existing_STU!$A$6:$J$9999,4,0),VLOOKUP(A109,Potential_STU!$A$6:$K$9998,4,0))) ->  | C109: =IF(A109="","",ROUND(IFERROR(VLOOKUP(A109,Existing_STU!$A$6:$J$9999,6,0),VLOOKUP(A109,Potential_STU!$A$6:$K$9998,6,0)),0)) -> 
B110: =IF(A110="","",IFERROR(VLOOKUP(A110,Existing_STU!$A$6:$J$9999,4,0),VLOOKUP(A110,Potential_STU!$A$6:$K$9998,4,0))) ->  | C110: =IF(A110="","",ROUND(IFERROR(VLOOKUP(A110,Existing_STU!$A$6:$J$9999,6,0),VLOOKUP(A110,Potential_STU!$A$6:$K$9998,6,0)),0)) -> 
B111: =IF(A111="","",IFERROR(VLOOKUP(A111,Existing_STU!$A$6:$J$9999,4,0),VLOOKUP(A111,Potential_STU!$A$6:$K$9998,4,0))) ->  | C111: =IF(A111="","",ROUND(IFERROR(VLOOKUP(A111,Existing_STU!$A$6:$J$9999,6,0),VLOOKUP(A111,Potential_STU!$A$6:$K$9998,6,0)),0)) -> 
B112: =IF(A112="","",IFERROR(VLOOKUP(A112,Existing_STU!$A$6:$J$9999,4,0),VLOOKUP(A112,Potential_STU!$A$6:$K$9998,4,0))) ->  | C112: =IF(A112="","",ROUND(IFERROR(VLOOKUP(A112,Existing_STU!$A$6:$J$9999,6,0),VLOOKUP(A112,Potential_STU!$A$6:$K$9998,6,0)),0)) ->  | M112: =IF(A112="","",ROUND((D112*E112*F112)+(H112*J112*K112*I112),0)) -> 
B113: =IF(A113="","",IFERROR(VLOOKUP(A113,Existing_STU!$A$6:$J$9999,4,0),VLOOKUP(A113,Potential_STU!$A$6:$K$9998,4,0))) ->  | C113: =IF(A113="","",ROUND(IFERROR(VLOOKUP(A113,Existing_STU!$A$6:$J$9999,6,0),VLOOKUP(A113,Potential_STU!$A$6:$K$9998,6,0)),0)) -> 
B114: =IF(A114="","",IFERROR(VLOOKUP(A114,Existing_STU!$A$6:$J$9999,4,0),VLOOKUP(A114,Potential_STU!$A$6:$K$9998,4,0))) ->  | C114: =IF(A114="","",ROUND(IFERROR(VLOOKUP(A114,Existing_STU!$A$6:$J$9999,6,0),VLOOKUP(A114,Potential_STU!$A$6:$K$9998,6,0)),0)) -> 
B115: =IF(A115="","",IFERROR(VLOOKUP(A115,Existing_STU!$A$6:$J$9999,4,0),VLOOKUP(A115,Potential_STU!$A$6:$K$9998,4,0))) ->  | C115: =IF(A115="","",ROUND(IFERROR(VLOOKUP(A115,Existing_STU!$A$6:$J$9999,6,0),VLOOKUP(A115,Potential_STU!$A$6:$K$9998,6,0)),0)) -> 
B116: =IF(A116="","",IFERROR(VLOOKUP(A116,Existing_STU!$A$6:$J$9999,4,0),VLOOKUP(A116,Potential_STU!$A$6:$K$9998,4,0))) ->  | C116: =IF(A116="","",ROUND(IFERROR(VLOOKUP(A116,Existing_STU!$A$6:$J$9999,6,0),VLOOKUP(A116,Potential_STU!$A$6:$K$9998,6,0)),0)) -> 
B117: =IF(A117="","",IFERROR(VLOOKUP(A117,Existing_STU!$A$6:$J$9999,4,0),VLOOKUP(A117,Potential_STU!$A$6:$K$9998,4,0))) ->  | C117: =IF(A117="","",ROUND(IFERROR(VLOOKUP(A117,Existing_STU!$A$6:$J$9999,6,0),VLOOKUP(A117,Potential_STU!$A$6:$K$9998,6,0)),0)) -> 
B118: =IF(A118="","",IFERROR(VLOOKUP(A118,Existing_STU!$A$6:$J$9999,4,0),VLOOKUP(A118,Potential_STU!$A$6:$K$9998,4,0))) ->  | C118: =IF(A118="","",ROUND(IFERROR(VLOOKUP(A118,Existing_STU!$A$6:$J$9999,6,0),VLOOKUP(A118,Potential_STU!$A$6:$K$9998,6,0)),0)) -> 
B119: =IF(A119="","",IFERROR(VLOOKUP(A119,Existing_STU!$A$6:$J$9999,4,0),VLOOKUP(A119,Potential_STU!$A$6:$K$9998,4,0))) ->  | C119: =IF(A119="","",ROUND(IFERROR(VLOOKUP(A119,Existing_STU!$A$6:$J$9999,6,0),VLOOKUP(A119,Potential_STU!$A$6:$K$9998,6,0)),0)) -> 
B120: =IF(A120="","",IFERROR(VLOOKUP(A120,Existing_STU!$A$6:$J$9999,4,0),VLOOKUP(A120,Potential_STU!$A$6:$K$9998,4,0))) ->  | C120: =IF(A120="","",ROUND(IFERROR(VLOOKUP(A120,Existing_STU!$A$6:$J$9999,6,0),VLOOKUP(A120,Potential_STU!$A$6:$K$9998,6,0)),0)) -> 
B121: =IF(A121="","",IFERROR(VLOOKUP(A121,Existing_STU!$A$6:$J$9999,4,0),VLOOKUP(A121,Potential_STU!$A$6:$K$9998,4,0))) ->  | C121: =IF(A121="","",ROUND(IFERROR(VLOOKUP(A121,Existing_STU!$A$6:$J$9999,6,0),VLOOKUP(A121,Potential_STU!$A$6:$K$9998,6,0)),0)) -> 
B122: =IF(A122="","",IFERROR(VLOOKUP(A122,Existing_STU!$A$6:$J$9999,4,0),VLOOKUP(A122,Potential_STU!$A$6:$K$9998,4,0))) ->  | C122: =IF(A122="","",ROUND(IFERROR(VLOOKUP(A122,Existing_STU!$A$6:$J$9999,6,0),VLOOKUP(A122,Potential_STU!$A$6:$K$9998,6,0)),0)) -> 
B123: =IF(A123="","",IFERROR(VLOOKUP(A123,Existing_STU!$A$6:$J$9999,4,0),VLOOKUP(A123,Potential_STU!$A$6:$K$9998,4,0))) ->  | C123: =IF(A123="","",ROUND(IFERROR(VLOOKUP(A123,Existing_STU!$A$6:$J$9999,6,0),VLOOKUP(A123,Potential_STU!$A$6:$K$9998,6,0)),0)) -> 
B124: =IF(A124="","",IFERROR(VLOOKUP(A124,Existing_STU!$A$6:$J$9999,4,0),VLOOKUP(A124,Potential_STU!$A$6:$K$9998,4,0))) ->  | C124: =IF(A124="","",ROUND(IFERROR(VLOOKUP(A124,Existing_STU!$A$6:$J$9999,6,0),VLOOKUP(A124,Potential_STU!$A$6:$K$9998,6,0)),0)) -> 
B125: =IF(A125="","",IFERROR(VLOOKUP(A125,Existing_STU!$A$6:$J$9999,4,0),VLOOKUP(A125,Potential_STU!$A$6:$K$9998,4,0))) ->  | C125: =IF(A125="","",ROUND(IFERROR(VLOOKUP(A125,Existing_STU!$A$6:$J$9999,6,0),VLOOKUP(A125,Potential_STU!$A$6:$K$9998,6,0)),0)) -> 
B126: =IF(A126="","",IFERROR(VLOOKUP(A126,Existing_STU!$A$6:$J$9999,4,0),VLOOKUP(A126,Potential_STU!$A$6:$K$9998,4,0))) ->  | C126: =IF(A126="","",ROUND(IFERROR(VLOOKUP(A126,Existing_STU!$A$6:$J$9999,6,0),VLOOKUP(A126,Potential_STU!$A$6:$K$9998,6,0)),0)) -> 
B127: =IF(A127="","",IFERROR(VLOOKUP(A127,Existing_STU!$A$6:$J$9999,4,0),VLOOKUP(A127,Potential_STU!$A$6:$K$9998,4,0))) ->  | C127: =IF(A127="","",ROUND(IFERROR(VLOOKUP(A127,Existing_STU!$A$6:$J$9999,6,0),VLOOKUP(A127,Potential_STU!$A$6:$K$9998,6,0)),0)) -> 
B128: =IF(A128="","",IFERROR(VLOOKUP(A128,Existing_STU!$A$6:$J$9999,4,0),VLOOKUP(A128,Potential_STU!$A$6:$K$9998,4,0))) ->  | C128: =IF(A128="","",ROUND(IFERROR(VLOOKUP(A128,Existing_STU!$A$6:$J$9999,6,0),VLOOKUP(A128,Potential_STU!$A$6:$K$9998,6,0)),0)) -> 
B129: =IF(A129="","",IFERROR(VLOOKUP(A129,Existing_STU!$A$6:$J$9999,4,0),VLOOKUP(A129,Potential_STU!$A$6:$K$9998,4,0))) ->  | C129: =IF(A129="","",ROUND(IFERROR(VLOOKUP(A129,Existing_STU!$A$6:$J$9999,6,0),VLOOKUP(A129,Potential_STU!$A$6:$K$9998,6,0)),0)) -> 
B130: =IF(A130="","",IFERROR(VLOOKUP(A130,Existing_STU!$A$6:$J$9999,4,0),VLOOKUP(A130,Potential_STU!$A$6:$K$9998,4,0))) ->  | C130: =IF(A130="","",ROUND(IFERROR(VLOOKUP(A130,Existing_STU!$A$6:$J$9999,6,0),VLOOKUP(A130,Potential_STU!$A$6:$K$9998,6,0)),0)) -> 
B131: =IF(A131="","",IFERROR(VLOOKUP(A131,Existing_STU!$A$6:$J$9999,4,0),VLOOKUP(A131,Potential_STU!$A$6:$K$9998,4,0))) ->  | C131: =IF(A131="","",ROUND(IFERROR(VLOOKUP(A131,Existing_STU!$A$6:$J$9999,6,0),VLOOKUP(A131,Potential_STU!$A$6:$K$9998,6,0)),0)) -> 
B132: =IF(A132="","",IFERROR(VLOOKUP(A132,Existing_STU!$A$6:$J$9999,4,0),VLOOKUP(A132,Potential_STU!$A$6:$K$9998,4,0))) ->  | C132: =IF(A132="","",ROUND(IFERROR(VLOOKUP(A132,Existing_STU!$A$6:$J$9999,6,0),VLOOKUP(A132,Potential_STU!$A$6:$K$9998,6,0)),0)) -> 
B133: =IF(A133="","",IFERROR(VLOOKUP(A133,Existing_STU!$A$6:$J$9999,4,0),VLOOKUP(A133,Potential_STU!$A$6:$K$9998,4,0))) ->  | C133: =IF(A133="","",ROUND(IFERROR(VLOOKUP(A133,Existing_STU!$A$6:$J$9999,6,0),VLOOKUP(A133,Potential_STU!$A$6:$K$9998,6,0)),0)) -> 
B134: =IF(A134="","",IFERROR(VLOOKUP(A134,Existing_STU!$A$6:$J$9999,4,0),VLOOKUP(A134,Potential_STU!$A$6:$K$9998,4,0))) ->  | C134: =IF(A134="","",ROUND(IFERROR(VLOOKUP(A134,Existing_STU!$A$6:$J$9999,6,0),VLOOKUP(A134,Potential_STU!$A$6:$K$9998,6,0)),0)) -> 
B135: =IF(A135="","",IFERROR(VLOOKUP(A135,Existing_STU!$A$6:$J$9999,4,0),VLOOKUP(A135,Potential_STU!$A$6:$K$9998,4,0))) ->  | C135: =IF(A135="","",ROUND(IFERROR(VLOOKUP(A135,Existing_STU!$A$6:$J$9999,6,0),VLOOKUP(A135,Potential_STU!$A$6:$K$9998,6,0)),0)) -> 

Sheet Domains (hidden)
A3: STU Type | C3: Soil Type | J3: 1 | L3: 12
A4: Agriculture Buffer | J4: 2 | L4: 18
A5: Animal Waste Reduction | C5: Sandy Clay Loam (0.17 in/hr) | G5: Yes | J5: 3 | L5: 24
A6: Bioretention Basin | C6: Silt Loam (0.27 in/hr) | G6: No | J6: 4 | L6: 32
A7: Bioretention Swale | C7: Loam (0.52 in/hr) | J7: 5
A8: Dredging | C8: Sandy Loam (1.02 in/hr) | J8: 6
A9: Extended Detention Basin | C9: Loamy Sand (2.41 in/hr) | J9: 7
A10: Floodplain Reconnection | C10: Sand (8.27 in/hr) | G10: Existing | J10: 8
A11: Gravel WVTS | C11: Clay (0.02 in/hr) | G11: Potential | J11: 9
A12: Hydrodynamic Separator | C12: Silty Clay (0.04 in/hr) | G12: Limited ROW | J12: 10 | M12: Broadleaf Deciduous - Large
A13: Illicit Discharge Elimination | C13: Sandy Clay (0.05 in/hr) | G13: Not Feasible | J13: 11 | M13: Broadleaf Deciduous - Medium
A14: Impervious Cover Removal | C14: Silty Clay Loam (0.06 in/hr) | G14: Non-Discharge | J14: 12 | M14: Broadleaf Deciduous - Small
A15: Infiltration Basin | C15: Clay Loam (0.09 in/hr) | G15: Discharge to CSO | M15: Coniferous Evergreen - Large
A16: Infiltration Swale | C16: Unknown | G16: TIP | M16: Coniferous Evergreen - Small
A17: Leaching Basin | G17: Commercial | M17: Unknown Tree Type
A18: Leaf Litter Removal | G18: Industrial
A19: Limited ROW | G19: Institutional | I19: Commercial
A20: Oil/Grit Separator | G20: Residential | I20: Industrial | M20: HSG-A, pervious
A21: Other | G21: Highway | I21: Residential | M21: HSG-B, pervious
A22: Pervious Land Enhancement | G22: Forest | I22: Highway | M22: HSG-C, pervious
A23: Porous Pavement | G23: Open Land | I23: Open Land | M23: HSG-D, pervious
A24: Porous Pavement (w/ underdrain) | G24: Agriculture
A25: Sand Filter | M25: Unknown soil type, pervious
A26: Streambank Restoration | C26: IC Standard | M26: Impervious cover
A27: Street Sweeping and CB Cleaning | C27: TMDL Method | I27: Not evaluated | M27: Forest
A28: TIP | I28: Not exempt | M28: Grass
A29: Underground Infiltration System | I29: Exempt
A30: Urban Tree Canopy
A31: Vegetated Filter Strip/Qualifying Pervious Area
A32: Wet Pond
A33: Wet Swale
A34: Wet Vegetated Treatment System
A36: Street Sweeping | C36: Municipality | G36: Structural
A37: Catch Basin Cleaning | C37: Private | G37: Nonstructural
G39: Potential | M39: Hydrodynamic Devices
A40: Direct (Dog or Bird) | C40: Aluminum | G40: Not Feasible | M40: Jellyfish Filter
A41: Indirect (Manure) | C41: Benthic-Macroinvertebrate Bioassessments | G41: In Design | M41: MWS-Linear
C42: Cadmium | G42: Existing | M42: Stormceptor
A43: Dog | C43: Chloride
A44: Geese/large bird | C44: Chlorophyll-a
A45: Duck/medium bird | C45: Copper
A46: Pigeon/small bird | C46: Dissolved Oxygen
C47: E. Coli
C48: Enterococcus
C49: Excess Algal Growth
C50: Fecal Coliform
C51: Hydrocarbons
C52: Iron
C53: Lead
C54: Non-Native Aquatic Plants
C55: Taste and Odor
C56: Total Nitrogen
C57: Total Phosphorus
C58: Total Suspended Solids
C59: Turbidity
C60: Zinc

Sheet Structural Water Quality Calcs
A1: Segment Name: | B1: Bailey's Brook (RI0007035R-01), Group 1A
A2: Date: | B2: 2018-12-31
K4: Water Quality Results
K5: Phosphorous | N5: TSS | Q5: Nitrogen | T5: Zinc | W5: Impervious Cover | AD5: Runoff Reduction
A6: STU ID | B6: STU Type* | C6: Total Catchment Area (sq. ft.) | D6: Impervious Catchment Area (Sq. Ft.) | E6: STU Storage Volume definitions (ft³) | F6: STU Treatment Depth (in.) (Depth of Runoff Treated) | G6: STU Soil Type* | H6: Pervious Catchment Area (sq. ft.) | I6: Catchment % Impervious | J6: Results Lookup Row | K6: P Load (lb/yr) | L6: P Removal Credit (%) | M6: P Reduction (lb/yr) | N6: TSS Load (lb/yr) | O6: TSS Removal Credit (%) | P6: TSS Reduction (lb/yr) | Q6: Nitrogen Load (lb/yr) | R6: Nitrogen Removal Credit (%) | S6: Nitrogen Reduction (lb/yr) | T6: Zinc Load (lb/yr) | U6: Zinc Removal Credit (%) | V6: Zinc Reduction (lb/yr) | W6: Impervious Catchment Area (Acres) | X6: TSS Reduction Factor | Y6: Phosphorus Reduction Factor | Z6: Runoff Factor | AA6: Flow Factor | AB6: Pervious Cover Factor | AC6: Effective IC Reduction (acres) | AD6: Runoff Reduction % | AE6: Runoff Reduction (ac-ft)
A7: SCP-BLB-001 | B7: =IF(A7="","",IFERROR(VLOOKUP(A7,Existing_STU!$A$6:$J$9999,4,0),VLOOKUP(A7,Potential_STU!$A$6:$K$9998,4,0))) -> Underground Infiltration System | C7: =IF(A7="","",SUMIF(RIDOT_Catchment!$D$5:$D$9998,A7,RIDOT_Catchment!$L$5:$L$9998)+SUMIF('Non-RIDOT_Catchment'!$D$5:$D$9999,A7,'Non-RIDOT_Catchment'!$L$5:$L$9999)) -> 33252.96066 | D7: =IF(A7="","",SUMIF(RIDOT_Catchment!$D$5:$D$9998,A7,RIDOT_Catchment!$F$5:$F$9998)+SUMIF('Non-RIDOT_Catchment'!$D$5:$D$9999,A7,'Non-RIDOT_Catchment'!$F$5:$F$9999)) -> 26612 | E7: =IF(A7="","",IFERROR(VLOOKUP(A7,Existing_STU!$A$6:$J$9999,6,0),VLOOKUP(A7,Potential_STU!$A$6:$K$9998,6,0))) -> 3809 | F7: =IF(A7="","",IF(B7="Limited ROW",0.25,E7/D7*12)) -> 1.717571021 | G7: =IF(A7="","",IFERROR(VLOOKUP(A7,Existing_STU!$A$6:$J$9999,5,0),VLOOKUP(A7,Potential_STU!$A$6:$K$9998,5,0))) -> Loam (0.52 in/hr) | H7: =IF(A7="","",C7-D7) -> 6640.96066 | I7: =IF(A7="","",D7/C7) -> 0.8002896425 | J7: =IF(ISBLANK(B7),"",IF(ISBLANK(G7),"",RowFunc(B7,G7))) -> 10 | K7: =IF(A7="","",SUMIF(RIDOT_Catchment!$D$5:$D$9998,A7,RIDOT_Catchment!$N$5:$N$9998)+SUMIF('Non-RIDOT_Catchment'!$D$5:$D$9999,A7,'Non-RIDOT_Catchment'!$N$5:$N$9999)) -> 0.8837566752 | L7: =IFERROR(IF(I7>=0.5,INTERPRNG_h($F7,'STU Treatment Values'!$B$5:$K$27,0,1,$J7),INTERPRNG_h($F7,'STU Treatment Values'!$B$29:$K$51,0,1,$J7)),"") -> 0.9843514204 | M7: =IF(B7="Limited ROW",L7*K7*0.1,IFERROR(L7*K7,"")) -> 0.8699271385 | N7: =IF(A7="","",SUMIF(RIDOT_Catchment!$D$5:$D$9998,A7,RIDOT_Catchment!$O$5:$O$9998)+SUMIF('Non-RIDOT_Catchment'!$D$5:$D$9999,A7,'Non-RIDOT_Catchment'!$O$5:$O$9999)) -> 354.3837508 | O7: =IFERROR(IF(I7>=0.5,INTERPRNG_h($F7,'STU Treatment Values'!$N$5:$W$27,0,1,$J7),INTERPRNG_h($F7,'STU Treatment Values'!$N$29:$W$51,0,1,$J7)),"") -> 1 | P7: =IF(B7="Limited ROW",O7*N7*0.1,IFERROR(N7*O7,"")) -> 354.3837508 | Q7: =IF(A7="","",SUMIF(RIDOT_Catchment!$D$5:$D$9998,A7,RIDOT_Catchment!$P$5:$P$9998)+SUMIF('Non-RIDOT_Catchment'!$D$5:$D$9999,A7,'Non-RIDOT_Catchment'!$P$5:$P$9999)) -> 5.972039387 | R7: =IFERROR(IF(I7>=0.5,INTERPRNG_h($F7,'STU Treatment Values'!$Z$5:$AI$27,0,1,$J7),INTERPRNG_h($F7,'STU Treatment Values'!$Z$29:$AI$51,0,1,$J7)),"") -> 1 | S7: =IF(B7="Limited ROW",R7*Q7*0.1,IFERROR(Q7*R7,"")) -> 5.972039387 | T7: =IF(A7="","",SUMIF(RIDOT_Catchment!$D$5:$D$9998,A7,RIDOT_Catchment!$Q$5:$Q$9998)+SUMIF('Non-RIDOT_Catchment'!$D$5:$D$9999,A7,'Non-RIDOT_Catchment'!$Q$5:$Q$9999)) -> 0.773678294 | U7: =IFERROR(IF(I7>=0.5,INTERPRNG_h($F7,'STU Treatment Values'!$AL$5:$AU$27,0,1,$J7),INTERPRNG_h($F7,'STU Treatment Values'!$AL$29:$AU$51,0,1,$J7)),"") -> 1 | V7: =IF(B7="Limited ROW",U7*T7*0.1,IFERROR(U7*T7,"")) -> 0.773678294 | W7: =IF(A7="","",D7/43560) -> 0.6109274564 | X7: =IFERROR(IF(O7/0.9>1,1,O7/0.9),"") -> 1 | Y7: =IFERROR(IF(L7/0.9>1,1,L7/0.9),"") -> 1 | Z7: =IFERROR(INTERPRNG_h($F7,'STU Treatment Values'!$B$79:$K$101,0,1,$J7),"") -> 1 | AA7: =IFERROR(INTERPRNG_h($F7,'STU Treatment Values'!$B$54:$K$76,0,1,$J7),"") -> 0.9850537939 | AB7: =IFERROR((X7+Y7+Z7+AA7)/4,"") -> 0.9962634485 | AC7: =IF(B7="Limited ROW",W7*AB7*0.1,IFERROR(AB7*W7,"")) -> 0.6086446945 | AD7: =IFERROR(INTERPRNG_h($F7,'STU Treatment Values'!$B$104:$K$126,0,1,$J7),"") -> 0.950885594 | AE7: =IF(B7="Limited ROW",AD7*(D7*0.1/43560*3.559+H7*0.1/43560*0.239),IFERROR(AD7*(D7/43560*3.559+H7/43560*0.239),"")) -> 2.1021491
A8: SCP-BLB-002 | B8: =IF(A8="","",IFERROR(VLOOKUP(A8,Existing_STU!$A$6:$J$9999,4,0),VLOOKUP(A8,Potential_STU!$A$6:$K$9998,4,0))) -> Underground Infiltration System | C8: =IF(A8="","",SUMIF(RIDOT_Catchment!$D$5:$D$9998,A8,RIDOT_Catchment!$L$5:$L$9998)+SUMIF('Non-RIDOT_Catchment'!$D$5:$D$9999,A8,'Non-RIDOT_Catchment'!$L$5:$L$9999)) -> 113010.3281 | D8: =IF(A8="","",SUMIF(RIDOT_Catchment!$D$5:$D$9998,A8,RIDOT_Catchment!$F$5:$F$9998)+SUMIF('Non-RIDOT_Catchment'!$D$5:$D$9999,A8,'Non-RIDOT_Catchment'!$F$5:$F$9999)) -> 108052 | E8: =IF(A8="","",IFERROR(VLOOKUP(A8,Existing_STU!$A$6:$J$9999,6,0),VLOOKUP(A8,Potential_STU!$A$6:$K$9998,6,0))) -> 5772 | F8: =IF(A8="","",IF(B8="Limited ROW",0.25,E8/D8*12)) -> 0.6410246918 | G8: =IF(A8="","",IFERROR(VLOOKUP(A8,Existing_STU!$A$6:$J$9999,5,0),VLOOKUP(A8,Potential_STU!$A$6:$K$9998,5,0))) -> Loam (0.52 in/hr) | H8: =IF(A8="","",C8-D8) -> 4958.328131 | I8: =IF(A8="","",D8/C8) -> 0.9561250001 | J8: =IF(ISBLANK(B8),"",IF(ISBLANK(G8),"",RowFunc(B8,G8))) -> 10 | K8: =IF(A8="","",SUMIF(RIDOT_Catchment!$D$5:$D$9998,A8,RIDOT_Catchment!$N$5:$N$9998)+SUMIF('Non-RIDOT_Catchment'!$D$5:$D$9999,A8,'Non-RIDOT_Catchment'!$N$5:$N$9999)) -> 4.183402514 | L8: =IFERROR(IF(I8>=0.5,INTERPRNG_h($F8,'STU Treatment Values'!$B$5:$K$27,0,1,$J8),INTERPRNG_h($F8,'STU Treatment Values'!$B$29:$K$51,0,1,$J8)),"") -> 0.8343586421 | M8: =IF(B8="Limited ROW",L8*K8*0.1,IFERROR(L8*K8,"")) -> 3.490458041 | N8: =IF(A8="","",SUMIF(RIDOT_Catchment!$D$5:$D$9998,A8,RIDOT_Catchment!$O$5:$O$9998)+SUMIF('Non-RIDOT_Catchment'!$D$5:$D$9999,A8,'Non-RIDOT_Catchment'!$O$5:$O$9999)) -> 1066.88495 | O8: =IFERROR(IF(I8>=0.5,INTERPRNG_h($F8,'STU Treatment Values'!$N$5:$W$27,0,1,$J8),INTERPRNG_h($F8,'STU Treatment Values'!$N$29:$W$51,0,1,$J8)),"") -> 0.9820512346 | P8: =IF(B8="Limited ROW",O8*N8*0.1,IFERROR(N8*O8,"")) -> 1047.735683 | Q8: =IF(A8="","",SUMIF(RIDOT_Catchment!$D$5:$D$9998,A8,RIDOT_Catchment!$P$5:$P$9998)+SUMIF('Non-RIDOT_Catchment'!$D$5:$D$9999,A8,'Non-RIDOT_Catchment'!$P$5:$P$9999)) -> 33.80919842 | R8: =IFERROR(IF(I8>=0.5,INTERPRNG_h($F8,'STU Treatment Values'!$Z$5:$AI$27,0,1,$J8),INTERPRNG_h($F8,'STU Treatment Values'!$Z$29:$AI$51,0,1,$J8)),"") -> 0.9561537038 | S8: =IF(B8="Limited ROW",R8*Q8*0.1,IFERROR(Q8*R8,"")) -> 32.32679029 | T8: =IF(A8="","",SUMIF(RIDOT_Catchment!$D$5:$D$9998,A8,RIDOT_Catchment!$Q$5:$Q$9998)+SUMIF('Non-RIDOT_Catchment'!$D$5:$D$9999,A8,'Non-RIDOT_Catchment'!$Q$5:$Q$9999)) -> 3.322430939 | U8: =IFERROR(IF(I8>=0.5,INTERPRNG_h($F8,'STU Treatment Values'!$AL$5:$AU$27,0,1,$J8),INTERPRNG_h($F8,'STU Treatment Values'!$AL$29:$AU$51,0,1,$J8)),"") -> 0.9920512346 | V8: =IF(B8="Limited ROW",U8*T8*0.1,IFERROR(U8*T8,"")) -> 3.296021715 | W8: =IF(A8="","",D8/43560) -> 2.480532599 | X8: =IFERROR(IF(O8/0.9>1,1,O8/0.9),"") -> 1 | Y8: =IFERROR(IF(L8/0.9>1,1,L8/0.9),"") -> 0.9270651579 | Z8: =IFERROR(INTERPRNG_h($F8,'STU Treatment Values'!$B$79:$K$101,0,1,$J8),"") -> 0.8005123459 | AA8: =IFERROR(INTERPRNG_h($F8,'STU Treatment Values'!$B$54:$K$76,0,1,$J8),"") -> 0.5715681826 | AB8: =IFERROR((X8+Y8+Z8+AA8)/4,"") -> 0.8247864216 | AC8: =IF(B8="Limited ROW",W8*AB8*0.1,IFERROR(AB8*W8,"")) -> 2.045909606 | AD8: =IFERROR(INTERPRNG_h($F8,'STU Treatment Values'!$B$104:$K$126,0,1,$J8),"") -> 0.7168663004 | AE8: =IF(B8="Limited ROW",AD8*(D8*0.1/43560*3.559+H8*0.1/43560*0.239),IFERROR(AD8*(D8/43560*3.559+H8/43560*0.239),"")) -> 6.348152391
A9: SCP-BLB-003 | B9: =IF(A9="","",IFERROR(VLOOKUP(A9,Existing_STU!$A$6:$J$9999,4,0),VLOOKUP(A9,Potential_STU!$A$6:$K$9998,4,0))) -> Underground Infiltration System | C9: =IF(A9="","",SUMIF(RIDOT_Catchment!$D$5:$D$9998,A9,RIDOT_Catchment!$L$5:$L$9998)+SUMIF('Non-RIDOT_Catchment'!$D$5:$D$9999,A9,'Non-RIDOT_Catchment'!$L$5:$L$9999)) -> 145683.4204 | D9: =IF(A9="","",SUMIF(RIDOT_Catchment!$D$5:$D$9998,A9,RIDOT_Catchment!$F$5:$F$9998)+SUMIF('Non-RIDOT_Catchment'!$D$5:$D$9999,A9,'Non-RIDOT_Catchment'!$F$5:$F$9999)) -> 84044 | E9: =IF(A9="","",IFERROR(VLOOKUP(A9,Existing_STU!$A$6:$J$9999,6,0),VLOOKUP(A9,Potential_STU!$A$6:$K$9998,6,0))) -> 6819 | F9: 0.973632859 | G9: =IF(A9="","",IFERROR(VLOOKUP(A9,Existing_STU!$A$6:$J$9999,5,0),VLOOKUP(A9,Potential_STU!$A$6:$K$9998,5,0))) -> Loam (0.52 in/hr) | H9: 61639.42041 | I9: 0.5768947473 | J9: =IF(ISBLANK(B9),"",IF(ISBLANK(G9),"",RowFunc(B9,G9))) -> 10 | K9: =IF(A9="","",SUMIF(RIDOT_Catchment!$D$5:$D$9998,A9,RIDOT_Catchment!$N$5:$N$9998)+SUMIF('Non-RIDOT_Catchment'!$D$5:$D$9999,A9,'Non-RIDOT_Catchment'!$N$5:$N$9999)) -> 3.654443188 | L9: =IFERROR(IF(I9>=0.5,INTERPRNG_h($F9,'STU Treatment Values'!$B$5:$K$27,0,1,$J9),INTERPRNG_h($F9,'STU Treatment Values'!$B$29:$K$51,0,1,$J9)),"") -> 0.9334082147 | M9: 3.411087292 | N9: =IF(A9="","",SUMIF(RIDOT_Catchment!$D$5:$D$9998,A9,RIDOT_Catchment!$O$5:$O$9998)+SUMIF('Non-RIDOT_Catchment'!$D$5:$D$9999,A9,'Non-RIDOT_Catchment'!$O$5:$O$9999)) -> 1060.938499 | O9: =IFERROR(IF(I9>=0.5,INTERPRNG_h($F9,'STU Treatment Values'!$N$5:$W$27,0,1,$J9),INTERPRNG_h($F9,'STU Treatment Values'!$N$29:$W$51,0,1,$J9)),"") -> 0.9986816429 | P9: 1059.539803 | Q9: =IF(A9="","",SUMIF(RIDOT_Catchment!$D$5:$D$9998,A9,RIDOT_Catchment!$P$5:$P$9998)+SUMIF('Non-RIDOT_Catchment'!$D$5:$D$9999,A9,'Non-RIDOT_Catchment'!$P$5:$P$9999)) -> 23.05496632 | R9: =IFERROR(IF(I9>=0.5,INTERPRNG_h($F9,'STU Treatment Values'!$Z$5:$AI$27,0,1,$J9),INTERPRNG_h($F9,'STU Treatment Values'!$Z$29:$AI$51,0,1,$J9)),"") -> 0.9886816429 | S9: 22.79402198 | T9: =IF(A9="","",SUMIF(RIDOT_Catchment!$D$5:$D$9998,A9,RIDOT_Catchment!$Q$5:$Q$9998)+SUMIF('Non-RIDOT_Catchment'!$D$5:$D$9999,A9,'Non-RIDOT_Catchment'!$Q$5:$Q$9999)) -> 1.912037605 | U9: =IFERROR(IF(I9>=0.5,INTERPRNG_h($F9,'STU Treatment Values'!$AL$5:$AU$27,0,1,$J9),INTERPRNG_h($F9,'STU Treatment Values'!$AL$29:$AU$51,0,1,$J9)),"") -> 1 | V9: 1.912037605 | W9: 1.929384757 | X9: 1 | Y9: 1 | Z9: =IFERROR(INTERPRNG_h($F9,'STU Treatment Values'!$B$79:$K$101,0,1,$J9),"") -> 0.9494531436 | AA9: =IFERROR(INTERPRNG_h($F9,'STU Treatment Values'!$B$54:$K$76,0,1,$J9),"") -> 0.7842549256 | AB9: 0.9334270173 | AC9: 1.800939859 | AD9: =IFERROR(INTERPRNG_h($F9,'STU Treatment Values'!$B$104:$K$126,0,1,$J9),"") -> 0.8511388545 | AE9: 6.132350275
A10: SCP-BLB-004 | B10: =IF(A10="","",IFERROR(VLOOKUP(A10,Existing_STU!$A$6:$J$9999,4,0),VLOOKUP(A10,Potential_STU!$A$6:$K$9998,4,0))) -> Bioretention Basin | C10: =IF(A10="","",SUMIF(RIDOT_Catchment!$D$5:$D$9998,A10,RIDOT_Catchment!$L$5:$L$9998)+SUMIF('Non-RIDOT_Catchment'!$D$5:$D$9999,A10,'Non-RIDOT_Catchment'!$L$5:$L$9999)) -> 52669.1092 | D10: =IF(A10="","",SUMIF(RIDOT_Catchment!$D$5:$D$9998,A10,RIDOT_Catchment!$F$5:$F$9998)+SUMIF('Non-RIDOT_Catchment'!$D$5:$D$9999,A10,'Non-RIDOT_Catchment'!$F$5:$F$9999)) -> 39768 | E10: =IF(A10="","",IFERROR(VLOOKUP(A10,Existing_STU!$A$6:$J$9999,6,0),VLOOKUP(A10,Potential_STU!$A$6:$K$9998,6,0))) -> 3120 | F10: 0.9414604707 | G10: =IF(A10="","",IFERROR(VLOOKUP(A10,Existing_STU!$A$6:$J$9999,5,0),VLOOKUP(A10,Potential_STU!$A$6:$K$9998,5,0))) -> Silt Loam (0.27 in/hr) | H10: 12901.1092 | I10: 0.7550535903 | J10: =IF(ISBLANK(B10),"",IF(ISBLANK(G10),"",RowFunc(B10,G10))) -> 15 | K10: =IF(A10="","",SUMIF(RIDOT_Catchment!$D$5:$D$9998,A10,RIDOT_Catchment!$N$5:$N$9998)+SUMIF('Non-RIDOT_Catchment'!$D$5:$D$9999,A10,'Non-RIDOT_Catchment'!$N$5:$N$9999)) -> 1.603897899 | L10: =IFERROR(IF(I10>=0.5,INTERPRNG_h($F10,'STU Treatment Values'!$B$5:$K$27,0,1,$J10),INTERPRNG_h($F10,'STU Treatment Values'!$B$29:$K$51,0,1,$J10)),"") -> 0.5153651177 | M10: 0.8265930293 | N10: =IF(A10="","",SUMIF(RIDOT_Catchment!$D$5:$D$9998,A10,RIDOT_Catchment!$O$5:$O$9998)+SUMIF('Non-RIDOT_Catchment'!$D$5:$D$9999,A10,'Non-RIDOT_Catchment'!$O$5:$O$9999)) -> 383.5136359 | O10: =IFERROR(IF(I10>=0.5,INTERPRNG_h($F10,'STU Treatment Values'!$N$5:$W$27,0,1,$J10),INTERPRNG_h($F10,'STU Treatment Values'!$N$29:$W$51,0,1,$J10)),"") -> 0.9870730235 | P10: 378.5559642 | Q10: =IF(A10="","",SUMIF(RIDOT_Catchment!$D$5:$D$9998,A10,RIDOT_Catchment!$P$5:$P$9998)+SUMIF('Non-RIDOT_Catchment'!$D$5:$D$9999,A10,'Non-RIDOT_Catchment'!$P$5:$P$9999)) -> 13.20168927 | R10: =IFERROR(IF(I10>=0.5,INTERPRNG_h($F10,'STU Treatment Values'!$Z$5:$AI$27,0,1,$J10),INTERPRNG_h($F10,'STU Treatment Values'!$Z$29:$AI$51,0,1,$J10)),"") -> 0.3170730235 | S10: 4.185899533 | T10: =IF(A10="","",SUMIF(RIDOT_Catchment!$D$5:$D$9998,A10,RIDOT_Catchment!$Q$5:$Q$9998)+SUMIF('Non-RIDOT_Catchment'!$D$5:$D$9999,A10,'Non-RIDOT_Catchment'!$Q$5:$Q$9999)) -> 1.237858567 | U10: =IFERROR(IF(I10>=0.5,INTERPRNG_h($F10,'STU Treatment Values'!$AL$5:$AU$27,0,1,$J10),INTERPRNG_h($F10,'STU Treatment Values'!$AL$29:$AU$51,0,1,$J10)),"") -> 0.9670730235 | V10: 1.197099627 | W10: 0.9129476584 | X10: 1 | Y10: 0.5726279085 | Z10: =IFERROR(INTERPRNG_h($F10,'STU Treatment Values'!$B$79:$K$101,0,1,$J10),"") -> 0.1312190706 | AA10: =IFERROR(INTERPRNG_h($F10,'STU Treatment Values'!$B$54:$K$76,0,1,$J10),"") -> 0.4398850478 | AB10: 0.5359330067 | AC10: 0.4892787836 | AD10: =IFERROR(INTERPRNG_h($F10,'STU Treatment Values'!$B$104:$K$126,0,1,$J10),"") -> 0.1196820975 | AE10: 0.3973403796
A11: SCP-BLB-005 | B11: =IF(A11="","",IFERROR(VLOOKUP(A11,Existing_STU!$A$6:$J$9999,4,0),VLOOKUP(A11,Potential_STU!$A$6:$K$9998,4,0))) -> Bioretention Swale | C11: =IF(A11="","",SUMIF(RIDOT_Catchment!$D$5:$D$9998,A11,RIDOT_Catchment!$L$5:$L$9998)+SUMIF('Non-RIDOT_Catchment'!$D$5:$D$9999,A11,'Non-RIDOT_Catchment'!$L$5:$L$9999)) -> 9931.485048 | D11: =IF(A11="","",SUMIF(RIDOT_Catchment!$D$5:$D$9998,A11,RIDOT_Catchment!$F$5:$F$9998)+SUMIF('Non-RIDOT_Catchment'!$D$5:$D$9999,A11,'Non-RIDOT_Catchment'!$F$5:$F$9999)) -> 8436 | E11: =IF(A11="","",IFERROR(VLOOKUP(A11,Existing_STU!$A$6:$J$9999,6,0),VLOOKUP(A11,Potential_STU!$A$6:$K$9998,6,0))) -> 845 | F11: 1.201991465 | G11: =IF(A11="","",IFERROR(VLOOKUP(A11,Existing_STU!$A$6:$J$9999,5,0),VLOOKUP(A11,Potential_STU!$A$6:$K$9998,5,0))) -> Silt Loam (0.27 in/hr) | H11: 1495.485048 | I11: 0.8494197956 | J11: =IF(ISBLANK(B11),"",IF(ISBLANK(G11),"",RowFunc(B11,G11))) -> 15 | K11: =IF(A11="","",SUMIF(RIDOT_Catchment!$D$5:$D$9998,A11,RIDOT_Catchment!$N$5:$N$9998)+SUMIF('Non-RIDOT_Catchment'!$D$5:$D$9999,A11,'Non-RIDOT_Catchment'!$N$5:$N$9999)) -> 0.26 | L11: =IFERROR(IF(I11>=0.5,INTERPRNG_h($F11,'STU Treatment Values'!$B$5:$K$27,0,1,$J11),INTERPRNG_h($F11,'STU Treatment Values'!$B$29:$K$51,0,1,$J11)),"") -> 0.5501991465 | M11: 0.1430517781 | N11: =IF(A11="","",SUMIF(RIDOT_Catchment!$D$5:$D$9998,A11,RIDOT_Catchment!$O$5:$O$9998)+SUMIF('Non-RIDOT_Catchment'!$D$5:$D$9999,A11,'Non-RIDOT_Catchment'!$O$5:$O$9999)) -> 120 | O11: =IFERROR(IF(I11>=0.5,INTERPRNG_h($F11,'STU Treatment Values'!$N$5:$W$27,0,1,$J11),INTERPRNG_h($F11,'STU Treatment Values'!$N$29:$W$51,0,1,$J11)),"") -> 0.9940398293 | P11: 119.2847795 | Q11: =IF(A11="","",SUMIF(RIDOT_Catchment!$D$5:$D$9998,A11,RIDOT_Catchment!$P$5:$P$9998)+SUMIF('Non-RIDOT_Catchment'!$D$5:$D$9999,A11,'Non-RIDOT_Catchment'!$P$5:$P$9999)) -> 1.66 | R11: =IFERROR(IF(I11>=0.5,INTERPRNG_h($F11,'STU Treatment Values'!$Z$5:$AI$27,0,1,$J11),INTERPRNG_h($F11,'STU Treatment Values'!$Z$29:$AI$51,0,1,$J11)),"") -> 0.3401991465 | S11: 0.5647305832 | T11: =IF(A11="","",SUMIF(RIDOT_Catchment!$D$5:$D$9998,A11,RIDOT_Catchment!$Q$5:$Q$9998)+SUMIF('Non-RIDOT_Catchment'!$D$5:$D$9999,A11,'Non-RIDOT_Catchment'!$Q$5:$Q$9999)) -> 0.24 | U11: =IFERROR(IF(I11>=0.5,INTERPRNG_h($F11,'STU Treatment Values'!$AL$5:$AU$27,0,1,$J11),INTERPRNG_h($F11,'STU Treatment Values'!$AL$29:$AU$51,0,1,$J11)),"") -> 0.9740398293 | V11: 0.233769559 | W11: 0.1936639118 | X11: 1 | Y11: 0.611332385 | Z11: =IFERROR(INTERPRNG_h($F11,'STU Treatment Values'!$B$79:$K$101,0,1,$J11),"") -> 0.180398293 | AA11: =IFERROR(INTERPRNG_h($F11,'STU Treatment Values'!$B$54:$K$76,0,1,$J11),"") -> 0.5677984927 | AB11: 0.5898822927 | AC11: 0.1142389123 | AD11: =IFERROR(INTERPRNG_h($F11,'STU Treatment Values'!$B$104:$K$126,0,1,$J11),"") -> 0.1624001414 | AE11: 0.1132668097
A12: SCP-BLB-006 | B12: =IF(A12="","",IFERROR(VLOOKUP(A12,Existing_STU!$A$6:$J$9999,4,0),VLOOKUP(A12,Potential_STU!$A$6:$K$9998,4,0))) -> Bioretention Basin | C12: =IF(A12="","",SUMIF(RIDOT_Catchment!$D$5:$D$9998,A12,RIDOT_Catchment!$L$5:$L$9998)+SUMIF('Non-RIDOT_Catchment'!$D$5:$D$9999,A12,'Non-RIDOT_Catchment'!$L$5:$L$9999)) -> 8586.934779 | D12: =IF(A12="","",SUMIF(RIDOT_Catchment!$D$5:$D$9998,A12,RIDOT_Catchment!$F$5:$F$9998)+SUMIF('Non-RIDOT_Catchment'!$D$5:$D$9999,A12,'Non-RIDOT_Catchment'!$F$5:$F$9999)) -> 7368 | E12: =IF(A12="","",IFERROR(VLOOKUP(A12,Existing_STU!$A$6:$J$9999,6,0),VLOOKUP(A12,Potential_STU!$A$6:$K$9998,6,0))) -> 819 | F12: 1.333876221 | G12: =IF(A12="","",IFERROR(VLOOKUP(A12,Existing_STU!$A$6:$J$9999,5,0),VLOOKUP(A12,Potential_STU!$A$6:$K$9998,5,0))) -> Silt Loam (0.27 in/hr) | H12: 1218.934779 | I12: 0.8580477422 | J12: =IF(ISBLANK(B12),"",IF(ISBLANK(G12),"",RowFunc(B12,G12))) -> 15 | K12: =IF(A12="","",SUMIF(RIDOT_Catchment!$D$5:$D$9998,A12,RIDOT_Catchment!$N$5:$N$9998)+SUMIF('Non-RIDOT_Catchment'!$D$5:$D$9999,A12,'Non-RIDOT_Catchment'!$N$5:$N$9999)) -> 0.23 | L12: =IFERROR(IF(I12>=0.5,INTERPRNG_h($F12,'STU Treatment Values'!$B$5:$K$27,0,1,$J12),INTERPRNG_h($F12,'STU Treatment Values'!$B$29:$K$51,0,1,$J12)),"") -> 0.5633876221 | M12: 0.1295791531 | N12: =IF(A12="","",SUMIF(RIDOT_Catchment!$D$5:$D$9998,A12,RIDOT_Catchment!$O$5:$O$9998)+SUMIF('Non-RIDOT_Catchment'!$D$5:$D$9999,A12,'Non-RIDOT_Catchment'!$O$5:$O$9999)) -> 105 | O12: =IFERROR(IF(I12>=0.5,INTERPRNG_h($F12,'STU Treatment Values'!$N$5:$W$27,0,1,$J12),INTERPRNG_h($F12,'STU Treatment Values'!$N$29:$W$51,0,1,$J12)),"") -> 0.9966775244 | P12: 104.6511401 | Q12: =IF(A12="","",SUMIF(RIDOT_Catchment!$D$5:$D$9998,A12,RIDOT_Catchment!$P$5:$P$9998)+SUMIF('Non-RIDOT_Catchment'!$D$5:$D$9999,A12,'Non-RIDOT_Catchment'!$P$5:$P$9999)) -> 1.45 | R12: =IFERROR(IF(I12>=0.5,INTERPRNG_h($F12,'STU Treatment Values'!$Z$5:$AI$27,0,1,$J12),INTERPRNG_h($F12,'STU Treatment Values'!$Z$29:$AI$51,0,1,$J12)),"") -> 0.3533876221 | S12: 0.5124120521 | T12: =IF(A12="","",SUMIF(RIDOT_Catchment!$D$5:$D$9998,A12,RIDOT_Catchment!$Q$5:$Q$9998)+SUMIF('Non-RIDOT_Catchment'!$D$5:$D$9999,A12,'Non-RIDOT_Catchment'!$Q$5:$Q$9999)) -> 0.21 | U12: =IFERROR(IF(I12>=0.5,INTERPRNG_h($F12,'STU Treatment Values'!$AL$5:$AU$27,0,1,$J12),INTERPRNG_h($F12,'STU Treatment Values'!$AL$29:$AU$51,0,1,$J12)),"") -> 0.9766775244 | V12: 0.2051022801 | W12: 0.1691460055 | X12: 1 | Y12: 0.6259862468 | Z12: =IFERROR(INTERPRNG_h($F12,'STU Treatment Values'!$B$79:$K$101,0,1,$J12),"") -> 0.2067752443 | AA12: =IFERROR(INTERPRNG_h($F12,'STU Treatment Values'!$B$54:$K$76,0,1,$J12),"") -> 0.6378303498 | AB12: 0.6176479602 | AC12: 0.1044726853 | AD12: =IFERROR(INTERPRNG_h($F12,'STU Treatment Values'!$B$104:$K$126,0,1,$J12),"") -> 0.185879868 | AE12: 0.1131410876
A13: SCP-BLB-008 | B13: =IF(A13="","",IFERROR(VLOOKUP(A13,Existing_STU!$A$6:$J$9999,4,0),VLOOKUP(A13,Potential_STU!$A$6:$K$9998,4,0))) -> Bioretention Swale | C13: =IF(A13="","",SUMIF(RIDOT_Catchment!$D$5:$D$9998,A13,RIDOT_Catchment!$L$5:$L$9998)+SUMIF('Non-RIDOT_Catchment'!$D$5:$D$9999,A13,'Non-RIDOT_Catchment'!$L$5:$L$9999)) -> 102482.8646 | D13: =IF(A13="","",SUMIF(RIDOT_Catchment!$D$5:$D$9998,A13,RIDOT_Catchment!$F$5:$F$9998)+SUMIF('Non-RIDOT_Catchment'!$D$5:$D$9999,A13,'Non-RIDOT_Catchment'!$F$5:$F$9999)) -> 71964 | E13: =IF(A13="","",IFERROR(VLOOKUP(A13,Existing_STU!$A$6:$J$9999,6,0),VLOOKUP(A13,Potential_STU!$A$6:$K$9998,6,0))) -> 2665 | F13: 0.4443888611 | G13: =IF(A13="","",IFERROR(VLOOKUP(A13,Existing_STU!$A$6:$J$9999,5,0),VLOOKUP(A13,Potential_STU!$A$6:$K$9998,5,0))) -> Silt Loam (0.27 in/hr) | H13: 30518.86462 | I13: 0.7022051956 | J13: =IF(ISBLANK(B13),"",IF(ISBLANK(G13),"",RowFunc(B13,G13))) -> 15 | K13: =IF(A13="","",SUMIF(RIDOT_Catchment!$D$5:$D$9998,A13,RIDOT_Catchment!$N$5:$N$9998)+SUMIF('Non-RIDOT_Catchment'!$D$5:$D$9999,A13,'Non-RIDOT_Catchment'!$N$5:$N$9999)) -> 3.903942347 | L13: =IFERROR(IF(I13>=0.5,INTERPRNG_h($F13,'STU Treatment Values'!$B$5:$K$27,0,1,$J13),INTERPRNG_h($F13,'STU Treatment Values'!$B$29:$K$51,0,1,$J13)),"") -> 0.3855361014 | M13: 1.505110713 | N13: =IF(A13="","",SUMIF(RIDOT_Catchment!$D$5:$D$9998,A13,RIDOT_Catchment!$O$5:$O$9998)+SUMIF('Non-RIDOT_Catchment'!$D$5:$D$9999,A13,'Non-RIDOT_Catchment'!$O$5:$O$9999)) -> 743.983824 | O13: =IFERROR(IF(I13>=0.5,INTERPRNG_h($F13,'STU Treatment Values'!$N$5:$W$27,0,1,$J13),INTERPRNG_h($F13,'STU Treatment Values'!$N$29:$W$51,0,1,$J13)),"") -> 0.9233166583 | P13: 686.9326582 | Q13: =IF(A13="","",SUMIF(RIDOT_Catchment!$D$5:$D$9998,A13,RIDOT_Catchment!$P$5:$P$9998)+SUMIF('Non-RIDOT_Catchment'!$D$5:$D$9999,A13,'Non-RIDOT_Catchment'!$P$5:$P$9999)) -> 24.04196727 | R13: =IFERROR(IF(I13>=0.5,INTERPRNG_h($F13,'STU Treatment Values'!$Z$5:$AI$27,0,1,$J13),INTERPRNG_h($F13,'STU Treatment Values'!$Z$29:$AI$51,0,1,$J13)),"") -> 0.2410972153 | S13: 5.796451359 | T13: =IF(A13="","",SUMIF(RIDOT_Catchment!$D$5:$D$9998,A13,RIDOT_Catchment!$Q$5:$Q$9998)+SUMIF('Non-RIDOT_Catchment'!$D$5:$D$9999,A13,'Non-RIDOT_Catchment'!$Q$5:$Q$9999)) -> 1.177156408 | U13: =IFERROR(IF(I13>=0.5,INTERPRNG_h($F13,'STU Treatment Values'!$AL$5:$AU$27,0,1,$J13),INTERPRNG_h($F13,'STU Treatment Values'!$AL$29:$AU$51,0,1,$J13)),"") -> 0.9522194431 | V13: 1.120911219 | W13: 1.652066116 | X13: 1 | Y13: 0.428373446 | Z13: =IFERROR(INTERPRNG_h($F13,'STU Treatment Values'!$B$79:$K$101,0,1,$J13),"") -> 0.06665832916 | AA13: =IFERROR(INTERPRNG_h($F13,'STU Treatment Values'!$B$54:$K$76,0,1,$J13),"") -> 0.264757481 | AB13: 0.439947314 | AC13: 0.7268220502 | AD13: =IFERROR(INTERPRNG_h($F13,'STU Treatment Values'!$B$104:$K$126,0,1,$J13),"") -> 0.0599306848 | AE13: 0.3624098827
A14: SCP-BLB-009 | B14: =IF(A14="","",IFERROR(VLOOKUP(A14,Existing_STU!$A$6:$J$9999,4,0),VLOOKUP(A14,Potential_STU!$A$6:$K$9998,4,0))) -> Bioretention Basin | C14: =IF(A14="","",SUMIF(RIDOT_Catchment!$D$5:$D$9998,A14,RIDOT_Catchment!$L$5:$L$9998)+SUMIF('Non-RIDOT_Catchment'!$D$5:$D$9999,A14,'Non-RIDOT_Catchment'!$L$5:$L$9999)) -> 156445.5721 | D14: =IF(A14="","",SUMIF(RIDOT_Catchment!$D$5:$D$9998,A14,RIDOT_Catchment!$F$5:$F$9998)+SUMIF('Non-RIDOT_Catchment'!$D$5:$D$9999,A14,'Non-RIDOT_Catchment'!$F$5:$F$9999)) -> 85236 | E14: =IF(A14="","",IFERROR(VLOOKUP(A14,Existing_STU!$A$6:$J$9999,6,0),VLOOKUP(A14,Potential_STU!$A$6:$K$9998,6,0))) -> 9536 | F14: 1.342531325 | G14: =IF(A14="","",IFERROR(VLOOKUP(A14,Existing_STU!$A$6:$J$9999,5,0),VLOOKUP(A14,Potential_STU!$A$6:$K$9998,5,0))) -> Silt Loam (0.27 in/hr) | H14: 71209.57211 | I14: 0.5448284592 | J14: =IF(ISBLANK(B14),"",IF(ISBLANK(G14),"",RowFunc(B14,G14))) -> 15 | K14: =IF(A14="","",SUMIF(RIDOT_Catchment!$D$5:$D$9998,A14,RIDOT_Catchment!$N$5:$N$9998)+SUMIF('Non-RIDOT_Catchment'!$D$5:$D$9999,A14,'Non-RIDOT_Catchment'!$N$5:$N$9999)) -> 3.391087888 | L14: =IFERROR(IF(I14>=0.5,INTERPRNG_h($F14,'STU Treatment Values'!$B$5:$K$27,0,1,$J14),INTERPRNG_h($F14,'STU Treatment Values'!$B$29:$K$51,0,1,$J14)),"") -> 0.5642531325 | M14: 1.913431963 | N14: =IF(A14="","",SUMIF(RIDOT_Catchment!$D$5:$D$9998,A14,RIDOT_Catchment!$O$5:$O$9998)+SUMIF('Non-RIDOT_Catchment'!$D$5:$D$9999,A14,'Non-RIDOT_Catchment'!$O$5:$O$9999)) -> 933.951437 | O14: =IFERROR(IF(I14>=0.5,INTERPRNG_h($F14,'STU Treatment Values'!$N$5:$W$27,0,1,$J14),INTERPRNG_h($F14,'STU Treatment Values'!$N$29:$W$51,0,1,$J14)),"") -> 0.9968506265 | P14: 931.0100751 | Q14: =IF(A14="","",SUMIF(RIDOT_Catchment!$D$5:$D$9998,A14,RIDOT_Catchment!$P$5:$P$9998)+SUMIF('Non-RIDOT_Catchment'!$D$5:$D$9999,A14,'Non-RIDOT_Catchment'!$P$5:$P$9999)) -> 27.06994683 | R14: =IFERROR(IF(I14>=0.5,INTERPRNG_h($F14,'STU Treatment Values'!$Z$5:$AI$27,0,1,$J14),INTERPRNG_h($F14,'STU Treatment Values'!$Z$29:$AI$51,0,1,$J14)),"") -> 0.3542531325 | S14: 9.589613462 | T14: =IF(A14="","",SUMIF(RIDOT_Catchment!$D$5:$D$9998,A14,RIDOT_Catchment!$Q$5:$Q$9998)+SUMIF('Non-RIDOT_Catchment'!$D$5:$D$9999,A14,'Non-RIDOT_Catchment'!$Q$5:$Q$9999)) -> 2.629271228 | U14: =IFERROR(IF(I14>=0.5,INTERPRNG_h($F14,'STU Treatment Values'!$AL$5:$AU$27,0,1,$J14),INTERPRNG_h($F14,'STU Treatment Values'!$AL$29:$AU$51,0,1,$J14)),"") -> 0.9768506265 | V14: 2.568405246 | W14: 1.956749311 | X14: 1 | Y14: 0.626947925 | Z14: =IFERROR(INTERPRNG_h($F14,'STU Treatment Values'!$B$79:$K$101,0,1,$J14),"") -> 0.208506265 | AA14: =IFERROR(INTERPRNG_h($F14,'STU Treatment Values'!$B$54:$K$76,0,1,$J14),"") -> 0.6424262787 | AB14: 0.6194701172 | AC14: 1.212147725 | AD14: =IFERROR(INTERPRNG_h($F14,'STU Treatment Values'!$B$104:$K$126,0,1,$J14),"") -> 0.1874207547 | AE14: 1.378437536
A15: SCP-BLB-010 | B15: =IF(A15="","",IFERROR(VLOOKUP(A15,Existing_STU!$A$6:$J$9999,4,0),VLOOKUP(A15,Potential_STU!$A$6:$K$9998,4,0))) -> Bioretention Swale | C15: =IF(A15="","",SUMIF(RIDOT_Catchment!$D$5:$D$9998,A15,RIDOT_Catchment!$L$5:$L$9998)+SUMIF('Non-RIDOT_Catchment'!$D$5:$D$9999,A15,'Non-RIDOT_Catchment'!$L$5:$L$9999)) -> 8689.782652 | D15: =IF(A15="","",SUMIF(RIDOT_Catchment!$D$5:$D$9998,A15,RIDOT_Catchment!$F$5:$F$9998)+SUMIF('Non-RIDOT_Catchment'!$D$5:$D$9999,A15,'Non-RIDOT_Catchment'!$F$5:$F$9999)) -> 6676 | E15: =IF(A15="","",IFERROR(VLOOKUP(A15,Existing_STU!$A$6:$J$9999,6,0),VLOOKUP(A15,Potential_STU!$A$6:$K$9998,6,0))) -> 312 | F15: 0.5608148592 | G15: =IF(A15="","",IFERROR(VLOOKUP(A15,Existing_STU!$A$6:$J$9999,5,0),VLOOKUP(A15,Potential_STU!$A$6:$K$9998,5,0))) -> Silt Loam (0.27 in/hr) | H15: 2013.782652 | I15: 0.7682585707 | J15: =IF(ISBLANK(B15),"",IF(ISBLANK(G15),"",RowFunc(B15,G15))) -> 15 | K15: =IF(A15="","",SUMIF(RIDOT_Catchment!$D$5:$D$9998,A15,RIDOT_Catchment!$N$5:$N$9998)+SUMIF('Non-RIDOT_Catchment'!$D$5:$D$9999,A15,'Non-RIDOT_Catchment'!$N$5:$N$9999)) -> 0.21 | L15: =IFERROR(IF(I15>=0.5,INTERPRNG_h($F15,'STU Treatment Values'!$B$5:$K$27,0,1,$J15),INTERPRNG_h($F15,'STU Treatment Values'!$B$29:$K$51,0,1,$J15)),"") -> 0.4262852007 | M15: 0.08951989215 | N15: =IF(A15="","",SUMIF(RIDOT_Catchment!$D$5:$D$9998,A15,RIDOT_Catchment!$O$5:$O$9998)+SUMIF('Non-RIDOT_Catchment'!$D$5:$D$9999,A15,'Non-RIDOT_Catchment'!$O$5:$O$9999)) -> 95 | O15: =IFERROR(IF(I15>=0.5,INTERPRNG_h($F15,'STU Treatment Values'!$N$5:$W$27,0,1,$J15),INTERPRNG_h($F15,'STU Treatment Values'!$N$29:$W$51,0,1,$J15)),"") -> 0.9582444578 | P15: 91.03322349 | Q15: =IF(A15="","",SUMIF(RIDOT_Catchment!$D$5:$D$9998,A15,RIDOT_Catchment!$P$5:$P$9998)+SUMIF('Non-RIDOT_Catchment'!$D$5:$D$9999,A15,'Non-RIDOT_Catchment'!$P$5:$P$9999)) -> 1.33 | R15: =IFERROR(IF(I15>=0.5,INTERPRNG_h($F15,'STU Treatment Values'!$Z$5:$AI$27,0,1,$J15),INTERPRNG_h($F15,'STU Treatment Values'!$Z$29:$AI$51,0,1,$J15)),"") -> 0.2702037148 | S15: 0.3593709407 | T15: =IF(A15="","",SUMIF(RIDOT_Catchment!$D$5:$D$9998,A15,RIDOT_Catchment!$Q$5:$Q$9998)+SUMIF('Non-RIDOT_Catchment'!$D$5:$D$9999,A15,'Non-RIDOT_Catchment'!$Q$5:$Q$9999)) -> 0.19 | U15: =IFERROR(IF(I15>=0.5,INTERPRNG_h($F15,'STU Treatment Values'!$AL$5:$AU$27,0,1,$J15),INTERPRNG_h($F15,'STU Treatment Values'!$AL$29:$AU$51,0,1,$J15)),"") -> 0.958040743 | V15: 0.1820277412 | W15: 0.1532598714 | X15: 1 | Y15: 0.473650223 | Z15: =IFERROR(INTERPRNG_h($F15,'STU Treatment Values'!$B$79:$K$101,0,1,$J15),"") -> 0.08412222888 | AA15: =IFERROR(INTERPRNG_h($F15,'STU Treatment Values'!$B$54:$K$76,0,1,$J15),"") -> 0.3211645512 | AB15: 0.4697342508 | AC15: 0.07199141088 | AD15: =IFERROR(INTERPRNG_h($F15,'STU Treatment Values'!$B$104:$K$126,0,1,$J15),"") -> 0.07515424969 | AE15: 0.04182340561
A16: SCP-BLB-011 | B16: =IF(A16="","",IFERROR(VLOOKUP(A16,Existing_STU!$A$6:$J$9999,4,0),VLOOKUP(A16,Potential_STU!$A$6:$K$9998,4,0))) -> Bioretention Swale | C16: =IF(A16="","",SUMIF(RIDOT_Catchment!$D$5:$D$9998,A16,RIDOT_Catchment!$L$5:$L$9998)+SUMIF('Non-RIDOT_Catchment'!$D$5:$D$9999,A16,'Non-RIDOT_Catchment'!$L$5:$L$9999)) -> 1549580.739 | D16: =IF(A16="","",SUMIF(RIDOT_Catchment!$D$5:$D$9998,A16,RIDOT_Catchment!$F$5:$F$9998)+SUMIF('Non-RIDOT_Catchment'!$D$5:$D$9999,A16,'Non-RIDOT_Catchment'!$F$5:$F$9999)) -> 536232 | E16: =IF(A16="","",IFERROR(VLOOKUP(A16,Existing_STU!$A$6:$J$9999,6,0),VLOOKUP(A16,Potential_STU!$A$6:$K$9998,6,0))) -> 12188 | F16: 0.2727476167 | G16: =IF(A16="","",IFERROR(VLOOKUP(A16,Existing_STU!$A$6:$J$9999,5,0),VLOOKUP(A16,Potential_STU!$A$6:$K$9998,5,0))) -> Silt Loam (0.27 in/hr) | H16: 1013348.739 | I16: 0.3460497324 | J16: =IF(ISBLANK(B16),"",IF(ISBLANK(G16),"",RowFunc(B16,G16))) -> 15 | K16: =IF(A16="","",SUMIF(RIDOT_Catchment!$D$5:$D$9998,A16,RIDOT_Catchment!$N$5:$N$9998)+SUMIF('Non-RIDOT_Catchment'!$D$5:$D$9999,A16,'Non-RIDOT_Catchment'!$N$5:$N$9999)) -> 24.42823933 | L16: =IFERROR(IF(I16>=0.5,INTERPRNG_h($F16,'STU Treatment Values'!$B$5:$K$27,0,1,$J16),INTERPRNG_h($F16,'STU Treatment Values'!$B$29:$K$51,0,1,$J16)),"") -> 0.29364857 | M16: 7.173317549 | N16: =IF(A16="","",SUMIF(RIDOT_Catchment!$D$5:$D$9998,A16,RIDOT_Catchment!$O$5:$O$9998)+SUMIF('Non-RIDOT_Catchment'!$D$5:$D$9999,A16,'Non-RIDOT_Catchment'!$O$5:$O$9999)) -> 5408.693372 | O16: =IFERROR(IF(I16>=0.5,INTERPRNG_h($F16,'STU Treatment Values'!$N$5:$W$27,0,1,$J16),INTERPRNG_h($F16,'STU Treatment Values'!$N$29:$W$51,0,1,$J16)),"") -> 0.7700223784 | P16: 4164.814934 | Q16: =IF(A16="","",SUMIF(RIDOT_Catchment!$D$5:$D$9998,A16,RIDOT_Catchment!$P$5:$P$9998)+SUMIF('Non-RIDOT_Catchment'!$D$5:$D$9999,A16,'Non-RIDOT_Catchment'!$P$5:$P$9999)) -> 209.4641685 | R16: =IFERROR(IF(I16>=0.5,INTERPRNG_h($F16,'STU Treatment Values'!$Z$5:$AI$27,0,1,$J16),INTERPRNG_h($F16,'STU Treatment Values'!$Z$29:$AI$51,0,1,$J16)),"") -> 0.1854616658 | S16: 38.84757363 | T16: =IF(A16="","",SUMIF(RIDOT_Catchment!$D$5:$D$9998,A16,RIDOT_Catchment!$Q$5:$Q$9998)+SUMIF('Non-RIDOT_Catchment'!$D$5:$D$9999,A16,'Non-RIDOT_Catchment'!$Q$5:$Q$9999)) -> 17.33713874 | U16: =IFERROR(IF(I16>=0.5,INTERPRNG_h($F16,'STU Treatment Values'!$AL$5:$AU$27,0,1,$J16),INTERPRNG_h($F16,'STU Treatment Values'!$AL$29:$AU$51,0,1,$J16)),"") -> 0.9054616658 | V16: 15.69811452 | W16: 12.31019284 | X16: 0.8555804204 | Y16: 0.3262761889 | Z16: =IFERROR(INTERPRNG_h($F16,'STU Treatment Values'!$B$79:$K$101,0,1,$J16),"") -> 0.04091214251 | AA16: =IFERROR(INTERPRNG_h($F16,'STU Treatment Values'!$B$54:$K$76,0,1,$J16),"") -> 0.1856484407 | AB16: 0.3521042981 | AC16: 4.334471809 | AD16: =IFERROR(INTERPRNG_h($F16,'STU Treatment Values'!$B$104:$K$126,0,1,$J16),"") -> 0.03801675361 | AE16: 1.876959421
A17: SCP-BLB-012 | B17: =IF(A17="","",IFERROR(VLOOKUP(A17,Existing_STU!$A$6:$J$9999,4,0),VLOOKUP(A17,Potential_STU!$A$6:$K$9998,4,0))) -> Bioretention Basin | C17: =IF(A17="","",SUMIF(RIDOT_Catchment!$D$5:$D$9998,A17,RIDOT_Catchment!$L$5:$L$9998)+SUMIF('Non-RIDOT_Catchment'!$D$5:$D$9999,A17,'Non-RIDOT_Catchment'!$L$5:$L$9999)) -> 497381.4698 | D17: =IF(A17="","",SUMIF(RIDOT_Catchment!$D$5:$D$9998,A17,RIDOT_Catchment!$F$5:$F$9998)+SUMIF('Non-RIDOT_Catchment'!$D$5:$D$9999,A17,'Non-RIDOT_Catchment'!$F$5:$F$9999)) -> 299932 | E17: =IF(A17="","",IFERROR(VLOOKUP(A17,Existing_STU!$A$6:$J$9999,6,0),VLOOKUP(A17,Potential_STU!$A$6:$K$9998,6,0))) -> 15210 | F17: 0.6085379353 | G17: =IF(A17="","",IFERROR(VLOOKUP(A17,Existing_STU!$A$6:$J$9999,5,0),VLOOKUP(A17,Potential_STU!$A$6:$K$9998,5,0))) -> Silt Loam (0.27 in/hr) | H17: 197449.4698 | I17: 0.6030220629 | J17: =IF(ISBLANK(B17),"",IF(ISBLANK(G17),"",RowFunc(B17,G17))) -> 15 | K17: =IF(A17="","",SUMIF(RIDOT_Catchment!$D$5:$D$9998,A17,RIDOT_Catchment!$N$5:$N$9998)+SUMIF('Non-RIDOT_Catchment'!$D$5:$D$9999,A17,'Non-RIDOT_Catchment'!$N$5:$N$9999)) -> 12.7806213 | L17: =IFERROR(IF(I17>=0.5,INTERPRNG_h($F17,'STU Treatment Values'!$B$5:$K$27,0,1,$J17),INTERPRNG_h($F17,'STU Treatment Values'!$B$29:$K$51,0,1,$J17)),"") -> 0.4417075871 | M17: 5.645297394 | N17: =IF(A17="","",SUMIF(RIDOT_Catchment!$D$5:$D$9998,A17,RIDOT_Catchment!$O$5:$O$9998)+SUMIF('Non-RIDOT_Catchment'!$D$5:$D$9999,A17,'Non-RIDOT_Catchment'!$O$5:$O$9999)) -> 2725.30971 | O17: =IFERROR(IF(I17>=0.5,INTERPRNG_h($F17,'STU Treatment Values'!$N$5:$W$27,0,1,$J17),INTERPRNG_h($F17,'STU Treatment Values'!$N$29:$W$51,0,1,$J17)),"") -> 0.9704268968 | P17: 2644.713845 | Q17: =IF(A17="","",SUMIF(RIDOT_Catchment!$D$5:$D$9998,A17,RIDOT_Catchment!$P$5:$P$9998)+SUMIF('Non-RIDOT_Catchment'!$D$5:$D$9999,A17,'Non-RIDOT_Catchment'!$P$5:$P$9999)) -> 108.8091425 | R17: =IFERROR(IF(I17>=0.5,INTERPRNG_h($F17,'STU Treatment Values'!$Z$5:$AI$27,0,1,$J17),INTERPRNG_h($F17,'STU Treatment Values'!$Z$29:$AI$51,0,1,$J17)),"") -> 0.2812806903 | S17: 30.60591072 | T17: =IF(A17="","",SUMIF(RIDOT_Catchment!$D$5:$D$9998,A17,RIDOT_Catchment!$Q$5:$Q$9998)+SUMIF('Non-RIDOT_Catchment'!$D$5:$D$9999,A17,'Non-RIDOT_Catchment'!$Q$5:$Q$9999)) -> 9.538109502 | U17: =IFERROR(IF(I17>=0.5,INTERPRNG_h($F17,'STU Treatment Values'!$AL$5:$AU$27,0,1,$J17),INTERPRNG_h($F17,'STU Treatment Values'!$AL$29:$AU$51,0,1,$J17)),"") -> 0.96 | V17: 9.156585122 | W17: 6.885491276 | X17: 1 | Y17: 0.4907862078 | Z17: =IFERROR(INTERPRNG_h($F17,'STU Treatment Values'!$B$79:$K$101,0,1,$J17),"") -> 0.09085379353 | AA17: =IFERROR(INTERPRNG_h($F17,'STU Treatment Values'!$B$54:$K$76,0,1,$J17),"") -> 0.3422763005 | AB17: 0.4809790755 | AC17: 3.311777228 | AD17: =IFERROR(INTERPRNG_h($F17,'STU Treatment Values'!$B$104:$K$126,0,1,$J17),"") -> 0.08126309136 | AE17: 2.079425521
A18: SCP-BLB-013 | B18: =IF(A18="","",IFERROR(VLOOKUP(A18,Existing_STU!$A$6:$J$9999,4,0),VLOOKUP(A18,Potential_STU!$A$6:$K$9998,4,0))) -> Bioretention Swale | C18: =IF(A18="","",SUMIF(RIDOT_Catchment!$D$5:$D$9998,A18,RIDOT_Catchment!$L$5:$L$9998)+SUMIF('Non-RIDOT_Catchment'!$D$5:$D$9999,A18,'Non-RIDOT_Catchment'!$L$5:$L$9999)) -> 10897.57565 | D18: =IF(A18="","",SUMIF(RIDOT_Catchment!$D$5:$D$9998,A18,RIDOT_Catchment!$F$5:$F$9998)+SUMIF('Non-RIDOT_Catchment'!$D$5:$D$9999,A18,'Non-RIDOT_Catchment'!$F$5:$F$9999)) -> 8696 | E18: =IF(A18="","",IFERROR(VLOOKUP(A18,Existing_STU!$A$6:$J$9999,6,0),VLOOKUP(A18,Potential_STU!$A$6:$K$9998,6,0))) -> 364 | F18: 0.502299908 | G18: =IF(A18="","",IFERROR(VLOOKUP(A18,Existing_STU!$A$6:$J$9999,5,0),VLOOKUP(A18,Potential_STU!$A$6:$K$9998,5,0))) -> Silt Loam (0.27 in/hr) | H18: 2201.575648 | I18: 0.7979756489 | J18: =IF(ISBLANK(B18),"",IF(ISBLANK(G18),"",RowFunc(B18,G18))) -> 15 | K18: =IF(A18="","",SUMIF(RIDOT_Catchment!$D$5:$D$9998,A18,RIDOT_Catchment!$N$5:$N$9998)+SUMIF('Non-RIDOT_Catchment'!$D$5:$D$9999,A18,'Non-RIDOT_Catchment'!$N$5:$N$9999)) -> 0.27 | L18: =IFERROR(IF(I18>=0.5,INTERPRNG_h($F18,'STU Treatment Values'!$B$5:$K$27,0,1,$J18),INTERPRNG_h($F18,'STU Treatment Values'!$B$29:$K$51,0,1,$J18)),"") -> 0.4058049678 | M18: 0.1095673413 | N18: =IF(A18="","",SUMIF(RIDOT_Catchment!$D$5:$D$9998,A18,RIDOT_Catchment!$O$5:$O$9998)+SUMIF('Non-RIDOT_Catchment'!$D$5:$D$9999,A18,'Non-RIDOT_Catchment'!$O$5:$O$9999)) -> 124 | O18: =IFERROR(IF(I18>=0.5,INTERPRNG_h($F18,'STU Treatment Values'!$N$5:$W$27,0,1,$J18),INTERPRNG_h($F18,'STU Treatment Values'!$N$29:$W$51,0,1,$J18)),"") -> 0.9406899724 | P18: 116.6455566 | Q18: =IF(A18="","",SUMIF(RIDOT_Catchment!$D$5:$D$9998,A18,RIDOT_Catchment!$P$5:$P$9998)+SUMIF('Non-RIDOT_Catchment'!$D$5:$D$9999,A18,'Non-RIDOT_Catchment'!$P$5:$P$9999)) -> 1.72 | R18: =IFERROR(IF(I18>=0.5,INTERPRNG_h($F18,'STU Treatment Values'!$Z$5:$AI$27,0,1,$J18),INTERPRNG_h($F18,'STU Treatment Values'!$Z$29:$AI$51,0,1,$J18)),"") -> 0.255574977 | S18: 0.4395889604 | T18: =IF(A18="","",SUMIF(RIDOT_Catchment!$D$5:$D$9998,A18,RIDOT_Catchment!$Q$5:$Q$9998)+SUMIF('Non-RIDOT_Catchment'!$D$5:$D$9999,A18,'Non-RIDOT_Catchment'!$Q$5:$Q$9999)) -> 0.25 | U18: =IFERROR(IF(I18>=0.5,INTERPRNG_h($F18,'STU Treatment Values'!$AL$5:$AU$27,0,1,$J18),INTERPRNG_h($F18,'STU Treatment Values'!$AL$29:$AU$51,0,1,$J18)),"") -> 0.9551149954 | V18: 0.2387787489 | W18: 0.1996326905 | X18: 1 | Y18: 0.4508944087 | Z18: =IFERROR(INTERPRNG_h($F18,'STU Treatment Values'!$B$79:$K$101,0,1,$J18),"") -> 0.0753449862 | AA18: =IFERROR(INTERPRNG_h($F18,'STU Treatment Values'!$B$54:$K$76,0,1,$J18),"") -> 0.2928147237 | AB18: 0.4547635296 | AC18: 0.09078566698 | AD18: =IFERROR(INTERPRNG_h($F18,'STU Treatment Values'!$B$104:$K$126,0,1,$J18),"") -> 0.06750298476 | AE18: 0.0487757733
A19: SCP-BLB-014 | B19: =IF(A19="","",IFERROR(VLOOKUP(A19,Existing_STU!$A$6:$J$9999,4,0),VLOOKUP(A19,Potential_STU!$A$6:$K$9998,4,0))) -> Bioretention Basin | C19: =IF(A19="","",SUMIF(RIDOT_Catchment!$D$5:$D$9998,A19,RIDOT_Catchment!$L$5:$L$9998)+SUMIF('Non-RIDOT_Catchment'!$D$5:$D$9999,A19,'Non-RIDOT_Catchment'!$L$5:$L$9999)) -> 104708.9543 | D19: =IF(A19="","",SUMIF(RIDOT_Catchment!$D$5:$D$9998,A19,RIDOT_Catchment!$F$5:$F$9998)+SUMIF('Non-RIDOT_Catchment'!$D$5:$D$9999,A19,'Non-RIDOT_Catchment'!$F$5:$F$9999)) -> 44080 | E19: =IF(A19="","",IFERROR(VLOOKUP(A19,Existing_STU!$A$6:$J$9999,6,0),VLOOKUP(A19,Potential_STU!$A$6:$K$9998,6,0))) -> 3159 | F19: 0.8599818512 | G19: =IF(A19="","",IFERROR(VLOOKUP(A19,Existing_STU!$A$6:$J$9999,5,0),VLOOKUP(A19,Potential_STU!$A$6:$K$9998,5,0))) -> Silt Loam (0.27 in/hr) | H19: 60628.95428 | I19: 0.4209764132 | J19: =IF(ISBLANK(B19),"",IF(ISBLANK(G19),"",RowFunc(B19,G19))) -> 15 | K19: =IF(A19="","",SUMIF(RIDOT_Catchment!$D$5:$D$9998,A19,RIDOT_Catchment!$N$5:$N$9998)+SUMIF('Non-RIDOT_Catchment'!$D$5:$D$9999,A19,'Non-RIDOT_Catchment'!$N$5:$N$9999)) -> 2.018619547 | L19: =IFERROR(IF(I19>=0.5,INTERPRNG_h($F19,'STU Treatment Values'!$B$5:$K$27,0,1,$J19),INTERPRNG_h($F19,'STU Treatment Values'!$B$29:$K$51,0,1,$J19)),"") -> 0.4828662784 | M19: 0.974723308 | N19: =IF(A19="","",SUMIF(RIDOT_Catchment!$D$5:$D$9998,A19,RIDOT_Catchment!$O$5:$O$9998)+SUMIF('Non-RIDOT_Catchment'!$D$5:$D$9999,A19,'Non-RIDOT_Catchment'!$O$5:$O$9999)) -> 570.6436591 | O19: =IFERROR(IF(I19>=0.5,INTERPRNG_h($F19,'STU Treatment Values'!$N$5:$W$27,0,1,$J19),INTERPRNG_h($F19,'STU Treatment Values'!$N$29:$W$51,0,1,$J19)),"") -> 0.9802194241 | P19: 559.3559989 | Q19: =IF(A19="","",SUMIF(RIDOT_Catchment!$D$5:$D$9998,A19,RIDOT_Catchment!$P$5:$P$9998)+SUMIF('Non-RIDOT_Catchment'!$D$5:$D$9999,A19,'Non-RIDOT_Catchment'!$P$5:$P$9999)) -> 13.01880318 | R19: =IFERROR(IF(I19>=0.5,INTERPRNG_h($F19,'STU Treatment Values'!$Z$5:$AI$27,0,1,$J19),INTERPRNG_h($F19,'STU Treatment Values'!$Z$29:$AI$51,0,1,$J19)),"") -> 0.3066811083 | S19: 3.992620989 | T19: =IF(A19="","",SUMIF(RIDOT_Catchment!$D$5:$D$9998,A19,RIDOT_Catchment!$Q$5:$Q$9998)+SUMIF('Non-RIDOT_Catchment'!$D$5:$D$9999,A19,'Non-RIDOT_Catchment'!$Q$5:$Q$9999)) -> 1.00347185 | U19: =IFERROR(IF(I19>=0.5,INTERPRNG_h($F19,'STU Treatment Values'!$AL$5:$AU$27,0,1,$J19),INTERPRNG_h($F19,'STU Treatment Values'!$AL$29:$AU$51,0,1,$J19)),"") -> 0.961988582 | V19: 0.9653284624 | W19: 1.011937557 | X19: 1 | Y19: 0.5365180871 | Z19: =IFERROR(INTERPRNG_h($F19,'STU Treatment Values'!$B$79:$K$101,0,1,$J19),"") -> 0.1189972777 | AA19: =IFERROR(INTERPRNG_h($F19,'STU Treatment Values'!$B$54:$K$76,0,1,$J19),"") -> 0.4111371353 | AB19: 0.516663125 | AC19: 0.5228308207 | AD19: =IFERROR(INTERPRNG_h($F19,'STU Treatment Values'!$B$104:$K$126,0,1,$J19),"") -> 0.1102772274 | AE19: 0.4338458026
A20: SCP-BLB-015a | B20: =IF(A20="","",IFERROR(VLOOKUP(A20,Existing_STU!$A$6:$J$9999,4,0),VLOOKUP(A20,Potential_STU!$A$6:$K$9998,4,0))) -> Underground Infiltration System | C20: =IF(A20="","",SUMIF(RIDOT_Catchment!$D$5:$D$9998,A20,RIDOT_Catchment!$L$5:$L$9998)+SUMIF('Non-RIDOT_Catchment'!$D$5:$D$9999,A20,'Non-RIDOT_Catchment'!$L$5:$L$9999)) -> 79610.03985 | D20: =IF(A20="","",SUMIF(RIDOT_Catchment!$D$5:$D$9998,A20,RIDOT_Catchment!$F$5:$F$9998)+SUMIF('Non-RIDOT_Catchment'!$D$5:$D$9999,A20,'Non-RIDOT_Catchment'!$F$5:$F$9999)) -> 61508 | E20: =IF(A20="","",IFERROR(VLOOKUP(A20,Existing_STU!$A$6:$J$9999,6,0),VLOOKUP(A20,Potential_STU!$A$6:$K$9998,6,0))) -> 4463 | F20: 0.8707160044 | G20: =IF(A20="","",IFERROR(VLOOKUP(A20,Existing_STU!$A$6:$J$9999,5,0),VLOOKUP(A20,Potential_STU!$A$6:$K$9998,5,0))) -> Loam (0.52 in/hr) | H20: 18102.03985 | I20: 0.7726161187 | J20: =IF(ISBLANK(B20),"",IF(ISBLANK(G20),"",RowFunc(B20,G20))) -> 10 | K20: =IF(A20="","",SUMIF(RIDOT_Catchment!$D$5:$D$9998,A20,RIDOT_Catchment!$N$5:$N$9998)+SUMIF('Non-RIDOT_Catchment'!$D$5:$D$9999,A20,'Non-RIDOT_Catchment'!$N$5:$N$9999)) -> 1.93 | L20: =IFERROR(IF(I20>=0.5,INTERPRNG_h($F20,'STU Treatment Values'!$B$5:$K$27,0,1,$J20),INTERPRNG_h($F20,'STU Treatment Values'!$B$29:$K$51,0,1,$J20)),"") -> 0.9076790011 | M20: 1.751820472 | N20: =IF(A20="","",SUMIF(RIDOT_Catchment!$D$5:$D$9998,A20,RIDOT_Catchment!$O$5:$O$9998)+SUMIF('Non-RIDOT_Catchment'!$D$5:$D$9999,A20,'Non-RIDOT_Catchment'!$O$5:$O$9999)) -> 878 | O20: =IFERROR(IF(I20>=0.5,INTERPRNG_h($F20,'STU Treatment Values'!$N$5:$W$27,0,1,$J20),INTERPRNG_h($F20,'STU Treatment Values'!$N$29:$W$51,0,1,$J20)),"") -> 0.9935358002 | P20: 872.3244326 | Q20: =IF(A20="","",SUMIF(RIDOT_Catchment!$D$5:$D$9998,A20,RIDOT_Catchment!$P$5:$P$9998)+SUMIF('Non-RIDOT_Catchment'!$D$5:$D$9999,A20,'Non-RIDOT_Catchment'!$P$5:$P$9999)) -> 12.23 | R20: =IFERROR(IF(I20>=0.5,INTERPRNG_h($F20,'STU Treatment Values'!$Z$5:$AI$27,0,1,$J20),INTERPRNG_h($F20,'STU Treatment Values'!$Z$29:$AI$51,0,1,$J20)),"") -> 0.9835358002 | S20: 12.02864284 | T20: =IF(A20="","",SUMIF(RIDOT_Catchment!$D$5:$D$9998,A20,RIDOT_Catchment!$Q$5:$Q$9998)+SUMIF('Non-RIDOT_Catchment'!$D$5:$D$9999,A20,'Non-RIDOT_Catchment'!$Q$5:$Q$9999)) -> 1.74 | U20: =IFERROR(IF(I20>=0.5,INTERPRNG_h($F20,'STU Treatment Values'!$AL$5:$AU$27,0,1,$J20),INTERPRNG_h($F20,'STU Treatment Values'!$AL$29:$AU$51,0,1,$J20)),"") -> 1 | V20: 1.74 | W20: 1.412029385 | X20: 1 | Y20: 1 | Z20: =IFERROR(INTERPRNG_h($F20,'STU Treatment Values'!$B$79:$K$101,0,1,$J20),"") -> 0.9082864018 | AA20: =IFERROR(INTERPRNG_h($F20,'STU Treatment Values'!$B$54:$K$76,0,1,$J20),"") -> 0.7069069788 | AB20: 0.9037983451 | AC20: 1.276189821 | AD20: =IFERROR(INTERPRNG_h($F20,'STU Treatment Values'!$B$104:$K$126,0,1,$J20),"") -> 0.8158046617 | AE20: 4.180780885
A21: SCP-BLB-015b | B21: =IF(A21="","",IFERROR(VLOOKUP(A21,Existing_STU!$A$6:$J$9999,4,0),VLOOKUP(A21,Potential_STU!$A$6:$K$9998,4,0))) -> Wet Vegetated Treatment System | C21: =IF(A21="","",SUMIF(RIDOT_Catchment!$D$5:$D$9998,A21,RIDOT_Catchment!$L$5:$L$9998)+SUMIF('Non-RIDOT_Catchment'!$D$5:$D$9999,A21,'Non-RIDOT_Catchment'!$L$5:$L$9999)) -> 782929.4768 | D21: =IF(A21="","",SUMIF(RIDOT_Catchment!$D$5:$D$9998,A21,RIDOT_Catchment!$F$5:$F$9998)+SUMIF('Non-RIDOT_Catchment'!$D$5:$D$9999,A21,'Non-RIDOT_Catchment'!$F$5:$F$9999)) -> 249940 | E21: =IF(A21="","",IFERROR(VLOOKUP(A21,Existing_STU!$A$6:$J$9999,6,0),VLOOKUP(A21,Potential_STU!$A$6:$K$9998,6,0))) -> 35616 | F21: 1.709978395 | G21: =IF(A21="","",IFERROR(VLOOKUP(A21,Existing_STU!$A$6:$J$9999,5,0),VLOOKUP(A21,Potential_STU!$A$6:$K$9998,5,0))) -> Loam (0.52 in/hr) | H21: 532989.4768 | I21: 0.3192369267 | J21: =IF(ISBLANK(B21),"",IF(ISBLANK(G21),"",RowFunc(B21,G21))) -> 19 | K21: =IF(A21="","",SUMIF(RIDOT_Catchment!$D$5:$D$9998,A21,RIDOT_Catchment!$N$5:$N$9998)+SUMIF('Non-RIDOT_Catchment'!$D$5:$D$9999,A21,'Non-RIDOT_Catchment'!$N$5:$N$9999)) -> 14.15937451 | L21: =IFERROR(IF(I21>=0.5,INTERPRNG_h($F21,'STU Treatment Values'!$B$5:$K$27,0,1,$J21),INTERPRNG_h($F21,'STU Treatment Values'!$B$29:$K$51,0,1,$J21)),"") -> 0.6443307715 | M21: 9.123320699 | N21: =IF(A21="","",SUMIF(RIDOT_Catchment!$D$5:$D$9998,A21,RIDOT_Catchment!$O$5:$O$9998)+SUMIF('Non-RIDOT_Catchment'!$D$5:$D$9999,A21,'Non-RIDOT_Catchment'!$O$5:$O$9999)) -> 2967.646856 | O21: =IFERROR(IF(I21>=0.5,INTERPRNG_h($F21,'STU Treatment Values'!$N$5:$W$27,0,1,$J21),INTERPRNG_h($F21,'STU Treatment Values'!$N$29:$W$51,0,1,$J21)),"") -> 0.9863668123 | P21: 2927.188369 | Q21: =IF(A21="","",SUMIF(RIDOT_Catchment!$D$5:$D$9998,A21,RIDOT_Catchment!$P$5:$P$9998)+SUMIF('Non-RIDOT_Catchment'!$D$5:$D$9999,A21,'Non-RIDOT_Catchment'!$P$5:$P$9999)) -> 91.6756806 | R21: =IFERROR(IF(I21>=0.5,INTERPRNG_h($F21,'STU Treatment Values'!$Z$5:$AI$27,0,1,$J21),INTERPRNG_h($F21,'STU Treatment Values'!$Z$29:$AI$51,0,1,$J21)),"") -> 0.7370861715 | S21: 67.57287643 | T21: =IF(A21="","",SUMIF(RIDOT_Catchment!$D$5:$D$9998,A21,RIDOT_Catchment!$Q$5:$Q$9998)+SUMIF('Non-RIDOT_Catchment'!$D$5:$D$9999,A21,'Non-RIDOT_Catchment'!$Q$5:$Q$9999)) -> 4.595865407 | U21: =IFERROR(IF(I21>=0.5,INTERPRNG_h($F21,'STU Treatment Values'!$AL$5:$AU$27,0,1,$J21),INTERPRNG_h($F21,'STU Treatment Values'!$AL$29:$AU$51,0,1,$J21)),"") -> 0.9097805531 | V21: 4.181228972 | W21: 5.737832874 | X21: 1 | Y21: 0.7159230794 | Z21: =IFERROR(INTERPRNG_h($F21,'STU Treatment Values'!$B$79:$K$101,0,1,$J21),"") -> 0.04839913579 | AA21: =IFERROR(INTERPRNG_h($F21,'STU Treatment Values'!$B$54:$K$76,0,1,$J21),"") -> 0.3361174211 | AB21: 0.5251099091 | AC21: 3.012992899 | AD21: =IFERROR(INTERPRNG_h($F21,'STU Treatment Values'!$B$104:$K$126,0,1,$J21),"") -> 0.0454830882 | AE21: 1.061816002
A22: SCP-BLB-016 | B22: =IF(A22="","",IFERROR(VLOOKUP(A22,Existing_STU!$A$6:$J$9999,4,0),VLOOKUP(A22,Potential_STU!$A$6:$K$9998,4,0))) -> Wet Vegetated Treatment System | C22: =IF(A22="","",SUMIF(RIDOT_Catchment!$D$5:$D$9998,A22,RIDOT_Catchment!$L$5:$L$9998)+SUMIF('Non-RIDOT_Catchment'!$D$5:$D$9999,A22,'Non-RIDOT_Catchment'!$L$5:$L$9999)) -> 237398.6983 | D22: =IF(A22="","",SUMIF(RIDOT_Catchment!$D$5:$D$9998,A22,RIDOT_Catchment!$F$5:$F$9998)+SUMIF('Non-RIDOT_Catchment'!$D$5:$D$9999,A22,'Non-RIDOT_Catchment'!$F$5:$F$9999)) -> 123788 | E22: =IF(A22="","",IFERROR(VLOOKUP(A22,Existing_STU!$A$6:$J$9999,6,0),VLOOKUP(A22,Potential_STU!$A$6:$K$9998,6,0))) -> 0 | F22: 0 | G22: =IF(A22="","",IFERROR(VLOOKUP(A22,Existing_STU!$A$6:$J$9999,5,0),VLOOKUP(A22,Potential_STU!$A$6:$K$9998,5,0))) -> Silt Loam (0.27 in/hr) | H22: 113610.6983 | I22: 0.521435041 | J22: =IF(ISBLANK(B22),"",IF(ISBLANK(G22),"",RowFunc(B22,G22))) -> 19 | K22: =IF(A22="","",SUMIF(RIDOT_Catchment!$D$5:$D$9998,A22,RIDOT_Catchment!$N$5:$N$9998)+SUMIF('Non-RIDOT_Catchment'!$D$5:$D$9999,A22,'Non-RIDOT_Catchment'!$N$5:$N$9999)) -> 5.360133099 | L22: =IFERROR(IF(I22>=0.5,INTERPRNG_h($F22,'STU Treatment Values'!$B$5:$K$27,0,1,$J22),INTERPRNG_h($F22,'STU Treatment Values'!$B$29:$K$51,0,1,$J22)),"") -> 0 | M22: 0 | N22: =IF(A22="","",SUMIF(RIDOT_Catchment!$D$5:$D$9998,A22,RIDOT_Catchment!$O$5:$O$9998)+SUMIF('Non-RIDOT_Catchment'!$D$5:$D$9999,A22,'Non-RIDOT_Catchment'!$O$5:$O$9999)) -> 1146.446615 | O22: =IFERROR(IF(I22>=0.5,INTERPRNG_h($F22,'STU Treatment Values'!$N$5:$W$27,0,1,$J22),INTERPRNG_h($F22,'STU Treatment Values'!$N$29:$W$51,0,1,$J22)),"") -> 0 | P22: 0 | Q22: =IF(A22="","",SUMIF(RIDOT_Catchment!$D$5:$D$9998,A22,RIDOT_Catchment!$P$5:$P$9998)+SUMIF('Non-RIDOT_Catchment'!$D$5:$D$9999,A22,'Non-RIDOT_Catchment'!$P$5:$P$9999)) -> 45.76085597 | R22: =IFERROR(IF(I22>=0.5,INTERPRNG_h($F22,'STU Treatment Values'!$Z$5:$AI$27,0,1,$J22),INTERPRNG_h($F22,'STU Treatment Values'!$Z$29:$AI$51,0,1,$J22)),"") -> 0 | S22: 0 | T22: =IF(A22="","",SUMIF(RIDOT_Catchment!$D$5:$D$9998,A22,RIDOT_Catchment!$Q$5:$Q$9998)+SUMIF('Non-RIDOT_Catchment'!$D$5:$D$9999,A22,'Non-RIDOT_Catchment'!$Q$5:$Q$9999)) -> 3.952976833 | U22: =IFERROR(IF(I22>=0.5,INTERPRNG_h($F22,'STU Treatment Values'!$AL$5:$AU$27,0,1,$J22),INTERPRNG_h($F22,'STU Treatment Values'!$AL$29:$AU$51,0,1,$J22)),"") -> 0 | V22: 0 | W22: 2.841781451 | X22: 0 | Y22: 0 | Z22: =IFERROR(INTERPRNG_h($F22,'STU Treatment Values'!$B$79:$K$101,0,1,$J22),"") -> 0 | AA22: =IFERROR(INTERPRNG_h($F22,'STU Treatment Values'!$B$54:$K$76,0,1,$J22),"") -> 0 | AB22: 0 | AC22: 0 | AD22: =IFERROR(INTERPRNG_h($F22,'STU Treatment Values'!$B$104:$K$126,0,1,$J22),"") -> 0 | AE22: 0
A23: SCP-BLB-017 | B23: =IF(A23="","",IFERROR(VLOOKUP(A23,Existing_STU!$A$6:$J$9999,4,0),VLOOKUP(A23,Potential_STU!$A$6:$K$9998,4,0))) -> Bioretention Swale | C23: =IF(A23="","",SUMIF(RIDOT_Catchment!$D$5:$D$9998,A23,RIDOT_Catchment!$L$5:$L$9998)+SUMIF('Non-RIDOT_Catchment'!$D$5:$D$9999,A23,'Non-RIDOT_Catchment'!$L$5:$L$9999)) -> 26737.76348 | D23: =IF(A23="","",SUMIF(RIDOT_Catchment!$D$5:$D$9998,A23,RIDOT_Catchment!$F$5:$F$9998)+SUMIF('Non-RIDOT_Catchment'!$D$5:$D$9999,A23,'Non-RIDOT_Catchment'!$F$5:$F$9999)) -> 17908 | E23: =IF(A23="","",IFERROR(VLOOKUP(A23,Existing_STU!$A$6:$J$9999,6,0),VLOOKUP(A23,Potential_STU!$A$6:$K$9998,6,0))) -> 811 | F23: 0.5434442707 | G23: =IF(A23="","",IFERROR(VLOOKUP(A23,Existing_STU!$A$6:$J$9999,5,0),VLOOKUP(A23,Potential_STU!$A$6:$K$9998,5,0))) -> Silt Loam (0.27 in/hr) | H23: 8829.763478 | I23: 0.669764321 | J23: =IF(ISBLANK(B23),"",IF(ISBLANK(G23),"",RowFunc(B23,G23))) -> 15 | K23: =IF(A23="","",SUMIF(RIDOT_Catchment!$D$5:$D$9998,A23,RIDOT_Catchment!$N$5:$N$9998)+SUMIF('Non-RIDOT_Catchment'!$D$5:$D$9999,A23,'Non-RIDOT_Catchment'!$N$5:$N$9999)) -> 0.57 | L23: =IFERROR(IF(I23>=0.5,INTERPRNG_h($F23,'STU Treatment Values'!$B$5:$K$27,0,1,$J23),INTERPRNG_h($F23,'STU Treatment Values'!$B$29:$K$51,0,1,$J23)),"") -> 0.4202054948 | M23: 0.239517132 | N23: =IF(A23="","",SUMIF(RIDOT_Catchment!$D$5:$D$9998,A23,RIDOT_Catchment!$O$5:$O$9998)+SUMIF('Non-RIDOT_Catchment'!$D$5:$D$9999,A23,'Non-RIDOT_Catchment'!$O$5:$O$9999)) -> 258 | O23: =IFERROR(IF(I23>=0.5,INTERPRNG_h($F23,'STU Treatment Values'!$N$5:$W$27,0,1,$J23),INTERPRNG_h($F23,'STU Treatment Values'!$N$29:$W$51,0,1,$J23)),"") -> 0.9530332812 | P23: 245.8825866 | Q23: =IF(A23="","",SUMIF(RIDOT_Catchment!$D$5:$D$9998,A23,RIDOT_Catchment!$P$5:$P$9998)+SUMIF('Non-RIDOT_Catchment'!$D$5:$D$9999,A23,'Non-RIDOT_Catchment'!$P$5:$P$9999)) -> 3.63 | R23: =IFERROR(IF(I23>=0.5,INTERPRNG_h($F23,'STU Treatment Values'!$Z$5:$AI$27,0,1,$J23),INTERPRNG_h($F23,'STU Treatment Values'!$Z$29:$AI$51,0,1,$J23)),"") -> 0.2658610677 | S23: 0.9650756757 | T23: =IF(A23="","",SUMIF(RIDOT_Catchment!$D$5:$D$9998,A23,RIDOT_Catchment!$Q$5:$Q$9998)+SUMIF('Non-RIDOT_Catchment'!$D$5:$D$9999,A23,'Non-RIDOT_Catchment'!$Q$5:$Q$9999)) -> 0.51 | U23: =IFERROR(IF(I23>=0.5,INTERPRNG_h($F23,'STU Treatment Values'!$AL$5:$AU$27,0,1,$J23),INTERPRNG_h($F23,'STU Treatment Values'!$AL$29:$AU$51,0,1,$J23)),"") -> 0.9571722135 | V23: 0.4881578289 | W23: 0.4111111111 | X23: 1 | Y23: 0.4668949942 | Z23: =IFERROR(INTERPRNG_h($F23,'STU Treatment Values'!$B$79:$K$101,0,1,$J23),"") -> 0.08151664061 | AA23: =IFERROR(INTERPRNG_h($F23,'STU Treatment Values'!$B$54:$K$76,0,1,$J23),"") -> 0.3127486989 | AB23: 0.4652900834 | AC23: 0.1912859232 | AD23: =IFERROR(INTERPRNG_h($F23,'STU Treatment Values'!$B$104:$K$126,0,1,$J23),"") -> 0.07288291609 | AE23: 0.1101691291
A24: SCP-BLB-018 | B24: =IF(A24="","",IFERROR(VLOOKUP(A24,Existing_STU!$A$6:$J$9999,4,0),VLOOKUP(A24,Potential_STU!$A$6:$K$9998,4,0))) -> Bioretention Swale | C24: =IF(A24="","",SUMIF(RIDOT_Catchment!$D$5:$D$9998,A24,RIDOT_Catchment!$L$5:$L$9998)+SUMIF('Non-RIDOT_Catchment'!$D$5:$D$9999,A24,'Non-RIDOT_Catchment'!$L$5:$L$9999)) -> 0 | D24: =IF(A24="","",SUMIF(RIDOT_Catchment!$D$5:$D$9998,A24,RIDOT_Catchment!$F$5:$F$9998)+SUMIF('Non-RIDOT_Catchment'!$D$5:$D$9999,A24,'Non-RIDOT_Catchment'!$F$5:$F$9999)) -> 0 | E24: =IF(A24="","",IFERROR(VLOOKUP(A24,Existing_STU!$A$6:$J$9999,6,0),VLOOKUP(A24,Potential_STU!$A$6:$K$9998,6,0))) -> 0 | G24: =IF(A24="","",IFERROR(VLOOKUP(A24,Existing_STU!$A$6:$J$9999,5,0),VLOOKUP(A24,Potential_STU!$A$6:$K$9998,5,0))) -> Silt Loam (0.27 in/hr) | H24: 0 | J24: =IF(ISBLANK(B24),"",IF(ISBLANK(G24),"",RowFunc(B24,G24))) -> 15 | K24: =IF(A24="","",SUMIF(RIDOT_Catchment!$D$5:$D$9998,A24,RIDOT_Catchment!$N$5:$N$9998)+SUMIF('Non-RIDOT_Catchment'!$D$5:$D$9999,A24,'Non-RIDOT_Catchment'!$N$5:$N$9999)) -> 0 | L24: =IFERROR(IF(I24>=0.5,INTERPRNG_h($F24,'STU Treatment Values'!$B$5:$K$27,0,1,$J24),INTERPRNG_h($F24,'STU Treatment Values'!$B$29:$K$51,0,1,$J24)),"") -> 0 | M24: 0 | N24: =IF(A24="","",SUMIF(RIDOT_Catchment!$D$5:$D$9998,A24,RIDOT_Catchment!$O$5:$O$9998)+SUMIF('Non-RIDOT_Catchment'!$D$5:$D$9999,A24,'Non-RIDOT_Catchment'!$O$5:$O$9999)) -> 0 | O24: =IFERROR(IF(I24>=0.5,INTERPRNG_h($F24,'STU Treatment Values'!$N$5:$W$27,0,1,$J24),INTERPRNG_h($F24,'STU Treatment Values'!$N$29:$W$51,0,1,$J24)),"") -> 0 | P24: 0 | Q24: =IF(A24="","",SUMIF(RIDOT_Catchment!$D$5:$D$9998,A24,RIDOT_Catchment!$P$5:$P$9998)+SUMIF('Non-RIDOT_Catchment'!$D$5:$D$9999,A24,'Non-RIDOT_Catchment'!$P$5:$P$9999)) -> 0 | R24: =IFERROR(IF(I24>=0.5,INTERPRNG_h($F24,'STU Treatment Values'!$Z$5:$AI$27,0,1,$J24),INTERPRNG_h($F24,'STU Treatment Values'!$Z$29:$AI$51,0,1,$J24)),"") -> 0 | S24: 0 | T24: =IF(A24="","",SUMIF(RIDOT_Catchment!$D$5:$D$9998,A24,RIDOT_Catchment!$Q$5:$Q$9998)+SUMIF('Non-RIDOT_Catchment'!$D$5:$D$9999,A24,'Non-RIDOT_Catchment'!$Q$5:$Q$9999)) -> 0 | U24: =IFERROR(IF(I24>=0.5,INTERPRNG_h($F24,'STU Treatment Values'!$AL$5:$AU$27,0,1,$J24),INTERPRNG_h($F24,'STU Treatment Values'!$AL$29:$AU$51,0,1,$J24)),"") -> 0 | V24: 0 | W24: 0 | X24: 0 | Y24: 0 | Z24: =IFERROR(INTERPRNG_h($F24,'STU Treatment Values'!$B$79:$K$101,0,1,$J24),"") -> 0 | AA24: =IFERROR(INTERPRNG_h($F24,'STU Treatment Values'!$B$54:$K$76,0,1,$J24),"") -> 0 | AB24: 0 | AC24: 0 | AD24: =IFERROR(INTERPRNG_h($F24,'STU Treatment Values'!$B$104:$K$126,0,1,$J24),"") -> 0 | AE24: 0
A25: SCP-BLB-019 | B25: =IF(A25="","",IFERROR(VLOOKUP(A25,Existing_STU!$A$6:$J$9999,4,0),VLOOKUP(A25,Potential_STU!$A$6:$K$9998,4,0))) -> Bioretention Basin | C25: =IF(A25="","",SUMIF(RIDOT_Catchment!$D$5:$D$9998,A25,RIDOT_Catchment!$L$5:$L$9998)+SUMIF('Non-RIDOT_Catchment'!$D$5:$D$9999,A25,'Non-RIDOT_Catchment'!$L$5:$L$9999)) -> 16476.71113 | D25: =IF(A25="","",SUMIF(RIDOT_Catchment!$D$5:$D$9998,A25,RIDOT_Catchment!$F$5:$F$9998)+SUMIF('Non-RIDOT_Catchment'!$D$5:$D$9999,A25,'Non-RIDOT_Catchment'!$F$5:$F$9999)) -> 14688 | E25: =IF(A25="","",IFERROR(VLOOKUP(A25,Existing_STU!$A$6:$J$9999,6,0),VLOOKUP(A25,Potential_STU!$A$6:$K$9998,6,0))) -> 2080 | F25: 1.699346405 | G25: =IF(A25="","",IFERROR(VLOOKUP(A25,Existing_STU!$A$6:$J$9999,5,0),VLOOKUP(A25,Potential_STU!$A$6:$K$9998,5,0))) -> Silt Loam (0.27 in/hr) | H25: 1788.711126 | I25: 0.8914400385 | J25: =IF(ISBLANK(B25),"",IF(ISBLANK(G25),"",RowFunc(B25,G25))) -> 15 | K25: =IF(A25="","",SUMIF(RIDOT_Catchment!$D$5:$D$9998,A25,RIDOT_Catchment!$N$5:$N$9998)+SUMIF('Non-RIDOT_Catchment'!$D$5:$D$9999,A25,'Non-RIDOT_Catchment'!$N$5:$N$9999)) -> 0.45 | L25: =IFERROR(IF(I25>=0.5,INTERPRNG_h($F25,'STU Treatment Values'!$B$5:$K$27,0,1,$J25),INTERPRNG_h($F25,'STU Treatment Values'!$B$29:$K$51,0,1,$J25)),"") -> 0.5999346405 | M25: 0.2699705882 | N25: =IF(A25="","",SUMIF(RIDOT_Catchment!$D$5:$D$9998,A25,RIDOT_Catchment!$O$5:$O$9998)+SUMIF('Non-RIDOT_Catchment'!$D$5:$D$9999,A25,'Non-RIDOT_Catchment'!$O$5:$O$9999)) -> 208 | O25: =IFERROR(IF(I25>=0.5,INTERPRNG_h($F25,'STU Treatment Values'!$N$5:$W$27,0,1,$J25),INTERPRNG_h($F25,'STU Treatment Values'!$N$29:$W$51,0,1,$J25)),"") -> 1 | P25: 208 | Q25: =IF(A25="","",SUMIF(RIDOT_Catchment!$D$5:$D$9998,A25,RIDOT_Catchment!$P$5:$P$9998)+SUMIF('Non-RIDOT_Catchment'!$D$5:$D$9999,A25,'Non-RIDOT_Catchment'!$P$5:$P$9999)) -> 2.87 | R25: =IFERROR(IF(I25>=0.5,INTERPRNG_h($F25,'STU Treatment Values'!$Z$5:$AI$27,0,1,$J25),INTERPRNG_h($F25,'STU Treatment Values'!$Z$29:$AI$51,0,1,$J25)),"") -> 0.3819607843 | S25: 1.096227451 | T25: =IF(A25="","",SUMIF(RIDOT_Catchment!$D$5:$D$9998,A25,RIDOT_Catchment!$Q$5:$Q$9998)+SUMIF('Non-RIDOT_Catchment'!$D$5:$D$9999,A25,'Non-RIDOT_Catchment'!$Q$5:$Q$9999)) -> 0.42 | U25: =IFERROR(IF(I25>=0.5,INTERPRNG_h($F25,'STU Treatment Values'!$AL$5:$AU$27,0,1,$J25),INTERPRNG_h($F25,'STU Treatment Values'!$AL$29:$AU$51,0,1,$J25)),"") -> 0.9839869281 | V25: 0.4132745098 | W25: 0.3371900826 | X25: 1 | Y25: 0.666594045 | Z25: =IFERROR(INTERPRNG_h($F25,'STU Treatment Values'!$B$79:$K$101,0,1,$J25),"") -> 0.2679084967 | AA25: =IFERROR(INTERPRNG_h($F25,'STU Treatment Values'!$B$54:$K$76,0,1,$J25),"") -> 0.7285893968 | AB25: 0.6657729846 | AC25: 0.2244920477 | AD25: =IFERROR(INTERPRNG_h($F25,'STU Treatment Values'!$B$104:$K$126,0,1,$J25),"") -> 0.2423685958 | AE25: 0.2932353652
A26: SCP-BLB-020 | B26: =IF(A26="","",IFERROR(VLOOKUP(A26,Existing_STU!$A$6:$J$9999,4,0),VLOOKUP(A26,Potential_STU!$A$6:$K$9998,4,0))) -> Bioretention Basin | C26: =IF(A26="","",SUMIF(RIDOT_Catchment!$D$5:$D$9998,A26,RIDOT_Catchment!$L$5:$L$9998)+SUMIF('Non-RIDOT_Catchment'!$D$5:$D$9999,A26,'Non-RIDOT_Catchment'!$L$5:$L$9999)) -> 23723.76139 | D26: =IF(A26="","",SUMIF(RIDOT_Catchment!$D$5:$D$9998,A26,RIDOT_Catchment!$F$5:$F$9998)+SUMIF('Non-RIDOT_Catchment'!$D$5:$D$9999,A26,'Non-RIDOT_Catchment'!$F$5:$F$9999)) -> 16908 | E26: =IF(A26="","",IFERROR(VLOOKUP(A26,Existing_STU!$A$6:$J$9999,6,0),VLOOKUP(A26,Potential_STU!$A$6:$K$9998,6,0))) -> 2106 | F26: 1.494677076 | G26: =IF(A26="","",IFERROR(VLOOKUP(A26,Existing_STU!$A$6:$J$9999,5,0),VLOOKUP(A26,Potential_STU!$A$6:$K$9998,5,0))) -> Silt Loam (0.27 in/hr) | H26: 6815.761388 | I26: 0.7127031723 | J26: =IF(ISBLANK(B26),"",IF(ISBLANK(G26),"",RowFunc(B26,G26))) -> 15 | K26: =IF(A26="","",SUMIF(RIDOT_Catchment!$D$5:$D$9998,A26,RIDOT_Catchment!$N$5:$N$9998)+SUMIF('Non-RIDOT_Catchment'!$D$5:$D$9999,A26,'Non-RIDOT_Catchment'!$N$5:$N$9999)) -> 0.7769711775 | L26: =IFERROR(IF(I26>=0.5,INTERPRNG_h($F26,'STU Treatment Values'!$B$5:$K$27,0,1,$J26),INTERPRNG_h($F26,'STU Treatment Values'!$B$29:$K$51,0,1,$J26)),"") -> 0.5794677076 | M26: 0.4502297071 | N26: =IF(A26="","",SUMIF(RIDOT_Catchment!$D$5:$D$9998,A26,RIDOT_Catchment!$O$5:$O$9998)+SUMIF('Non-RIDOT_Catchment'!$D$5:$D$9999,A26,'Non-RIDOT_Catchment'!$O$5:$O$9999)) -> 199.9949611 | O26: =IFERROR(IF(I26>=0.5,INTERPRNG_h($F26,'STU Treatment Values'!$N$5:$W$27,0,1,$J26),INTERPRNG_h($F26,'STU Treatment Values'!$N$29:$W$51,0,1,$J26)),"") -> 0.9998935415 | P26: 199.97367 | Q26: =IF(A26="","",SUMIF(RIDOT_Catchment!$D$5:$D$9998,A26,RIDOT_Catchment!$P$5:$P$9998)+SUMIF('Non-RIDOT_Catchment'!$D$5:$D$9999,A26,'Non-RIDOT_Catchment'!$P$5:$P$9999)) -> 4.805646761 | R26: =IFERROR(IF(I26>=0.5,INTERPRNG_h($F26,'STU Treatment Values'!$Z$5:$AI$27,0,1,$J26),INTERPRNG_h($F26,'STU Treatment Values'!$Z$29:$AI$51,0,1,$J26)),"") -> 0.3694677076 | S26: 1.775531292 | T26: =IF(A26="","",SUMIF(RIDOT_Catchment!$D$5:$D$9998,A26,RIDOT_Catchment!$Q$5:$Q$9998)+SUMIF('Non-RIDOT_Catchment'!$D$5:$D$9999,A26,'Non-RIDOT_Catchment'!$Q$5:$Q$9999)) -> 0.3539049029 | U26: =IFERROR(IF(I26>=0.5,INTERPRNG_h($F26,'STU Treatment Values'!$AL$5:$AU$27,0,1,$J26),INTERPRNG_h($F26,'STU Treatment Values'!$AL$29:$AU$51,0,1,$J26)),"") -> 0.9798935415 | V26: 0.3467891287 | W26: 0.38815427 | X26: 1 | Y26: 0.6438530084 | Z26: =IFERROR(INTERPRNG_h($F26,'STU Treatment Values'!$B$79:$K$101,0,1,$J26),"") -> 0.2389354152 | AA26: =IFERROR(INTERPRNG_h($F26,'STU Treatment Values'!$B$54:$K$76,0,1,$J26),"") -> 0.7232168855 | AB26: 0.6515013273 | AC26: 0.2528830221 | AD26: =IFERROR(INTERPRNG_h($F26,'STU Treatment Values'!$B$104:$K$126,0,1,$J26),"") -> 0.2145075898 | AE26: 0.3043513015
A27: SCP-BLB-021 | B27: =IF(A27="","",IFERROR(VLOOKUP(A27,Existing_STU!$A$6:$J$9999,4,0),VLOOKUP(A27,Potential_STU!$A$6:$K$9998,4,0))) -> Bioretention Basin | C27: =IF(A27="","",SUMIF(RIDOT_Catchment!$D$5:$D$9998,A27,RIDOT_Catchment!$L$5:$L$9998)+SUMIF('Non-RIDOT_Catchment'!$D$5:$D$9999,A27,'Non-RIDOT_Catchment'!$L$5:$L$9999)) -> 81650.90201 | D27: =IF(A27="","",SUMIF(RIDOT_Catchment!$D$5:$D$9998,A27,RIDOT_Catchment!$F$5:$F$9998)+SUMIF('Non-RIDOT_Catchment'!$D$5:$D$9999,A27,'Non-RIDOT_Catchment'!$F$5:$F$9999)) -> 42684 | E27: =IF(A27="","",IFERROR(VLOOKUP(A27,Existing_STU!$A$6:$J$9999,6,0),VLOOKUP(A27,Potential_STU!$A$6:$K$9998,6,0))) -> 3640 | F27: 1.02333427 | G27: =IF(A27="","",IFERROR(VLOOKUP(A27,Existing_STU!$A$6:$J$9999,5,0),VLOOKUP(A27,Potential_STU!$A$6:$K$9998,5,0))) -> Silt Loam (0.27 in/hr) | H27: 38966.90201 | I27: 0.5227621367 | J27: =IF(ISBLANK(B27),"",IF(ISBLANK(G27),"",RowFunc(B27,G27))) -> 15 | K27: =IF(A27="","",SUMIF(RIDOT_Catchment!$D$5:$D$9998,A27,RIDOT_Catchment!$N$5:$N$9998)+SUMIF('Non-RIDOT_Catchment'!$D$5:$D$9999,A27,'Non-RIDOT_Catchment'!$N$5:$N$9999)) -> 1.757961591 | L27: =IFERROR(IF(I27>=0.5,INTERPRNG_h($F27,'STU Treatment Values'!$B$5:$K$27,0,1,$J27),INTERPRNG_h($F27,'STU Treatment Values'!$B$29:$K$51,0,1,$J27)),"") -> 0.532333427 | M27: 0.9358217183 | N27: =IF(A27="","",SUMIF(RIDOT_Catchment!$D$5:$D$9998,A27,RIDOT_Catchment!$O$5:$O$9998)+SUMIF('Non-RIDOT_Catchment'!$D$5:$D$9999,A27,'Non-RIDOT_Catchment'!$O$5:$O$9999)) -> 444.9911644 | O27: =IFERROR(IF(I27>=0.5,INTERPRNG_h($F27,'STU Treatment Values'!$N$5:$W$27,0,1,$J27),INTERPRNG_h($F27,'STU Treatment Values'!$N$29:$W$51,0,1,$J27)),"") -> 0.9904666854 | P27: 440.7489236 | Q27: =IF(A27="","",SUMIF(RIDOT_Catchment!$D$5:$D$9998,A27,RIDOT_Catchment!$P$5:$P$9998)+SUMIF('Non-RIDOT_Catchment'!$D$5:$D$9999,A27,'Non-RIDOT_Catchment'!$P$5:$P$9999)) -> 14.3427284 | R27: =IFERROR(IF(I27>=0.5,INTERPRNG_h($F27,'STU Treatment Values'!$Z$5:$AI$27,0,1,$J27),INTERPRNG_h($F27,'STU Treatment Values'!$Z$29:$AI$51,0,1,$J27)),"") -> 0.322333427 | S27: 4.623140798 | T27: =IF(A27="","",SUMIF(RIDOT_Catchment!$D$5:$D$9998,A27,RIDOT_Catchment!$Q$5:$Q$9998)+SUMIF('Non-RIDOT_Catchment'!$D$5:$D$9999,A27,'Non-RIDOT_Catchment'!$Q$5:$Q$9999)) -> 1.333078232 | U27: =IFERROR(IF(I27>=0.5,INTERPRNG_h($F27,'STU Treatment Values'!$AL$5:$AU$27,0,1,$J27),INTERPRNG_h($F27,'STU Treatment Values'!$AL$29:$AU$51,0,1,$J27)),"") -> 0.9704666854 | V27: 1.293708013 | W27: 0.9798898072 | X27: 1 | Y27: 0.5914815856 | Z27: =IFERROR(INTERPRNG_h($F27,'STU Treatment Values'!$B$79:$K$101,0,1,$J27),"") -> 0.1446668541 | AA27: =IFERROR(INTERPRNG_h($F27,'STU Treatment Values'!$B$54:$K$76,0,1,$J27),"") -> 0.472930098 | AB27: 0.5522696344 | AC27: 0.5411633856 | AD27: =IFERROR(INTERPRNG_h($F27,'STU Treatment Values'!$B$104:$K$126,0,1,$J27),"") -> 0.130593417 | AE27: 0.4833558734
A28: SCP-BLB-022 | B28: =IF(A28="","",IFERROR(VLOOKUP(A28,Existing_STU!$A$6:$J$9999,4,0),VLOOKUP(A28,Potential_STU!$A$6:$K$9998,4,0))) -> Bioretention Swale | C28: =IF(A28="","",SUMIF(RIDOT_Catchment!$D$5:$D$9998,A28,RIDOT_Catchment!$L$5:$L$9998)+SUMIF('Non-RIDOT_Catchment'!$D$5:$D$9999,A28,'Non-RIDOT_Catchment'!$L$5:$L$9999)) -> 19604.44136 | D28: =IF(A28="","",SUMIF(RIDOT_Catchment!$D$5:$D$9998,A28,RIDOT_Catchment!$F$5:$F$9998)+SUMIF('Non-RIDOT_Catchment'!$D$5:$D$9999,A28,'Non-RIDOT_Catchment'!$F$5:$F$9999)) -> 9376 | E28: =IF(A28="","",IFERROR(VLOOKUP(A28,Existing_STU!$A$6:$J$9999,6,0),VLOOKUP(A28,Potential_STU!$A$6:$K$9998,6,0))) -> 878 | F28: 1.123720137 | G28: =IF(A28="","",IFERROR(VLOOKUP(A28,Existing_STU!$A$6:$J$9999,5,0),VLOOKUP(A28,Potential_STU!$A$6:$K$9998,5,0))) -> Silt Loam (0.27 in/hr) | H28: 10228.44136 | I28: 0.4782589735 | J28: =IF(ISBLANK(B28),"",IF(ISBLANK(G28),"",RowFunc(B28,G28))) -> 15 | K28: =IF(A28="","",SUMIF(RIDOT_Catchment!$D$5:$D$9998,A28,RIDOT_Catchment!$N$5:$N$9998)+SUMIF('Non-RIDOT_Catchment'!$D$5:$D$9999,A28,'Non-RIDOT_Catchment'!$N$5:$N$9999)) -> 0.371500485 | L28: =IFERROR(IF(I28>=0.5,INTERPRNG_h($F28,'STU Treatment Values'!$B$5:$K$27,0,1,$J28),INTERPRNG_h($F28,'STU Treatment Values'!$B$29:$K$51,0,1,$J28)),"") -> 0.5258189878 | M28: 0.195342009 | N28: =IF(A28="","",SUMIF(RIDOT_Catchment!$D$5:$D$9998,A28,RIDOT_Catchment!$O$5:$O$9998)+SUMIF('Non-RIDOT_Catchment'!$D$5:$D$9999,A28,'Non-RIDOT_Catchment'!$O$5:$O$9999)) -> 140.8814526 | O28: =IFERROR(IF(I28>=0.5,INTERPRNG_h($F28,'STU Treatment Values'!$N$5:$W$27,0,1,$J28),INTERPRNG_h($F28,'STU Treatment Values'!$N$29:$W$51,0,1,$J28)),"") -> 0.9891637976 | P28: 139.3548326 | Q28: =IF(A28="","",SUMIF(RIDOT_Catchment!$D$5:$D$9998,A28,RIDOT_Catchment!$P$5:$P$9998)+SUMIF('Non-RIDOT_Catchment'!$D$5:$D$9999,A28,'Non-RIDOT_Catchment'!$P$5:$P$9999)) -> 2.454532749 | R28: =IFERROR(IF(I28>=0.5,INTERPRNG_h($F28,'STU Treatment Values'!$Z$5:$AI$27,0,1,$J28),INTERPRNG_h($F28,'STU Treatment Values'!$Z$29:$AI$51,0,1,$J28)),"") -> 0.3259616499 | S28: 0.8000835445 | T28: =IF(A28="","",SUMIF(RIDOT_Catchment!$D$5:$D$9998,A28,RIDOT_Catchment!$Q$5:$Q$9998)+SUMIF('Non-RIDOT_Catchment'!$D$5:$D$9999,A28,'Non-RIDOT_Catchment'!$Q$5:$Q$9999)) -> 0.2372546386 | U28: =IFERROR(IF(I28>=0.5,INTERPRNG_h($F28,'STU Treatment Values'!$AL$5:$AU$27,0,1,$J28),INTERPRNG_h($F28,'STU Treatment Values'!$AL$29:$AU$51,0,1,$J28)),"") -> 0.9691637976 | V28: 0.2299386065 | W28: 0.2152433425 | X28: 1 | Y28: 0.5842433197 | Z28: =IFERROR(INTERPRNG_h($F28,'STU Treatment Values'!$B$79:$K$101,0,1,$J28),"") -> 0.1647440273 | AA28: =IFERROR(INTERPRNG_h($F28,'STU Treatment Values'!$B$54:$K$76,0,1,$J28),"") -> 0.5262357932 | AB28: 0.5688057851 | AC28: 0.1224316584 | AD28: =IFERROR(INTERPRNG_h($F28,'STU Treatment Values'!$B$104:$K$126,0,1,$J28),"") -> 0.1484653285 | AE28: 0.122063931
A29: SCP-BLB-023 | B29: =IF(A29="","",IFERROR(VLOOKUP(A29,Existing_STU!$A$6:$J$9999,4,0),VLOOKUP(A29,Potential_STU!$A$6:$K$9998,4,0))) -> Bioretention Swale | C29: =IF(A29="","",SUMIF(RIDOT_Catchment!$D$5:$D$9998,A29,RIDOT_Catchment!$L$5:$L$9998)+SUMIF('Non-RIDOT_Catchment'!$D$5:$D$9999,A29,'Non-RIDOT_Catchment'!$L$5:$L$9999)) -> 5612.760561 | D29: =IF(A29="","",SUMIF(RIDOT_Catchment!$D$5:$D$9998,A29,RIDOT_Catchment!$F$5:$F$9998)+SUMIF('Non-RIDOT_Catchment'!$D$5:$D$9999,A29,'Non-RIDOT_Catchment'!$F$5:$F$9999)) -> 3360 | E29: =IF(A29="","",IFERROR(VLOOKUP(A29,Existing_STU!$A$6:$J$9999,6,0),VLOOKUP(A29,Potential_STU!$A$6:$K$9998,6,0))) -> 364 | F29: 1.3 | G29: =IF(A29="","",IFERROR(VLOOKUP(A29,Existing_STU!$A$6:$J$9999,5,0),VLOOKUP(A29,Potential_STU!$A$6:$K$9998,5,0))) -> Silt Loam (0.27 in/hr) | H29: 2252.760561 | I29: 0.5986359054 | J29: =IF(ISBLANK(B29),"",IF(ISBLANK(G29),"",RowFunc(B29,G29))) -> 15 | K29: =IF(A29="","",SUMIF(RIDOT_Catchment!$D$5:$D$9998,A29,RIDOT_Catchment!$N$5:$N$9998)+SUMIF('Non-RIDOT_Catchment'!$D$5:$D$9999,A29,'Non-RIDOT_Catchment'!$N$5:$N$9999)) -> 0.11 | L29: =IFERROR(IF(I29>=0.5,INTERPRNG_h($F29,'STU Treatment Values'!$B$5:$K$27,0,1,$J29),INTERPRNG_h($F29,'STU Treatment Values'!$B$29:$K$51,0,1,$J29)),"") -> 0.56 | M29: 0.0616 | N29: =IF(A29="","",SUMIF(RIDOT_Catchment!$D$5:$D$9998,A29,RIDOT_Catchment!$O$5:$O$9998)+SUMIF('Non-RIDOT_Catchment'!$D$5:$D$9999,A29,'Non-RIDOT_Catchment'!$O$5:$O$9999)) -> 49 | O29: =IFERROR(IF(I29>=0.5,INTERPRNG_h($F29,'STU Treatment Values'!$N$5:$W$27,0,1,$J29),INTERPRNG_h($F29,'STU Treatment Values'!$N$29:$W$51,0,1,$J29)),"") -> 0.996 | P29: 48.804 | Q29: =IF(A29="","",SUMIF(RIDOT_Catchment!$D$5:$D$9998,A29,RIDOT_Catchment!$P$5:$P$9998)+SUMIF('Non-RIDOT_Catchment'!$D$5:$D$9999,A29,'Non-RIDOT_Catchment'!$P$5:$P$9999)) -> 0.69 | R29: =IFERROR(IF(I29>=0.5,INTERPRNG_h($F29,'STU Treatment Values'!$Z$5:$AI$27,0,1,$J29),INTERPRNG_h($F29,'STU Treatment Values'!$Z$29:$AI$51,0,1,$J29)),"") -> 0.35 | S29: 0.2415 | T29: =IF(A29="","",SUMIF(RIDOT_Catchment!$D$5:$D$9998,A29,RIDOT_Catchment!$Q$5:$Q$9998)+SUMIF('Non-RIDOT_Catchment'!$D$5:$D$9999,A29,'Non-RIDOT_Catchment'!$Q$5:$Q$9999)) -> 0.1 | U29: =IFERROR(IF(I29>=0.5,INTERPRNG_h($F29,'STU Treatment Values'!$AL$5:$AU$27,0,1,$J29),INTERPRNG_h($F29,'STU Treatment Values'!$AL$29:$AU$51,0,1,$J29)),"") -> 0.976 | V29: 0.0976 | W29: 0.07713498623 | X29: 1 | Y29: 0.6222222222 | Z29: =IFERROR(INTERPRNG_h($F29,'STU Treatment Values'!$B$79:$K$101,0,1,$J29),"") -> 0.2 | AA29: =IFERROR(INTERPRNG_h($F29,'STU Treatment Values'!$B$54:$K$76,0,1,$J29),"") -> 0.6198418061 | AB29: 0.6105160071 | AC29: 0.0470921438 | AD29: =IFERROR(INTERPRNG_h($F29,'STU Treatment Values'!$B$104:$K$126,0,1,$J29),"") -> 0.1798488115 | AE29: 0.05159567515
A30: SCP-BLB-024 | B30: =IF(A30="","",IFERROR(VLOOKUP(A30,Existing_STU!$A$6:$J$9999,4,0),VLOOKUP(A30,Potential_STU!$A$6:$K$9998,4,0))) -> Bioretention Swale | C30: =IF(A30="","",SUMIF(RIDOT_Catchment!$D$5:$D$9998,A30,RIDOT_Catchment!$L$5:$L$9998)+SUMIF('Non-RIDOT_Catchment'!$D$5:$D$9999,A30,'Non-RIDOT_Catchment'!$L$5:$L$9999)) -> 5928.439505 | D30: =IF(A30="","",SUMIF(RIDOT_Catchment!$D$5:$D$9998,A30,RIDOT_Catchment!$F$5:$F$9998)+SUMIF('Non-RIDOT_Catchment'!$D$5:$D$9999,A30,'Non-RIDOT_Catchment'!$F$5:$F$9999)) -> 3412 | E30: =IF(A30="","",IFERROR(VLOOKUP(A30,Existing_STU!$A$6:$J$9999,6,0),VLOOKUP(A30,Potential_STU!$A$6:$K$9998,6,0))) -> 364 | F30: 1.280187573 | G30: =IF(A30="","",IFERROR(VLOOKUP(A30,Existing_STU!$A$6:$J$9999,5,0),VLOOKUP(A30,Potential_STU!$A$6:$K$9998,5,0))) -> Silt Loam (0.27 in/hr) | H30: 2516.439505 | I30: 0.5755308791 | J30: =IF(ISBLANK(B30),"",IF(ISBLANK(G30),"",RowFunc(B30,G30))) -> 15 | K30: =IF(A30="","",SUMIF(RIDOT_Catchment!$D$5:$D$9998,A30,RIDOT_Catchment!$N$5:$N$9998)+SUMIF('Non-RIDOT_Catchment'!$D$5:$D$9999,A30,'Non-RIDOT_Catchment'!$N$5:$N$9999)) -> 0.11 | L30: =IFERROR(IF(I30>=0.5,INTERPRNG_h($F30,'STU Treatment Values'!$B$5:$K$27,0,1,$J30),INTERPRNG_h($F30,'STU Treatment Values'!$B$29:$K$51,0,1,$J30)),"") -> 0.5580187573 | M30: 0.06138206331 | N30: =IF(A30="","",SUMIF(RIDOT_Catchment!$D$5:$D$9998,A30,RIDOT_Catchment!$O$5:$O$9998)+SUMIF('Non-RIDOT_Catchment'!$D$5:$D$9999,A30,'Non-RIDOT_Catchment'!$O$5:$O$9999)) -> 50 | O30: =IFERROR(IF(I30>=0.5,INTERPRNG_h($F30,'STU Treatment Values'!$N$5:$W$27,0,1,$J30),INTERPRNG_h($F30,'STU Treatment Values'!$N$29:$W$51,0,1,$J30)),"") -> 0.9956037515 | P30: 49.78018757 | Q30: =IF(A30="","",SUMIF(RIDOT_Catchment!$D$5:$D$9998,A30,RIDOT_Catchment!$P$5:$P$9998)+SUMIF('Non-RIDOT_Catchment'!$D$5:$D$9999,A30,'Non-RIDOT_Catchment'!$P$5:$P$9999)) -> 0.71 | R30: =IFERROR(IF(I30>=0.5,INTERPRNG_h($F30,'STU Treatment Values'!$Z$5:$AI$27,0,1,$J30),INTERPRNG_h($F30,'STU Treatment Values'!$Z$29:$AI$51,0,1,$J30)),"") -> 0.3480187573 | S30: 0.2470933177 | T30: =IF(A30="","",SUMIF(RIDOT_Catchment!$D$5:$D$9998,A30,RIDOT_Catchment!$Q$5:$Q$9998)+SUMIF('Non-RIDOT_Catchment'!$D$5:$D$9999,A30,'Non-RIDOT_Catchment'!$Q$5:$Q$9999)) -> 0.1 | U30: =IFERROR(IF(I30>=0.5,INTERPRNG_h($F30,'STU Treatment Values'!$AL$5:$AU$27,0,1,$J30),INTERPRNG_h($F30,'STU Treatment Values'!$AL$29:$AU$51,0,1,$J30)),"") -> 0.9756037515 | V30: 0.09756037515 | W30: 0.07832874197 | X30: 1 | Y30: 0.6200208415 | Z30: =IFERROR(INTERPRNG_h($F30,'STU Treatment Values'!$B$79:$K$101,0,1,$J30),"") -> 0.1960375147 | AA30: =IFERROR(INTERPRNG_h($F30,'STU Treatment Values'!$B$54:$K$76,0,1,$J30),"") -> 0.6093212496 | AB30: 0.6063449014 | AC30: 0.04749423333 | AD30: =IFERROR(INTERPRNG_h($F30,'STU Treatment Values'!$B$104:$K$126,0,1,$J30),"") -> 0.1763215626 | AE30: 0.05158796947
A31: SCP-BLB-025 | B31: =IF(A31="","",IFERROR(VLOOKUP(A31,Existing_STU!$A$6:$J$9999,4,0),VLOOKUP(A31,Potential_STU!$A$6:$K$9998,4,0))) -> Bioretention Swale | C31: =IF(A31="","",SUMIF(RIDOT_Catchment!$D$5:$D$9998,A31,RIDOT_Catchment!$L$5:$L$9998)+SUMIF('Non-RIDOT_Catchment'!$D$5:$D$9999,A31,'Non-RIDOT_Catchment'!$L$5:$L$9999)) -> 5033.904634 | D31: =IF(A31="","",SUMIF(RIDOT_Catchment!$D$5:$D$9998,A31,RIDOT_Catchment!$F$5:$F$9998)+SUMIF('Non-RIDOT_Catchment'!$D$5:$D$9999,A31,'Non-RIDOT_Catchment'!$F$5:$F$9999)) -> 4344 | E31: =IF(A31="","",IFERROR(VLOOKUP(A31,Existing_STU!$A$6:$J$9999,6,0),VLOOKUP(A31,Potential_STU!$A$6:$K$9998,6,0))) -> 364 | F31: 1.005524862 | G31: =IF(A31="","",IFERROR(VLOOKUP(A31,Existing_STU!$A$6:$J$9999,5,0),VLOOKUP(A31,Potential_STU!$A$6:$K$9998,5,0))) -> Silt Loam (0.27 in/hr) | H31: 689.9046338 | I31: 0.86294841 | J31: =IF(ISBLANK(B31),"",IF(ISBLANK(G31),"",RowFunc(B31,G31))) -> 15 | K31: =IF(A31="","",SUMIF(RIDOT_Catchment!$D$5:$D$9998,A31,RIDOT_Catchment!$N$5:$N$9998)+SUMIF('Non-RIDOT_Catchment'!$D$5:$D$9999,A31,'Non-RIDOT_Catchment'!$N$5:$N$9999)) -> 0.13 | L31: =IFERROR(IF(I31>=0.5,INTERPRNG_h($F31,'STU Treatment Values'!$B$5:$K$27,0,1,$J31),INTERPRNG_h($F31,'STU Treatment Values'!$B$29:$K$51,0,1,$J31)),"") -> 0.5305524862 | M31: 0.0689718232 | N31: =IF(A31="","",SUMIF(RIDOT_Catchment!$D$5:$D$9998,A31,RIDOT_Catchment!$O$5:$O$9998)+SUMIF('Non-RIDOT_Catchment'!$D$5:$D$9999,A31,'Non-RIDOT_Catchment'!$O$5:$O$9999)) -> 62 | O31: =IFERROR(IF(I31>=0.5,INTERPRNG_h($F31,'STU Treatment Values'!$N$5:$W$27,0,1,$J31),INTERPRNG_h($F31,'STU Treatment Values'!$N$29:$W$51,0,1,$J31)),"") -> 0.9901104972 | P31: 61.38685083 | Q31: =IF(A31="","",SUMIF(RIDOT_Catchment!$D$5:$D$9998,A31,RIDOT_Catchment!$P$5:$P$9998)+SUMIF('Non-RIDOT_Catchment'!$D$5:$D$9999,A31,'Non-RIDOT_Catchment'!$P$5:$P$9999)) -> 0.85 | R31: =IFERROR(IF(I31>=0.5,INTERPRNG_h($F31,'STU Treatment Values'!$Z$5:$AI$27,0,1,$J31),INTERPRNG_h($F31,'STU Treatment Values'!$Z$29:$AI$51,0,1,$J31)),"") -> 0.3205524862 | S31: 0.2724696133 | T31: =IF(A31="","",SUMIF(RIDOT_Catchment!$D$5:$D$9998,A31,RIDOT_Catchment!$Q$5:$Q$9998)+SUMIF('Non-RIDOT_Catchment'!$D$5:$D$9999,A31,'Non-RIDOT_Catchment'!$Q$5:$Q$9999)) -> 0.12 | U31: =IFERROR(IF(I31>=0.5,INTERPRNG_h($F31,'STU Treatment Values'!$AL$5:$AU$27,0,1,$J31),INTERPRNG_h($F31,'STU Treatment Values'!$AL$29:$AU$51,0,1,$J31)),"") -> 0.9701104972 | V31: 0.1164132597 | W31: 0.09972451791 | X31: 1 | Y31: 0.5895027624 | Z31: =IFERROR(INTERPRNG_h($F31,'STU Treatment Values'!$B$79:$K$101,0,1,$J31),"") -> 0.1411049724 | AA31: =IFERROR(INTERPRNG_h($F31,'STU Treatment Values'!$B$54:$K$76,0,1,$J31),"") -> 0.46347316 | AB31: 0.5485202237 | AC31: 0.05470091487 | AD31: =IFERROR(INTERPRNG_h($F31,'STU Treatment Values'!$B$104:$K$126,0,1,$J31),"") -> 0.1274227697 | AE31: 0.04570716533
A32: SCP-BLB-026 | B32: =IF(A32="","",IFERROR(VLOOKUP(A32,Existing_STU!$A$6:$J$9999,4,0),VLOOKUP(A32,Potential_STU!$A$6:$K$9998,4,0))) -> Bioretention Swale | C32: =IF(A32="","",SUMIF(RIDOT_Catchment!$D$5:$D$9998,A32,RIDOT_Catchment!$L$5:$L$9998)+SUMIF('Non-RIDOT_Catchment'!$D$5:$D$9999,A32,'Non-RIDOT_Catchment'!$L$5:$L$9999)) -> 8210.246702 | D32: =IF(A32="","",SUMIF(RIDOT_Catchment!$D$5:$D$9998,A32,RIDOT_Catchment!$F$5:$F$9998)+SUMIF('Non-RIDOT_Catchment'!$D$5:$D$9999,A32,'Non-RIDOT_Catchment'!$F$5:$F$9999)) -> 5440 | E32: =IF(A32="","",IFERROR(VLOOKUP(A32,Existing_STU!$A$6:$J$9999,6,0),VLOOKUP(A32,Potential_STU!$A$6:$K$9998,6,0))) -> 364 | F32: 0.8029411765 | G32: =IF(A32="","",IFERROR(VLOOKUP(A32,Existing_STU!$A$6:$J$9999,5,0),VLOOKUP(A32,Potential_STU!$A$6:$K$9998,5,0))) -> Silt Loam (0.27 in/hr) | H32: 2770.246702 | I32: 0.6625866673 | J32: =IF(ISBLANK(B32),"",IF(ISBLANK(G32),"",RowFunc(B32,G32))) -> 15 | K32: =IF(A32="","",SUMIF(RIDOT_Catchment!$D$5:$D$9998,A32,RIDOT_Catchment!$N$5:$N$9998)+SUMIF('Non-RIDOT_Catchment'!$D$5:$D$9999,A32,'Non-RIDOT_Catchment'!$N$5:$N$9999)) -> 0.1787739717 | L32: =IFERROR(IF(I32>=0.5,INTERPRNG_h($F32,'STU Treatment Values'!$B$5:$K$27,0,1,$J32),INTERPRNG_h($F32,'STU Treatment Values'!$B$29:$K$51,0,1,$J32)),"") -> 0.4807352941 | M32: 0.08594295786 | N32: =IF(A32="","",SUMIF(RIDOT_Catchment!$D$5:$D$9998,A32,RIDOT_Catchment!$O$5:$O$9998)+SUMIF('Non-RIDOT_Catchment'!$D$5:$D$9999,A32,'Non-RIDOT_Catchment'!$O$5:$O$9999)) -> 79.39248984 | O32: =IFERROR(IF(I32>=0.5,INTERPRNG_h($F32,'STU Treatment Values'!$N$5:$W$27,0,1,$J32),INTERPRNG_h($F32,'STU Treatment Values'!$N$29:$W$51,0,1,$J32)),"") -> 0.9801470588 | P32: 77.81631541 | Q32: =IF(A32="","",SUMIF(RIDOT_Catchment!$D$5:$D$9998,A32,RIDOT_Catchment!$P$5:$P$9998)+SUMIF('Non-RIDOT_Catchment'!$D$5:$D$9999,A32,'Non-RIDOT_Catchment'!$P$5:$P$9999)) -> 1.184075262 | R32: =IFERROR(IF(I32>=0.5,INTERPRNG_h($F32,'STU Treatment Values'!$Z$5:$AI$27,0,1,$J32),INTERPRNG_h($F32,'STU Treatment Values'!$Z$29:$AI$51,0,1,$J32)),"") -> 0.3101470588 | S32: 0.3672374598 | T32: =IF(A32="","",SUMIF(RIDOT_Catchment!$D$5:$D$9998,A32,RIDOT_Catchment!$Q$5:$Q$9998)+SUMIF('Non-RIDOT_Catchment'!$D$5:$D$9999,A32,'Non-RIDOT_Catchment'!$Q$5:$Q$9999)) -> 0.146631054 | U32: =IFERROR(IF(I32>=0.5,INTERPRNG_h($F32,'STU Treatment Values'!$AL$5:$AU$27,0,1,$J32),INTERPRNG_h($F32,'STU Treatment Values'!$AL$29:$AU$51,0,1,$J32)),"") -> 0.9601470588 | V32: 0.1407873752 | W32: 0.1248852158 | X32: 1 | Y32: 0.5341503268 | Z32: =IFERROR(INTERPRNG_h($F32,'STU Treatment Values'!$B$79:$K$101,0,1,$J32),"") -> 0.1104411765 | AA32: =IFERROR(INTERPRNG_h($F32,'STU Treatment Values'!$B$54:$K$76,0,1,$J32),"") -> 0.3910116061 | AB32: 0.5089007774 | AC32: 0.0635541834 | AD32: =IFERROR(INTERPRNG_h($F32,'STU Treatment Values'!$B$104:$K$126,0,1,$J32),"") -> 0.1036931672 | AE32: 0.04766421866
A33: SCP-BLB-027 | B33: =IF(A33="","",IFERROR(VLOOKUP(A33,Existing_STU!$A$6:$J$9999,4,0),VLOOKUP(A33,Potential_STU!$A$6:$K$9998,4,0))) -> Bioretention Swale | C33: =IF(A33="","",SUMIF(RIDOT_Catchment!$D$5:$D$9998,A33,RIDOT_Catchment!$L$5:$L$9998)+SUMIF('Non-RIDOT_Catchment'!$D$5:$D$9999,A33,'Non-RIDOT_Catchment'!$L$5:$L$9999)) -> 19197.60668 | D33: =IF(A33="","",SUMIF(RIDOT_Catchment!$D$5:$D$9998,A33,RIDOT_Catchment!$F$5:$F$9998)+SUMIF('Non-RIDOT_Catchment'!$D$5:$D$9999,A33,'Non-RIDOT_Catchment'!$F$5:$F$9999)) -> 18652 | E33: =IF(A33="","",IFERROR(VLOOKUP(A33,Existing_STU!$A$6:$J$9999,6,0),VLOOKUP(A33,Potential_STU!$A$6:$K$9998,6,0))) -> 364 | F33: 0.2341840017 | G33: =IF(A33="","",IFERROR(VLOOKUP(A33,Existing_STU!$A$6:$J$9999,5,0),VLOOKUP(A33,Potential_STU!$A$6:$K$9998,5,0))) -> Silt Loam (0.27 in/hr) | H33: 545.6066791 | I33: 0.9715794428 | J33: =IF(ISBLANK(B33),"",IF(ISBLANK(G33),"",RowFunc(B33,G33))) -> 15 | K33: =IF(A33="","",SUMIF(RIDOT_Catchment!$D$5:$D$9998,A33,RIDOT_Catchment!$N$5:$N$9998)+SUMIF('Non-RIDOT_Catchment'!$D$5:$D$9999,A33,'Non-RIDOT_Catchment'!$N$5:$N$9999)) -> 0.6650835888 | L33: =IFERROR(IF(I33>=0.5,INTERPRNG_h($F33,'STU Treatment Values'!$B$5:$K$27,0,1,$J33),INTERPRNG_h($F33,'STU Treatment Values'!$B$29:$K$51,0,1,$J33)),"") -> 0.270510401 | M33: 0.1799120283 | N33: =IF(A33="","",SUMIF(RIDOT_Catchment!$D$5:$D$9998,A33,RIDOT_Catchment!$O$5:$O$9998)+SUMIF('Non-RIDOT_Catchment'!$D$5:$D$9999,A33,'Non-RIDOT_Catchment'!$O$5:$O$9999)) -> 216.1305885 | O33: =IFERROR(IF(I33>=0.5,INTERPRNG_h($F33,'STU Treatment Values'!$N$5:$W$27,0,1,$J33),INTERPRNG_h($F33,'STU Treatment Values'!$N$29:$W$51,0,1,$J33)),"") -> 0.7276024019 | P33: 157.2571353 | Q33: =IF(A33="","",SUMIF(RIDOT_Catchment!$D$5:$D$9998,A33,RIDOT_Catchment!$P$5:$P$9998)+SUMIF('Non-RIDOT_Catchment'!$D$5:$D$9999,A33,'Non-RIDOT_Catchment'!$P$5:$P$9999)) -> 4.931569405 | R33: =IFERROR(IF(I33>=0.5,INTERPRNG_h($F33,'STU Treatment Values'!$Z$5:$AI$27,0,1,$J33),INTERPRNG_h($F33,'STU Treatment Values'!$Z$29:$AI$51,0,1,$J33)),"") -> 0.1719644006 | S33: 0.8480543767 | T33: =IF(A33="","",SUMIF(RIDOT_Catchment!$D$5:$D$9998,A33,RIDOT_Catchment!$Q$5:$Q$9998)+SUMIF('Non-RIDOT_Catchment'!$D$5:$D$9999,A33,'Non-RIDOT_Catchment'!$Q$5:$Q$9999)) -> 0.5529995133 | U33: =IFERROR(IF(I33>=0.5,INTERPRNG_h($F33,'STU Treatment Values'!$AL$5:$AU$27,0,1,$J33),INTERPRNG_h($F33,'STU Treatment Values'!$AL$29:$AU$51,0,1,$J33)),"") -> 0.8919644006 | V33: 0.4932558795 | W33: 0.4281910009 | X33: 0.8084471132 | Y33: 0.3005671123 | Z33: =IFERROR(INTERPRNG_h($F33,'STU Treatment Values'!$B$79:$K$101,0,1,$J33),"") -> 0.03512760026 | AA33: =IFERROR(INTERPRNG_h($F33,'STU Treatment Values'!$B$54:$K$76,0,1,$J33),"") -> 0.1681919078 | AB33: 0.3280834334 | AC33: 0.1404823737 | AD33: =IFERROR(INTERPRNG_h($F33,'STU Treatment Values'!$B$104:$K$126,0,1,$J33),"") -> 0.03313471941 | AE33: 0.05059424284
A34: SCP-BLB-028 | B34: =IF(A34="","",IFERROR(VLOOKUP(A34,Existing_STU!$A$6:$J$9999,4,0),VLOOKUP(A34,Potential_STU!$A$6:$K$9998,4,0))) -> Bioretention Swale | C34: =IF(A34="","",SUMIF(RIDOT_Catchment!$D$5:$D$9998,A34,RIDOT_Catchment!$L$5:$L$9998)+SUMIF('Non-RIDOT_Catchment'!$D$5:$D$9999,A34,'Non-RIDOT_Catchment'!$L$5:$L$9999)) -> 7153.496917 | D34: =IF(A34="","",SUMIF(RIDOT_Catchment!$D$5:$D$9998,A34,RIDOT_Catchment!$F$5:$F$9998)+SUMIF('Non-RIDOT_Catchment'!$D$5:$D$9999,A34,'Non-RIDOT_Catchment'!$F$5:$F$9999)) -> 4644 | E34: =IF(A34="","",IFERROR(VLOOKUP(A34,Existing_STU!$A$6:$J$9999,6,0),VLOOKUP(A34,Potential_STU!$A$6:$K$9998,6,0))) -> 364 | F34: 0.9405684755 | G34: =IF(A34="","",IFERROR(VLOOKUP(A34,Existing_STU!$A$6:$J$9999,5,0),VLOOKUP(A34,Potential_STU!$A$6:$K$9998,5,0))) -> Silt Loam (0.27 in/hr) | H34: 2509.496917 | I34: 0.6491929827 | J34: =IF(ISBLANK(B34),"",IF(ISBLANK(G34),"",RowFunc(B34,G34))) -> 15 | K34: =IF(A34="","",SUMIF(RIDOT_Catchment!$D$5:$D$9998,A34,RIDOT_Catchment!$N$5:$N$9998)+SUMIF('Non-RIDOT_Catchment'!$D$5:$D$9999,A34,'Non-RIDOT_Catchment'!$N$5:$N$9999)) -> 0.15 | L34: =IFERROR(IF(I34>=0.5,INTERPRNG_h($F34,'STU Treatment Values'!$B$5:$K$27,0,1,$J34),INTERPRNG_h($F34,'STU Treatment Values'!$B$29:$K$51,0,1,$J34)),"") -> 0.5151421189 | M34: 0.07727131783 | N34: =IF(A34="","",SUMIF(RIDOT_Catchment!$D$5:$D$9998,A34,RIDOT_Catchment!$O$5:$O$9998)+SUMIF('Non-RIDOT_Catchment'!$D$5:$D$9999,A34,'Non-RIDOT_Catchment'!$O$5:$O$9999)) -> 67 | O34: =IFERROR(IF(I34>=0.5,INTERPRNG_h($F34,'STU Treatment Values'!$N$5:$W$27,0,1,$J34),INTERPRNG_h($F34,'STU Treatment Values'!$N$29:$W$51,0,1,$J34)),"") -> 0.9870284238 | P34: 66.13090439 | Q34: =IF(A34="","",SUMIF(RIDOT_Catchment!$D$5:$D$9998,A34,RIDOT_Catchment!$P$5:$P$9998)+SUMIF('Non-RIDOT_Catchment'!$D$5:$D$9999,A34,'Non-RIDOT_Catchment'!$P$5:$P$9999)) -> 0.95 | R34: =IFERROR(IF(I34>=0.5,INTERPRNG_h($F34,'STU Treatment Values'!$Z$5:$AI$27,0,1,$J34),INTERPRNG_h($F34,'STU Treatment Values'!$Z$29:$AI$51,0,1,$J34)),"") -> 0.3170284238 | S34: 0.3011770026 | T34: =IF(A34="","",SUMIF(RIDOT_Catchment!$D$5:$D$9998,A34,RIDOT_Catchment!$Q$5:$Q$9998)+SUMIF('Non-RIDOT_Catchment'!$D$5:$D$9999,A34,'Non-RIDOT_Catchment'!$Q$5:$Q$9999)) -> 0.13 | U34: =IFERROR(IF(I34>=0.5,INTERPRNG_h($F34,'STU Treatment Values'!$AL$5:$AU$27,0,1,$J34),INTERPRNG_h($F34,'STU Treatment Values'!$AL$29:$AU$51,0,1,$J34)),"") -> 0.9670284238 | V34: 0.1257136951 | W34: 0.1066115702 | X34: 1 | Y34: 0.5723801321 | Z34: =IFERROR(INTERPRNG_h($F34,'STU Treatment Values'!$B$79:$K$101,0,1,$J34),"") -> 0.1310852713 | AA34: =IFERROR(INTERPRNG_h($F34,'STU Treatment Values'!$B$54:$K$76,0,1,$J34),"") -> 0.4395703272 | AB34: 0.5357589326 | AC34: 0.05711810108 | AD34: =IFERROR(INTERPRNG_h($F34,'STU Treatment Values'!$B$104:$K$126,0,1,$J34),"") -> 0.1195791368 | AE34: 0.04701844455
A35: SCP-BLB-029 | B35: =IF(A35="","",IFERROR(VLOOKUP(A35,Existing_STU!$A$6:$J$9999,4,0),VLOOKUP(A35,Potential_STU!$A$6:$K$9998,4,0))) -> Bioretention Swale | C35: =IF(A35="","",SUMIF(RIDOT_Catchment!$D$5:$D$9998,A35,RIDOT_Catchment!$L$5:$L$9998)+SUMIF('Non-RIDOT_Catchment'!$D$5:$D$9999,A35,'Non-RIDOT_Catchment'!$L$5:$L$9999)) -> 9677.481348 | D35: =IF(A35="","",SUMIF(RIDOT_Catchment!$D$5:$D$9998,A35,RIDOT_Catchment!$F$5:$F$9998)+SUMIF('Non-RIDOT_Catchment'!$D$5:$D$9999,A35,'Non-RIDOT_Catchment'!$F$5:$F$9999)) -> 6180 | E35: =IF(A35="","",IFERROR(VLOOKUP(A35,Existing_STU!$A$6:$J$9999,6,0),VLOOKUP(A35,Potential_STU!$A$6:$K$9998,6,0))) -> 364 | F35: 0.7067961165 | G35: =IF(A35="","",IFERROR(VLOOKUP(A35,Existing_STU!$A$6:$J$9999,5,0),VLOOKUP(A35,Potential_STU!$A$6:$K$9998,5,0))) -> Silt Loam (0.27 in/hr) | H35: 3497.481348 | I35: 0.6385959092 | J35: =IF(ISBLANK(B35),"",IF(ISBLANK(G35),"",RowFunc(B35,G35))) -> 15 | K35: =IF(A35="","",SUMIF(RIDOT_Catchment!$D$5:$D$9998,A35,RIDOT_Catchment!$N$5:$N$9998)+SUMIF('Non-RIDOT_Catchment'!$D$5:$D$9999,A35,'Non-RIDOT_Catchment'!$N$5:$N$9999)) -> 0.2 | L35: =IFERROR(IF(I35>=0.5,INTERPRNG_h($F35,'STU Treatment Values'!$B$5:$K$27,0,1,$J35),INTERPRNG_h($F35,'STU Treatment Values'!$B$29:$K$51,0,1,$J35)),"") -> 0.4613592233 | M35: 0.09227184466 | N35: =IF(A35="","",SUMIF(RIDOT_Catchment!$D$5:$D$9998,A35,RIDOT_Catchment!$O$5:$O$9998)+SUMIF('Non-RIDOT_Catchment'!$D$5:$D$9999,A35,'Non-RIDOT_Catchment'!$O$5:$O$9999)) -> 89 | O35: =IFERROR(IF(I35>=0.5,INTERPRNG_h($F35,'STU Treatment Values'!$N$5:$W$27,0,1,$J35),INTERPRNG_h($F35,'STU Treatment Values'!$N$29:$W$51,0,1,$J35)),"") -> 0.9753398058 | P35: 86.80524272 | Q35: =IF(A35="","",SUMIF(RIDOT_Catchment!$D$5:$D$9998,A35,RIDOT_Catchment!$P$5:$P$9998)+SUMIF('Non-RIDOT_Catchment'!$D$5:$D$9999,A35,'Non-RIDOT_Catchment'!$P$5:$P$9999)) -> 1.26 | R35: =IFERROR(IF(I35>=0.5,INTERPRNG_h($F35,'STU Treatment Values'!$Z$5:$AI$27,0,1,$J35),INTERPRNG_h($F35,'STU Treatment Values'!$Z$29:$AI$51,0,1,$J35)),"") -> 0.2960194175 | S35: 0.372984466 | T35: =IF(A35="","",SUMIF(RIDOT_Catchment!$D$5:$D$9998,A35,RIDOT_Catchment!$Q$5:$Q$9998)+SUMIF('Non-RIDOT_Catchment'!$D$5:$D$9999,A35,'Non-RIDOT_Catchment'!$Q$5:$Q$9999)) -> 0.18 | U35: =IFERROR(IF(I35>=0.5,INTERPRNG_h($F35,'STU Treatment Values'!$AL$5:$AU$27,0,1,$J35),INTERPRNG_h($F35,'STU Treatment Values'!$AL$29:$AU$51,0,1,$J35)),"") -> 0.96 | V35: 0.1728 | W35: 0.1418732782 | X35: 1 | Y35: 0.5126213592 | Z35: =IFERROR(INTERPRNG_h($F35,'STU Treatment Values'!$B$79:$K$101,0,1,$J35),"") -> 0.1006796117 | AA35: =IFERROR(INTERPRNG_h($F35,'STU Treatment Values'!$B$54:$K$76,0,1,$J35),"") -> 0.3667546596 | AB35: 0.4950139076 | AC35: 0.07022924585 | AD35: =IFERROR(INTERPRNG_h($F35,'STU Treatment Values'!$B$104:$K$126,0,1,$J35),"") -> 0.09259996139 | AE35: 0.04853317468
A36: SCP-BLB-030 | B36: =IF(A36="","",IFERROR(VLOOKUP(A36,Existing_STU!$A$6:$J$9999,4,0),VLOOKUP(A36,Potential_STU!$A$6:$K$9998,4,0))) -> Bioretention Swale | C36: =IF(A36="","",SUMIF(RIDOT_Catchment!$D$5:$D$9998,A36,RIDOT_Catchment!$L$5:$L$9998)+SUMIF('Non-RIDOT_Catchment'!$D$5:$D$9999,A36,'Non-RIDOT_Catchment'!$L$5:$L$9999)) -> 9768.913388 | D36: =IF(A36="","",SUMIF(RIDOT_Catchment!$D$5:$D$9998,A36,RIDOT_Catchment!$F$5:$F$9998)+SUMIF('Non-RIDOT_Catchment'!$D$5:$D$9999,A36,'Non-RIDOT_Catchment'!$F$5:$F$9999)) -> 5564 | E36: =IF(A36="","",IFERROR(VLOOKUP(A36,Existing_STU!$A$6:$J$9999,6,0),VLOOKUP(A36,Potential_STU!$A$6:$K$9998,6,0))) -> 364 | F36: 0.785046729 | G36: =IF(A36="","",IFERROR(VLOOKUP(A36,Existing_STU!$A$6:$J$9999,5,0),VLOOKUP(A36,Potential_STU!$A$6:$K$9998,5,0))) -> Silt Loam (0.27 in/hr) | H36: 4204.913388 | I36: 0.5695618109 | J36: =IF(ISBLANK(B36),"",IF(ISBLANK(G36),"",RowFunc(B36,G36))) -> 15 | K36: =IF(A36="","",SUMIF(RIDOT_Catchment!$D$5:$D$9998,A36,RIDOT_Catchment!$N$5:$N$9998)+SUMIF('Non-RIDOT_Catchment'!$D$5:$D$9999,A36,'Non-RIDOT_Catchment'!$N$5:$N$9999)) -> 0.18 | L36: =IFERROR(IF(I36>=0.5,INTERPRNG_h($F36,'STU Treatment Values'!$B$5:$K$27,0,1,$J36),INTERPRNG_h($F36,'STU Treatment Values'!$B$29:$K$51,0,1,$J36)),"") -> 0.4770093458 | M36: 0.08586168224 | N36: =IF(A36="","",SUMIF(RIDOT_Catchment!$D$5:$D$9998,A36,RIDOT_Catchment!$O$5:$O$9998)+SUMIF('Non-RIDOT_Catchment'!$D$5:$D$9999,A36,'Non-RIDOT_Catchment'!$O$5:$O$9999)) -> 81 | O36: =IFERROR(IF(I36>=0.5,INTERPRNG_h($F36,'STU Treatment Values'!$N$5:$W$27,0,1,$J36),INTERPRNG_h($F36,'STU Treatment Values'!$N$29:$W$51,0,1,$J36)),"") -> 0.9792523364 | P36: 79.31943925 | Q36: =IF(A36="","",SUMIF(RIDOT_Catchment!$D$5:$D$9998,A36,RIDOT_Catchment!$P$5:$P$9998)+SUMIF('Non-RIDOT_Catchment'!$D$5:$D$9999,A36,'Non-RIDOT_Catchment'!$P$5:$P$9999)) -> 1.16 | R36: =IFERROR(IF(I36>=0.5,INTERPRNG_h($F36,'STU Treatment Values'!$Z$5:$AI$27,0,1,$J36),INTERPRNG_h($F36,'STU Treatment Values'!$Z$29:$AI$51,0,1,$J36)),"") -> 0.3077570093 | S36: 0.3569981308 | T36: =IF(A36="","",SUMIF(RIDOT_Catchment!$D$5:$D$9998,A36,RIDOT_Catchment!$Q$5:$Q$9998)+SUMIF('Non-RIDOT_Catchment'!$D$5:$D$9999,A36,'Non-RIDOT_Catchment'!$Q$5:$Q$9999)) -> 0.16 | U36: =IFERROR(IF(I36>=0.5,INTERPRNG_h($F36,'STU Treatment Values'!$AL$5:$AU$27,0,1,$J36),INTERPRNG_h($F36,'STU Treatment Values'!$AL$29:$AU$51,0,1,$J36)),"") -> 0.96 | V36: 0.1536 | W36: 0.1277318641 | X36: 1 | Y36: 0.5300103842 | Z36: =IFERROR(INTERPRNG_h($F36,'STU Treatment Values'!$B$79:$K$101,0,1,$J36),"") -> 0.1085046729 | AA36: =IFERROR(INTERPRNG_h($F36,'STU Treatment Values'!$B$54:$K$76,0,1,$J36),"") -> 0.386248676 | AB36: 0.5061909333 | AC36: 0.0646567115 | AD36: =IFERROR(INTERPRNG_h($F36,'STU Treatment Values'!$B$104:$K$126,0,1,$J36),"") -> 0.1016283905 | AE36: 0.0485447052
A37: SCP-BLB-031 | B37: =IF(A37="","",IFERROR(VLOOKUP(A37,Existing_STU!$A$6:$J$9999,4,0),VLOOKUP(A37,Potential_STU!$A$6:$K$9998,4,0))) -> Bioretention Swale | C37: =IF(A37="","",SUMIF(RIDOT_Catchment!$D$5:$D$9998,A37,RIDOT_Catchment!$L$5:$L$9998)+SUMIF('Non-RIDOT_Catchment'!$D$5:$D$9999,A37,'Non-RIDOT_Catchment'!$L$5:$L$9999)) -> 8778.436613 | D37: =IF(A37="","",SUMIF(RIDOT_Catchment!$D$5:$D$9998,A37,RIDOT_Catchment!$F$5:$F$9998)+SUMIF('Non-RIDOT_Catchment'!$D$5:$D$9999,A37,'Non-RIDOT_Catchment'!$F$5:$F$9999)) -> 7672 | E37: =IF(A37="","",IFERROR(VLOOKUP(A37,Existing_STU!$A$6:$J$9999,6,0),VLOOKUP(A37,Potential_STU!$A$6:$K$9998,6,0))) -> 364 | F37: 0.5693430657 | G37: =IF(A37="","",IFERROR(VLOOKUP(A37,Existing_STU!$A$6:$J$9999,5,0),VLOOKUP(A37,Potential_STU!$A$6:$K$9998,5,0))) -> Silt Loam (0.27 in/hr) | H37: 1106.436613 | I37: 0.8739597195 | J37: =IF(ISBLANK(B37),"",IF(ISBLANK(G37),"",RowFunc(B37,G37))) -> 15 | K37: =IF(A37="","",SUMIF(RIDOT_Catchment!$D$5:$D$9998,A37,RIDOT_Catchment!$N$5:$N$9998)+SUMIF('Non-RIDOT_Catchment'!$D$5:$D$9999,A37,'Non-RIDOT_Catchment'!$N$5:$N$9999)) -> 0.24 | L37: =IFERROR(IF(I37>=0.5,INTERPRNG_h($F37,'STU Treatment Values'!$B$5:$K$27,0,1,$J37),INTERPRNG_h($F37,'STU Treatment Values'!$B$29:$K$51,0,1,$J37)),"") -> 0.429270073 | M37: 0.1030248175 | N37: =IF(A37="","",SUMIF(RIDOT_Catchment!$D$5:$D$9998,A37,RIDOT_Catchment!$O$5:$O$9998)+SUMIF('Non-RIDOT_Catchment'!$D$5:$D$9999,A37,'Non-RIDOT_Catchment'!$O$5:$O$9999)) -> 109 | O37: =IFERROR(IF(I37>=0.5,INTERPRNG_h($F37,'STU Treatment Values'!$N$5:$W$27,0,1,$J37),INTERPRNG_h($F37,'STU Treatment Values'!$N$29:$W$51,0,1,$J37)),"") -> 0.9608029197 | P37: 104.7275182 | Q37: =IF(A37="","",SUMIF(RIDOT_Catchment!$D$5:$D$9998,A37,RIDOT_Catchment!$P$5:$P$9998)+SUMIF('Non-RIDOT_Catchment'!$D$5:$D$9999,A37,'Non-RIDOT_Catchment'!$P$5:$P$9999)) -> 1.5 | R37: =IFERROR(IF(I37>=0.5,INTERPRNG_h($F37,'STU Treatment Values'!$Z$5:$AI$27,0,1,$J37),INTERPRNG_h($F37,'STU Treatment Values'!$Z$29:$AI$51,0,1,$J37)),"") -> 0.2723357664 | S37: 0.4085036496 | T37: =IF(A37="","",SUMIF(RIDOT_Catchment!$D$5:$D$9998,A37,RIDOT_Catchment!$Q$5:$Q$9998)+SUMIF('Non-RIDOT_Catchment'!$D$5:$D$9999,A37,'Non-RIDOT_Catchment'!$Q$5:$Q$9999)) -> 0.22 | U37: =IFERROR(IF(I37>=0.5,INTERPRNG_h($F37,'STU Treatment Values'!$AL$5:$AU$27,0,1,$J37),INTERPRNG_h($F37,'STU Treatment Values'!$AL$29:$AU$51,0,1,$J37)),"") -> 0.9584671533 | V37: 0.2108627737 | W37: 0.1761248852 | X37: 1 | Y37: 0.4769667478 | Z37: =IFERROR(INTERPRNG_h($F37,'STU Treatment Values'!$B$79:$K$101,0,1,$J37),"") -> 0.08540145985 | AA37: =IFERROR(INTERPRNG_h($F37,'STU Treatment Values'!$B$54:$K$76,0,1,$J37),"") -> 0.3252963701 | AB37: 0.4719161444 | AC37: 0.08311617677 | AD37: =IFERROR(INTERPRNG_h($F37,'STU Treatment Values'!$B$104:$K$126,0,1,$J37),"") -> 0.0762693761 | AE37: 0.04827082221
A38: SCP-BLB-032 | B38: =IF(A38="","",IFERROR(VLOOKUP(A38,Existing_STU!$A$6:$J$9999,4,0),VLOOKUP(A38,Potential_STU!$A$6:$K$9998,4,0))) -> Bioretention Swale | C38: =IF(A38="","",SUMIF(RIDOT_Catchment!$D$5:$D$9998,A38,RIDOT_Catchment!$L$5:$L$9998)+SUMIF('Non-RIDOT_Catchment'!$D$5:$D$9999,A38,'Non-RIDOT_Catchment'!$L$5:$L$9999)) -> 7267.048523 | D38: =IF(A38="","",SUMIF(RIDOT_Catchment!$D$5:$D$9998,A38,RIDOT_Catchment!$F$5:$F$9998)+SUMIF('Non-RIDOT_Catchment'!$D$5:$D$9999,A38,'Non-RIDOT_Catchment'!$F$5:$F$9999)) -> 4068 | E38: =IF(A38="","",IFERROR(VLOOKUP(A38,Existing_STU!$A$6:$J$9999,6,0),VLOOKUP(A38,Potential_STU!$A$6:$K$9998,6,0))) -> 364 | F38: 1.073746313 | G38: =IF(A38="","",IFERROR(VLOOKUP(A38,Existing_STU!$A$6:$J$9999,5,0),VLOOKUP(A38,Potential_STU!$A$6:$K$9998,5,0))) -> Silt Loam (0.27 in/hr) | H38: 3199.048523 | I38: 0.5597870975 | J38: =IF(ISBLANK(B38),"",IF(ISBLANK(G38),"",RowFunc(B38,G38))) -> 15 | K38: =IF(A38="","",SUMIF(RIDOT_Catchment!$D$5:$D$9998,A38,RIDOT_Catchment!$N$5:$N$9998)+SUMIF('Non-RIDOT_Catchment'!$D$5:$D$9999,A38,'Non-RIDOT_Catchment'!$N$5:$N$9999)) -> 0.13 | L38: =IFERROR(IF(I38>=0.5,INTERPRNG_h($F38,'STU Treatment Values'!$B$5:$K$27,0,1,$J38),INTERPRNG_h($F38,'STU Treatment Values'!$B$29:$K$51,0,1,$J38)),"") -> 0.5373746313 | M38: 0.06985870206 | N38: =IF(A38="","",SUMIF(RIDOT_Catchment!$D$5:$D$9998,A38,RIDOT_Catchment!$O$5:$O$9998)+SUMIF('Non-RIDOT_Catchment'!$D$5:$D$9999,A38,'Non-RIDOT_Catchment'!$O$5:$O$9999)) -> 59 | O38: =IFERROR(IF(I38>=0.5,INTERPRNG_h($F38,'STU Treatment Values'!$N$5:$W$27,0,1,$J38),INTERPRNG_h($F38,'STU Treatment Values'!$N$29:$W$51,0,1,$J38)),"") -> 0.9914749263 | P38: 58.49702065 | Q38: =IF(A38="","",SUMIF(RIDOT_Catchment!$D$5:$D$9998,A38,RIDOT_Catchment!$P$5:$P$9998)+SUMIF('Non-RIDOT_Catchment'!$D$5:$D$9999,A38,'Non-RIDOT_Catchment'!$P$5:$P$9999)) -> 0.85 | R38: =IFERROR(IF(I38>=0.5,INTERPRNG_h($F38,'STU Treatment Values'!$Z$5:$AI$27,0,1,$J38),INTERPRNG_h($F38,'STU Treatment Values'!$Z$29:$AI$51,0,1,$J38)),"") -> 0.3273746313 | S38: 0.2782684366 | T38: =IF(A38="","",SUMIF(RIDOT_Catchment!$D$5:$D$9998,A38,RIDOT_Catchment!$Q$5:$Q$9998)+SUMIF('Non-RIDOT_Catchment'!$D$5:$D$9999,A38,'Non-RIDOT_Catchment'!$Q$5:$Q$9999)) -> 0.12 | U38: =IFERROR(IF(I38>=0.5,INTERPRNG_h($F38,'STU Treatment Values'!$AL$5:$AU$27,0,1,$J38),INTERPRNG_h($F38,'STU Treatment Values'!$AL$29:$AU$51,0,1,$J38)),"") -> 0.9714749263 | V38: 0.1165769912 | W38: 0.09338842975 | X38: 1 | Y38: 0.5970829236 | Z38: =IFERROR(INTERPRNG_h($F38,'STU Treatment Values'!$B$79:$K$101,0,1,$J38),"") -> 0.1547492625 | AA38: =IFERROR(INTERPRNG_h($F38,'STU Treatment Values'!$B$54:$K$76,0,1,$J38),"") -> 0.4996992943 | AB38: 0.5628828701 | AC38: 0.05256674737 | AD38: =IFERROR(INTERPRNG_h($F38,'STU Treatment Values'!$B$104:$K$126,0,1,$J38),"") -> 0.1395683812 | AE38: 0.04883799031
A39: SCP-BLB-033 | B39: =IF(A39="","",IFERROR(VLOOKUP(A39,Existing_STU!$A$6:$J$9999,4,0),VLOOKUP(A39,Potential_STU!$A$6:$K$9998,4,0))) -> Bioretention Swale | C39: =IF(A39="","",SUMIF(RIDOT_Catchment!$D$5:$D$9998,A39,RIDOT_Catchment!$L$5:$L$9998)+SUMIF('Non-RIDOT_Catchment'!$D$5:$D$9999,A39,'Non-RIDOT_Catchment'!$L$5:$L$9999)) -> 5270.129889 | D39: =IF(A39="","",SUMIF(RIDOT_Catchment!$D$5:$D$9998,A39,RIDOT_Catchment!$F$5:$F$9998)+SUMIF('Non-RIDOT_Catchment'!$D$5:$D$9999,A39,'Non-RIDOT_Catchment'!$F$5:$F$9999)) -> 4772 | E39: =IF(A39="","",IFERROR(VLOOKUP(A39,Existing_STU!$A$6:$J$9999,6,0),VLOOKUP(A39,Potential_STU!$A$6:$K$9998,6,0))) -> 364 | F39: 0.9153394803 | G39: =IF(A39="","",IFERROR(VLOOKUP(A39,Existing_STU!$A$6:$J$9999,5,0),VLOOKUP(A39,Potential_STU!$A$6:$K$9998,5,0))) -> Silt Loam (0.27 in/hr) | H39: 498.1298893 | I39: 0.905480529 | J39: =IF(ISBLANK(B39),"",IF(ISBLANK(G39),"",RowFunc(B39,G39))) -> 15 | K39: =IF(A39="","",SUMIF(RIDOT_Catchment!$D$5:$D$9998,A39,RIDOT_Catchment!$N$5:$N$9998)+SUMIF('Non-RIDOT_Catchment'!$D$5:$D$9999,A39,'Non-RIDOT_Catchment'!$N$5:$N$9999)) -> 0.15 | L39: =IFERROR(IF(I39>=0.5,INTERPRNG_h($F39,'STU Treatment Values'!$B$5:$K$27,0,1,$J39),INTERPRNG_h($F39,'STU Treatment Values'!$B$29:$K$51,0,1,$J39)),"") -> 0.5088348701 | M39: 0.07632523051 | N39: =IF(A39="","",SUMIF(RIDOT_Catchment!$D$5:$D$9998,A39,RIDOT_Catchment!$O$5:$O$9998)+SUMIF('Non-RIDOT_Catchment'!$D$5:$D$9999,A39,'Non-RIDOT_Catchment'!$O$5:$O$9999)) -> 67 | O39: =IFERROR(IF(I39>=0.5,INTERPRNG_h($F39,'STU Treatment Values'!$N$5:$W$27,0,1,$J39),INTERPRNG_h($F39,'STU Treatment Values'!$N$29:$W$51,0,1,$J39)),"") -> 0.985766974 | P39: 66.04638726 | Q39: =IF(A39="","",SUMIF(RIDOT_Catchment!$D$5:$D$9998,A39,RIDOT_Catchment!$P$5:$P$9998)+SUMIF('Non-RIDOT_Catchment'!$D$5:$D$9999,A39,'Non-RIDOT_Catchment'!$P$5:$P$9999)) -> 0.93 | R39: =IFERROR(IF(I39>=0.5,INTERPRNG_h($F39,'STU Treatment Values'!$Z$5:$AI$27,0,1,$J39),INTERPRNG_h($F39,'STU Treatment Values'!$Z$29:$AI$51,0,1,$J39)),"") -> 0.315766974 | S39: 0.2936632858 | T39: =IF(A39="","",SUMIF(RIDOT_Catchment!$D$5:$D$9998,A39,RIDOT_Catchment!$Q$5:$Q$9998)+SUMIF('Non-RIDOT_Catchment'!$D$5:$D$9999,A39,'Non-RIDOT_Catchment'!$Q$5:$Q$9999)) -> 0.13 | U39: =IFERROR(IF(I39>=0.5,INTERPRNG_h($F39,'STU Treatment Values'!$AL$5:$AU$27,0,1,$J39),INTERPRNG_h($F39,'STU Treatment Values'!$AL$29:$AU$51,0,1,$J39)),"") -> 0.965766974 | V39: 0.1255497066 | W39: 0.1095500459 | X39: 1 | Y39: 0.5653720779 | Z39: =IFERROR(INTERPRNG_h($F39,'STU Treatment Values'!$B$79:$K$101,0,1,$J39),"") -> 0.127300922 | AA39: =IFERROR(INTERPRNG_h($F39,'STU Treatment Values'!$B$54:$K$76,0,1,$J39),"") -> 0.4306688393 | AB39: 0.5308354598 | AC39: 0.05815304899 | AD39: =IFERROR(INTERPRNG_h($F39,'STU Treatment Values'!$B$104:$K$126,0,1,$J39),"") -> 0.1166670179 | AE39: 0.04580600236
A40: SCP-BLB-034 | B40: =IF(A40="","",IFERROR(VLOOKUP(A40,Existing_STU!$A$6:$J$9999,4,0),VLOOKUP(A40,Potential_STU!$A$6:$K$9998,4,0))) -> Bioretention Swale | C40: =IF(A40="","",SUMIF(RIDOT_Catchment!$D$5:$D$9998,A40,RIDOT_Catchment!$L$5:$L$9998)+SUMIF('Non-RIDOT_Catchment'!$D$5:$D$9999,A40,'Non-RIDOT_Catchment'!$L$5:$L$9999)) -> 5717.222594 | D40: =IF(A40="","",SUMIF(RIDOT_Catchment!$D$5:$D$9998,A40,RIDOT_Catchment!$F$5:$F$9998)+SUMIF('Non-RIDOT_Catchment'!$D$5:$D$9999,A40,'Non-RIDOT_Catchment'!$F$5:$F$9999)) -> 3128 | E40: =IF(A40="","",IFERROR(VLOOKUP(A40,Existing_STU!$A$6:$J$9999,6,0),VLOOKUP(A40,Potential_STU!$A$6:$K$9998,6,0))) -> 364 | F40: 1.396419437 | G40: =IF(A40="","",IFERROR(VLOOKUP(A40,Existing_STU!$A$6:$J$9999,5,0),VLOOKUP(A40,Potential_STU!$A$6:$K$9998,5,0))) -> Silt Loam (0.27 in/hr) | H40: 2589.222594 | I40: 0.5471188061 | J40: =IF(ISBLANK(B40),"",IF(ISBLANK(G40),"",RowFunc(B40,G40))) -> 15 | K40: =IF(A40="","",SUMIF(RIDOT_Catchment!$D$5:$D$9998,A40,RIDOT_Catchment!$N$5:$N$9998)+SUMIF('Non-RIDOT_Catchment'!$D$5:$D$9999,A40,'Non-RIDOT_Catchment'!$N$5:$N$9999)) -> 0.1 | L40: =IFERROR(IF(I40>=0.5,INTERPRNG_h($F40,'STU Treatment Values'!$B$5:$K$27,0,1,$J40),INTERPRNG_h($F40,'STU Treatment Values'!$B$29:$K$51,0,1,$J40)),"") -> 0.5696419437 | M40: 0.05696419437 | N40: =IF(A40="","",SUMIF(RIDOT_Catchment!$D$5:$D$9998,A40,RIDOT_Catchment!$O$5:$O$9998)+SUMIF('Non-RIDOT_Catchment'!$D$5:$D$9999,A40,'Non-RIDOT_Catchment'!$O$5:$O$9999)) -> 46 | O40: =IFERROR(IF(I40>=0.5,INTERPRNG_h($F40,'STU Treatment Values'!$N$5:$W$27,0,1,$J40),INTERPRNG_h($F40,'STU Treatment Values'!$N$29:$W$51,0,1,$J40)),"") -> 0.9979283887 | P40: 45.90470588 | Q40: =IF(A40="","",SUMIF(RIDOT_Catchment!$D$5:$D$9998,A40,RIDOT_Catchment!$P$5:$P$9998)+SUMIF('Non-RIDOT_Catchment'!$D$5:$D$9999,A40,'Non-RIDOT_Catchment'!$P$5:$P$9999)) -> 0.66 | R40: =IFERROR(IF(I40>=0.5,INTERPRNG_h($F40,'STU Treatment Values'!$Z$5:$AI$27,0,1,$J40),INTERPRNG_h($F40,'STU Treatment Values'!$Z$29:$AI$51,0,1,$J40)),"") -> 0.3596419437 | S40: 0.2373636829 | T40: =IF(A40="","",SUMIF(RIDOT_Catchment!$D$5:$D$9998,A40,RIDOT_Catchment!$Q$5:$Q$9998)+SUMIF('Non-RIDOT_Catchment'!$D$5:$D$9999,A40,'Non-RIDOT_Catchment'!$Q$5:$Q$9999)) -> 0.09 | U40: =IFERROR(IF(I40>=0.5,INTERPRNG_h($F40,'STU Treatment Values'!$AL$5:$AU$27,0,1,$J40),INTERPRNG_h($F40,'STU Treatment Values'!$AL$29:$AU$51,0,1,$J40)),"") -> 0.9779283887 | V40: 0.08801355499 | W40: 0.07180899908 | X40: 1 | Y40: 0.632935493 | Z40: =IFERROR(INTERPRNG_h($F40,'STU Treatment Values'!$B$79:$K$101,0,1,$J40),"") -> 0.2192838875 | AA40: =IFERROR(INTERPRNG_h($F40,'STU Treatment Values'!$B$54:$K$76,0,1,$J40),"") -> 0.6710412961 | AB40: 0.6308151691 | AC40: 0.0452982059 | AD40: =IFERROR(INTERPRNG_h($F40,'STU Treatment Values'!$B$104:$K$126,0,1,$J40),"") -> 0.1970145712 | AE40: 0.05314950282
A41: SCP-BLB-035 | B41: =IF(A41="","",IFERROR(VLOOKUP(A41,Existing_STU!$A$6:$J$9999,4,0),VLOOKUP(A41,Potential_STU!$A$6:$K$9998,4,0))) -> Bioretention Swale | C41: =IF(A41="","",SUMIF(RIDOT_Catchment!$D$5:$D$9998,A41,RIDOT_Catchment!$L$5:$L$9998)+SUMIF('Non-RIDOT_Catchment'!$D$5:$D$9999,A41,'Non-RIDOT_Catchment'!$L$5:$L$9999)) -> 5857.374123 | D41: =IF(A41="","",SUMIF(RIDOT_Catchment!$D$5:$D$9998,A41,RIDOT_Catchment!$F$5:$F$9998)+SUMIF('Non-RIDOT_Catchment'!$D$5:$D$9999,A41,'Non-RIDOT_Catchment'!$F$5:$F$9999)) -> 5248 | E41: =IF(A41="","",IFERROR(VLOOKUP(A41,Existing_STU!$A$6:$J$9999,6,0),VLOOKUP(A41,Potential_STU!$A$6:$K$9998,6,0))) -> 364 | F41: 0.8323170732 | G41: =IF(A41="","",IFERROR(VLOOKUP(A41,Existing_STU!$A$6:$J$9999,5,0),VLOOKUP(A41,Potential_STU!$A$6:$K$9998,5,0))) -> Silt Loam (0.27 in/hr) | H41: 609.3741225 | I41: 0.8959646234 | J41: =IF(ISBLANK(B41),"",IF(ISBLANK(G41),"",RowFunc(B41,G41))) -> 15 | K41: =IF(A41="","",SUMIF(RIDOT_Catchment!$D$5:$D$9998,A41,RIDOT_Catchment!$N$5:$N$9998)+SUMIF('Non-RIDOT_Catchment'!$D$5:$D$9999,A41,'Non-RIDOT_Catchment'!$N$5:$N$9999)) -> 0.16 | L41: =IFERROR(IF(I41>=0.5,INTERPRNG_h($F41,'STU Treatment Values'!$B$5:$K$27,0,1,$J41),INTERPRNG_h($F41,'STU Treatment Values'!$B$29:$K$51,0,1,$J41)),"") -> 0.4880792683 | M41: 0.07809268293 | N41: =IF(A41="","",SUMIF(RIDOT_Catchment!$D$5:$D$9998,A41,RIDOT_Catchment!$O$5:$O$9998)+SUMIF('Non-RIDOT_Catchment'!$D$5:$D$9999,A41,'Non-RIDOT_Catchment'!$O$5:$O$9999)) -> 74 | O41: =IFERROR(IF(I41>=0.5,INTERPRNG_h($F41,'STU Treatment Values'!$N$5:$W$27,0,1,$J41),INTERPRNG_h($F41,'STU Treatment Values'!$N$29:$W$51,0,1,$J41)),"") -> 0.9816158537 | P41: 72.63957317 | Q41: =IF(A41="","",SUMIF(RIDOT_Catchment!$D$5:$D$9998,A41,RIDOT_Catchment!$P$5:$P$9998)+SUMIF('Non-RIDOT_Catchment'!$D$5:$D$9999,A41,'Non-RIDOT_Catchment'!$P$5:$P$9999)) -> 1.02 | R41: =IFERROR(IF(I41>=0.5,INTERPRNG_h($F41,'STU Treatment Values'!$Z$5:$AI$27,0,1,$J41),INTERPRNG_h($F41,'STU Treatment Values'!$Z$29:$AI$51,0,1,$J41)),"") -> 0.3116158537 | S41: 0.3178481707 | T41: =IF(A41="","",SUMIF(RIDOT_Catchment!$D$5:$D$9998,A41,RIDOT_Catchment!$Q$5:$Q$9998)+SUMIF('Non-RIDOT_Catchment'!$D$5:$D$9999,A41,'Non-RIDOT_Catchment'!$Q$5:$Q$9999)) -> 0.15 | U41: =IFERROR(IF(I41>=0.5,INTERPRNG_h($F41,'STU Treatment Values'!$AL$5:$AU$27,0,1,$J41),INTERPRNG_h($F41,'STU Treatment Values'!$AL$29:$AU$51,0,1,$J41)),"") -> 0.9616158537 | V41: 0.144242378 | W41: 0.1204775023 | X41: 1 | Y41: 0.5423102981 | Z41: =IFERROR(INTERPRNG_h($F41,'STU Treatment Values'!$B$79:$K$101,0,1,$J41),"") -> 0.114847561 | AA41: =IFERROR(INTERPRNG_h($F41,'STU Treatment Values'!$B$54:$K$76,0,1,$J41),"") -> 0.4013762357 | AB41: 0.5146335237 | AC41: 0.06200176153 | AD41: =IFERROR(INTERPRNG_h($F41,'STU Treatment Values'!$B$104:$K$126,0,1,$J41),"") -> 0.1070839524 | AE41: 0.04627342532
A42: SCP-BLB-036 | B42: =IF(A42="","",IFERROR(VLOOKUP(A42,Existing_STU!$A$6:$J$9999,4,0),VLOOKUP(A42,Potential_STU!$A$6:$K$9998,4,0))) -> Bioretention Swale | C42: =IF(A42="","",SUMIF(RIDOT_Catchment!$D$5:$D$9998,A42,RIDOT_Catchment!$L$5:$L$9998)+SUMIF('Non-RIDOT_Catchment'!$D$5:$D$9999,A42,'Non-RIDOT_Catchment'!$L$5:$L$9999)) -> 5829.972831 | D42: =IF(A42="","",SUMIF(RIDOT_Catchment!$D$5:$D$9998,A42,RIDOT_Catchment!$F$5:$F$9998)+SUMIF('Non-RIDOT_Catchment'!$D$5:$D$9999,A42,'Non-RIDOT_Catchment'!$F$5:$F$9999)) -> 3396 | E42: =IF(A42="","",IFERROR(VLOOKUP(A42,Existing_STU!$A$6:$J$9999,6,0),VLOOKUP(A42,Potential_STU!$A$6:$K$9998,6,0))) -> 364 | F42: 1.286219081 | G42: =IF(A42="","",IFERROR(VLOOKUP(A42,Existing_STU!$A$6:$J$9999,5,0),VLOOKUP(A42,Potential_STU!$A$6:$K$9998,5,0))) -> Silt Loam (0.27 in/hr) | H42: 2433.972831 | I42: 0.5825070028 | J42: =IF(ISBLANK(B42),"",IF(ISBLANK(G42),"",RowFunc(B42,G42))) -> 15 | K42: =IF(A42="","",SUMIF(RIDOT_Catchment!$D$5:$D$9998,A42,RIDOT_Catchment!$N$5:$N$9998)+SUMIF('Non-RIDOT_Catchment'!$D$5:$D$9999,A42,'Non-RIDOT_Catchment'!$N$5:$N$9999)) -> 0.11 | L42: =IFERROR(IF(I42>=0.5,INTERPRNG_h($F42,'STU Treatment Values'!$B$5:$K$27,0,1,$J42),INTERPRNG_h($F42,'STU Treatment Values'!$B$29:$K$51,0,1,$J42)),"") -> 0.5586219081 | M42: 0.06144840989 | N42: =IF(A42="","",SUMIF(RIDOT_Catchment!$D$5:$D$9998,A42,RIDOT_Catchment!$O$5:$O$9998)+SUMIF('Non-RIDOT_Catchment'!$D$5:$D$9999,A42,'Non-RIDOT_Catchment'!$O$5:$O$9999)) -> 49 | O42: =IFERROR(IF(I42>=0.5,INTERPRNG_h($F42,'STU Treatment Values'!$N$5:$W$27,0,1,$J42),INTERPRNG_h($F42,'STU Treatment Values'!$N$29:$W$51,0,1,$J42)),"") -> 0.9957243816 | P42: 48.7904947 | Q42: =IF(A42="","",SUMIF(RIDOT_Catchment!$D$5:$D$9998,A42,RIDOT_Catchment!$P$5:$P$9998)+SUMIF('Non-RIDOT_Catchment'!$D$5:$D$9999,A42,'Non-RIDOT_Catchment'!$P$5:$P$9999)) -> 0.7 | R42: =IFERROR(IF(I42>=0.5,INTERPRNG_h($F42,'STU Treatment Values'!$Z$5:$AI$27,0,1,$J42),INTERPRNG_h($F42,'STU Treatment Values'!$Z$29:$AI$51,0,1,$J42)),"") -> 0.3486219081 | S42: 0.2440353357 | T42: =IF(A42="","",SUMIF(RIDOT_Catchment!$D$5:$D$9998,A42,RIDOT_Catchment!$Q$5:$Q$9998)+SUMIF('Non-RIDOT_Catchment'!$D$5:$D$9999,A42,'Non-RIDOT_Catchment'!$Q$5:$Q$9999)) -> 0.1 | U42: =IFERROR(IF(I42>=0.5,INTERPRNG_h($F42,'STU Treatment Values'!$AL$5:$AU$27,0,1,$J42),INTERPRNG_h($F42,'STU Treatment Values'!$AL$29:$AU$51,0,1,$J42)),"") -> 0.9757243816 | V42: 0.09757243816 | W42: 0.07796143251 | X42: 1 | Y42: 0.620691009 | Z42: =IFERROR(INTERPRNG_h($F42,'STU Treatment Values'!$B$79:$K$101,0,1,$J42),"") -> 0.1972438163 | AA42: =IFERROR(INTERPRNG_h($F42,'STU Treatment Values'!$B$54:$K$76,0,1,$J42),"") -> 0.6125240284 | AB42: 0.6076147134 | AC42: 0.04737051347 | AD42: =IFERROR(INTERPRNG_h($F42,'STU Treatment Values'!$B$104:$K$126,0,1,$J42),"") -> 0.1773953649 | AE42: 0.05158997467
A43: SCP-BLB-037 | B43: =IF(A43="","",IFERROR(VLOOKUP(A43,Existing_STU!$A$6:$J$9999,4,0),VLOOKUP(A43,Potential_STU!$A$6:$K$9998,4,0))) -> Bioretention Swale | C43: =IF(A43="","",SUMIF(RIDOT_Catchment!$D$5:$D$9998,A43,RIDOT_Catchment!$L$5:$L$9998)+SUMIF('Non-RIDOT_Catchment'!$D$5:$D$9999,A43,'Non-RIDOT_Catchment'!$L$5:$L$9999)) -> 5805.166611 | D43: =IF(A43="","",SUMIF(RIDOT_Catchment!$D$5:$D$9998,A43,RIDOT_Catchment!$F$5:$F$9998)+SUMIF('Non-RIDOT_Catchment'!$D$5:$D$9999,A43,'Non-RIDOT_Catchment'!$F$5:$F$9999)) -> 4644 | E43: =IF(A43="","",IFERROR(VLOOKUP(A43,Existing_STU!$A$6:$J$9999,6,0),VLOOKUP(A43,Potential_STU!$A$6:$K$9998,6,0))) -> 364 | F43: 0.9405684755 | G43: =IF(A43="","",IFERROR(VLOOKUP(A43,Existing_STU!$A$6:$J$9999,5,0),VLOOKUP(A43,Potential_STU!$A$6:$K$9998,5,0))) -> Silt Loam (0.27 in/hr) | H43: 1161.166611 | I43: 0.7999770396 | J43: =IF(ISBLANK(B43),"",IF(ISBLANK(G43),"",RowFunc(B43,G43))) -> 15 | K43: =IF(A43="","",SUMIF(RIDOT_Catchment!$D$5:$D$9998,A43,RIDOT_Catchment!$N$5:$N$9998)+SUMIF('Non-RIDOT_Catchment'!$D$5:$D$9999,A43,'Non-RIDOT_Catchment'!$N$5:$N$9999)) -> 0.15 | L43: =IFERROR(IF(I43>=0.5,INTERPRNG_h($F43,'STU Treatment Values'!$B$5:$K$27,0,1,$J43),INTERPRNG_h($F43,'STU Treatment Values'!$B$29:$K$51,0,1,$J43)),"") -> 0.5151421189 | M43: 0.07727131783 | N43: =IF(A43="","",SUMIF(RIDOT_Catchment!$D$5:$D$9998,A43,RIDOT_Catchment!$O$5:$O$9998)+SUMIF('Non-RIDOT_Catchment'!$D$5:$D$9999,A43,'Non-RIDOT_Catchment'!$O$5:$O$9999)) -> 66 | O43: =IFERROR(IF(I43>=0.5,INTERPRNG_h($F43,'STU Treatment Values'!$N$5:$W$27,0,1,$J43),INTERPRNG_h($F43,'STU Treatment Values'!$N$29:$W$51,0,1,$J43)),"") -> 0.9870284238 | P43: 65.14387597 | Q43: =IF(A43="","",SUMIF(RIDOT_Catchment!$D$5:$D$9998,A43,RIDOT_Catchment!$P$5:$P$9998)+SUMIF('Non-RIDOT_Catchment'!$D$5:$D$9999,A43,'Non-RIDOT_Catchment'!$P$5:$P$9999)) -> 0.92 | R43: =IFERROR(IF(I43>=0.5,INTERPRNG_h($F43,'STU Treatment Values'!$Z$5:$AI$27,0,1,$J43),INTERPRNG_h($F43,'STU Treatment Values'!$Z$29:$AI$51,0,1,$J43)),"") -> 0.3170284238 | S43: 0.2916661499 | T43: =IF(A43="","",SUMIF(RIDOT_Catchment!$D$5:$D$9998,A43,RIDOT_Catchment!$Q$5:$Q$9998)+SUMIF('Non-RIDOT_Catchment'!$D$5:$D$9999,A43,'Non-RIDOT_Catchment'!$Q$5:$Q$9999)) -> 0.13 | U43: =IFERROR(IF(I43>=0.5,INTERPRNG_h($F43,'STU Treatment Values'!$AL$5:$AU$27,0,1,$J43),INTERPRNG_h($F43,'STU Treatment Values'!$AL$29:$AU$51,0,1,$J43)),"") -> 0.9670284238 | V43: 0.1257136951 | W43: 0.1066115702 | X43: 1 | Y43: 0.5723801321 | Z43: =IFERROR(INTERPRNG_h($F43,'STU Treatment Values'!$B$79:$K$101,0,1,$J43),"") -> 0.1310852713 | AA43: =IFERROR(INTERPRNG_h($F43,'STU Treatment Values'!$B$54:$K$76,0,1,$J43),"") -> 0.4395703272 | AB43: 0.5357589326 | AC43: 0.05711810108 | AD43: =IFERROR(INTERPRNG_h($F43,'STU Treatment Values'!$B$104:$K$126,0,1,$J43),"") -> 0.1195791368 | AE43: 0.0461338144
A44: SCP-BLB-038 | B44: =IF(A44="","",IFERROR(VLOOKUP(A44,Existing_STU!$A$6:$J$9999,4,0),VLOOKUP(A44,Potential_STU!$A$6:$K$9998,4,0))) -> Bioretention Swale | C44: =IF(A44="","",SUMIF(RIDOT_Catchment!$D$5:$D$9998,A44,RIDOT_Catchment!$L$5:$L$9998)+SUMIF('Non-RIDOT_Catchment'!$D$5:$D$9999,A44,'Non-RIDOT_Catchment'!$L$5:$L$9999)) -> 7049.868531 | D44: =IF(A44="","",SUMIF(RIDOT_Catchment!$D$5:$D$9998,A44,RIDOT_Catchment!$F$5:$F$9998)+SUMIF('Non-RIDOT_Catchment'!$D$5:$D$9999,A44,'Non-RIDOT_Catchment'!$F$5:$F$9999)) -> 4232 | E44: =IF(A44="","",IFERROR(VLOOKUP(A44,Existing_STU!$A$6:$J$9999,6,0),VLOOKUP(A44,Potential_STU!$A$6:$K$9998,6,0))) -> 364 | F44: 1.032136106 | G44: =IF(A44="","",IFERROR(VLOOKUP(A44,Existing_STU!$A$6:$J$9999,5,0),VLOOKUP(A44,Potential_STU!$A$6:$K$9998,5,0))) -> Silt Loam (0.27 in/hr) | H44: 2817.868531 | I44: 0.6002948823 | J44: =IF(ISBLANK(B44),"",IF(ISBLANK(G44),"",RowFunc(B44,G44))) -> 15 | K44: =IF(A44="","",SUMIF(RIDOT_Catchment!$D$5:$D$9998,A44,RIDOT_Catchment!$N$5:$N$9998)+SUMIF('Non-RIDOT_Catchment'!$D$5:$D$9999,A44,'Non-RIDOT_Catchment'!$N$5:$N$9999)) -> 0.14 | L44: =IFERROR(IF(I44>=0.5,INTERPRNG_h($F44,'STU Treatment Values'!$B$5:$K$27,0,1,$J44),INTERPRNG_h($F44,'STU Treatment Values'!$B$29:$K$51,0,1,$J44)),"") -> 0.5332136106 | M44: 0.07464990548 | N44: =IF(A44="","",SUMIF(RIDOT_Catchment!$D$5:$D$9998,A44,RIDOT_Catchment!$O$5:$O$9998)+SUMIF('Non-RIDOT_Catchment'!$D$5:$D$9999,A44,'Non-RIDOT_Catchment'!$O$5:$O$9999)) -> 61 | O44: =IFERROR(IF(I44>=0.5,INTERPRNG_h($F44,'STU Treatment Values'!$N$5:$W$27,0,1,$J44),INTERPRNG_h($F44,'STU Treatment Values'!$N$29:$W$51,0,1,$J44)),"") -> 0.9906427221 | P44: 60.42920605 | Q44: =IF(A44="","",SUMIF(RIDOT_Catchment!$D$5:$D$9998,A44,RIDOT_Catchment!$P$5:$P$9998)+SUMIF('Non-RIDOT_Catchment'!$D$5:$D$9999,A44,'Non-RIDOT_Catchment'!$P$5:$P$9999)) -> 0.87 | R44: =IFERROR(IF(I44>=0.5,INTERPRNG_h($F44,'STU Treatment Values'!$Z$5:$AI$27,0,1,$J44),INTERPRNG_h($F44,'STU Treatment Values'!$Z$29:$AI$51,0,1,$J44)),"") -> 0.3232136106 | S44: 0.2811958412 | T44: =IF(A44="","",SUMIF(RIDOT_Catchment!$D$5:$D$9998,A44,RIDOT_Catchment!$Q$5:$Q$9998)+SUMIF('Non-RIDOT_Catchment'!$D$5:$D$9999,A44,'Non-RIDOT_Catchment'!$Q$5:$Q$9999)) -> 0.12 | U44: =IFERROR(IF(I44>=0.5,INTERPRNG_h($F44,'STU Treatment Values'!$AL$5:$AU$27,0,1,$J44),INTERPRNG_h($F44,'STU Treatment Values'!$AL$29:$AU$51,0,1,$J44)),"") -> 0.9706427221 | V44: 0.1164771267 | W44: 0.0971533517 | X44: 1 | Y44: 0.5924595673 | Z44: =IFERROR(INTERPRNG_h($F44,'STU Treatment Values'!$B$79:$K$101,0,1,$J44),"") -> 0.1464272212 | AA44: =IFERROR(INTERPRNG_h($F44,'STU Treatment Values'!$B$54:$K$76,0,1,$J44),"") -> 0.4776039427 | AB44: 0.5541226828 | AC44: 0.05383487589 | AD44: =IFERROR(INTERPRNG_h($F44,'STU Treatment Values'!$B$104:$K$126,0,1,$J44),"") -> 0.1321604267 | AE44: 0.04774024958
A45: SCP-BLB-039 | B45: =IF(A45="","",IFERROR(VLOOKUP(A45,Existing_STU!$A$6:$J$9999,4,0),VLOOKUP(A45,Potential_STU!$A$6:$K$9998,4,0))) -> Bioretention Swale | C45: =IF(A45="","",SUMIF(RIDOT_Catchment!$D$5:$D$9998,A45,RIDOT_Catchment!$L$5:$L$9998)+SUMIF('Non-RIDOT_Catchment'!$D$5:$D$9999,A45,'Non-RIDOT_Catchment'!$L$5:$L$9999)) -> 5412.362753 | D45: =IF(A45="","",SUMIF(RIDOT_Catchment!$D$5:$D$9998,A45,RIDOT_Catchment!$F$5:$F$9998)+SUMIF('Non-RIDOT_Catchment'!$D$5:$D$9999,A45,'Non-RIDOT_Catchment'!$F$5:$F$9999)) -> 3928 | E45: =IF(A45="","",IFERROR(VLOOKUP(A45,Existing_STU!$A$6:$J$9999,6,0),VLOOKUP(A45,Potential_STU!$A$6:$K$9998,6,0))) -> 364 | F45: 1.112016293 | G45: =IF(A45="","",IFERROR(VLOOKUP(A45,Existing_STU!$A$6:$J$9999,5,0),VLOOKUP(A45,Potential_STU!$A$6:$K$9998,5,0))) -> Silt Loam (0.27 in/hr) | H45: 1484.362753 | I45: 0.7257458857 | J45: =IF(ISBLANK(B45),"",IF(ISBLANK(G45),"",RowFunc(B45,G45))) -> 15 | K45: =IF(A45="","",SUMIF(RIDOT_Catchment!$D$5:$D$9998,A45,RIDOT_Catchment!$N$5:$N$9998)+SUMIF('Non-RIDOT_Catchment'!$D$5:$D$9999,A45,'Non-RIDOT_Catchment'!$N$5:$N$9999)) -> 0.12 | L45: =IFERROR(IF(I45>=0.5,INTERPRNG_h($F45,'STU Treatment Values'!$B$5:$K$27,0,1,$J45),INTERPRNG_h($F45,'STU Treatment Values'!$B$29:$K$51,0,1,$J45)),"") -> 0.5412016293 | M45: 0.06494419552 | N45: =IF(A45="","",SUMIF(RIDOT_Catchment!$D$5:$D$9998,A45,RIDOT_Catchment!$O$5:$O$9998)+SUMIF('Non-RIDOT_Catchment'!$D$5:$D$9999,A45,'Non-RIDOT_Catchment'!$O$5:$O$9999)) -> 56 | O45: =IFERROR(IF(I45>=0.5,INTERPRNG_h($F45,'STU Treatment Values'!$N$5:$W$27,0,1,$J45),INTERPRNG_h($F45,'STU Treatment Values'!$N$29:$W$51,0,1,$J45)),"") -> 0.9922403259 | P45: 55.56545825 | Q45: =IF(A45="","",SUMIF(RIDOT_Catchment!$D$5:$D$9998,A45,RIDOT_Catchment!$P$5:$P$9998)+SUMIF('Non-RIDOT_Catchment'!$D$5:$D$9999,A45,'Non-RIDOT_Catchment'!$P$5:$P$9999)) -> 0.79 | R45: =IFERROR(IF(I45>=0.5,INTERPRNG_h($F45,'STU Treatment Values'!$Z$5:$AI$27,0,1,$J45),INTERPRNG_h($F45,'STU Treatment Values'!$Z$29:$AI$51,0,1,$J45)),"") -> 0.3312016293 | S45: 0.2616492872 | T45: =IF(A45="","",SUMIF(RIDOT_Catchment!$D$5:$D$9998,A45,RIDOT_Catchment!$Q$5:$Q$9998)+SUMIF('Non-RIDOT_Catchment'!$D$5:$D$9999,A45,'Non-RIDOT_Catchment'!$Q$5:$Q$9999)) -> 0.11 | U45: =IFERROR(IF(I45>=0.5,INTERPRNG_h($F45,'STU Treatment Values'!$AL$5:$AU$27,0,1,$J45),INTERPRNG_h($F45,'STU Treatment Values'!$AL$29:$AU$51,0,1,$J45)),"") -> 0.9722403259 | V45: 0.1069464358 | W45: 0.09017447199 | X45: 1 | Y45: 0.6013351437 | Z45: =IFERROR(INTERPRNG_h($F45,'STU Treatment Values'!$B$79:$K$101,0,1,$J45),"") -> 0.1624032587 | AA45: =IFERROR(INTERPRNG_h($F45,'STU Treatment Values'!$B$54:$K$76,0,1,$J45),"") -> 0.5200209591 | AB45: 0.5709398404 | AC45: 0.05148419864 | AD45: =IFERROR(INTERPRNG_h($F45,'STU Treatment Values'!$B$104:$K$126,0,1,$J45),"") -> 0.1463816681 | AE45: 0.04817057331
A46: SCP-BLB-040 | B46: =IF(A46="","",IFERROR(VLOOKUP(A46,Existing_STU!$A$6:$J$9999,4,0),VLOOKUP(A46,Potential_STU!$A$6:$K$9998,4,0))) -> Bioretention Swale | C46: =IF(A46="","",SUMIF(RIDOT_Catchment!$D$5:$D$9998,A46,RIDOT_Catchment!$L$5:$L$9998)+SUMIF('Non-RIDOT_Catchment'!$D$5:$D$9999,A46,'Non-RIDOT_Catchment'!$L$5:$L$9999)) -> 4128.301754 | D46: =IF(A46="","",SUMIF(RIDOT_Catchment!$D$5:$D$9998,A46,RIDOT_Catchment!$F$5:$F$9998)+SUMIF('Non-RIDOT_Catchment'!$D$5:$D$9999,A46,'Non-RIDOT_Catchment'!$F$5:$F$9999)) -> 2688 | E46: =IF(A46="","",IFERROR(VLOOKUP(A46,Existing_STU!$A$6:$J$9999,6,0),VLOOKUP(A46,Potential_STU!$A$6:$K$9998,6,0))) -> 364 | F46: 1.625 | G46: =IF(A46="","",IFERROR(VLOOKUP(A46,Existing_STU!$A$6:$J$9999,5,0),VLOOKUP(A46,Potential_STU!$A$6:$K$9998,5,0))) -> Silt Loam (0.27 in/hr) | H46: 1440.301754 | I46: 0.6511151947 | J46: =IF(ISBLANK(B46),"",IF(ISBLANK(G46),"",RowFunc(B46,G46))) -> 15 | K46: =IF(A46="","",SUMIF(RIDOT_Catchment!$D$5:$D$9998,A46,RIDOT_Catchment!$N$5:$N$9998)+SUMIF('Non-RIDOT_Catchment'!$D$5:$D$9999,A46,'Non-RIDOT_Catchment'!$N$5:$N$9999)) -> 0.09 | L46: =IFERROR(IF(I46>=0.5,INTERPRNG_h($F46,'STU Treatment Values'!$B$5:$K$27,0,1,$J46),INTERPRNG_h($F46,'STU Treatment Values'!$B$29:$K$51,0,1,$J46)),"") -> 0.5925 | M46: 0.053325 | N46: =IF(A46="","",SUMIF(RIDOT_Catchment!$D$5:$D$9998,A46,RIDOT_Catchment!$O$5:$O$9998)+SUMIF('Non-RIDOT_Catchment'!$D$5:$D$9999,A46,'Non-RIDOT_Catchment'!$O$5:$O$9999)) -> 39 | O46: =IFERROR(IF(I46>=0.5,INTERPRNG_h($F46,'STU Treatment Values'!$N$5:$W$27,0,1,$J46),INTERPRNG_h($F46,'STU Treatment Values'!$N$29:$W$51,0,1,$J46)),"") -> 1 | P46: 39 | Q46: =IF(A46="","",SUMIF(RIDOT_Catchment!$D$5:$D$9998,A46,RIDOT_Catchment!$P$5:$P$9998)+SUMIF('Non-RIDOT_Catchment'!$D$5:$D$9999,A46,'Non-RIDOT_Catchment'!$P$5:$P$9999)) -> 0.55 | R46: =IFERROR(IF(I46>=0.5,INTERPRNG_h($F46,'STU Treatment Values'!$Z$5:$AI$27,0,1,$J46),INTERPRNG_h($F46,'STU Treatment Values'!$Z$29:$AI$51,0,1,$J46)),"") -> 0.3775 | S46: 0.207625 | T46: =IF(A46="","",SUMIF(RIDOT_Catchment!$D$5:$D$9998,A46,RIDOT_Catchment!$Q$5:$Q$9998)+SUMIF('Non-RIDOT_Catchment'!$D$5:$D$9999,A46,'Non-RIDOT_Catchment'!$Q$5:$Q$9999)) -> 0.08 | U46: =IFERROR(IF(I46>=0.5,INTERPRNG_h($F46,'STU Treatment Values'!$AL$5:$AU$27,0,1,$J46),INTERPRNG_h($F46,'STU Treatment Values'!$AL$29:$AU$51,0,1,$J46)),"") -> 0.9825 | V46: 0.0786 | W46: 0.06170798898 | X46: 1 | Y46: 0.6583333333 | Z46: =IFERROR(INTERPRNG_h($F46,'STU Treatment Values'!$B$79:$K$101,0,1,$J46),"") -> 0.2575 | AA46: =IFERROR(INTERPRNG_h($F46,'STU Treatment Values'!$B$54:$K$76,0,1,$J46),"") -> 0.7276398654 | AB46: 0.6608682997 | AC46: 0.04078085376 | AD46: =IFERROR(INTERPRNG_h($F46,'STU Treatment Values'!$B$104:$K$126,0,1,$J46),"") -> 0.2323312382 | AE46: 0.05286028556
